Workbook

Sheet End User License Agreement
B2: End user license agreement

Sheet Background
B2: Main page | Background information
H7: for the reference years 2019 and 2020
B12: Background information on the ICAO CORSIA CERT
B13: The ICAO CORSIA CO2 Estimation and Reporting Tool (CERT) can be used by an aeroplane operator to support the monitoring and reporting of their CO2 emissions, in accordance with the requirements from ICAO Annex 16, Volume IV, Part II, Chapter 2, 2.2 and Appendix 3. The ICAO CORSIA CERT supports aeroplane operators in fulfilling their monitoring and reporting requirements by populating the standardized Emissions Monitoring Plan and Emissions Report templates. This support includes: (i) assessing its eligibility to use Fuel Use Monitoring Methods in support of their Emissions Monitoring Plan (Annex 16, Volume IV, Part II, Chapter 2, 2.2); (ii) assessing whether or not it is within the applicability scope of the Chapter 2 MRV requirements; and (iii) filling any CO2 emissions data gaps. The 2018 version of the ICAO CORSIA CERT is valid for the assessment of (1) whether the operator is within the applicability scope of the Annex 16, Volume IV, Part II, Chapter 2 requirements towards the submission of the Emissions Monitoring Plan and (2) the operator's eligibility to use the ICAO CORSIA CERT as a monitoring method in 2019. This version shall not be used for monitoring CO2 emissions towards the Emissions Report in 2019. A new (2019) version of the ICAO CORSIA CERT is expected to be available in the second half of 2019. Users of the tools can report issues and request support via CERT@icao.int
B18: References: The ICAO CORSIA CERT is based on several references, as listed below:
B19: Document | C19: Description | G19: Revision/Issue | I19: Version
B20: ICAO Doc 7910 | C20: Doc 7910 - Location Indicators | I20: Last Updated: 06 February 2018
B22: ICAO Doc 8585 | C22: Doc 8585 - Designators for Aircraft Operating Agencies, Aeronautical Authorities and Services. | I22: Last Updated: 06 March 2018
B24: ICAO Doc 8643 | C24: Doc 8643 - Aircraft Type Designators | I24: Last Updated: 09 November 2017
B26: ICAO Fuel Formula | C26: ICAO Fuel Formula
B28: Maximum MTOM | C28: 2017-11-24 | D28: based on:
C29: - EASA approved noise levels (Heavy Propeller) | H29: 26 | I29: Last updated: 27 June 2017
C30: - EASA approved noise levels (Jet aeroplanes) | H30: 28 | I30: Last updated: 27 June 2017
C31: - EASA approved noise levels (Light propeller) | H31: 28 | I31: Last updated: 10 July 2017
C33: 2017-11-30 | D33: Noise Certification Database | H33: 2.24 | I33: Version 2.24 of NoisedB database validated by the CAEP WG1 on the 08 November 2017
I35: available at:http://noisedb.stac.aviation-civile.gouv.fr
B36: Average MTOM | C36: 2017-12-04 | D36: Average MTOM database | I36: Global fleet database as of 4 December 2017 for all in service aircraft

Sheet 1. Aeroplane Operator Info
B2: Step 1. Aeroplane operator identification
C7: Aeroplane operator identification
C9: Note. - Aeroplane operator information is based on Annex 16, Volume IV, Appendix 4, 2.1 requirements and a subset of the fields from the Emissions Monotoring Plan (ICAO Doc 9501, Volume IV) to allow the identification of the aeroplane operator.
C11: a) | D11: Name of the aeroplane operator
D12: Please enter the name of the aeroplane operator. This name should be the legal entity engaged in the aeroplane operation, or the legal entity seeking to be the single entity for the CORSIA administration under a parent-subsidiary arrangement.
C17: b) | D17: Address of the aeroplane operator
D18: Please enter the address of the aeroplane operator.
D19: Address line:
D20: City:
D21: State/Province/Region:
D22: Postcode/ZIP:
D23: Country:
C26: d) | D26: Aircraft identification of the aeroplane operator for international flights (Item 7 of the flight plan)
D27: Select the options planned to be used for reporting flight attribution to the aeroplane operator. ICAO Designator Does Item 7 (aircraft identification) of the flight plan begin with an ICAO Designator according to Doc 8585 — Designators for Aircraft Operating Agencies, Aeronautical Authorities and Services? If yes, please select "ICAO Designator" from the drop down list and complete d2). Registration marks Does Item 7 (aircraft identification) of the flight plan correspond to the nationality or common mark, and registration mark, as explicitly stated in an AOC (or equivalent)? If yes, please select "Registration marks" from the drop down list. ICAO Designator and registration marks
C43: d1) | D43: Responsibility under the CORSIA
D44: =IF(D41=List_Input!C5,"Aeroplane Operator that has been assigned the ICAO designator",IF(D41=List_Input!C6,"Aeroplane Operator holding the AOC (or equivalent)",IF(D41=List_Input!C7,"Aeroplane Operator as identified in this EMP",""))) -> 
C46: d2) | D46: ICAO designator
D47: Provide the ICAO Designator (or Designators) used for Air Traffic Control purposes, as listed in Doc 8585 — Designators for Aircraft Operating Agencies, Aeronautical Authorities and Services, if the aeroplane operator has an ICAO Designator(s).
D51: Operator Name: | F51: =IF(LEN(D49)>0,VLOOKUP(D49,CERT_Doc8585!$A$2:$C$5722,2,FALSE),"") -> 
D53: Notifying State: | F53: =IF(LEN(D49)>0,VLOOKUP(D49,CERT_Doc8585!$A$2:$C$5722,3,FALSE),"") -> 
C55: e) | D55: Do you have an air operator certificate (AOC)?
D56: The air operator certificate (AOC) is a certificate authorizing an operator to carry out specified commercial air transport operations i.e., a document issued to an aeroplane operator by a Civil Aviation Authority which affirms that the aeroplane operator in question has the professional ability and organization to secure the safe operation of the aeroplane for the aviation activities specified in the certificate.
C61: e1) | D61: Identification code of the AOC
D62: Please enter the unique identification number of the air operator certificate of the issuing Civil Aviation Authority. If you hold several AOCs, list the additional certificates in the field “Information about the certificate”.
C66: e2) | D66: Date of issue
D67: Please enter the date on which the air operator certificate was issued. Use the entry format yyyy-mm-dd.
C70: e3) | D70: Date of expiry
D71: Please enter the date on which the air operator certificate expires (if applicable). Use the entry format yyyy-mm-dd.
C74: e4) | D74: Competent authority for the AOC
D75: Please enter the address of the authority that issued the AOC.
D76: Name of the authority:
D77: Address line:
D78: City:
D79: State/Province/Region:
D80: Postcode/ZIP:
D81: Country:

Sheet 2. CO2 Estimation
B2: Step 2. CO2 emissions estimation
B10: INPUT | H10: OUTPUT
B11: Date (Optional) | C11: Flight ID (Optional) | D11: ICAO Aircraft Type Designator | E11: Origin Airport | F11: Destination Airport | G11: Number of Flights | H11: Great Circle Distance (in km) | I11: CO2 Emissions [in tonnes of CO2] | J11: Flight(s) subject to Scope of Applicability of CORSIA

Sheet Custom_AC_AP
B2: Custom aircraft and airport information | R2: This ‘Custom Aircraft and Airport Information’ function should only be used when aircraft and/or airport codes entered under the ‘Step 2. CO2 Emissions Estimation’ are not listed in ICAO 8643 and 7910.
C7: Custom Aircraft Information
B9: =COUNTIF(B10:B109,"Already in CERT") -> 0 | C9: Aircraft Type Designator or Custom Aircraft Code | E9: Aircraft Category (select from drop down list below) | J9: Average MTOM of Aircraft in the Fleet (in kg) | L9: Fuel at Intercept (in kg) | N9: Fuel Rate (in kg/km)
B10: =IF(ISERROR(VLOOKUP(C10,CEM_GCD!$A$2:$A$187,1,FALSE))=FALSE,"Already in CERT","") ->  | L10: =IF(AND(LEN($E10)>0,$J10>0),VLOOKUP($E10,List_Input!$C$19:$L$22,7,FALSE)+$J10*VLOOKUP($E10,List_Input!$C$19:$L$22,8,FALSE),"") ->  | N10: =IF(AND(LEN($E10)>0,$J10>0),VLOOKUP($E10,List_Input!$C$19:$L$22,9,FALSE)+$J10*VLOOKUP($E10,List_Input!$C$19:$L$22,10,FALSE),"") ->  | R10: =IF(LEN($E10)>0,VLOOKUP($E10,List_Input!$C$19:$O$22,12,FALSE),"") ->  | S10: =IF(LEN($E10)>0,VLOOKUP($E10,List_Input!$C$19:$O$22,13,FALSE),"") -> 
B11: =IF(ISERROR(VLOOKUP(C11,CEM_GCD!$A$2:$A$187,1,FALSE))=FALSE,"Already in CERT","") ->  | L11: =IF(AND(LEN($E11)>0,$J11>0),VLOOKUP($E11,List_Input!$C$19:$L$22,7,FALSE)+$J11*VLOOKUP($E11,List_Input!$C$19:$L$22,8,FALSE),"") ->  | N11: =IF(AND(LEN($E11)>0,$J11>0),VLOOKUP($E11,List_Input!$C$19:$L$22,9,FALSE)+$J11*VLOOKUP($E11,List_Input!$C$19:$L$22,10,FALSE),"") ->  | R11: =IF(LEN($E11)>0,VLOOKUP($E11,List_Input!$C$19:$O$22,12,FALSE),"") ->  | S11: =IF(LEN($E11)>0,VLOOKUP($E11,List_Input!$C$19:$O$22,13,FALSE),"") -> 
B12: =IF(ISERROR(VLOOKUP(C12,CEM_GCD!$A$2:$A$187,1,FALSE))=FALSE,"Already in CERT","") ->  | L12: =IF(AND(LEN($E12)>0,$J12>0),VLOOKUP($E12,List_Input!$C$19:$L$22,7,FALSE)+$J12*VLOOKUP($E12,List_Input!$C$19:$L$22,8,FALSE),"") ->  | N12: =IF(AND(LEN($E12)>0,$J12>0),VLOOKUP($E12,List_Input!$C$19:$L$22,9,FALSE)+$J12*VLOOKUP($E12,List_Input!$C$19:$L$22,10,FALSE),"") ->  | R12: =IF(LEN($E12)>0,VLOOKUP($E12,List_Input!$C$19:$O$22,12,FALSE),"") ->  | S12: =IF(LEN($E12)>0,VLOOKUP($E12,List_Input!$C$19:$O$22,13,FALSE),"") -> 
B13: =IF(ISERROR(VLOOKUP(C13,CEM_GCD!$A$2:$A$187,1,FALSE))=FALSE,"Already in CERT","") ->  | L13: =IF(AND(LEN($E13)>0,$J13>0),VLOOKUP($E13,List_Input!$C$19:$L$22,7,FALSE)+$J13*VLOOKUP($E13,List_Input!$C$19:$L$22,8,FALSE),"") ->  | N13: =IF(AND(LEN($E13)>0,$J13>0),VLOOKUP($E13,List_Input!$C$19:$L$22,9,FALSE)+$J13*VLOOKUP($E13,List_Input!$C$19:$L$22,10,FALSE),"") ->  | R13: =IF(LEN($E13)>0,VLOOKUP($E13,List_Input!$C$19:$O$22,12,FALSE),"") ->  | S13: =IF(LEN($E13)>0,VLOOKUP($E13,List_Input!$C$19:$O$22,13,FALSE),"") -> 
B14: =IF(ISERROR(VLOOKUP(C14,CEM_GCD!$A$2:$A$187,1,FALSE))=FALSE,"Already in CERT","") ->  | L14: =IF(AND(LEN($E14)>0,$J14>0),VLOOKUP($E14,List_Input!$C$19:$L$22,7,FALSE)+$J14*VLOOKUP($E14,List_Input!$C$19:$L$22,8,FALSE),"") ->  | N14: =IF(AND(LEN($E14)>0,$J14>0),VLOOKUP($E14,List_Input!$C$19:$L$22,9,FALSE)+$J14*VLOOKUP($E14,List_Input!$C$19:$L$22,10,FALSE),"") ->  | R14: =IF(LEN($E14)>0,VLOOKUP($E14,List_Input!$C$19:$O$22,12,FALSE),"") ->  | S14: =IF(LEN($E14)>0,VLOOKUP($E14,List_Input!$C$19:$O$22,13,FALSE),"") -> 
B15: =IF(ISERROR(VLOOKUP(C15,CEM_GCD!$A$2:$A$187,1,FALSE))=FALSE,"Already in CERT","") ->  | L15: =IF(AND(LEN($E15)>0,$J15>0),VLOOKUP($E15,List_Input!$C$19:$L$22,7,FALSE)+$J15*VLOOKUP($E15,List_Input!$C$19:$L$22,8,FALSE),"") ->  | N15: =IF(AND(LEN($E15)>0,$J15>0),VLOOKUP($E15,List_Input!$C$19:$L$22,9,FALSE)+$J15*VLOOKUP($E15,List_Input!$C$19:$L$22,10,FALSE),"") ->  | R15: =IF(LEN($E15)>0,VLOOKUP($E15,List_Input!$C$19:$O$22,12,FALSE),"") ->  | S15: =IF(LEN($E15)>0,VLOOKUP($E15,List_Input!$C$19:$O$22,13,FALSE),"") -> 
B16: =IF(ISERROR(VLOOKUP(C16,CEM_GCD!$A$2:$A$187,1,FALSE))=FALSE,"Already in CERT","") ->  | L16: =IF(AND(LEN($E16)>0,$J16>0),VLOOKUP($E16,List_Input!$C$19:$L$22,7,FALSE)+$J16*VLOOKUP($E16,List_Input!$C$19:$L$22,8,FALSE),"") ->  | N16: =IF(AND(LEN($E16)>0,$J16>0),VLOOKUP($E16,List_Input!$C$19:$L$22,9,FALSE)+$J16*VLOOKUP($E16,List_Input!$C$19:$L$22,10,FALSE),"") ->  | R16: =IF(LEN($E16)>0,VLOOKUP($E16,List_Input!$C$19:$O$22,12,FALSE),"") ->  | S16: =IF(LEN($E16)>0,VLOOKUP($E16,List_Input!$C$19:$O$22,13,FALSE),"") -> 
B17: =IF(ISERROR(VLOOKUP(C17,CEM_GCD!$A$2:$A$187,1,FALSE))=FALSE,"Already in CERT","") ->  | L17: =IF(AND(LEN($E17)>0,$J17>0),VLOOKUP($E17,List_Input!$C$19:$L$22,7,FALSE)+$J17*VLOOKUP($E17,List_Input!$C$19:$L$22,8,FALSE),"") ->  | N17: =IF(AND(LEN($E17)>0,$J17>0),VLOOKUP($E17,List_Input!$C$19:$L$22,9,FALSE)+$J17*VLOOKUP($E17,List_Input!$C$19:$L$22,10,FALSE),"") ->  | R17: =IF(LEN($E17)>0,VLOOKUP($E17,List_Input!$C$19:$O$22,12,FALSE),"") ->  | S17: =IF(LEN($E17)>0,VLOOKUP($E17,List_Input!$C$19:$O$22,13,FALSE),"") -> 
B18: =IF(ISERROR(VLOOKUP(C18,CEM_GCD!$A$2:$A$187,1,FALSE))=FALSE,"Already in CERT","") ->  | L18: =IF(AND(LEN($E18)>0,$J18>0),VLOOKUP($E18,List_Input!$C$19:$L$22,7,FALSE)+$J18*VLOOKUP($E18,List_Input!$C$19:$L$22,8,FALSE),"") ->  | N18: =IF(AND(LEN($E18)>0,$J18>0),VLOOKUP($E18,List_Input!$C$19:$L$22,9,FALSE)+$J18*VLOOKUP($E18,List_Input!$C$19:$L$22,10,FALSE),"") ->  | R18: =IF(LEN($E18)>0,VLOOKUP($E18,List_Input!$C$19:$O$22,12,FALSE),"") ->  | S18: =IF(LEN($E18)>0,VLOOKUP($E18,List_Input!$C$19:$O$22,13,FALSE),"") -> 
B19: =IF(ISERROR(VLOOKUP(C19,CEM_GCD!$A$2:$A$187,1,FALSE))=FALSE,"Already in CERT","") ->  | L19: =IF(AND(LEN($E19)>0,$J19>0),VLOOKUP($E19,List_Input!$C$19:$L$22,7,FALSE)+$J19*VLOOKUP($E19,List_Input!$C$19:$L$22,8,FALSE),"") ->  | N19: =IF(AND(LEN($E19)>0,$J19>0),VLOOKUP($E19,List_Input!$C$19:$L$22,9,FALSE)+$J19*VLOOKUP($E19,List_Input!$C$19:$L$22,10,FALSE),"") ->  | R19: =IF(LEN($E19)>0,VLOOKUP($E19,List_Input!$C$19:$O$22,12,FALSE),"") ->  | S19: =IF(LEN($E19)>0,VLOOKUP($E19,List_Input!$C$19:$O$22,13,FALSE),"") -> 
B20: =IF(ISERROR(VLOOKUP(C20,CEM_GCD!$A$2:$A$187,1,FALSE))=FALSE,"Already in CERT","") ->  | L20: =IF(AND(LEN($E20)>0,$J20>0),VLOOKUP($E20,List_Input!$C$19:$L$22,7,FALSE)+$J20*VLOOKUP($E20,List_Input!$C$19:$L$22,8,FALSE),"") ->  | N20: =IF(AND(LEN($E20)>0,$J20>0),VLOOKUP($E20,List_Input!$C$19:$L$22,9,FALSE)+$J20*VLOOKUP($E20,List_Input!$C$19:$L$22,10,FALSE),"") ->  | R20: =IF(LEN($E20)>0,VLOOKUP($E20,List_Input!$C$19:$O$22,12,FALSE),"") ->  | S20: =IF(LEN($E20)>0,VLOOKUP($E20,List_Input!$C$19:$O$22,13,FALSE),"") -> 
B21: =IF(ISERROR(VLOOKUP(C21,CEM_GCD!$A$2:$A$187,1,FALSE))=FALSE,"Already in CERT","") ->  | L21: =IF(AND(LEN($E21)>0,$J21>0),VLOOKUP($E21,List_Input!$C$19:$L$22,7,FALSE)+$J21*VLOOKUP($E21,List_Input!$C$19:$L$22,8,FALSE),"") ->  | N21: =IF(AND(LEN($E21)>0,$J21>0),VLOOKUP($E21,List_Input!$C$19:$L$22,9,FALSE)+$J21*VLOOKUP($E21,List_Input!$C$19:$L$22,10,FALSE),"") ->  | R21: =IF(LEN($E21)>0,VLOOKUP($E21,List_Input!$C$19:$O$22,12,FALSE),"") ->  | S21: =IF(LEN($E21)>0,VLOOKUP($E21,List_Input!$C$19:$O$22,13,FALSE),"") -> 
B22: =IF(ISERROR(VLOOKUP(C22,CEM_GCD!$A$2:$A$187,1,FALSE))=FALSE,"Already in CERT","") ->  | L22: =IF(AND(LEN($E22)>0,$J22>0),VLOOKUP($E22,List_Input!$C$19:$L$22,7,FALSE)+$J22*VLOOKUP($E22,List_Input!$C$19:$L$22,8,FALSE),"") ->  | N22: =IF(AND(LEN($E22)>0,$J22>0),VLOOKUP($E22,List_Input!$C$19:$L$22,9,FALSE)+$J22*VLOOKUP($E22,List_Input!$C$19:$L$22,10,FALSE),"") ->  | R22: =IF(LEN($E22)>0,VLOOKUP($E22,List_Input!$C$19:$O$22,12,FALSE),"") ->  | S22: =IF(LEN($E22)>0,VLOOKUP($E22,List_Input!$C$19:$O$22,13,FALSE),"") -> 
B23: =IF(ISERROR(VLOOKUP(C23,CEM_GCD!$A$2:$A$187,1,FALSE))=FALSE,"Already in CERT","") ->  | L23: =IF(AND(LEN($E23)>0,$J23>0),VLOOKUP($E23,List_Input!$C$19:$L$22,7,FALSE)+$J23*VLOOKUP($E23,List_Input!$C$19:$L$22,8,FALSE),"") ->  | N23: =IF(AND(LEN($E23)>0,$J23>0),VLOOKUP($E23,List_Input!$C$19:$L$22,9,FALSE)+$J23*VLOOKUP($E23,List_Input!$C$19:$L$22,10,FALSE),"") ->  | R23: =IF(LEN($E23)>0,VLOOKUP($E23,List_Input!$C$19:$O$22,12,FALSE),"") ->  | S23: =IF(LEN($E23)>0,VLOOKUP($E23,List_Input!$C$19:$O$22,13,FALSE),"") -> 
B24: =IF(ISERROR(VLOOKUP(C24,CEM_GCD!$A$2:$A$187,1,FALSE))=FALSE,"Already in CERT","") ->  | L24: =IF(AND(LEN($E24)>0,$J24>0),VLOOKUP($E24,List_Input!$C$19:$L$22,7,FALSE)+$J24*VLOOKUP($E24,List_Input!$C$19:$L$22,8,FALSE),"") ->  | N24: =IF(AND(LEN($E24)>0,$J24>0),VLOOKUP($E24,List_Input!$C$19:$L$22,9,FALSE)+$J24*VLOOKUP($E24,List_Input!$C$19:$L$22,10,FALSE),"") ->  | R24: =IF(LEN($E24)>0,VLOOKUP($E24,List_Input!$C$19:$O$22,12,FALSE),"") ->  | S24: =IF(LEN($E24)>0,VLOOKUP($E24,List_Input!$C$19:$O$22,13,FALSE),"") -> 
B25: =IF(ISERROR(VLOOKUP(C25,CEM_GCD!$A$2:$A$187,1,FALSE))=FALSE,"Already in CERT","") ->  | L25: =IF(AND(LEN($E25)>0,$J25>0),VLOOKUP($E25,List_Input!$C$19:$L$22,7,FALSE)+$J25*VLOOKUP($E25,List_Input!$C$19:$L$22,8,FALSE),"") ->  | N25: =IF(AND(LEN($E25)>0,$J25>0),VLOOKUP($E25,List_Input!$C$19:$L$22,9,FALSE)+$J25*VLOOKUP($E25,List_Input!$C$19:$L$22,10,FALSE),"") ->  | R25: =IF(LEN($E25)>0,VLOOKUP($E25,List_Input!$C$19:$O$22,12,FALSE),"") ->  | S25: =IF(LEN($E25)>0,VLOOKUP($E25,List_Input!$C$19:$O$22,13,FALSE),"") -> 
B26: =IF(ISERROR(VLOOKUP(C26,CEM_GCD!$A$2:$A$187,1,FALSE))=FALSE,"Already in CERT","") ->  | L26: =IF(AND(LEN($E26)>0,$J26>0),VLOOKUP($E26,List_Input!$C$19:$L$22,7,FALSE)+$J26*VLOOKUP($E26,List_Input!$C$19:$L$22,8,FALSE),"") ->  | N26: =IF(AND(LEN($E26)>0,$J26>0),VLOOKUP($E26,List_Input!$C$19:$L$22,9,FALSE)+$J26*VLOOKUP($E26,List_Input!$C$19:$L$22,10,FALSE),"") ->  | R26: =IF(LEN($E26)>0,VLOOKUP($E26,List_Input!$C$19:$O$22,12,FALSE),"") ->  | S26: =IF(LEN($E26)>0,VLOOKUP($E26,List_Input!$C$19:$O$22,13,FALSE),"") -> 
B27: =IF(ISERROR(VLOOKUP(C27,CEM_GCD!$A$2:$A$187,1,FALSE))=FALSE,"Already in CERT","") ->  | L27: =IF(AND(LEN($E27)>0,$J27>0),VLOOKUP($E27,List_Input!$C$19:$L$22,7,FALSE)+$J27*VLOOKUP($E27,List_Input!$C$19:$L$22,8,FALSE),"") ->  | N27: =IF(AND(LEN($E27)>0,$J27>0),VLOOKUP($E27,List_Input!$C$19:$L$22,9,FALSE)+$J27*VLOOKUP($E27,List_Input!$C$19:$L$22,10,FALSE),"") ->  | R27: =IF(LEN($E27)>0,VLOOKUP($E27,List_Input!$C$19:$O$22,12,FALSE),"") ->  | S27: =IF(LEN($E27)>0,VLOOKUP($E27,List_Input!$C$19:$O$22,13,FALSE),"") -> 
B28: =IF(ISERROR(VLOOKUP(C28,CEM_GCD!$A$2:$A$187,1,FALSE))=FALSE,"Already in CERT","") ->  | L28: =IF(AND(LEN($E28)>0,$J28>0),VLOOKUP($E28,List_Input!$C$19:$L$22,7,FALSE)+$J28*VLOOKUP($E28,List_Input!$C$19:$L$22,8,FALSE),"") ->  | N28: =IF(AND(LEN($E28)>0,$J28>0),VLOOKUP($E28,List_Input!$C$19:$L$22,9,FALSE)+$J28*VLOOKUP($E28,List_Input!$C$19:$L$22,10,FALSE),"") ->  | R28: =IF(LEN($E28)>0,VLOOKUP($E28,List_Input!$C$19:$O$22,12,FALSE),"") ->  | S28: =IF(LEN($E28)>0,VLOOKUP($E28,List_Input!$C$19:$O$22,13,FALSE),"") -> 
B29: =IF(ISERROR(VLOOKUP(C29,CEM_GCD!$A$2:$A$187,1,FALSE))=FALSE,"Already in CERT","") ->  | L29: =IF(AND(LEN($E29)>0,$J29>0),VLOOKUP($E29,List_Input!$C$19:$L$22,7,FALSE)+$J29*VLOOKUP($E29,List_Input!$C$19:$L$22,8,FALSE),"") ->  | N29: =IF(AND(LEN($E29)>0,$J29>0),VLOOKUP($E29,List_Input!$C$19:$L$22,9,FALSE)+$J29*VLOOKUP($E29,List_Input!$C$19:$L$22,10,FALSE),"") ->  | R29: =IF(LEN($E29)>0,VLOOKUP($E29,List_Input!$C$19:$O$22,12,FALSE),"") ->  | S29: =IF(LEN($E29)>0,VLOOKUP($E29,List_Input!$C$19:$O$22,13,FALSE),"") -> 
B30: =IF(ISERROR(VLOOKUP(C30,CEM_GCD!$A$2:$A$187,1,FALSE))=FALSE,"Already in CERT","") ->  | L30: =IF(AND(LEN($E30)>0,$J30>0),VLOOKUP($E30,List_Input!$C$19:$L$22,7,FALSE)+$J30*VLOOKUP($E30,List_Input!$C$19:$L$22,8,FALSE),"") ->  | N30: =IF(AND(LEN($E30)>0,$J30>0),VLOOKUP($E30,List_Input!$C$19:$L$22,9,FALSE)+$J30*VLOOKUP($E30,List_Input!$C$19:$L$22,10,FALSE),"") ->  | R30: =IF(LEN($E30)>0,VLOOKUP($E30,List_Input!$C$19:$O$22,12,FALSE),"") ->  | S30: =IF(LEN($E30)>0,VLOOKUP($E30,List_Input!$C$19:$O$22,13,FALSE),"") -> 
B31: =IF(ISERROR(VLOOKUP(C31,CEM_GCD!$A$2:$A$187,1,FALSE))=FALSE,"Already in CERT","") ->  | L31: =IF(AND(LEN($E31)>0,$J31>0),VLOOKUP($E31,List_Input!$C$19:$L$22,7,FALSE)+$J31*VLOOKUP($E31,List_Input!$C$19:$L$22,8,FALSE),"") ->  | N31: =IF(AND(LEN($E31)>0,$J31>0),VLOOKUP($E31,List_Input!$C$19:$L$22,9,FALSE)+$J31*VLOOKUP($E31,List_Input!$C$19:$L$22,10,FALSE),"") ->  | R31: =IF(LEN($E31)>0,VLOOKUP($E31,List_Input!$C$19:$O$22,12,FALSE),"") ->  | S31: =IF(LEN($E31)>0,VLOOKUP($E31,List_Input!$C$19:$O$22,13,FALSE),"") -> 
B32: =IF(ISERROR(VLOOKUP(C32,CEM_GCD!$A$2:$A$187,1,FALSE))=FALSE,"Already in CERT","") ->  | L32: =IF(AND(LEN($E32)>0,$J32>0),VLOOKUP($E32,List_Input!$C$19:$L$22,7,FALSE)+$J32*VLOOKUP($E32,List_Input!$C$19:$L$22,8,FALSE),"") ->  | N32: =IF(AND(LEN($E32)>0,$J32>0),VLOOKUP($E32,List_Input!$C$19:$L$22,9,FALSE)+$J32*VLOOKUP($E32,List_Input!$C$19:$L$22,10,FALSE),"") ->  | R32: =IF(LEN($E32)>0,VLOOKUP($E32,List_Input!$C$19:$O$22,12,FALSE),"") ->  | S32: =IF(LEN($E32)>0,VLOOKUP($E32,List_Input!$C$19:$O$22,13,FALSE),"") -> 
B33: =IF(ISERROR(VLOOKUP(C33,CEM_GCD!$A$2:$A$187,1,FALSE))=FALSE,"Already in CERT","") ->  | L33: =IF(AND(LEN($E33)>0,$J33>0),VLOOKUP($E33,List_Input!$C$19:$L$22,7,FALSE)+$J33*VLOOKUP($E33,List_Input!$C$19:$L$22,8,FALSE),"") ->  | N33: =IF(AND(LEN($E33)>0,$J33>0),VLOOKUP($E33,List_Input!$C$19:$L$22,9,FALSE)+$J33*VLOOKUP($E33,List_Input!$C$19:$L$22,10,FALSE),"") ->  | R33: =IF(LEN($E33)>0,VLOOKUP($E33,List_Input!$C$19:$O$22,12,FALSE),"") ->  | S33: =IF(LEN($E33)>0,VLOOKUP($E33,List_Input!$C$19:$O$22,13,FALSE),"") -> 
B34: =IF(ISERROR(VLOOKUP(C34,CEM_GCD!$A$2:$A$187,1,FALSE))=FALSE,"Already in CERT","") ->  | L34: =IF(AND(LEN($E34)>0,$J34>0),VLOOKUP($E34,List_Input!$C$19:$L$22,7,FALSE)+$J34*VLOOKUP($E34,List_Input!$C$19:$L$22,8,FALSE),"") ->  | N34: =IF(AND(LEN($E34)>0,$J34>0),VLOOKUP($E34,List_Input!$C$19:$L$22,9,FALSE)+$J34*VLOOKUP($E34,List_Input!$C$19:$L$22,10,FALSE),"") ->  | R34: =IF(LEN($E34)>0,VLOOKUP($E34,List_Input!$C$19:$O$22,12,FALSE),"") ->  | S34: =IF(LEN($E34)>0,VLOOKUP($E34,List_Input!$C$19:$O$22,13,FALSE),"") -> 
B35: =IF(ISERROR(VLOOKUP(C35,CEM_GCD!$A$2:$A$187,1,FALSE))=FALSE,"Already in CERT","") ->  | L35: =IF(AND(LEN($E35)>0,$J35>0),VLOOKUP($E35,List_Input!$C$19:$L$22,7,FALSE)+$J35*VLOOKUP($E35,List_Input!$C$19:$L$22,8,FALSE),"") ->  | N35: =IF(AND(LEN($E35)>0,$J35>0),VLOOKUP($E35,List_Input!$C$19:$L$22,9,FALSE)+$J35*VLOOKUP($E35,List_Input!$C$19:$L$22,10,FALSE),"") ->  | R35: =IF(LEN($E35)>0,VLOOKUP($E35,List_Input!$C$19:$O$22,12,FALSE),"") ->  | S35: =IF(LEN($E35)>0,VLOOKUP($E35,List_Input!$C$19:$O$22,13,FALSE),"") -> 
B36: =IF(ISERROR(VLOOKUP(C36,CEM_GCD!$A$2:$A$187,1,FALSE))=FALSE,"Already in CERT","") ->  | L36: =IF(AND(LEN($E36)>0,$J36>0),VLOOKUP($E36,List_Input!$C$19:$L$22,7,FALSE)+$J36*VLOOKUP($E36,List_Input!$C$19:$L$22,8,FALSE),"") ->  | N36: =IF(AND(LEN($E36)>0,$J36>0),VLOOKUP($E36,List_Input!$C$19:$L$22,9,FALSE)+$J36*VLOOKUP($E36,List_Input!$C$19:$L$22,10,FALSE),"") ->  | R36: =IF(LEN($E36)>0,VLOOKUP($E36,List_Input!$C$19:$O$22,12,FALSE),"") ->  | S36: =IF(LEN($E36)>0,VLOOKUP($E36,List_Input!$C$19:$O$22,13,FALSE),"") -> 
B37: =IF(ISERROR(VLOOKUP(C37,CEM_GCD!$A$2:$A$187,1,FALSE))=FALSE,"Already in CERT","") ->  | L37: =IF(AND(LEN($E37)>0,$J37>0),VLOOKUP($E37,List_Input!$C$19:$L$22,7,FALSE)+$J37*VLOOKUP($E37,List_Input!$C$19:$L$22,8,FALSE),"") ->  | N37: =IF(AND(LEN($E37)>0,$J37>0),VLOOKUP($E37,List_Input!$C$19:$L$22,9,FALSE)+$J37*VLOOKUP($E37,List_Input!$C$19:$L$22,10,FALSE),"") ->  | R37: =IF(LEN($E37)>0,VLOOKUP($E37,List_Input!$C$19:$O$22,12,FALSE),"") ->  | S37: =IF(LEN($E37)>0,VLOOKUP($E37,List_Input!$C$19:$O$22,13,FALSE),"") -> 
B38: =IF(ISERROR(VLOOKUP(C38,CEM_GCD!$A$2:$A$187,1,FALSE))=FALSE,"Already in CERT","") ->  | L38: =IF(AND(LEN($E38)>0,$J38>0),VLOOKUP($E38,List_Input!$C$19:$L$22,7,FALSE)+$J38*VLOOKUP($E38,List_Input!$C$19:$L$22,8,FALSE),"") ->  | N38: =IF(AND(LEN($E38)>0,$J38>0),VLOOKUP($E38,List_Input!$C$19:$L$22,9,FALSE)+$J38*VLOOKUP($E38,List_Input!$C$19:$L$22,10,FALSE),"") ->  | R38: =IF(LEN($E38)>0,VLOOKUP($E38,List_Input!$C$19:$O$22,12,FALSE),"") ->  | S38: =IF(LEN($E38)>0,VLOOKUP($E38,List_Input!$C$19:$O$22,13,FALSE),"") -> 
B39: =IF(ISERROR(VLOOKUP(C39,CEM_GCD!$A$2:$A$187,1,FALSE))=FALSE,"Already in CERT","") ->  | L39: =IF(AND(LEN($E39)>0,$J39>0),VLOOKUP($E39,List_Input!$C$19:$L$22,7,FALSE)+$J39*VLOOKUP($E39,List_Input!$C$19:$L$22,8,FALSE),"") ->  | N39: =IF(AND(LEN($E39)>0,$J39>0),VLOOKUP($E39,List_Input!$C$19:$L$22,9,FALSE)+$J39*VLOOKUP($E39,List_Input!$C$19:$L$22,10,FALSE),"") ->  | R39: =IF(LEN($E39)>0,VLOOKUP($E39,List_Input!$C$19:$O$22,12,FALSE),"") ->  | S39: =IF(LEN($E39)>0,VLOOKUP($E39,List_Input!$C$19:$O$22,13,FALSE),"") -> 
B40: =IF(ISERROR(VLOOKUP(C40,CEM_GCD!$A$2:$A$187,1,FALSE))=FALSE,"Already in CERT","") ->  | L40: =IF(AND(LEN($E40)>0,$J40>0),VLOOKUP($E40,List_Input!$C$19:$L$22,7,FALSE)+$J40*VLOOKUP($E40,List_Input!$C$19:$L$22,8,FALSE),"") ->  | N40: =IF(AND(LEN($E40)>0,$J40>0),VLOOKUP($E40,List_Input!$C$19:$L$22,9,FALSE)+$J40*VLOOKUP($E40,List_Input!$C$19:$L$22,10,FALSE),"") ->  | R40: =IF(LEN($E40)>0,VLOOKUP($E40,List_Input!$C$19:$O$22,12,FALSE),"") ->  | S40: =IF(LEN($E40)>0,VLOOKUP($E40,List_Input!$C$19:$O$22,13,FALSE),"") -> 
B41: =IF(ISERROR(VLOOKUP(C41,CEM_GCD!$A$2:$A$187,1,FALSE))=FALSE,"Already in CERT","") ->  | L41: =IF(AND(LEN($E41)>0,$J41>0),VLOOKUP($E41,List_Input!$C$19:$L$22,7,FALSE)+$J41*VLOOKUP($E41,List_Input!$C$19:$L$22,8,FALSE),"") ->  | N41: =IF(AND(LEN($E41)>0,$J41>0),VLOOKUP($E41,List_Input!$C$19:$L$22,9,FALSE)+$J41*VLOOKUP($E41,List_Input!$C$19:$L$22,10,FALSE),"") ->  | R41: =IF(LEN($E41)>0,VLOOKUP($E41,List_Input!$C$19:$O$22,12,FALSE),"") ->  | S41: =IF(LEN($E41)>0,VLOOKUP($E41,List_Input!$C$19:$O$22,13,FALSE),"") -> 
B42: =IF(ISERROR(VLOOKUP(C42,CEM_GCD!$A$2:$A$187,1,FALSE))=FALSE,"Already in CERT","") ->  | L42: =IF(AND(LEN($E42)>0,$J42>0),VLOOKUP($E42,List_Input!$C$19:$L$22,7,FALSE)+$J42*VLOOKUP($E42,List_Input!$C$19:$L$22,8,FALSE),"") ->  | N42: =IF(AND(LEN($E42)>0,$J42>0),VLOOKUP($E42,List_Input!$C$19:$L$22,9,FALSE)+$J42*VLOOKUP($E42,List_Input!$C$19:$L$22,10,FALSE),"") ->  | R42: =IF(LEN($E42)>0,VLOOKUP($E42,List_Input!$C$19:$O$22,12,FALSE),"") ->  | S42: =IF(LEN($E42)>0,VLOOKUP($E42,List_Input!$C$19:$O$22,13,FALSE),"") -> 
B43: =IF(ISERROR(VLOOKUP(C43,CEM_GCD!$A$2:$A$187,1,FALSE))=FALSE,"Already in CERT","") ->  | L43: =IF(AND(LEN($E43)>0,$J43>0),VLOOKUP($E43,List_Input!$C$19:$L$22,7,FALSE)+$J43*VLOOKUP($E43,List_Input!$C$19:$L$22,8,FALSE),"") ->  | N43: =IF(AND(LEN($E43)>0,$J43>0),VLOOKUP($E43,List_Input!$C$19:$L$22,9,FALSE)+$J43*VLOOKUP($E43,List_Input!$C$19:$L$22,10,FALSE),"") ->  | R43: =IF(LEN($E43)>0,VLOOKUP($E43,List_Input!$C$19:$O$22,12,FALSE),"") ->  | S43: =IF(LEN($E43)>0,VLOOKUP($E43,List_Input!$C$19:$O$22,13,FALSE),"") -> 
B44: =IF(ISERROR(VLOOKUP(C44,CEM_GCD!$A$2:$A$187,1,FALSE))=FALSE,"Already in CERT","") ->  | L44: =IF(AND(LEN($E44)>0,$J44>0),VLOOKUP($E44,List_Input!$C$19:$L$22,7,FALSE)+$J44*VLOOKUP($E44,List_Input!$C$19:$L$22,8,FALSE),"") ->  | N44: =IF(AND(LEN($E44)>0,$J44>0),VLOOKUP($E44,List_Input!$C$19:$L$22,9,FALSE)+$J44*VLOOKUP($E44,List_Input!$C$19:$L$22,10,FALSE),"") ->  | R44: =IF(LEN($E44)>0,VLOOKUP($E44,List_Input!$C$19:$O$22,12,FALSE),"") ->  | S44: =IF(LEN($E44)>0,VLOOKUP($E44,List_Input!$C$19:$O$22,13,FALSE),"") -> 
B45: =IF(ISERROR(VLOOKUP(C45,CEM_GCD!$A$2:$A$187,1,FALSE))=FALSE,"Already in CERT","") ->  | L45: =IF(AND(LEN($E45)>0,$J45>0),VLOOKUP($E45,List_Input!$C$19:$L$22,7,FALSE)+$J45*VLOOKUP($E45,List_Input!$C$19:$L$22,8,FALSE),"") ->  | N45: =IF(AND(LEN($E45)>0,$J45>0),VLOOKUP($E45,List_Input!$C$19:$L$22,9,FALSE)+$J45*VLOOKUP($E45,List_Input!$C$19:$L$22,10,FALSE),"") ->  | R45: =IF(LEN($E45)>0,VLOOKUP($E45,List_Input!$C$19:$O$22,12,FALSE),"") ->  | S45: =IF(LEN($E45)>0,VLOOKUP($E45,List_Input!$C$19:$O$22,13,FALSE),"") -> 
B46: =IF(ISERROR(VLOOKUP(C46,CEM_GCD!$A$2:$A$187,1,FALSE))=FALSE,"Already in CERT","") ->  | L46: =IF(AND(LEN($E46)>0,$J46>0),VLOOKUP($E46,List_Input!$C$19:$L$22,7,FALSE)+$J46*VLOOKUP($E46,List_Input!$C$19:$L$22,8,FALSE),"") ->  | N46: =IF(AND(LEN($E46)>0,$J46>0),VLOOKUP($E46,List_Input!$C$19:$L$22,9,FALSE)+$J46*VLOOKUP($E46,List_Input!$C$19:$L$22,10,FALSE),"") ->  | R46: =IF(LEN($E46)>0,VLOOKUP($E46,List_Input!$C$19:$O$22,12,FALSE),"") ->  | S46: =IF(LEN($E46)>0,VLOOKUP($E46,List_Input!$C$19:$O$22,13,FALSE),"") -> 
B47: =IF(ISERROR(VLOOKUP(C47,CEM_GCD!$A$2:$A$187,1,FALSE))=FALSE,"Already in CERT","") ->  | L47: =IF(AND(LEN($E47)>0,$J47>0),VLOOKUP($E47,List_Input!$C$19:$L$22,7,FALSE)+$J47*VLOOKUP($E47,List_Input!$C$19:$L$22,8,FALSE),"") ->  | N47: =IF(AND(LEN($E47)>0,$J47>0),VLOOKUP($E47,List_Input!$C$19:$L$22,9,FALSE)+$J47*VLOOKUP($E47,List_Input!$C$19:$L$22,10,FALSE),"") ->  | R47: =IF(LEN($E47)>0,VLOOKUP($E47,List_Input!$C$19:$O$22,12,FALSE),"") ->  | S47: =IF(LEN($E47)>0,VLOOKUP($E47,List_Input!$C$19:$O$22,13,FALSE),"") -> 
B48: =IF(ISERROR(VLOOKUP(C48,CEM_GCD!$A$2:$A$187,1,FALSE))=FALSE,"Already in CERT","") ->  | L48: =IF(AND(LEN($E48)>0,$J48>0),VLOOKUP($E48,List_Input!$C$19:$L$22,7,FALSE)+$J48*VLOOKUP($E48,List_Input!$C$19:$L$22,8,FALSE),"") ->  | N48: =IF(AND(LEN($E48)>0,$J48>0),VLOOKUP($E48,List_Input!$C$19:$L$22,9,FALSE)+$J48*VLOOKUP($E48,List_Input!$C$19:$L$22,10,FALSE),"") ->  | R48: =IF(LEN($E48)>0,VLOOKUP($E48,List_Input!$C$19:$O$22,12,FALSE),"") ->  | S48: =IF(LEN($E48)>0,VLOOKUP($E48,List_Input!$C$19:$O$22,13,FALSE),"") -> 
B49: =IF(ISERROR(VLOOKUP(C49,CEM_GCD!$A$2:$A$187,1,FALSE))=FALSE,"Already in CERT","") ->  | L49: =IF(AND(LEN($E49)>0,$J49>0),VLOOKUP($E49,List_Input!$C$19:$L$22,7,FALSE)+$J49*VLOOKUP($E49,List_Input!$C$19:$L$22,8,FALSE),"") ->  | N49: =IF(AND(LEN($E49)>0,$J49>0),VLOOKUP($E49,List_Input!$C$19:$L$22,9,FALSE)+$J49*VLOOKUP($E49,List_Input!$C$19:$L$22,10,FALSE),"") ->  | R49: =IF(LEN($E49)>0,VLOOKUP($E49,List_Input!$C$19:$O$22,12,FALSE),"") ->  | S49: =IF(LEN($E49)>0,VLOOKUP($E49,List_Input!$C$19:$O$22,13,FALSE),"") -> 
B50: =IF(ISERROR(VLOOKUP(C50,CEM_GCD!$A$2:$A$187,1,FALSE))=FALSE,"Already in CERT","") ->  | L50: =IF(AND(LEN($E50)>0,$J50>0),VLOOKUP($E50,List_Input!$C$19:$L$22,7,FALSE)+$J50*VLOOKUP($E50,List_Input!$C$19:$L$22,8,FALSE),"") ->  | N50: =IF(AND(LEN($E50)>0,$J50>0),VLOOKUP($E50,List_Input!$C$19:$L$22,9,FALSE)+$J50*VLOOKUP($E50,List_Input!$C$19:$L$22,10,FALSE),"") ->  | R50: =IF(LEN($E50)>0,VLOOKUP($E50,List_Input!$C$19:$O$22,12,FALSE),"") ->  | S50: =IF(LEN($E50)>0,VLOOKUP($E50,List_Input!$C$19:$O$22,13,FALSE),"") -> 
B51: =IF(ISERROR(VLOOKUP(C51,CEM_GCD!$A$2:$A$187,1,FALSE))=FALSE,"Already in CERT","") ->  | L51: =IF(AND(LEN($E51)>0,$J51>0),VLOOKUP($E51,List_Input!$C$19:$L$22,7,FALSE)+$J51*VLOOKUP($E51,List_Input!$C$19:$L$22,8,FALSE),"") ->  | N51: =IF(AND(LEN($E51)>0,$J51>0),VLOOKUP($E51,List_Input!$C$19:$L$22,9,FALSE)+$J51*VLOOKUP($E51,List_Input!$C$19:$L$22,10,FALSE),"") ->  | R51: =IF(LEN($E51)>0,VLOOKUP($E51,List_Input!$C$19:$O$22,12,FALSE),"") ->  | S51: =IF(LEN($E51)>0,VLOOKUP($E51,List_Input!$C$19:$O$22,13,FALSE),"") -> 
B52: =IF(ISERROR(VLOOKUP(C52,CEM_GCD!$A$2:$A$187,1,FALSE))=FALSE,"Already in CERT","") ->  | L52: =IF(AND(LEN($E52)>0,$J52>0),VLOOKUP($E52,List_Input!$C$19:$L$22,7,FALSE)+$J52*VLOOKUP($E52,List_Input!$C$19:$L$22,8,FALSE),"") ->  | N52: =IF(AND(LEN($E52)>0,$J52>0),VLOOKUP($E52,List_Input!$C$19:$L$22,9,FALSE)+$J52*VLOOKUP($E52,List_Input!$C$19:$L$22,10,FALSE),"") ->  | R52: =IF(LEN($E52)>0,VLOOKUP($E52,List_Input!$C$19:$O$22,12,FALSE),"") ->  | S52: =IF(LEN($E52)>0,VLOOKUP($E52,List_Input!$C$19:$O$22,13,FALSE),"") -> 
B53: =IF(ISERROR(VLOOKUP(C53,CEM_GCD!$A$2:$A$187,1,FALSE))=FALSE,"Already in CERT","") ->  | L53: =IF(AND(LEN($E53)>0,$J53>0),VLOOKUP($E53,List_Input!$C$19:$L$22,7,FALSE)+$J53*VLOOKUP($E53,List_Input!$C$19:$L$22,8,FALSE),"") ->  | N53: =IF(AND(LEN($E53)>0,$J53>0),VLOOKUP($E53,List_Input!$C$19:$L$22,9,FALSE)+$J53*VLOOKUP($E53,List_Input!$C$19:$L$22,10,FALSE),"") ->  | R53: =IF(LEN($E53)>0,VLOOKUP($E53,List_Input!$C$19:$O$22,12,FALSE),"") ->  | S53: =IF(LEN($E53)>0,VLOOKUP($E53,List_Input!$C$19:$O$22,13,FALSE),"") -> 
B54: =IF(ISERROR(VLOOKUP(C54,CEM_GCD!$A$2:$A$187,1,FALSE))=FALSE,"Already in CERT","") ->  | L54: =IF(AND(LEN($E54)>0,$J54>0),VLOOKUP($E54,List_Input!$C$19:$L$22,7,FALSE)+$J54*VLOOKUP($E54,List_Input!$C$19:$L$22,8,FALSE),"") ->  | N54: =IF(AND(LEN($E54)>0,$J54>0),VLOOKUP($E54,List_Input!$C$19:$L$22,9,FALSE)+$J54*VLOOKUP($E54,List_Input!$C$19:$L$22,10,FALSE),"") ->  | R54: =IF(LEN($E54)>0,VLOOKUP($E54,List_Input!$C$19:$O$22,12,FALSE),"") ->  | S54: =IF(LEN($E54)>0,VLOOKUP($E54,List_Input!$C$19:$O$22,13,FALSE),"") -> 
B55: =IF(ISERROR(VLOOKUP(C55,CEM_GCD!$A$2:$A$187,1,FALSE))=FALSE,"Already in CERT","") ->  | L55: =IF(AND(LEN($E55)>0,$J55>0),VLOOKUP($E55,List_Input!$C$19:$L$22,7,FALSE)+$J55*VLOOKUP($E55,List_Input!$C$19:$L$22,8,FALSE),"") ->  | N55: =IF(AND(LEN($E55)>0,$J55>0),VLOOKUP($E55,List_Input!$C$19:$L$22,9,FALSE)+$J55*VLOOKUP($E55,List_Input!$C$19:$L$22,10,FALSE),"") ->  | R55: =IF(LEN($E55)>0,VLOOKUP($E55,List_Input!$C$19:$O$22,12,FALSE),"") ->  | S55: =IF(LEN($E55)>0,VLOOKUP($E55,List_Input!$C$19:$O$22,13,FALSE),"") -> 
B56: =IF(ISERROR(VLOOKUP(C56,CEM_GCD!$A$2:$A$187,1,FALSE))=FALSE,"Already in CERT","") ->  | L56: =IF(AND(LEN($E56)>0,$J56>0),VLOOKUP($E56,List_Input!$C$19:$L$22,7,FALSE)+$J56*VLOOKUP($E56,List_Input!$C$19:$L$22,8,FALSE),"") ->  | N56: =IF(AND(LEN($E56)>0,$J56>0),VLOOKUP($E56,List_Input!$C$19:$L$22,9,FALSE)+$J56*VLOOKUP($E56,List_Input!$C$19:$L$22,10,FALSE),"") ->  | R56: =IF(LEN($E56)>0,VLOOKUP($E56,List_Input!$C$19:$O$22,12,FALSE),"") ->  | S56: =IF(LEN($E56)>0,VLOOKUP($E56,List_Input!$C$19:$O$22,13,FALSE),"") -> 
B57: =IF(ISERROR(VLOOKUP(C57,CEM_GCD!$A$2:$A$187,1,FALSE))=FALSE,"Already in CERT","") ->  | L57: =IF(AND(LEN($E57)>0,$J57>0),VLOOKUP($E57,List_Input!$C$19:$L$22,7,FALSE)+$J57*VLOOKUP($E57,List_Input!$C$19:$L$22,8,FALSE),"") ->  | N57: =IF(AND(LEN($E57)>0,$J57>0),VLOOKUP($E57,List_Input!$C$19:$L$22,9,FALSE)+$J57*VLOOKUP($E57,List_Input!$C$19:$L$22,10,FALSE),"") ->  | R57: =IF(LEN($E57)>0,VLOOKUP($E57,List_Input!$C$19:$O$22,12,FALSE),"") ->  | S57: =IF(LEN($E57)>0,VLOOKUP($E57,List_Input!$C$19:$O$22,13,FALSE),"") -> 
B58: =IF(ISERROR(VLOOKUP(C58,CEM_GCD!$A$2:$A$187,1,FALSE))=FALSE,"Already in CERT","") ->  | L58: =IF(AND(LEN($E58)>0,$J58>0),VLOOKUP($E58,List_Input!$C$19:$L$22,7,FALSE)+$J58*VLOOKUP($E58,List_Input!$C$19:$L$22,8,FALSE),"") ->  | N58: =IF(AND(LEN($E58)>0,$J58>0),VLOOKUP($E58,List_Input!$C$19:$L$22,9,FALSE)+$J58*VLOOKUP($E58,List_Input!$C$19:$L$22,10,FALSE),"") ->  | R58: =IF(LEN($E58)>0,VLOOKUP($E58,List_Input!$C$19:$O$22,12,FALSE),"") ->  | S58: =IF(LEN($E58)>0,VLOOKUP($E58,List_Input!$C$19:$O$22,13,FALSE),"") -> 
B59: =IF(ISERROR(VLOOKUP(C59,CEM_GCD!$A$2:$A$187,1,FALSE))=FALSE,"Already in CERT","") ->  | L59: =IF(AND(LEN($E59)>0,$J59>0),VLOOKUP($E59,List_Input!$C$19:$L$22,7,FALSE)+$J59*VLOOKUP($E59,List_Input!$C$19:$L$22,8,FALSE),"") ->  | N59: =IF(AND(LEN($E59)>0,$J59>0),VLOOKUP($E59,List_Input!$C$19:$L$22,9,FALSE)+$J59*VLOOKUP($E59,List_Input!$C$19:$L$22,10,FALSE),"") ->  | R59: =IF(LEN($E59)>0,VLOOKUP($E59,List_Input!$C$19:$O$22,12,FALSE),"") ->  | S59: =IF(LEN($E59)>0,VLOOKUP($E59,List_Input!$C$19:$O$22,13,FALSE),"") -> 
B60: =IF(ISERROR(VLOOKUP(C60,CEM_GCD!$A$2:$A$187,1,FALSE))=FALSE,"Already in CERT","") ->  | L60: =IF(AND(LEN($E60)>0,$J60>0),VLOOKUP($E60,List_Input!$C$19:$L$22,7,FALSE)+$J60*VLOOKUP($E60,List_Input!$C$19:$L$22,8,FALSE),"") ->  | N60: =IF(AND(LEN($E60)>0,$J60>0),VLOOKUP($E60,List_Input!$C$19:$L$22,9,FALSE)+$J60*VLOOKUP($E60,List_Input!$C$19:$L$22,10,FALSE),"") ->  | R60: =IF(LEN($E60)>0,VLOOKUP($E60,List_Input!$C$19:$O$22,12,FALSE),"") ->  | S60: =IF(LEN($E60)>0,VLOOKUP($E60,List_Input!$C$19:$O$22,13,FALSE),"") -> 
B61: =IF(ISERROR(VLOOKUP(C61,CEM_GCD!$A$2:$A$187,1,FALSE))=FALSE,"Already in CERT","") ->  | L61: =IF(AND(LEN($E61)>0,$J61>0),VLOOKUP($E61,List_Input!$C$19:$L$22,7,FALSE)+$J61*VLOOKUP($E61,List_Input!$C$19:$L$22,8,FALSE),"") ->  | N61: =IF(AND(LEN($E61)>0,$J61>0),VLOOKUP($E61,List_Input!$C$19:$L$22,9,FALSE)+$J61*VLOOKUP($E61,List_Input!$C$19:$L$22,10,FALSE),"") ->  | R61: =IF(LEN($E61)>0,VLOOKUP($E61,List_Input!$C$19:$O$22,12,FALSE),"") ->  | S61: =IF(LEN($E61)>0,VLOOKUP($E61,List_Input!$C$19:$O$22,13,FALSE),"") -> 
B62: =IF(ISERROR(VLOOKUP(C62,CEM_GCD!$A$2:$A$187,1,FALSE))=FALSE,"Already in CERT","") ->  | L62: =IF(AND(LEN($E62)>0,$J62>0),VLOOKUP($E62,List_Input!$C$19:$L$22,7,FALSE)+$J62*VLOOKUP($E62,List_Input!$C$19:$L$22,8,FALSE),"") ->  | N62: =IF(AND(LEN($E62)>0,$J62>0),VLOOKUP($E62,List_Input!$C$19:$L$22,9,FALSE)+$J62*VLOOKUP($E62,List_Input!$C$19:$L$22,10,FALSE),"") ->  | R62: =IF(LEN($E62)>0,VLOOKUP($E62,List_Input!$C$19:$O$22,12,FALSE),"") ->  | S62: =IF(LEN($E62)>0,VLOOKUP($E62,List_Input!$C$19:$O$22,13,FALSE),"") -> 
B63: =IF(ISERROR(VLOOKUP(C63,CEM_GCD!$A$2:$A$187,1,FALSE))=FALSE,"Already in CERT","") ->  | L63: =IF(AND(LEN($E63)>0,$J63>0),VLOOKUP($E63,List_Input!$C$19:$L$22,7,FALSE)+$J63*VLOOKUP($E63,List_Input!$C$19:$L$22,8,FALSE),"") ->  | N63: =IF(AND(LEN($E63)>0,$J63>0),VLOOKUP($E63,List_Input!$C$19:$L$22,9,FALSE)+$J63*VLOOKUP($E63,List_Input!$C$19:$L$22,10,FALSE),"") ->  | R63: =IF(LEN($E63)>0,VLOOKUP($E63,List_Input!$C$19:$O$22,12,FALSE),"") ->  | S63: =IF(LEN($E63)>0,VLOOKUP($E63,List_Input!$C$19:$O$22,13,FALSE),"") -> 
B64: =IF(ISERROR(VLOOKUP(C64,CEM_GCD!$A$2:$A$187,1,FALSE))=FALSE,"Already in CERT","") ->  | L64: =IF(AND(LEN($E64)>0,$J64>0),VLOOKUP($E64,List_Input!$C$19:$L$22,7,FALSE)+$J64*VLOOKUP($E64,List_Input!$C$19:$L$22,8,FALSE),"") ->  | N64: =IF(AND(LEN($E64)>0,$J64>0),VLOOKUP($E64,List_Input!$C$19:$L$22,9,FALSE)+$J64*VLOOKUP($E64,List_Input!$C$19:$L$22,10,FALSE),"") ->  | R64: =IF(LEN($E64)>0,VLOOKUP($E64,List_Input!$C$19:$O$22,12,FALSE),"") ->  | S64: =IF(LEN($E64)>0,VLOOKUP($E64,List_Input!$C$19:$O$22,13,FALSE),"") -> 
B65: =IF(ISERROR(VLOOKUP(C65,CEM_GCD!$A$2:$A$187,1,FALSE))=FALSE,"Already in CERT","") ->  | L65: =IF(AND(LEN($E65)>0,$J65>0),VLOOKUP($E65,List_Input!$C$19:$L$22,7,FALSE)+$J65*VLOOKUP($E65,List_Input!$C$19:$L$22,8,FALSE),"") ->  | N65: =IF(AND(LEN($E65)>0,$J65>0),VLOOKUP($E65,List_Input!$C$19:$L$22,9,FALSE)+$J65*VLOOKUP($E65,List_Input!$C$19:$L$22,10,FALSE),"") ->  | R65: =IF(LEN($E65)>0,VLOOKUP($E65,List_Input!$C$19:$O$22,12,FALSE),"") ->  | S65: =IF(LEN($E65)>0,VLOOKUP($E65,List_Input!$C$19:$O$22,13,FALSE),"") -> 
B66: =IF(ISERROR(VLOOKUP(C66,CEM_GCD!$A$2:$A$187,1,FALSE))=FALSE,"Already in CERT","") ->  | L66: =IF(AND(LEN($E66)>0,$J66>0),VLOOKUP($E66,List_Input!$C$19:$L$22,7,FALSE)+$J66*VLOOKUP($E66,List_Input!$C$19:$L$22,8,FALSE),"") ->  | N66: =IF(AND(LEN($E66)>0,$J66>0),VLOOKUP($E66,List_Input!$C$19:$L$22,9,FALSE)+$J66*VLOOKUP($E66,List_Input!$C$19:$L$22,10,FALSE),"") ->  | R66: =IF(LEN($E66)>0,VLOOKUP($E66,List_Input!$C$19:$O$22,12,FALSE),"") ->  | S66: =IF(LEN($E66)>0,VLOOKUP($E66,List_Input!$C$19:$O$22,13,FALSE),"") -> 
B67: =IF(ISERROR(VLOOKUP(C67,CEM_GCD!$A$2:$A$187,1,FALSE))=FALSE,"Already in CERT","") ->  | L67: =IF(AND(LEN($E67)>0,$J67>0),VLOOKUP($E67,List_Input!$C$19:$L$22,7,FALSE)+$J67*VLOOKUP($E67,List_Input!$C$19:$L$22,8,FALSE),"") ->  | N67: =IF(AND(LEN($E67)>0,$J67>0),VLOOKUP($E67,List_Input!$C$19:$L$22,9,FALSE)+$J67*VLOOKUP($E67,List_Input!$C$19:$L$22,10,FALSE),"") ->  | R67: =IF(LEN($E67)>0,VLOOKUP($E67,List_Input!$C$19:$O$22,12,FALSE),"") ->  | S67: =IF(LEN($E67)>0,VLOOKUP($E67,List_Input!$C$19:$O$22,13,FALSE),"") -> 
B68: =IF(ISERROR(VLOOKUP(C68,CEM_GCD!$A$2:$A$187,1,FALSE))=FALSE,"Already in CERT","") ->  | L68: =IF(AND(LEN($E68)>0,$J68>0),VLOOKUP($E68,List_Input!$C$19:$L$22,7,FALSE)+$J68*VLOOKUP($E68,List_Input!$C$19:$L$22,8,FALSE),"") ->  | N68: =IF(AND(LEN($E68)>0,$J68>0),VLOOKUP($E68,List_Input!$C$19:$L$22,9,FALSE)+$J68*VLOOKUP($E68,List_Input!$C$19:$L$22,10,FALSE),"") ->  | R68: =IF(LEN($E68)>0,VLOOKUP($E68,List_Input!$C$19:$O$22,12,FALSE),"") ->  | S68: =IF(LEN($E68)>0,VLOOKUP($E68,List_Input!$C$19:$O$22,13,FALSE),"") -> 
B69: =IF(ISERROR(VLOOKUP(C69,CEM_GCD!$A$2:$A$187,1,FALSE))=FALSE,"Already in CERT","") ->  | L69: =IF(AND(LEN($E69)>0,$J69>0),VLOOKUP($E69,List_Input!$C$19:$L$22,7,FALSE)+$J69*VLOOKUP($E69,List_Input!$C$19:$L$22,8,FALSE),"") ->  | N69: =IF(AND(LEN($E69)>0,$J69>0),VLOOKUP($E69,List_Input!$C$19:$L$22,9,FALSE)+$J69*VLOOKUP($E69,List_Input!$C$19:$L$22,10,FALSE),"") ->  | R69: =IF(LEN($E69)>0,VLOOKUP($E69,List_Input!$C$19:$O$22,12,FALSE),"") ->  | S69: =IF(LEN($E69)>0,VLOOKUP($E69,List_Input!$C$19:$O$22,13,FALSE),"") -> 
B70: =IF(ISERROR(VLOOKUP(C70,CEM_GCD!$A$2:$A$187,1,FALSE))=FALSE,"Already in CERT","") ->  | L70: =IF(AND(LEN($E70)>0,$J70>0),VLOOKUP($E70,List_Input!$C$19:$L$22,7,FALSE)+$J70*VLOOKUP($E70,List_Input!$C$19:$L$22,8,FALSE),"") ->  | N70: =IF(AND(LEN($E70)>0,$J70>0),VLOOKUP($E70,List_Input!$C$19:$L$22,9,FALSE)+$J70*VLOOKUP($E70,List_Input!$C$19:$L$22,10,FALSE),"") ->  | R70: =IF(LEN($E70)>0,VLOOKUP($E70,List_Input!$C$19:$O$22,12,FALSE),"") ->  | S70: =IF(LEN($E70)>0,VLOOKUP($E70,List_Input!$C$19:$O$22,13,FALSE),"") -> 
B71: =IF(ISERROR(VLOOKUP(C71,CEM_GCD!$A$2:$A$187,1,FALSE))=FALSE,"Already in CERT","") ->  | L71: =IF(AND(LEN($E71)>0,$J71>0),VLOOKUP($E71,List_Input!$C$19:$L$22,7,FALSE)+$J71*VLOOKUP($E71,List_Input!$C$19:$L$22,8,FALSE),"") ->  | N71: =IF(AND(LEN($E71)>0,$J71>0),VLOOKUP($E71,List_Input!$C$19:$L$22,9,FALSE)+$J71*VLOOKUP($E71,List_Input!$C$19:$L$22,10,FALSE),"") ->  | R71: =IF(LEN($E71)>0,VLOOKUP($E71,List_Input!$C$19:$O$22,12,FALSE),"") ->  | S71: =IF(LEN($E71)>0,VLOOKUP($E71,List_Input!$C$19:$O$22,13,FALSE),"") -> 
B72: =IF(ISERROR(VLOOKUP(C72,CEM_GCD!$A$2:$A$187,1,FALSE))=FALSE,"Already in CERT","") ->  | L72: =IF(AND(LEN($E72)>0,$J72>0),VLOOKUP($E72,List_Input!$C$19:$L$22,7,FALSE)+$J72*VLOOKUP($E72,List_Input!$C$19:$L$22,8,FALSE),"") ->  | N72: =IF(AND(LEN($E72)>0,$J72>0),VLOOKUP($E72,List_Input!$C$19:$L$22,9,FALSE)+$J72*VLOOKUP($E72,List_Input!$C$19:$L$22,10,FALSE),"") ->  | R72: =IF(LEN($E72)>0,VLOOKUP($E72,List_Input!$C$19:$O$22,12,FALSE),"") ->  | S72: =IF(LEN($E72)>0,VLOOKUP($E72,List_Input!$C$19:$O$22,13,FALSE),"") -> 
B73: =IF(ISERROR(VLOOKUP(C73,CEM_GCD!$A$2:$A$187,1,FALSE))=FALSE,"Already in CERT","") ->  | L73: =IF(AND(LEN($E73)>0,$J73>0),VLOOKUP($E73,List_Input!$C$19:$L$22,7,FALSE)+$J73*VLOOKUP($E73,List_Input!$C$19:$L$22,8,FALSE),"") ->  | N73: =IF(AND(LEN($E73)>0,$J73>0),VLOOKUP($E73,List_Input!$C$19:$L$22,9,FALSE)+$J73*VLOOKUP($E73,List_Input!$C$19:$L$22,10,FALSE),"") ->  | R73: =IF(LEN($E73)>0,VLOOKUP($E73,List_Input!$C$19:$O$22,12,FALSE),"") ->  | S73: =IF(LEN($E73)>0,VLOOKUP($E73,List_Input!$C$19:$O$22,13,FALSE),"") -> 
B74: =IF(ISERROR(VLOOKUP(C74,CEM_GCD!$A$2:$A$187,1,FALSE))=FALSE,"Already in CERT","") ->  | L74: =IF(AND(LEN($E74)>0,$J74>0),VLOOKUP($E74,List_Input!$C$19:$L$22,7,FALSE)+$J74*VLOOKUP($E74,List_Input!$C$19:$L$22,8,FALSE),"") ->  | N74: =IF(AND(LEN($E74)>0,$J74>0),VLOOKUP($E74,List_Input!$C$19:$L$22,9,FALSE)+$J74*VLOOKUP($E74,List_Input!$C$19:$L$22,10,FALSE),"") ->  | R74: =IF(LEN($E74)>0,VLOOKUP($E74,List_Input!$C$19:$O$22,12,FALSE),"") ->  | S74: =IF(LEN($E74)>0,VLOOKUP($E74,List_Input!$C$19:$O$22,13,FALSE),"") -> 
B75: =IF(ISERROR(VLOOKUP(C75,CEM_GCD!$A$2:$A$187,1,FALSE))=FALSE,"Already in CERT","") ->  | L75: =IF(AND(LEN($E75)>0,$J75>0),VLOOKUP($E75,List_Input!$C$19:$L$22,7,FALSE)+$J75*VLOOKUP($E75,List_Input!$C$19:$L$22,8,FALSE),"") ->  | N75: =IF(AND(LEN($E75)>0,$J75>0),VLOOKUP($E75,List_Input!$C$19:$L$22,9,FALSE)+$J75*VLOOKUP($E75,List_Input!$C$19:$L$22,10,FALSE),"") ->  | R75: =IF(LEN($E75)>0,VLOOKUP($E75,List_Input!$C$19:$O$22,12,FALSE),"") ->  | S75: =IF(LEN($E75)>0,VLOOKUP($E75,List_Input!$C$19:$O$22,13,FALSE),"") -> 
B76: =IF(ISERROR(VLOOKUP(C76,CEM_GCD!$A$2:$A$187,1,FALSE))=FALSE,"Already in CERT","") ->  | L76: =IF(AND(LEN($E76)>0,$J76>0),VLOOKUP($E76,List_Input!$C$19:$L$22,7,FALSE)+$J76*VLOOKUP($E76,List_Input!$C$19:$L$22,8,FALSE),"") ->  | N76: =IF(AND(LEN($E76)>0,$J76>0),VLOOKUP($E76,List_Input!$C$19:$L$22,9,FALSE)+$J76*VLOOKUP($E76,List_Input!$C$19:$L$22,10,FALSE),"") ->  | R76: =IF(LEN($E76)>0,VLOOKUP($E76,List_Input!$C$19:$O$22,12,FALSE),"") ->  | S76: =IF(LEN($E76)>0,VLOOKUP($E76,List_Input!$C$19:$O$22,13,FALSE),"") -> 
B77: =IF(ISERROR(VLOOKUP(C77,CEM_GCD!$A$2:$A$187,1,FALSE))=FALSE,"Already in CERT","") ->  | L77: =IF(AND(LEN($E77)>0,$J77>0),VLOOKUP($E77,List_Input!$C$19:$L$22,7,FALSE)+$J77*VLOOKUP($E77,List_Input!$C$19:$L$22,8,FALSE),"") ->  | N77: =IF(AND(LEN($E77)>0,$J77>0),VLOOKUP($E77,List_Input!$C$19:$L$22,9,FALSE)+$J77*VLOOKUP($E77,List_Input!$C$19:$L$22,10,FALSE),"") ->  | R77: =IF(LEN($E77)>0,VLOOKUP($E77,List_Input!$C$19:$O$22,12,FALSE),"") ->  | S77: =IF(LEN($E77)>0,VLOOKUP($E77,List_Input!$C$19:$O$22,13,FALSE),"") -> 
B78: =IF(ISERROR(VLOOKUP(C78,CEM_GCD!$A$2:$A$187,1,FALSE))=FALSE,"Already in CERT","") ->  | L78: =IF(AND(LEN($E78)>0,$J78>0),VLOOKUP($E78,List_Input!$C$19:$L$22,7,FALSE)+$J78*VLOOKUP($E78,List_Input!$C$19:$L$22,8,FALSE),"") ->  | N78: =IF(AND(LEN($E78)>0,$J78>0),VLOOKUP($E78,List_Input!$C$19:$L$22,9,FALSE)+$J78*VLOOKUP($E78,List_Input!$C$19:$L$22,10,FALSE),"") ->  | R78: =IF(LEN($E78)>0,VLOOKUP($E78,List_Input!$C$19:$O$22,12,FALSE),"") ->  | S78: =IF(LEN($E78)>0,VLOOKUP($E78,List_Input!$C$19:$O$22,13,FALSE),"") -> 
B79: =IF(ISERROR(VLOOKUP(C79,CEM_GCD!$A$2:$A$187,1,FALSE))=FALSE,"Already in CERT","") ->  | L79: =IF(AND(LEN($E79)>0,$J79>0),VLOOKUP($E79,List_Input!$C$19:$L$22,7,FALSE)+$J79*VLOOKUP($E79,List_Input!$C$19:$L$22,8,FALSE),"") ->  | N79: =IF(AND(LEN($E79)>0,$J79>0),VLOOKUP($E79,List_Input!$C$19:$L$22,9,FALSE)+$J79*VLOOKUP($E79,List_Input!$C$19:$L$22,10,FALSE),"") ->  | R79: =IF(LEN($E79)>0,VLOOKUP($E79,List_Input!$C$19:$O$22,12,FALSE),"") ->  | S79: =IF(LEN($E79)>0,VLOOKUP($E79,List_Input!$C$19:$O$22,13,FALSE),"") -> 
B80: =IF(ISERROR(VLOOKUP(C80,CEM_GCD!$A$2:$A$187,1,FALSE))=FALSE,"Already in CERT","") ->  | L80: =IF(AND(LEN($E80)>0,$J80>0),VLOOKUP($E80,List_Input!$C$19:$L$22,7,FALSE)+$J80*VLOOKUP($E80,List_Input!$C$19:$L$22,8,FALSE),"") ->  | N80: =IF(AND(LEN($E80)>0,$J80>0),VLOOKUP($E80,List_Input!$C$19:$L$22,9,FALSE)+$J80*VLOOKUP($E80,List_Input!$C$19:$L$22,10,FALSE),"") ->  | R80: =IF(LEN($E80)>0,VLOOKUP($E80,List_Input!$C$19:$O$22,12,FALSE),"") ->  | S80: =IF(LEN($E80)>0,VLOOKUP($E80,List_Input!$C$19:$O$22,13,FALSE),"") -> 
B81: =IF(ISERROR(VLOOKUP(C81,CEM_GCD!$A$2:$A$187,1,FALSE))=FALSE,"Already in CERT","") ->  | L81: =IF(AND(LEN($E81)>0,$J81>0),VLOOKUP($E81,List_Input!$C$19:$L$22,7,FALSE)+$J81*VLOOKUP($E81,List_Input!$C$19:$L$22,8,FALSE),"") ->  | N81: =IF(AND(LEN($E81)>0,$J81>0),VLOOKUP($E81,List_Input!$C$19:$L$22,9,FALSE)+$J81*VLOOKUP($E81,List_Input!$C$19:$L$22,10,FALSE),"") ->  | R81: =IF(LEN($E81)>0,VLOOKUP($E81,List_Input!$C$19:$O$22,12,FALSE),"") ->  | S81: =IF(LEN($E81)>0,VLOOKUP($E81,List_Input!$C$19:$O$22,13,FALSE),"") -> 
B82: =IF(ISERROR(VLOOKUP(C82,CEM_GCD!$A$2:$A$187,1,FALSE))=FALSE,"Already in CERT","") ->  | L82: =IF(AND(LEN($E82)>0,$J82>0),VLOOKUP($E82,List_Input!$C$19:$L$22,7,FALSE)+$J82*VLOOKUP($E82,List_Input!$C$19:$L$22,8,FALSE),"") ->  | N82: =IF(AND(LEN($E82)>0,$J82>0),VLOOKUP($E82,List_Input!$C$19:$L$22,9,FALSE)+$J82*VLOOKUP($E82,List_Input!$C$19:$L$22,10,FALSE),"") ->  | R82: =IF(LEN($E82)>0,VLOOKUP($E82,List_Input!$C$19:$O$22,12,FALSE),"") ->  | S82: =IF(LEN($E82)>0,VLOOKUP($E82,List_Input!$C$19:$O$22,13,FALSE),"") -> 
B83: =IF(ISERROR(VLOOKUP(C83,CEM_GCD!$A$2:$A$187,1,FALSE))=FALSE,"Already in CERT","") ->  | L83: =IF(AND(LEN($E83)>0,$J83>0),VLOOKUP($E83,List_Input!$C$19:$L$22,7,FALSE)+$J83*VLOOKUP($E83,List_Input!$C$19:$L$22,8,FALSE),"") ->  | N83: =IF(AND(LEN($E83)>0,$J83>0),VLOOKUP($E83,List_Input!$C$19:$L$22,9,FALSE)+$J83*VLOOKUP($E83,List_Input!$C$19:$L$22,10,FALSE),"") ->  | R83: =IF(LEN($E83)>0,VLOOKUP($E83,List_Input!$C$19:$O$22,12,FALSE),"") ->  | S83: =IF(LEN($E83)>0,VLOOKUP($E83,List_Input!$C$19:$O$22,13,FALSE),"") -> 
B84: =IF(ISERROR(VLOOKUP(C84,CEM_GCD!$A$2:$A$187,1,FALSE))=FALSE,"Already in CERT","") ->  | L84: =IF(AND(LEN($E84)>0,$J84>0),VLOOKUP($E84,List_Input!$C$19:$L$22,7,FALSE)+$J84*VLOOKUP($E84,List_Input!$C$19:$L$22,8,FALSE),"") ->  | N84: =IF(AND(LEN($E84)>0,$J84>0),VLOOKUP($E84,List_Input!$C$19:$L$22,9,FALSE)+$J84*VLOOKUP($E84,List_Input!$C$19:$L$22,10,FALSE),"") ->  | R84: =IF(LEN($E84)>0,VLOOKUP($E84,List_Input!$C$19:$O$22,12,FALSE),"") ->  | S84: =IF(LEN($E84)>0,VLOOKUP($E84,List_Input!$C$19:$O$22,13,FALSE),"") -> 
B85: =IF(ISERROR(VLOOKUP(C85,CEM_GCD!$A$2:$A$187,1,FALSE))=FALSE,"Already in CERT","") ->  | L85: =IF(AND(LEN($E85)>0,$J85>0),VLOOKUP($E85,List_Input!$C$19:$L$22,7,FALSE)+$J85*VLOOKUP($E85,List_Input!$C$19:$L$22,8,FALSE),"") ->  | N85: =IF(AND(LEN($E85)>0,$J85>0),VLOOKUP($E85,List_Input!$C$19:$L$22,9,FALSE)+$J85*VLOOKUP($E85,List_Input!$C$19:$L$22,10,FALSE),"") ->  | R85: =IF(LEN($E85)>0,VLOOKUP($E85,List_Input!$C$19:$O$22,12,FALSE),"") ->  | S85: =IF(LEN($E85)>0,VLOOKUP($E85,List_Input!$C$19:$O$22,13,FALSE),"") -> 
B86: =IF(ISERROR(VLOOKUP(C86,CEM_GCD!$A$2:$A$187,1,FALSE))=FALSE,"Already in CERT","") ->  | L86: =IF(AND(LEN($E86)>0,$J86>0),VLOOKUP($E86,List_Input!$C$19:$L$22,7,FALSE)+$J86*VLOOKUP($E86,List_Input!$C$19:$L$22,8,FALSE),"") ->  | N86: =IF(AND(LEN($E86)>0,$J86>0),VLOOKUP($E86,List_Input!$C$19:$L$22,9,FALSE)+$J86*VLOOKUP($E86,List_Input!$C$19:$L$22,10,FALSE),"") ->  | R86: =IF(LEN($E86)>0,VLOOKUP($E86,List_Input!$C$19:$O$22,12,FALSE),"") ->  | S86: =IF(LEN($E86)>0,VLOOKUP($E86,List_Input!$C$19:$O$22,13,FALSE),"") -> 
B87: =IF(ISERROR(VLOOKUP(C87,CEM_GCD!$A$2:$A$187,1,FALSE))=FALSE,"Already in CERT","") ->  | L87: =IF(AND(LEN($E87)>0,$J87>0),VLOOKUP($E87,List_Input!$C$19:$L$22,7,FALSE)+$J87*VLOOKUP($E87,List_Input!$C$19:$L$22,8,FALSE),"") ->  | N87: =IF(AND(LEN($E87)>0,$J87>0),VLOOKUP($E87,List_Input!$C$19:$L$22,9,FALSE)+$J87*VLOOKUP($E87,List_Input!$C$19:$L$22,10,FALSE),"") ->  | R87: =IF(LEN($E87)>0,VLOOKUP($E87,List_Input!$C$19:$O$22,12,FALSE),"") ->  | S87: =IF(LEN($E87)>0,VLOOKUP($E87,List_Input!$C$19:$O$22,13,FALSE),"") -> 
B88: =IF(ISERROR(VLOOKUP(C88,CEM_GCD!$A$2:$A$187,1,FALSE))=FALSE,"Already in CERT","") ->  | L88: =IF(AND(LEN($E88)>0,$J88>0),VLOOKUP($E88,List_Input!$C$19:$L$22,7,FALSE)+$J88*VLOOKUP($E88,List_Input!$C$19:$L$22,8,FALSE),"") ->  | N88: =IF(AND(LEN($E88)>0,$J88>0),VLOOKUP($E88,List_Input!$C$19:$L$22,9,FALSE)+$J88*VLOOKUP($E88,List_Input!$C$19:$L$22,10,FALSE),"") ->  | R88: =IF(LEN($E88)>0,VLOOKUP($E88,List_Input!$C$19:$O$22,12,FALSE),"") ->  | S88: =IF(LEN($E88)>0,VLOOKUP($E88,List_Input!$C$19:$O$22,13,FALSE),"") -> 
B89: =IF(ISERROR(VLOOKUP(C89,CEM_GCD!$A$2:$A$187,1,FALSE))=FALSE,"Already in CERT","") ->  | L89: =IF(AND(LEN($E89)>0,$J89>0),VLOOKUP($E89,List_Input!$C$19:$L$22,7,FALSE)+$J89*VLOOKUP($E89,List_Input!$C$19:$L$22,8,FALSE),"") ->  | N89: =IF(AND(LEN($E89)>0,$J89>0),VLOOKUP($E89,List_Input!$C$19:$L$22,9,FALSE)+$J89*VLOOKUP($E89,List_Input!$C$19:$L$22,10,FALSE),"") ->  | R89: =IF(LEN($E89)>0,VLOOKUP($E89,List_Input!$C$19:$O$22,12,FALSE),"") ->  | S89: =IF(LEN($E89)>0,VLOOKUP($E89,List_Input!$C$19:$O$22,13,FALSE),"") -> 
B90: =IF(ISERROR(VLOOKUP(C90,CEM_GCD!$A$2:$A$187,1,FALSE))=FALSE,"Already in CERT","") ->  | L90: =IF(AND(LEN($E90)>0,$J90>0),VLOOKUP($E90,List_Input!$C$19:$L$22,7,FALSE)+$J90*VLOOKUP($E90,List_Input!$C$19:$L$22,8,FALSE),"") ->  | N90: =IF(AND(LEN($E90)>0,$J90>0),VLOOKUP($E90,List_Input!$C$19:$L$22,9,FALSE)+$J90*VLOOKUP($E90,List_Input!$C$19:$L$22,10,FALSE),"") ->  | R90: =IF(LEN($E90)>0,VLOOKUP($E90,List_Input!$C$19:$O$22,12,FALSE),"") ->  | S90: =IF(LEN($E90)>0,VLOOKUP($E90,List_Input!$C$19:$O$22,13,FALSE),"") -> 
B91: =IF(ISERROR(VLOOKUP(C91,CEM_GCD!$A$2:$A$187,1,FALSE))=FALSE,"Already in CERT","") ->  | L91: =IF(AND(LEN($E91)>0,$J91>0),VLOOKUP($E91,List_Input!$C$19:$L$22,7,FALSE)+$J91*VLOOKUP($E91,List_Input!$C$19:$L$22,8,FALSE),"") ->  | N91: =IF(AND(LEN($E91)>0,$J91>0),VLOOKUP($E91,List_Input!$C$19:$L$22,9,FALSE)+$J91*VLOOKUP($E91,List_Input!$C$19:$L$22,10,FALSE),"") ->  | R91: =IF(LEN($E91)>0,VLOOKUP($E91,List_Input!$C$19:$O$22,12,FALSE),"") ->  | S91: =IF(LEN($E91)>0,VLOOKUP($E91,List_Input!$C$19:$O$22,13,FALSE),"") -> 
B92: =IF(ISERROR(VLOOKUP(C92,CEM_GCD!$A$2:$A$187,1,FALSE))=FALSE,"Already in CERT","") ->  | L92: =IF(AND(LEN($E92)>0,$J92>0),VLOOKUP($E92,List_Input!$C$19:$L$22,7,FALSE)+$J92*VLOOKUP($E92,List_Input!$C$19:$L$22,8,FALSE),"") ->  | N92: =IF(AND(LEN($E92)>0,$J92>0),VLOOKUP($E92,List_Input!$C$19:$L$22,9,FALSE)+$J92*VLOOKUP($E92,List_Input!$C$19:$L$22,10,FALSE),"") ->  | R92: =IF(LEN($E92)>0,VLOOKUP($E92,List_Input!$C$19:$O$22,12,FALSE),"") ->  | S92: =IF(LEN($E92)>0,VLOOKUP($E92,List_Input!$C$19:$O$22,13,FALSE),"") -> 
B93: =IF(ISERROR(VLOOKUP(C93,CEM_GCD!$A$2:$A$187,1,FALSE))=FALSE,"Already in CERT","") ->  | L93: =IF(AND(LEN($E93)>0,$J93>0),VLOOKUP($E93,List_Input!$C$19:$L$22,7,FALSE)+$J93*VLOOKUP($E93,List_Input!$C$19:$L$22,8,FALSE),"") ->  | N93: =IF(AND(LEN($E93)>0,$J93>0),VLOOKUP($E93,List_Input!$C$19:$L$22,9,FALSE)+$J93*VLOOKUP($E93,List_Input!$C$19:$L$22,10,FALSE),"") ->  | R93: =IF(LEN($E93)>0,VLOOKUP($E93,List_Input!$C$19:$O$22,12,FALSE),"") ->  | S93: =IF(LEN($E93)>0,VLOOKUP($E93,List_Input!$C$19:$O$22,13,FALSE),"") -> 
B94: =IF(ISERROR(VLOOKUP(C94,CEM_GCD!$A$2:$A$187,1,FALSE))=FALSE,"Already in CERT","") ->  | L94: =IF(AND(LEN($E94)>0,$J94>0),VLOOKUP($E94,List_Input!$C$19:$L$22,7,FALSE)+$J94*VLOOKUP($E94,List_Input!$C$19:$L$22,8,FALSE),"") ->  | N94: =IF(AND(LEN($E94)>0,$J94>0),VLOOKUP($E94,List_Input!$C$19:$L$22,9,FALSE)+$J94*VLOOKUP($E94,List_Input!$C$19:$L$22,10,FALSE),"") ->  | R94: =IF(LEN($E94)>0,VLOOKUP($E94,List_Input!$C$19:$O$22,12,FALSE),"") ->  | S94: =IF(LEN($E94)>0,VLOOKUP($E94,List_Input!$C$19:$O$22,13,FALSE),"") -> 
B95: =IF(ISERROR(VLOOKUP(C95,CEM_GCD!$A$2:$A$187,1,FALSE))=FALSE,"Already in CERT","") ->  | L95: =IF(AND(LEN($E95)>0,$J95>0),VLOOKUP($E95,List_Input!$C$19:$L$22,7,FALSE)+$J95*VLOOKUP($E95,List_Input!$C$19:$L$22,8,FALSE),"") ->  | N95: =IF(AND(LEN($E95)>0,$J95>0),VLOOKUP($E95,List_Input!$C$19:$L$22,9,FALSE)+$J95*VLOOKUP($E95,List_Input!$C$19:$L$22,10,FALSE),"") ->  | R95: =IF(LEN($E95)>0,VLOOKUP($E95,List_Input!$C$19:$O$22,12,FALSE),"") ->  | S95: =IF(LEN($E95)>0,VLOOKUP($E95,List_Input!$C$19:$O$22,13,FALSE),"") -> 
B96: =IF(ISERROR(VLOOKUP(C96,CEM_GCD!$A$2:$A$187,1,FALSE))=FALSE,"Already in CERT","") ->  | L96: =IF(AND(LEN($E96)>0,$J96>0),VLOOKUP($E96,List_Input!$C$19:$L$22,7,FALSE)+$J96*VLOOKUP($E96,List_Input!$C$19:$L$22,8,FALSE),"") ->  | N96: =IF(AND(LEN($E96)>0,$J96>0),VLOOKUP($E96,List_Input!$C$19:$L$22,9,FALSE)+$J96*VLOOKUP($E96,List_Input!$C$19:$L$22,10,FALSE),"") ->  | R96: =IF(LEN($E96)>0,VLOOKUP($E96,List_Input!$C$19:$O$22,12,FALSE),"") ->  | S96: =IF(LEN($E96)>0,VLOOKUP($E96,List_Input!$C$19:$O$22,13,FALSE),"") -> 
B97: =IF(ISERROR(VLOOKUP(C97,CEM_GCD!$A$2:$A$187,1,FALSE))=FALSE,"Already in CERT","") ->  | L97: =IF(AND(LEN($E97)>0,$J97>0),VLOOKUP($E97,List_Input!$C$19:$L$22,7,FALSE)+$J97*VLOOKUP($E97,List_Input!$C$19:$L$22,8,FALSE),"") ->  | N97: =IF(AND(LEN($E97)>0,$J97>0),VLOOKUP($E97,List_Input!$C$19:$L$22,9,FALSE)+$J97*VLOOKUP($E97,List_Input!$C$19:$L$22,10,FALSE),"") ->  | R97: =IF(LEN($E97)>0,VLOOKUP($E97,List_Input!$C$19:$O$22,12,FALSE),"") ->  | S97: =IF(LEN($E97)>0,VLOOKUP($E97,List_Input!$C$19:$O$22,13,FALSE),"") -> 
B98: =IF(ISERROR(VLOOKUP(C98,CEM_GCD!$A$2:$A$187,1,FALSE))=FALSE,"Already in CERT","") ->  | L98: =IF(AND(LEN($E98)>0,$J98>0),VLOOKUP($E98,List_Input!$C$19:$L$22,7,FALSE)+$J98*VLOOKUP($E98,List_Input!$C$19:$L$22,8,FALSE),"") ->  | N98: =IF(AND(LEN($E98)>0,$J98>0),VLOOKUP($E98,List_Input!$C$19:$L$22,9,FALSE)+$J98*VLOOKUP($E98,List_Input!$C$19:$L$22,10,FALSE),"") ->  | R98: =IF(LEN($E98)>0,VLOOKUP($E98,List_Input!$C$19:$O$22,12,FALSE),"") ->  | S98: =IF(LEN($E98)>0,VLOOKUP($E98,List_Input!$C$19:$O$22,13,FALSE),"") -> 
B99: =IF(ISERROR(VLOOKUP(C99,CEM_GCD!$A$2:$A$187,1,FALSE))=FALSE,"Already in CERT","") ->  | L99: =IF(AND(LEN($E99)>0,$J99>0),VLOOKUP($E99,List_Input!$C$19:$L$22,7,FALSE)+$J99*VLOOKUP($E99,List_Input!$C$19:$L$22,8,FALSE),"") ->  | N99: =IF(AND(LEN($E99)>0,$J99>0),VLOOKUP($E99,List_Input!$C$19:$L$22,9,FALSE)+$J99*VLOOKUP($E99,List_Input!$C$19:$L$22,10,FALSE),"") ->  | R99: =IF(LEN($E99)>0,VLOOKUP($E99,List_Input!$C$19:$O$22,12,FALSE),"") ->  | S99: =IF(LEN($E99)>0,VLOOKUP($E99,List_Input!$C$19:$O$22,13,FALSE),"") -> 
B100: =IF(ISERROR(VLOOKUP(C100,CEM_GCD!$A$2:$A$187,1,FALSE))=FALSE,"Already in CERT","") ->  | L100: =IF(AND(LEN($E100)>0,$J100>0),VLOOKUP($E100,List_Input!$C$19:$L$22,7,FALSE)+$J100*VLOOKUP($E100,List_Input!$C$19:$L$22,8,FALSE),"") ->  | N100: =IF(AND(LEN($E100)>0,$J100>0),VLOOKUP($E100,List_Input!$C$19:$L$22,9,FALSE)+$J100*VLOOKUP($E100,List_Input!$C$19:$L$22,10,FALSE),"") ->  | R100: =IF(LEN($E100)>0,VLOOKUP($E100,List_Input!$C$19:$O$22,12,FALSE),"") ->  | S100: =IF(LEN($E100)>0,VLOOKUP($E100,List_Input!$C$19:$O$22,13,FALSE),"") -> 
B101: =IF(ISERROR(VLOOKUP(C101,CEM_GCD!$A$2:$A$187,1,FALSE))=FALSE,"Already in CERT","") ->  | L101: =IF(AND(LEN($E101)>0,$J101>0),VLOOKUP($E101,List_Input!$C$19:$L$22,7,FALSE)+$J101*VLOOKUP($E101,List_Input!$C$19:$L$22,8,FALSE),"") ->  | N101: =IF(AND(LEN($E101)>0,$J101>0),VLOOKUP($E101,List_Input!$C$19:$L$22,9,FALSE)+$J101*VLOOKUP($E101,List_Input!$C$19:$L$22,10,FALSE),"") ->  | R101: =IF(LEN($E101)>0,VLOOKUP($E101,List_Input!$C$19:$O$22,12,FALSE),"") ->  | S101: =IF(LEN($E101)>0,VLOOKUP($E101,List_Input!$C$19:$O$22,13,FALSE),"") -> 
B102: =IF(ISERROR(VLOOKUP(C102,CEM_GCD!$A$2:$A$187,1,FALSE))=FALSE,"Already in CERT","") ->  | L102: =IF(AND(LEN($E102)>0,$J102>0),VLOOKUP($E102,List_Input!$C$19:$L$22,7,FALSE)+$J102*VLOOKUP($E102,List_Input!$C$19:$L$22,8,FALSE),"") ->  | N102: =IF(AND(LEN($E102)>0,$J102>0),VLOOKUP($E102,List_Input!$C$19:$L$22,9,FALSE)+$J102*VLOOKUP($E102,List_Input!$C$19:$L$22,10,FALSE),"") ->  | R102: =IF(LEN($E102)>0,VLOOKUP($E102,List_Input!$C$19:$O$22,12,FALSE),"") ->  | S102: =IF(LEN($E102)>0,VLOOKUP($E102,List_Input!$C$19:$O$22,13,FALSE),"") -> 
B103: =IF(ISERROR(VLOOKUP(C103,CEM_GCD!$A$2:$A$187,1,FALSE))=FALSE,"Already in CERT","") ->  | L103: =IF(AND(LEN($E103)>0,$J103>0),VLOOKUP($E103,List_Input!$C$19:$L$22,7,FALSE)+$J103*VLOOKUP($E103,List_Input!$C$19:$L$22,8,FALSE),"") ->  | N103: =IF(AND(LEN($E103)>0,$J103>0),VLOOKUP($E103,List_Input!$C$19:$L$22,9,FALSE)+$J103*VLOOKUP($E103,List_Input!$C$19:$L$22,10,FALSE),"") ->  | R103: =IF(LEN($E103)>0,VLOOKUP($E103,List_Input!$C$19:$O$22,12,FALSE),"") ->  | S103: =IF(LEN($E103)>0,VLOOKUP($E103,List_Input!$C$19:$O$22,13,FALSE),"") -> 
B104: =IF(ISERROR(VLOOKUP(C104,CEM_GCD!$A$2:$A$187,1,FALSE))=FALSE,"Already in CERT","") ->  | L104: =IF(AND(LEN($E104)>0,$J104>0),VLOOKUP($E104,List_Input!$C$19:$L$22,7,FALSE)+$J104*VLOOKUP($E104,List_Input!$C$19:$L$22,8,FALSE),"") ->  | N104: =IF(AND(LEN($E104)>0,$J104>0),VLOOKUP($E104,List_Input!$C$19:$L$22,9,FALSE)+$J104*VLOOKUP($E104,List_Input!$C$19:$L$22,10,FALSE),"") ->  | R104: =IF(LEN($E104)>0,VLOOKUP($E104,List_Input!$C$19:$O$22,12,FALSE),"") ->  | S104: =IF(LEN($E104)>0,VLOOKUP($E104,List_Input!$C$19:$O$22,13,FALSE),"") -> 
B105: =IF(ISERROR(VLOOKUP(C105,CEM_GCD!$A$2:$A$187,1,FALSE))=FALSE,"Already in CERT","") ->  | L105: =IF(AND(LEN($E105)>0,$J105>0),VLOOKUP($E105,List_Input!$C$19:$L$22,7,FALSE)+$J105*VLOOKUP($E105,List_Input!$C$19:$L$22,8,FALSE),"") ->  | N105: =IF(AND(LEN($E105)>0,$J105>0),VLOOKUP($E105,List_Input!$C$19:$L$22,9,FALSE)+$J105*VLOOKUP($E105,List_Input!$C$19:$L$22,10,FALSE),"") ->  | R105: =IF(LEN($E105)>0,VLOOKUP($E105,List_Input!$C$19:$O$22,12,FALSE),"") ->  | S105: =IF(LEN($E105)>0,VLOOKUP($E105,List_Input!$C$19:$O$22,13,FALSE),"") -> 
B106: =IF(ISERROR(VLOOKUP(C106,CEM_GCD!$A$2:$A$187,1,FALSE))=FALSE,"Already in CERT","") ->  | L106: =IF(AND(LEN($E106)>0,$J106>0),VLOOKUP($E106,List_Input!$C$19:$L$22,7,FALSE)+$J106*VLOOKUP($E106,List_Input!$C$19:$L$22,8,FALSE),"") ->  | N106: =IF(AND(LEN($E106)>0,$J106>0),VLOOKUP($E106,List_Input!$C$19:$L$22,9,FALSE)+$J106*VLOOKUP($E106,List_Input!$C$19:$L$22,10,FALSE),"") ->  | R106: =IF(LEN($E106)>0,VLOOKUP($E106,List_Input!$C$19:$O$22,12,FALSE),"") ->  | S106: =IF(LEN($E106)>0,VLOOKUP($E106,List_Input!$C$19:$O$22,13,FALSE),"") -> 
B107: =IF(ISERROR(VLOOKUP(C107,CEM_GCD!$A$2:$A$187,1,FALSE))=FALSE,"Already in CERT","") ->  | L107: =IF(AND(LEN($E107)>0,$J107>0),VLOOKUP($E107,List_Input!$C$19:$L$22,7,FALSE)+$J107*VLOOKUP($E107,List_Input!$C$19:$L$22,8,FALSE),"") ->  | N107: =IF(AND(LEN($E107)>0,$J107>0),VLOOKUP($E107,List_Input!$C$19:$L$22,9,FALSE)+$J107*VLOOKUP($E107,List_Input!$C$19:$L$22,10,FALSE),"") ->  | R107: =IF(LEN($E107)>0,VLOOKUP($E107,List_Input!$C$19:$O$22,12,FALSE),"") ->  | S107: =IF(LEN($E107)>0,VLOOKUP($E107,List_Input!$C$19:$O$22,13,FALSE),"") -> 
B108: =IF(ISERROR(VLOOKUP(C108,CEM_GCD!$A$2:$A$187,1,FALSE))=FALSE,"Already in CERT","") ->  | L108: =IF(AND(LEN($E108)>0,$J108>0),VLOOKUP($E108,List_Input!$C$19:$L$22,7,FALSE)+$J108*VLOOKUP($E108,List_Input!$C$19:$L$22,8,FALSE),"") ->  | N108: =IF(AND(LEN($E108)>0,$J108>0),VLOOKUP($E108,List_Input!$C$19:$L$22,9,FALSE)+$J108*VLOOKUP($E108,List_Input!$C$19:$L$22,10,FALSE),"") ->  | R108: =IF(LEN($E108)>0,VLOOKUP($E108,List_Input!$C$19:$O$22,12,FALSE),"") ->  | S108: =IF(LEN($E108)>0,VLOOKUP($E108,List_Input!$C$19:$O$22,13,FALSE),"") -> 
B109: =IF(ISERROR(VLOOKUP(C109,CEM_GCD!$A$2:$A$187,1,FALSE))=FALSE,"Already in CERT","") ->  | L109: =IF(AND(LEN($E109)>0,$J109>0),VLOOKUP($E109,List_Input!$C$19:$L$22,7,FALSE)+$J109*VLOOKUP($E109,List_Input!$C$19:$L$22,8,FALSE),"") ->  | N109: =IF(AND(LEN($E109)>0,$J109>0),VLOOKUP($E109,List_Input!$C$19:$L$22,9,FALSE)+$J109*VLOOKUP($E109,List_Input!$C$19:$L$22,10,FALSE),"") ->  | R109: =IF(LEN($E109)>0,VLOOKUP($E109,List_Input!$C$19:$O$22,12,FALSE),"") ->  | S109: =IF(LEN($E109)>0,VLOOKUP($E109,List_Input!$C$19:$O$22,13,FALSE),"") -> 
R110: =IF(LEN($E110)>0,VLOOKUP($E110,List_Input!$C$19:$O$22,12),"") ->  | S110: =IF(LEN($E110)>0,VLOOKUP($E110,List_Input!$C$19:$O$22,13),"") -> 
C112: Custom Airport Information
B114: =COUNTIF(B115:B414,"Already in CERT") -> 0 | C114: Custom Airport Code | E114: Airport Name | I114: Latitude | J114: Longitude | K114: ICAO Member State | N114: Suggested ICAO Member State
B115: =IF(ISERROR(VLOOKUP(C115,CERT_Doc7910!$A$2:$A$11450,1,FALSE))=FALSE,"Already in CERT","") ->  | N115: =IF(LEN(C115)=4,VLOOKUP(LEFT(C115,2),Terr_Code!$A$2:$B$295,2,FALSE),"") -> 
B116: =IF(ISERROR(VLOOKUP(C116,CERT_Doc7910!$A$2:$A$11450,1,FALSE))=FALSE,"Already in CERT","") ->  | N116: =IF(LEN(C116)=4,VLOOKUP(LEFT(C116,2),Terr_Code!$A$2:$B$295,2,FALSE),"") -> 
B117: =IF(ISERROR(VLOOKUP(C117,CERT_Doc7910!$A$2:$A$11450,1,FALSE))=FALSE,"Already in CERT","") ->  | N117: =IF(LEN(C117)=4,VLOOKUP(LEFT(C117,2),Terr_Code!$A$2:$B$295,2,FALSE),"") -> 
B118: =IF(ISERROR(VLOOKUP(C118,CERT_Doc7910!$A$2:$A$11450,1,FALSE))=FALSE,"Already in CERT","") ->  | N118: =IF(LEN(C118)=4,VLOOKUP(LEFT(C118,2),Terr_Code!$A$2:$B$295,2,FALSE),"") -> 
B119: =IF(ISERROR(VLOOKUP(C119,CERT_Doc7910!$A$2:$A$11450,1,FALSE))=FALSE,"Already in CERT","") ->  | N119: =IF(LEN(C119)=4,VLOOKUP(LEFT(C119,2),Terr_Code!$A$2:$B$295,2,FALSE),"") -> 
B120: =IF(ISERROR(VLOOKUP(C120,CERT_Doc7910!$A$2:$A$11450,1,FALSE))=FALSE,"Already in CERT","") ->  | N120: =IF(LEN(C120)=4,VLOOKUP(LEFT(C120,2),Terr_Code!$A$2:$B$295,2,FALSE),"") -> 
B121: =IF(ISERROR(VLOOKUP(C121,CERT_Doc7910!$A$2:$A$11450,1,FALSE))=FALSE,"Already in CERT","") ->  | N121: =IF(LEN(C121)=4,VLOOKUP(LEFT(C121,2),Terr_Code!$A$2:$B$295,2,FALSE),"") -> 
B122: =IF(ISERROR(VLOOKUP(C122,CERT_Doc7910!$A$2:$A$11450,1,FALSE))=FALSE,"Already in CERT","") ->  | N122: =IF(LEN(C122)=4,VLOOKUP(LEFT(C122,2),Terr_Code!$A$2:$B$295,2,FALSE),"") -> 
B123: =IF(ISERROR(VLOOKUP(C123,CERT_Doc7910!$A$2:$A$11450,1,FALSE))=FALSE,"Already in CERT","") ->  | N123: =IF(LEN(C123)=4,VLOOKUP(LEFT(C123,2),Terr_Code!$A$2:$B$295,2,FALSE),"") -> 
B124: =IF(ISERROR(VLOOKUP(C124,CERT_Doc7910!$A$2:$A$11450,1,FALSE))=FALSE,"Already in CERT","") ->  | N124: =IF(LEN(C124)=4,VLOOKUP(LEFT(C124,2),Terr_Code!$A$2:$B$295,2,FALSE),"") -> 
B125: =IF(ISERROR(VLOOKUP(C125,CERT_Doc7910!$A$2:$A$11450,1,FALSE))=FALSE,"Already in CERT","") ->  | N125: =IF(LEN(C125)=4,VLOOKUP(LEFT(C125,2),Terr_Code!$A$2:$B$295,2,FALSE),"") -> 
B126: =IF(ISERROR(VLOOKUP(C126,CERT_Doc7910!$A$2:$A$11450,1,FALSE))=FALSE,"Already in CERT","") ->  | N126: =IF(LEN(C126)=4,VLOOKUP(LEFT(C126,2),Terr_Code!$A$2:$B$295,2,FALSE),"") -> 
B127: =IF(ISERROR(VLOOKUP(C127,CERT_Doc7910!$A$2:$A$11450,1,FALSE))=FALSE,"Already in CERT","") ->  | N127: =IF(LEN(C127)=4,VLOOKUP(LEFT(C127,2),Terr_Code!$A$2:$B$295,2,FALSE),"") -> 
B128: =IF(ISERROR(VLOOKUP(C128,CERT_Doc7910!$A$2:$A$11450,1,FALSE))=FALSE,"Already in CERT","") ->  | N128: =IF(LEN(C128)=4,VLOOKUP(LEFT(C128,2),Terr_Code!$A$2:$B$295,2,FALSE),"") -> 
B129: =IF(ISERROR(VLOOKUP(C129,CERT_Doc7910!$A$2:$A$11450,1,FALSE))=FALSE,"Already in CERT","") ->  | N129: =IF(LEN(C129)=4,VLOOKUP(LEFT(C129,2),Terr_Code!$A$2:$B$295,2,FALSE),"") -> 
B130: =IF(ISERROR(VLOOKUP(C130,CERT_Doc7910!$A$2:$A$11450,1,FALSE))=FALSE,"Already in CERT","") ->  | N130: =IF(LEN(C130)=4,VLOOKUP(LEFT(C130,2),Terr_Code!$A$2:$B$295,2,FALSE),"") -> 
B131: =IF(ISERROR(VLOOKUP(C131,CERT_Doc7910!$A$2:$A$11450,1,FALSE))=FALSE,"Already in CERT","") ->  | N131: =IF(LEN(C131)=4,VLOOKUP(LEFT(C131,2),Terr_Code!$A$2:$B$295,2,FALSE),"") -> 
B132: =IF(ISERROR(VLOOKUP(C132,CERT_Doc7910!$A$2:$A$11450,1,FALSE))=FALSE,"Already in CERT","") ->  | N132: =IF(LEN(C132)=4,VLOOKUP(LEFT(C132,2),Terr_Code!$A$2:$B$295,2,FALSE),"") -> 
B133: =IF(ISERROR(VLOOKUP(C133,CERT_Doc7910!$A$2:$A$11450,1,FALSE))=FALSE,"Already in CERT","") ->  | N133: =IF(LEN(C133)=4,VLOOKUP(LEFT(C133,2),Terr_Code!$A$2:$B$295,2,FALSE),"") -> 
B134: =IF(ISERROR(VLOOKUP(C134,CERT_Doc7910!$A$2:$A$11450,1,FALSE))=FALSE,"Already in CERT","") ->  | N134: =IF(LEN(C134)=4,VLOOKUP(LEFT(C134,2),Terr_Code!$A$2:$B$295,2,FALSE),"") -> 
B135: =IF(ISERROR(VLOOKUP(C135,CERT_Doc7910!$A$2:$A$11450,1,FALSE))=FALSE,"Already in CERT","") ->  | N135: =IF(LEN(C135)=4,VLOOKUP(LEFT(C135,2),Terr_Code!$A$2:$B$295,2,FALSE),"") -> 
B136: =IF(ISERROR(VLOOKUP(C136,CERT_Doc7910!$A$2:$A$11450,1,FALSE))=FALSE,"Already in CERT","") ->  | N136: =IF(LEN(C136)=4,VLOOKUP(LEFT(C136,2),Terr_Code!$A$2:$B$295,2,FALSE),"") -> 
B137: =IF(ISERROR(VLOOKUP(C137,CERT_Doc7910!$A$2:$A$11450,1,FALSE))=FALSE,"Already in CERT","") ->  | N137: =IF(LEN(C137)=4,VLOOKUP(LEFT(C137,2),Terr_Code!$A$2:$B$295,2,FALSE),"") -> 
B138: =IF(ISERROR(VLOOKUP(C138,CERT_Doc7910!$A$2:$A$11450,1,FALSE))=FALSE,"Already in CERT","") ->  | N138: =IF(LEN(C138)=4,VLOOKUP(LEFT(C138,2),Terr_Code!$A$2:$B$295,2,FALSE),"") -> 
B139: =IF(ISERROR(VLOOKUP(C139,CERT_Doc7910!$A$2:$A$11450,1,FALSE))=FALSE,"Already in CERT","") ->  | N139: =IF(LEN(C139)=4,VLOOKUP(LEFT(C139,2),Terr_Code!$A$2:$B$295,2,FALSE),"") -> 
B140: =IF(ISERROR(VLOOKUP(C140,CERT_Doc7910!$A$2:$A$11450,1,FALSE))=FALSE,"Already in CERT","") ->  | N140: =IF(LEN(C140)=4,VLOOKUP(LEFT(C140,2),Terr_Code!$A$2:$B$295,2,FALSE),"") -> 
B141: =IF(ISERROR(VLOOKUP(C141,CERT_Doc7910!$A$2:$A$11450,1,FALSE))=FALSE,"Already in CERT","") ->  | N141: =IF(LEN(C141)=4,VLOOKUP(LEFT(C141,2),Terr_Code!$A$2:$B$295,2,FALSE),"") -> 
B142: =IF(ISERROR(VLOOKUP(C142,CERT_Doc7910!$A$2:$A$11450,1,FALSE))=FALSE,"Already in CERT","") ->  | N142: =IF(LEN(C142)=4,VLOOKUP(LEFT(C142,2),Terr_Code!$A$2:$B$295,2,FALSE),"") -> 
B143: =IF(ISERROR(VLOOKUP(C143,CERT_Doc7910!$A$2:$A$11450,1,FALSE))=FALSE,"Already in CERT","") ->  | N143: =IF(LEN(C143)=4,VLOOKUP(LEFT(C143,2),Terr_Code!$A$2:$B$295,2,FALSE),"") -> 
B144: =IF(ISERROR(VLOOKUP(C144,CERT_Doc7910!$A$2:$A$11450,1,FALSE))=FALSE,"Already in CERT","") ->  | N144: =IF(LEN(C144)=4,VLOOKUP(LEFT(C144,2),Terr_Code!$A$2:$B$295,2,FALSE),"") -> 
B145: =IF(ISERROR(VLOOKUP(C145,CERT_Doc7910!$A$2:$A$11450,1,FALSE))=FALSE,"Already in CERT","") ->  | N145: =IF(LEN(C145)=4,VLOOKUP(LEFT(C145,2),Terr_Code!$A$2:$B$295,2,FALSE),"") -> 
B146: =IF(ISERROR(VLOOKUP(C146,CERT_Doc7910!$A$2:$A$11450,1,FALSE))=FALSE,"Already in CERT","") ->  | N146: =IF(LEN(C146)=4,VLOOKUP(LEFT(C146,2),Terr_Code!$A$2:$B$295,2,FALSE),"") -> 
B147: =IF(ISERROR(VLOOKUP(C147,CERT_Doc7910!$A$2:$A$11450,1,FALSE))=FALSE,"Already in CERT","") ->  | N147: =IF(LEN(C147)=4,VLOOKUP(LEFT(C147,2),Terr_Code!$A$2:$B$295,2,FALSE),"") -> 
B148: =IF(ISERROR(VLOOKUP(C148,CERT_Doc7910!$A$2:$A$11450,1,FALSE))=FALSE,"Already in CERT","") ->  | N148: =IF(LEN(C148)=4,VLOOKUP(LEFT(C148,2),Terr_Code!$A$2:$B$295,2,FALSE),"") -> 
B149: =IF(ISERROR(VLOOKUP(C149,CERT_Doc7910!$A$2:$A$11450,1,FALSE))=FALSE,"Already in CERT","") ->  | N149: =IF(LEN(C149)=4,VLOOKUP(LEFT(C149,2),Terr_Code!$A$2:$B$295,2,FALSE),"") -> 
B150: =IF(ISERROR(VLOOKUP(C150,CERT_Doc7910!$A$2:$A$11450,1,FALSE))=FALSE,"Already in CERT","") ->  | N150: =IF(LEN(C150)=4,VLOOKUP(LEFT(C150,2),Terr_Code!$A$2:$B$295,2,FALSE),"") -> 
B151: =IF(ISERROR(VLOOKUP(C151,CERT_Doc7910!$A$2:$A$11450,1,FALSE))=FALSE,"Already in CERT","") ->  | N151: =IF(LEN(C151)=4,VLOOKUP(LEFT(C151,2),Terr_Code!$A$2:$B$295,2,FALSE),"") -> 
B152: =IF(ISERROR(VLOOKUP(C152,CERT_Doc7910!$A$2:$A$11450,1,FALSE))=FALSE,"Already in CERT","") ->  | N152: =IF(LEN(C152)=4,VLOOKUP(LEFT(C152,2),Terr_Code!$A$2:$B$295,2,FALSE),"") -> 
B153: =IF(ISERROR(VLOOKUP(C153,CERT_Doc7910!$A$2:$A$11450,1,FALSE))=FALSE,"Already in CERT","") ->  | N153: =IF(LEN(C153)=4,VLOOKUP(LEFT(C153,2),Terr_Code!$A$2:$B$295,2,FALSE),"") -> 
B154: =IF(ISERROR(VLOOKUP(C154,CERT_Doc7910!$A$2:$A$11450,1,FALSE))=FALSE,"Already in CERT","") ->  | N154: =IF(LEN(C154)=4,VLOOKUP(LEFT(C154,2),Terr_Code!$A$2:$B$295,2,FALSE),"") -> 
B155: =IF(ISERROR(VLOOKUP(C155,CERT_Doc7910!$A$2:$A$11450,1,FALSE))=FALSE,"Already in CERT","") ->  | N155: =IF(LEN(C155)=4,VLOOKUP(LEFT(C155,2),Terr_Code!$A$2:$B$295,2,FALSE),"") -> 
B156: =IF(ISERROR(VLOOKUP(C156,CERT_Doc7910!$A$2:$A$11450,1,FALSE))=FALSE,"Already in CERT","") ->  | N156: =IF(LEN(C156)=4,VLOOKUP(LEFT(C156,2),Terr_Code!$A$2:$B$295,2,FALSE),"") -> 
B157: =IF(ISERROR(VLOOKUP(C157,CERT_Doc7910!$A$2:$A$11450,1,FALSE))=FALSE,"Already in CERT","") ->  | N157: =IF(LEN(C157)=4,VLOOKUP(LEFT(C157,2),Terr_Code!$A$2:$B$295,2,FALSE),"") -> 
B158: =IF(ISERROR(VLOOKUP(C158,CERT_Doc7910!$A$2:$A$11450,1,FALSE))=FALSE,"Already in CERT","") ->  | N158: =IF(LEN(C158)=4,VLOOKUP(LEFT(C158,2),Terr_Code!$A$2:$B$295,2,FALSE),"") -> 
B159: =IF(ISERROR(VLOOKUP(C159,CERT_Doc7910!$A$2:$A$11450,1,FALSE))=FALSE,"Already in CERT","") ->  | N159: =IF(LEN(C159)=4,VLOOKUP(LEFT(C159,2),Terr_Code!$A$2:$B$295,2,FALSE),"") -> 
B160: =IF(ISERROR(VLOOKUP(C160,CERT_Doc7910!$A$2:$A$11450,1,FALSE))=FALSE,"Already in CERT","") ->  | N160: =IF(LEN(C160)=4,VLOOKUP(LEFT(C160,2),Terr_Code!$A$2:$B$295,2,FALSE),"") -> 
B161: =IF(ISERROR(VLOOKUP(C161,CERT_Doc7910!$A$2:$A$11450,1,FALSE))=FALSE,"Already in CERT","") ->  | N161: =IF(LEN(C161)=4,VLOOKUP(LEFT(C161,2),Terr_Code!$A$2:$B$295,2,FALSE),"") -> 
B162: =IF(ISERROR(VLOOKUP(C162,CERT_Doc7910!$A$2:$A$11450,1,FALSE))=FALSE,"Already in CERT","") ->  | N162: =IF(LEN(C162)=4,VLOOKUP(LEFT(C162,2),Terr_Code!$A$2:$B$295,2,FALSE),"") -> 
B163: =IF(ISERROR(VLOOKUP(C163,CERT_Doc7910!$A$2:$A$11450,1,FALSE))=FALSE,"Already in CERT","") ->  | N163: =IF(LEN(C163)=4,VLOOKUP(LEFT(C163,2),Terr_Code!$A$2:$B$295,2,FALSE),"") -> 
B164: =IF(ISERROR(VLOOKUP(C164,CERT_Doc7910!$A$2:$A$11450,1,FALSE))=FALSE,"Already in CERT","") ->  | N164: =IF(LEN(C164)=4,VLOOKUP(LEFT(C164,2),Terr_Code!$A$2:$B$295,2,FALSE),"") -> 
B165: =IF(ISERROR(VLOOKUP(C165,CERT_Doc7910!$A$2:$A$11450,1,FALSE))=FALSE,"Already in CERT","") ->  | N165: =IF(LEN(C165)=4,VLOOKUP(LEFT(C165,2),Terr_Code!$A$2:$B$295,2,FALSE),"") -> 
B166: =IF(ISERROR(VLOOKUP(C166,CERT_Doc7910!$A$2:$A$11450,1,FALSE))=FALSE,"Already in CERT","") ->  | N166: =IF(LEN(C166)=4,VLOOKUP(LEFT(C166,2),Terr_Code!$A$2:$B$295,2,FALSE),"") -> 
B167: =IF(ISERROR(VLOOKUP(C167,CERT_Doc7910!$A$2:$A$11450,1,FALSE))=FALSE,"Already in CERT","") ->  | N167: =IF(LEN(C167)=4,VLOOKUP(LEFT(C167,2),Terr_Code!$A$2:$B$295,2,FALSE),"") -> 
B168: =IF(ISERROR(VLOOKUP(C168,CERT_Doc7910!$A$2:$A$11450,1,FALSE))=FALSE,"Already in CERT","") ->  | N168: =IF(LEN(C168)=4,VLOOKUP(LEFT(C168,2),Terr_Code!$A$2:$B$295,2,FALSE),"") -> 
B169: =IF(ISERROR(VLOOKUP(C169,CERT_Doc7910!$A$2:$A$11450,1,FALSE))=FALSE,"Already in CERT","") ->  | N169: =IF(LEN(C169)=4,VLOOKUP(LEFT(C169,2),Terr_Code!$A$2:$B$295,2,FALSE),"") -> 
B170: =IF(ISERROR(VLOOKUP(C170,CERT_Doc7910!$A$2:$A$11450,1,FALSE))=FALSE,"Already in CERT","") ->  | N170: =IF(LEN(C170)=4,VLOOKUP(LEFT(C170,2),Terr_Code!$A$2:$B$295,2,FALSE),"") -> 
B171: =IF(ISERROR(VLOOKUP(C171,CERT_Doc7910!$A$2:$A$11450,1,FALSE))=FALSE,"Already in CERT","") ->  | N171: =IF(LEN(C171)=4,VLOOKUP(LEFT(C171,2),Terr_Code!$A$2:$B$295,2,FALSE),"") -> 
B172: =IF(ISERROR(VLOOKUP(C172,CERT_Doc7910!$A$2:$A$11450,1,FALSE))=FALSE,"Already in CERT","") ->  | N172: =IF(LEN(C172)=4,VLOOKUP(LEFT(C172,2),Terr_Code!$A$2:$B$295,2,FALSE),"") -> 
B173: =IF(ISERROR(VLOOKUP(C173,CERT_Doc7910!$A$2:$A$11450,1,FALSE))=FALSE,"Already in CERT","") ->  | N173: =IF(LEN(C173)=4,VLOOKUP(LEFT(C173,2),Terr_Code!$A$2:$B$295,2,FALSE),"") -> 
B174: =IF(ISERROR(VLOOKUP(C174,CERT_Doc7910!$A$2:$A$11450,1,FALSE))=FALSE,"Already in CERT","") ->  | N174: =IF(LEN(C174)=4,VLOOKUP(LEFT(C174,2),Terr_Code!$A$2:$B$295,2,FALSE),"") -> 
B175: =IF(ISERROR(VLOOKUP(C175,CERT_Doc7910!$A$2:$A$11450,1,FALSE))=FALSE,"Already in CERT","") ->  | N175: =IF(LEN(C175)=4,VLOOKUP(LEFT(C175,2),Terr_Code!$A$2:$B$295,2,FALSE),"") -> 
B176: =IF(ISERROR(VLOOKUP(C176,CERT_Doc7910!$A$2:$A$11450,1,FALSE))=FALSE,"Already in CERT","") ->  | N176: =IF(LEN(C176)=4,VLOOKUP(LEFT(C176,2),Terr_Code!$A$2:$B$295,2,FALSE),"") -> 
B177: =IF(ISERROR(VLOOKUP(C177,CERT_Doc7910!$A$2:$A$11450,1,FALSE))=FALSE,"Already in CERT","") ->  | N177: =IF(LEN(C177)=4,VLOOKUP(LEFT(C177,2),Terr_Code!$A$2:$B$295,2,FALSE),"") -> 
B178: =IF(ISERROR(VLOOKUP(C178,CERT_Doc7910!$A$2:$A$11450,1,FALSE))=FALSE,"Already in CERT","") ->  | N178: =IF(LEN(C178)=4,VLOOKUP(LEFT(C178,2),Terr_Code!$A$2:$B$295,2,FALSE),"") -> 
B179: =IF(ISERROR(VLOOKUP(C179,CERT_Doc7910!$A$2:$A$11450,1,FALSE))=FALSE,"Already in CERT","") ->  | N179: =IF(LEN(C179)=4,VLOOKUP(LEFT(C179,2),Terr_Code!$A$2:$B$295,2,FALSE),"") -> 
B180: =IF(ISERROR(VLOOKUP(C180,CERT_Doc7910!$A$2:$A$11450,1,FALSE))=FALSE,"Already in CERT","") ->  | N180: =IF(LEN(C180)=4,VLOOKUP(LEFT(C180,2),Terr_Code!$A$2:$B$295,2,FALSE),"") -> 
B181: =IF(ISERROR(VLOOKUP(C181,CERT_Doc7910!$A$2:$A$11450,1,FALSE))=FALSE,"Already in CERT","") ->  | N181: =IF(LEN(C181)=4,VLOOKUP(LEFT(C181,2),Terr_Code!$A$2:$B$295,2,FALSE),"") -> 
B182: =IF(ISERROR(VLOOKUP(C182,CERT_Doc7910!$A$2:$A$11450,1,FALSE))=FALSE,"Already in CERT","") ->  | N182: =IF(LEN(C182)=4,VLOOKUP(LEFT(C182,2),Terr_Code!$A$2:$B$295,2,FALSE),"") -> 
B183: =IF(ISERROR(VLOOKUP(C183,CERT_Doc7910!$A$2:$A$11450,1,FALSE))=FALSE,"Already in CERT","") ->  | N183: =IF(LEN(C183)=4,VLOOKUP(LEFT(C183,2),Terr_Code!$A$2:$B$295,2,FALSE),"") -> 
B184: =IF(ISERROR(VLOOKUP(C184,CERT_Doc7910!$A$2:$A$11450,1,FALSE))=FALSE,"Already in CERT","") ->  | N184: =IF(LEN(C184)=4,VLOOKUP(LEFT(C184,2),Terr_Code!$A$2:$B$295,2,FALSE),"") -> 
B185: =IF(ISERROR(VLOOKUP(C185,CERT_Doc7910!$A$2:$A$11450,1,FALSE))=FALSE,"Already in CERT","") ->  | N185: =IF(LEN(C185)=4,VLOOKUP(LEFT(C185,2),Terr_Code!$A$2:$B$295,2,FALSE),"") -> 
B186: =IF(ISERROR(VLOOKUP(C186,CERT_Doc7910!$A$2:$A$11450,1,FALSE))=FALSE,"Already in CERT","") ->  | N186: =IF(LEN(C186)=4,VLOOKUP(LEFT(C186,2),Terr_Code!$A$2:$B$295,2,FALSE),"") -> 
B187: =IF(ISERROR(VLOOKUP(C187,CERT_Doc7910!$A$2:$A$11450,1,FALSE))=FALSE,"Already in CERT","") ->  | N187: =IF(LEN(C187)=4,VLOOKUP(LEFT(C187,2),Terr_Code!$A$2:$B$295,2,FALSE),"") -> 
B188: =IF(ISERROR(VLOOKUP(C188,CERT_Doc7910!$A$2:$A$11450,1,FALSE))=FALSE,"Already in CERT","") ->  | N188: =IF(LEN(C188)=4,VLOOKUP(LEFT(C188,2),Terr_Code!$A$2:$B$295,2,FALSE),"") -> 
B189: =IF(ISERROR(VLOOKUP(C189,CERT_Doc7910!$A$2:$A$11450,1,FALSE))=FALSE,"Already in CERT","") ->  | N189: =IF(LEN(C189)=4,VLOOKUP(LEFT(C189,2),Terr_Code!$A$2:$B$295,2,FALSE),"") -> 
B190: =IF(ISERROR(VLOOKUP(C190,CERT_Doc7910!$A$2:$A$11450,1,FALSE))=FALSE,"Already in CERT","") ->  | N190: =IF(LEN(C190)=4,VLOOKUP(LEFT(C190,2),Terr_Code!$A$2:$B$295,2,FALSE),"") -> 
B191: =IF(ISERROR(VLOOKUP(C191,CERT_Doc7910!$A$2:$A$11450,1,FALSE))=FALSE,"Already in CERT","") ->  | N191: =IF(LEN(C191)=4,VLOOKUP(LEFT(C191,2),Terr_Code!$A$2:$B$295,2,FALSE),"") -> 
B192: =IF(ISERROR(VLOOKUP(C192,CERT_Doc7910!$A$2:$A$11450,1,FALSE))=FALSE,"Already in CERT","") ->  | N192: =IF(LEN(C192)=4,VLOOKUP(LEFT(C192,2),Terr_Code!$A$2:$B$295,2,FALSE),"") -> 
B193: =IF(ISERROR(VLOOKUP(C193,CERT_Doc7910!$A$2:$A$11450,1,FALSE))=FALSE,"Already in CERT","") ->  | N193: =IF(LEN(C193)=4,VLOOKUP(LEFT(C193,2),Terr_Code!$A$2:$B$295,2,FALSE),"") -> 
B194: =IF(ISERROR(VLOOKUP(C194,CERT_Doc7910!$A$2:$A$11450,1,FALSE))=FALSE,"Already in CERT","") ->  | N194: =IF(LEN(C194)=4,VLOOKUP(LEFT(C194,2),Terr_Code!$A$2:$B$295,2,FALSE),"") -> 
B195: =IF(ISERROR(VLOOKUP(C195,CERT_Doc7910!$A$2:$A$11450,1,FALSE))=FALSE,"Already in CERT","") ->  | N195: =IF(LEN(C195)=4,VLOOKUP(LEFT(C195,2),Terr_Code!$A$2:$B$295,2,FALSE),"") -> 
B196: =IF(ISERROR(VLOOKUP(C196,CERT_Doc7910!$A$2:$A$11450,1,FALSE))=FALSE,"Already in CERT","") ->  | N196: =IF(LEN(C196)=4,VLOOKUP(LEFT(C196,2),Terr_Code!$A$2:$B$295,2,FALSE),"") -> 
B197: =IF(ISERROR(VLOOKUP(C197,CERT_Doc7910!$A$2:$A$11450,1,FALSE))=FALSE,"Already in CERT","") ->  | N197: =IF(LEN(C197)=4,VLOOKUP(LEFT(C197,2),Terr_Code!$A$2:$B$295,2,FALSE),"") -> 
B198: =IF(ISERROR(VLOOKUP(C198,CERT_Doc7910!$A$2:$A$11450,1,FALSE))=FALSE,"Already in CERT","") ->  | N198: =IF(LEN(C198)=4,VLOOKUP(LEFT(C198,2),Terr_Code!$A$2:$B$295,2,FALSE),"") -> 
B199: =IF(ISERROR(VLOOKUP(C199,CERT_Doc7910!$A$2:$A$11450,1,FALSE))=FALSE,"Already in CERT","") ->  | N199: =IF(LEN(C199)=4,VLOOKUP(LEFT(C199,2),Terr_Code!$A$2:$B$295,2,FALSE),"") -> 
B200: =IF(ISERROR(VLOOKUP(C200,CERT_Doc7910!$A$2:$A$11450,1,FALSE))=FALSE,"Already in CERT","") ->  | N200: =IF(LEN(C200)=4,VLOOKUP(LEFT(C200,2),Terr_Code!$A$2:$B$295,2,FALSE),"") -> 
B201: =IF(ISERROR(VLOOKUP(C201,CERT_Doc7910!$A$2:$A$11450,1,FALSE))=FALSE,"Already in CERT","") ->  | N201: =IF(LEN(C201)=4,VLOOKUP(LEFT(C201,2),Terr_Code!$A$2:$B$295,2,FALSE),"") -> 
B202: =IF(ISERROR(VLOOKUP(C202,CERT_Doc7910!$A$2:$A$11450,1,FALSE))=FALSE,"Already in CERT","") ->  | N202: =IF(LEN(C202)=4,VLOOKUP(LEFT(C202,2),Terr_Code!$A$2:$B$295,2,FALSE),"") -> 
B203: =IF(ISERROR(VLOOKUP(C203,CERT_Doc7910!$A$2:$A$11450,1,FALSE))=FALSE,"Already in CERT","") ->  | N203: =IF(LEN(C203)=4,VLOOKUP(LEFT(C203,2),Terr_Code!$A$2:$B$295,2,FALSE),"") -> 
B204: =IF(ISERROR(VLOOKUP(C204,CERT_Doc7910!$A$2:$A$11450,1,FALSE))=FALSE,"Already in CERT","") ->  | N204: =IF(LEN(C204)=4,VLOOKUP(LEFT(C204,2),Terr_Code!$A$2:$B$295,2,FALSE),"") -> 
B205: =IF(ISERROR(VLOOKUP(C205,CERT_Doc7910!$A$2:$A$11450,1,FALSE))=FALSE,"Already in CERT","") ->  | N205: =IF(LEN(C205)=4,VLOOKUP(LEFT(C205,2),Terr_Code!$A$2:$B$295,2,FALSE),"") -> 
B206: =IF(ISERROR(VLOOKUP(C206,CERT_Doc7910!$A$2:$A$11450,1,FALSE))=FALSE,"Already in CERT","") ->  | N206: =IF(LEN(C206)=4,VLOOKUP(LEFT(C206,2),Terr_Code!$A$2:$B$295,2,FALSE),"") -> 
B207: =IF(ISERROR(VLOOKUP(C207,CERT_Doc7910!$A$2:$A$11450,1,FALSE))=FALSE,"Already in CERT","") ->  | N207: =IF(LEN(C207)=4,VLOOKUP(LEFT(C207,2),Terr_Code!$A$2:$B$295,2,FALSE),"") -> 
B208: =IF(ISERROR(VLOOKUP(C208,CERT_Doc7910!$A$2:$A$11450,1,FALSE))=FALSE,"Already in CERT","") ->  | N208: =IF(LEN(C208)=4,VLOOKUP(LEFT(C208,2),Terr_Code!$A$2:$B$295,2,FALSE),"") -> 
... 206 more rows

Sheet CERT_db_search
B2: Searchable ICAO CORSIA CERT databases of aircraft types and airports
C7: Aircraft types in the ICAO CORSIA CERT database
C9: Search by aircraft type designator: | G9: Example of aircraft model: | L9: Manufacturer: | P9: Engine type:
G10: =IF(ISBLANK($C10)=TRUE,"",VLOOKUP(C10,CEM_GCD!$A$2:$M$187,11,FALSE)) ->  | L10: =IF(ISBLANK($C10)=TRUE,"",VLOOKUP(C10,CEM_GCD!$A$2:$M$187,12,FALSE)) ->  | P10: =IF(ISBLANK($C10)=TRUE,"",VLOOKUP(C10,CEM_GCD!$A$2:$M$187,13,FALSE)) -> 
C14: Search by (example of) aircraft model: | G14: Aircraft type designator: | L14: Manufacturer: | P14: Engine type:
G15: =IF(ISBLANK($C15)=TRUE,"",VLOOKUP(C15,CEM_GCD!$K$2:$N$187,4,FALSE)) ->  | L15: =IF(ISBLANK($C15)=TRUE,"",VLOOKUP(C15,CEM_GCD!$K$2:$N$187,2,FALSE)) ->  | P15: =IF(ISBLANK($C15)=TRUE,"",VLOOKUP(C15,CEM_GCD!$K$2:$N$187,3,FALSE)) -> 
C19: Airports in the ICAO CORSIA CERT database
C21: Search by airport code: | G21: Airport name: | M21: ICAO Member State:
G22: =IF(ISBLANK($C22)=TRUE,"",VLOOKUP(C22,CERT_Doc7910!$A$2:$F$11450,2,FALSE)) ->  | M22: =IF(ISBLANK($C22)=TRUE,"",VLOOKUP(C22,CERT_Doc7910!$A$2:$F$11450,6,FALSE)) -> 
J24: Latitude: | M24: Longitude:
J25: =IF(ISBLANK($C22)=TRUE,"",VLOOKUP(C22,CERT_Doc7910!$A$2:$F$11450,3,FALSE)) ->  | M25: =IF(ISBLANK($C22)=TRUE,"",VLOOKUP(C22,CERT_Doc7910!$A$2:$F$11450,4,FALSE)) -> 
C29: Search by airport name: | J29: Airport code: | M29: ICAO Member State:
J30: =IF(ISBLANK($C30)=TRUE,"",VLOOKUP(C30,CERT_Doc7910!$B$2:$G$11450,6,FALSE)) ->  | M30: =IF(ISBLANK($J30)=TRUE,"",VLOOKUP(J30,CERT_Doc7910!$A$2:$F$11450,6,FALSE)) -> 
J32: Latitude: | M32: Longitude:
J33: =IF(ISBLANK($C30)=TRUE,"",VLOOKUP(C30,CERT_Doc7910!$B$2:$F$11450,2,FALSE)) ->  | M33: =IF(ISBLANK($C30)=TRUE,"",VLOOKUP(C30,CERT_Doc7910!$B$2:$F$11450,3,FALSE)) -> 

Sheet 3. Summary Assessment
B2: Step 3. Summary of assessment of applicability of CORSIA and eligibility to use the ICAO CORSIA CERT in 2019
B8: A | C8: Aeroplane operator information
C11: a) | D11: Name of the aeroplane operator | H11: =IF(LEN('1. Aeroplane Operator Info'!D14)>0,'1. Aeroplane Operator Info'!D14,"") -> 
C13: b) | D13: Address of the aeroplane operator
D14: Address line: | H14: =IF(LEN('1. Aeroplane Operator Info'!F19)>0,'1. Aeroplane Operator Info'!F19,"") -> 
D15: City: | H15: =IF(LEN('1. Aeroplane Operator Info'!F20)>0,'1. Aeroplane Operator Info'!F20,"") -> 
D16: State/Province/Region: | H16: =IF(LEN('1. Aeroplane Operator Info'!F21)>0,'1. Aeroplane Operator Info'!F21,"") -> 
D17: Postcode/ZIP: | H17: =IF(LEN('1. Aeroplane Operator Info'!F22)>0,'1. Aeroplane Operator Info'!F22,"") -> 
D18: Country: | H18: =IF(LEN('1. Aeroplane Operator Info'!F23)>0,'1. Aeroplane Operator Info'!F23,"") -> 
C20: d) | D20: Aircraft identification of the aeroplane operator for international flights | H20: =IF(LEN('1. Aeroplane Operator Info'!D41)>0,'1. Aeroplane Operator Info'!D41,"") -> 
C23: d2) | D23: ICAO Designator | H23: =IF(LEN('1. Aeroplane Operator Info'!D49)>0,'1. Aeroplane Operator Info'!D49,"") -> 
C25: e1) | D25: Identification code of the AOC | H25: =IF(LEN('1. Aeroplane Operator Info'!D64)>0,'1. Aeroplane Operator Info'!D64,"") -> 
C27: e4) | D27: Competent authority for the AOC
D28: Name of the authority: | H28: =IF(LEN('1. Aeroplane Operator Info'!F76)>0,'1. Aeroplane Operator Info'!F76,"") -> 
D29: Address line: | H29: =IF(LEN('1. Aeroplane Operator Info'!F77)>0,'1. Aeroplane Operator Info'!F77,"") -> 
D30: City: | H30: =IF(LEN('1. Aeroplane Operator Info'!F78)>0,'1. Aeroplane Operator Info'!F78,"") -> 
D31: State/Province/Region: | H31: =IF(LEN('1. Aeroplane Operator Info'!F79)>0,'1. Aeroplane Operator Info'!F79,"") -> 
D32: Postcode/ZIP: | H32: =IF(LEN('1. Aeroplane Operator Info'!F80)>0,'1. Aeroplane Operator Info'!F80,"") -> 
D33: Country: | H33: =IF(LEN('1. Aeroplane Operator Info'!F81)>0,'1. Aeroplane Operator Info'!F81,"") -> 
B36: B | C36: Estimated CO2 emissions and status of aeroplane operator
L37: Note. - Emissions are for all international State Pairs. For the 2021 version of the ICAO CORSIA CERT, this total will be split between State Pairs with offsetting requirements and State Pairs not subject to offsetting requirements (see Annex 16, Volume IV, Chapter 3 for details).
B38: 1 | C38: Total annual estimated CO2 emissions (international) : | K38: t CO2
C42: Total annual estimated CO2 emissions (domestic) : | K42: t CO2 | L42: Note. - Domestic aviation is outside the scope of applicability of Annex 16, Volume IV. Information is provided for awareness of tool user in the event domestic flights are entered in the input tables.
B45: 2 | C45: Status of aeroplane operator:
C46: Aeroplane operator under scope of applicability of CORSIA (i.e., Annex 16, Volume IV, Chapter 2) | I46: =IF(I38="","",IF(I38>=10000,"Yes","No")) -> 
C49: Aeroplane operator eligible to use; | I49: ICAO CORSIA CERT
I50: =IF(I38="","",IF(I38<500000,"Yes","No")) -> 
L51: Note. - For details on Fuel Use Monitoring Methods refer to Annex 16, Volume IV, Chapter 2 and Appendix 2 and ETM, Volume IV.
I52: Fuel Use Monitoring Method
I53: Yes
B55: C | C55: Detailed estimated CO2 emissions by State pairs
C57: State of origin aerodrome(s) | G57: State of destination aerodrome(s) | K57: Flight(s) on route under scope of applicability of CORSIA | N57: CO2 emissions [in tonnes of CO2]

Sheet Import_temp (hidden)

Sheet List_Input (hidden)
R2: Type Designator | S2: =COUNTIF(T3:T188,"?*") -> 186 | W2: Example of ​Model* | X2: =COUNTIF(Y3:Y188,"?*") -> 170 | AA2: Airport Code | AF2: Airport Name
B3: Aeroplane Information | Q3: =IF(ISNUMBER(SEARCH(CERT_db_search!$C$10,List_Input!R3)),MAX($Q$2:Q2)+1,0) -> 1 | R3: A124 | S3: =OFFSET($T$3,,,COUNTIF($T$3:$T$241,"?*")) -> A124 | T3: =IFERROR(VLOOKUP(ROWS($T$3:T3),$Q$3:$R$241,2,FALSE),"") -> A124 | V3: =IF(ISNUMBER(SEARCH(CERT_db_search!$C$15,List_Input!W3)),MAX($V$2:V2)+1,0) -> 1 | W3: An-124 Ruslan | X3: =OFFSET($Y$3,,,COUNTIF($Y$3:$Y$241,"?*")) -> An-124 Ruslan | Y3: =IFERROR(VLOOKUP(ROWS($X$3:Y3),$V$3:$W$241,2,FALSE),"") -> An-124 Ruslan | Z3: =IF(ISNUMBER(SEARCH(CERT_db_search!$C$22,List_Input!AA3)),MAX($Z$2:Z2)+1,0) -> 1 | AA3: AGAF | AB3: =OFFSET($AC$3,,,COUNTIF($AC$3:$AC$11541,"?*")) -> AGAF | AC3: =IFERROR(VLOOKUP(ROWS($AC$3:AC3),$Z$3:$AA$11451,2,FALSE),"") -> AGAF | AE3: =IF(ISNUMBER(SEARCH(CERT_db_search!$C$30,List_Input!AF3)),MAX($AE$2:AE2)+1,0) -> 1 | AF3: BAD RADKERSBURG LKH (HEL) | AG3: =OFFSET($AH$3,,,COUNTIF($AH$3:$AH$11541,"?*")) -> BAD RADKERSBURG LKH (HEL) | AH3: =IFERROR(VLOOKUP(ROWS($AH$3:AH3),$AE$3:$AF$11451,2,FALSE),"") -> BAD RADKERSBURG LKH (HEL)
B4: Type of AO Code: | Q4: =IF(ISNUMBER(SEARCH(CERT_db_search!$C$10,List_Input!R4)),MAX($Q$2:Q3)+1,0) -> 2 | R4: A140 | T4: =IFERROR(VLOOKUP(ROWS($T$3:T4),$Q$3:$R$241,2,FALSE),"") -> A140 | V4: =IF(ISNUMBER(SEARCH(CERT_db_search!$C$15,List_Input!W4)),MAX($V$2:V3)+1,0) -> 2 | W4: IRAN-140 Faraz | Y4: =IFERROR(VLOOKUP(ROWS($X$3:Y4),$V$3:$W$241,2,FALSE),"") -> IRAN-140 Faraz | Z4: =IF(ISNUMBER(SEARCH(CERT_db_search!$C$22,List_Input!AA4)),MAX($Z$2:Z3)+1,0) -> 2 | AA4: AGAR | AC4: =IFERROR(VLOOKUP(ROWS($AC$3:AC4),$Z$3:$AA$11451,2,FALSE),"") -> AGAR | AE4: =IF(ISNUMBER(SEARCH(CERT_db_search!$C$30,List_Input!AF4)),MAX($AE$2:AE3)+1,0) -> 2 | AF4: POTI | AH4: =IFERROR(VLOOKUP(ROWS($AH$3:AH4),$AE$3:$AF$11451,2,FALSE),"") -> POTI
C5: ICAO Designator: according to Doc 8585 | Q5: =IF(ISNUMBER(SEARCH(CERT_db_search!$C$10,List_Input!R5)),MAX($Q$2:Q4)+1,0) -> 3 | R5: A148 | T5: =IFERROR(VLOOKUP(ROWS($T$3:T5),$Q$3:$R$241,2,FALSE),"") -> A148 | V5: =IF(ISNUMBER(SEARCH(CERT_db_search!$C$15,List_Input!W5)),MAX($V$2:V4)+1,0) -> 3 | W5: An-148 | Y5: =IFERROR(VLOOKUP(ROWS($X$3:Y5),$V$3:$W$241,2,FALSE),"") -> An-148 | Z5: =IF(ISNUMBER(SEARCH(CERT_db_search!$C$22,List_Input!AA5)),MAX($Z$2:Z4)+1,0) -> 3 | AA5: AGAT | AC5: =IFERROR(VLOOKUP(ROWS($AC$3:AC5),$Z$3:$AA$11451,2,FALSE),"") -> AGAT | AE5: =IF(ISNUMBER(SEARCH(CERT_db_search!$C$30,List_Input!AF5)),MAX($AE$2:AE4)+1,0) -> 3 | AF5: A CORUNA | AH5: =IFERROR(VLOOKUP(ROWS($AH$3:AH5),$AE$3:$AF$11451,2,FALSE),"") -> A CORUNA
C6: Registration marks: nationality or common mark and registration mark as stated in an AOC (or equivalent) | Q6: =IF(ISNUMBER(SEARCH(CERT_db_search!$C$10,List_Input!R6)),MAX($Q$2:Q5)+1,0) -> 4 | R6: A306 | T6: =IFERROR(VLOOKUP(ROWS($T$3:T6),$Q$3:$R$241,2,FALSE),"") -> A306 | V6: =IF(ISNUMBER(SEARCH(CERT_db_search!$C$15,List_Input!W6)),MAX($V$2:V5)+1,0) -> 4 | W6: A-300B4-600 | Y6: =IFERROR(VLOOKUP(ROWS($X$3:Y6),$V$3:$W$241,2,FALSE),"") -> A-300B4-600 | Z6: =IF(ISNUMBER(SEARCH(CERT_db_search!$C$22,List_Input!AA6)),MAX($Z$2:Z5)+1,0) -> 4 | AA6: AGBA | AC6: =IFERROR(VLOOKUP(ROWS($AC$3:AC6),$Z$3:$AA$11451,2,FALSE),"") -> AGBA | AE6: =IF(ISNUMBER(SEARCH(CERT_db_search!$C$30,List_Input!AF6)),MAX($AE$2:AE5)+1,0) -> 4 | AF6: A L MANGHAM JR. RGNL | AH6: =IFERROR(VLOOKUP(ROWS($AH$3:AH6),$AE$3:$AF$11451,2,FALSE),"") -> A L MANGHAM JR. RGNL
C7: ICAO Designator and registration marks | Q7: =IF(ISNUMBER(SEARCH(CERT_db_search!$C$10,List_Input!R7)),MAX($Q$2:Q6)+1,0) -> 5 | R7: A30B | T7: =IFERROR(VLOOKUP(ROWS($T$3:T7),$Q$3:$R$241,2,FALSE),"") -> A30B | V7: =IF(ISNUMBER(SEARCH(CERT_db_search!$C$15,List_Input!W7)),MAX($V$2:V6)+1,0) -> 5 | W7: A-300B2 | Y7: =IFERROR(VLOOKUP(ROWS($X$3:Y7),$V$3:$W$241,2,FALSE),"") -> A-300B2 | Z7: =IF(ISNUMBER(SEARCH(CERT_db_search!$C$22,List_Input!AA7)),MAX($Z$2:Z6)+1,0) -> 5 | AA7: AGBT | AC7: =IFERROR(VLOOKUP(ROWS($AC$3:AC7),$Z$3:$AA$11451,2,FALSE),"") -> AGBT | AE7: =IF(ISNUMBER(SEARCH(CERT_db_search!$C$30,List_Input!AF7)),MAX($AE$2:AE6)+1,0) -> 5 | AF7: A P HILL AAF (FORT A P HILL) | AH7: =IFERROR(VLOOKUP(ROWS($AH$3:AH7),$AE$3:$AF$11451,2,FALSE),"") -> A P HILL AAF (FORT A P HILL)
Q8: =IF(ISNUMBER(SEARCH(CERT_db_search!$C$10,List_Input!R8)),MAX($Q$2:Q7)+1,0) -> 6 | R8: A310 | T8: =IFERROR(VLOOKUP(ROWS($T$3:T8),$Q$3:$R$241,2,FALSE),"") -> A310 | V8: =IF(ISNUMBER(SEARCH(CERT_db_search!$C$15,List_Input!W8)),MAX($V$2:V7)+1,0) -> 6 | W8: A-310 | Y8: =IFERROR(VLOOKUP(ROWS($X$3:Y8),$V$3:$W$241,2,FALSE),"") -> A-310 | Z8: =IF(ISNUMBER(SEARCH(CERT_db_search!$C$22,List_Input!AA8)),MAX($Z$2:Z7)+1,0) -> 6 | AA8: AGEV | AC8: =IFERROR(VLOOKUP(ROWS($AC$3:AC8),$Z$3:$AA$11451,2,FALSE),"") -> AGEV | AE8: =IF(ISNUMBER(SEARCH(CERT_db_search!$C$30,List_Input!AF8)),MAX($AE$2:AE7)+1,0) -> 6 | AF8: A.N.R. ROBINSON,TOBAGO | AH8: =IFERROR(VLOOKUP(ROWS($AH$3:AH8),$AE$3:$AF$11451,2,FALSE),"") -> A.N.R. ROBINSON,TOBAGO
B9: 2e | Q9: =IF(ISNUMBER(SEARCH(CERT_db_search!$C$10,List_Input!R9)),MAX($Q$2:Q8)+1,0) -> 7 | R9: A318 | T9: =IFERROR(VLOOKUP(ROWS($T$3:T9),$Q$3:$R$241,2,FALSE),"") -> A318 | V9: =IF(ISNUMBER(SEARCH(CERT_db_search!$C$15,List_Input!W9)),MAX($V$2:V8)+1,0) -> 7 | W9: A-318 | Y9: =IFERROR(VLOOKUP(ROWS($X$3:Y9),$V$3:$W$241,2,FALSE),"") -> A-318 | Z9: =IF(ISNUMBER(SEARCH(CERT_db_search!$C$22,List_Input!AA9)),MAX($Z$2:Z8)+1,0) -> 7 | AA9: AGGA | AC9: =IFERROR(VLOOKUP(ROWS($AC$3:AC9),$Z$3:$AA$11451,2,FALSE),"") -> AGGA | AE9: =IF(ISNUMBER(SEARCH(CERT_db_search!$C$30,List_Input!AF9)),MAX($AE$2:AE8)+1,0) -> 7 | AF9: AACHEN-MERZBRUECK | AH9: =IFERROR(VLOOKUP(ROWS($AH$3:AH9),$AE$3:$AF$11451,2,FALSE),"") -> AACHEN-MERZBRUECK
C10: yes | Q10: =IF(ISNUMBER(SEARCH(CERT_db_search!$C$10,List_Input!R10)),MAX($Q$2:Q9)+1,0) -> 8 | R10: A319 | T10: =IFERROR(VLOOKUP(ROWS($T$3:T10),$Q$3:$R$241,2,FALSE),"") -> A319 | V10: =IF(ISNUMBER(SEARCH(CERT_db_search!$C$15,List_Input!W10)),MAX($V$2:V9)+1,0) -> 8 | W10: A-319 | Y10: =IFERROR(VLOOKUP(ROWS($X$3:Y10),$V$3:$W$241,2,FALSE),"") -> A-319 | Z10: =IF(ISNUMBER(SEARCH(CERT_db_search!$C$22,List_Input!AA10)),MAX($Z$2:Z9)+1,0) -> 8 | AA10: AGGB | AC10: =IFERROR(VLOOKUP(ROWS($AC$3:AC10),$Z$3:$AA$11451,2,FALSE),"") -> AGGB | AE10: =IF(ISNUMBER(SEARCH(CERT_db_search!$C$30,List_Input!AF10)),MAX($AE$2:AE9)+1,0) -> 8 | AF10: AALBORG (CIV/MIL) | AH10: =IFERROR(VLOOKUP(ROWS($AH$3:AH10),$AE$3:$AF$11451,2,FALSE),"") -> AALBORG (CIV/MIL)
C11: no | Q11: =IF(ISNUMBER(SEARCH(CERT_db_search!$C$10,List_Input!R11)),MAX($Q$2:Q10)+1,0) -> 9 | R11: A320 | T11: =IFERROR(VLOOKUP(ROWS($T$3:T11),$Q$3:$R$241,2,FALSE),"") -> A320 | V11: =IF(ISNUMBER(SEARCH(CERT_db_search!$C$15,List_Input!W11)),MAX($V$2:V10)+1,0) -> 9 | W11: A-320 | Y11: =IFERROR(VLOOKUP(ROWS($X$3:Y11),$V$3:$W$241,2,FALSE),"") -> A-320 | Z11: =IF(ISNUMBER(SEARCH(CERT_db_search!$C$22,List_Input!AA11)),MAX($Z$2:Z10)+1,0) -> 9 | AA11: AGGC | AC11: =IFERROR(VLOOKUP(ROWS($AC$3:AC11),$Z$3:$AA$11451,2,FALSE),"") -> AGGC | AE11: =IF(ISNUMBER(SEARCH(CERT_db_search!$C$30,List_Input!AF11)),MAX($AE$2:AE10)+1,0) -> 9 | AF11: AALEN-HEIDENHEIM/ELCHINGEN | AH11: =IFERROR(VLOOKUP(ROWS($AH$3:AH11),$AE$3:$AF$11451,2,FALSE),"") -> AALEN-HEIDENHEIM/ELCHINGEN
Q12: =IF(ISNUMBER(SEARCH(CERT_db_search!$C$10,List_Input!R12)),MAX($Q$2:Q11)+1,0) -> 10 | R12: A321 | T12: =IFERROR(VLOOKUP(ROWS($T$3:T12),$Q$3:$R$241,2,FALSE),"") -> A321 | V12: =IF(ISNUMBER(SEARCH(CERT_db_search!$C$15,List_Input!W12)),MAX($V$2:V11)+1,0) -> 10 | W12: A-321 | Y12: =IFERROR(VLOOKUP(ROWS($X$3:Y12),$V$3:$W$241,2,FALSE),"") -> A-321 | Z12: =IF(ISNUMBER(SEARCH(CERT_db_search!$C$22,List_Input!AA12)),MAX($Z$2:Z11)+1,0) -> 10 | AA12: AGGE | AC12: =IFERROR(VLOOKUP(ROWS($AC$3:AC12),$Z$3:$AA$11451,2,FALSE),"") -> AGGE | AE12: =IF(ISNUMBER(SEARCH(CERT_db_search!$C$30,List_Input!AF12)),MAX($AE$2:AE11)+1,0) -> 10 | AF12: AAPPILATTOQ/NANORTALIK | AH12: =IFERROR(VLOOKUP(ROWS($AH$3:AH12),$AE$3:$AF$11451,2,FALSE),"") -> AAPPILATTOQ/NANORTALIK
Q13: =IF(ISNUMBER(SEARCH(CERT_db_search!$C$10,List_Input!R13)),MAX($Q$2:Q12)+1,0) -> 11 | R13: A332 | T13: =IFERROR(VLOOKUP(ROWS($T$3:T13),$Q$3:$R$241,2,FALSE),"") -> A332 | V13: =IF(ISNUMBER(SEARCH(CERT_db_search!$C$15,List_Input!W13)),MAX($V$2:V12)+1,0) -> 11 | W13: A-330-200 | Y13: =IFERROR(VLOOKUP(ROWS($X$3:Y13),$V$3:$W$241,2,FALSE),"") -> A-330-200 | Z13: =IF(ISNUMBER(SEARCH(CERT_db_search!$C$22,List_Input!AA13)),MAX($Z$2:Z12)+1,0) -> 11 | AA13: AGGF | AC13: =IFERROR(VLOOKUP(ROWS($AC$3:AC13),$Z$3:$AA$11451,2,FALSE),"") -> AGGF | AE13: =IF(ISNUMBER(SEARCH(CERT_db_search!$C$30,List_Input!AF13)),MAX($AE$2:AE12)+1,0) -> 11 | AF13: AARHUS | AH13: =IFERROR(VLOOKUP(ROWS($AH$3:AH13),$AE$3:$AF$11451,2,FALSE),"") -> AARHUS
Q14: =IF(ISNUMBER(SEARCH(CERT_db_search!$C$10,List_Input!R14)),MAX($Q$2:Q13)+1,0) -> 12 | R14: A333 | T14: =IFERROR(VLOOKUP(ROWS($T$3:T14),$Q$3:$R$241,2,FALSE),"") -> A333 | V14: =IF(ISNUMBER(SEARCH(CERT_db_search!$C$15,List_Input!W14)),MAX($V$2:V13)+1,0) -> 12 | W14: A-330-300 | Y14: =IFERROR(VLOOKUP(ROWS($X$3:Y14),$V$3:$W$241,2,FALSE),"") -> A-330-300 | Z14: =IF(ISNUMBER(SEARCH(CERT_db_search!$C$22,List_Input!AA14)),MAX($Z$2:Z13)+1,0) -> 12 | AA14: AGGH | AC14: =IFERROR(VLOOKUP(ROWS($AC$3:AC14),$Z$3:$AA$11451,2,FALSE),"") -> AGGH | AE14: =IF(ISNUMBER(SEARCH(CERT_db_search!$C$30,List_Input!AF14)),MAX($AE$2:AE13)+1,0) -> 12 | AF14: AASIAAT | AH14: =IFERROR(VLOOKUP(ROWS($AH$3:AH14),$AE$3:$AF$11451,2,FALSE),"") -> AASIAAT
B15: Custom Aircraft | Q15: =IF(ISNUMBER(SEARCH(CERT_db_search!$C$10,List_Input!R15)),MAX($Q$2:Q14)+1,0) -> 13 | R15: A342 | T15: =IFERROR(VLOOKUP(ROWS($T$3:T15),$Q$3:$R$241,2,FALSE),"") -> A342 | V15: =IF(ISNUMBER(SEARCH(CERT_db_search!$C$15,List_Input!W15)),MAX($V$2:V14)+1,0) -> 13 | W15: A-340-200 | Y15: =IFERROR(VLOOKUP(ROWS($X$3:Y15),$V$3:$W$241,2,FALSE),"") -> A-340-200 | Z15: =IF(ISNUMBER(SEARCH(CERT_db_search!$C$22,List_Input!AA15)),MAX($Z$2:Z14)+1,0) -> 13 | AA15: AGGI | AC15: =IFERROR(VLOOKUP(ROWS($AC$3:AC15),$Z$3:$AA$11451,2,FALSE),"") -> AGGI | AE15: =IF(ISNUMBER(SEARCH(CERT_db_search!$C$30,List_Input!AF15)),MAX($AE$2:AE14)+1,0) -> 13 | AF15: AAVAHELUKKA | AH15: =IFERROR(VLOOKUP(ROWS($AH$3:AH15),$AE$3:$AF$11451,2,FALSE),"") -> AAVAHELUKKA
Q16: =IF(ISNUMBER(SEARCH(CERT_db_search!$C$10,List_Input!R16)),MAX($Q$2:Q15)+1,0) -> 14 | R16: A343 | T16: =IFERROR(VLOOKUP(ROWS($T$3:T16),$Q$3:$R$241,2,FALSE),"") -> A343 | V16: =IF(ISNUMBER(SEARCH(CERT_db_search!$C$15,List_Input!W16)),MAX($V$2:V15)+1,0) -> 14 | W16: A-340-300 | Y16: =IFERROR(VLOOKUP(ROWS($X$3:Y16),$V$3:$W$241,2,FALSE),"") -> A-340-300 | Z16: =IF(ISNUMBER(SEARCH(CERT_db_search!$C$22,List_Input!AA16)),MAX($Z$2:Z15)+1,0) -> 14 | AA16: AGGJ | AC16: =IFERROR(VLOOKUP(ROWS($AC$3:AC16),$Z$3:$AA$11451,2,FALSE),"") -> AGGJ | AE16: =IF(ISNUMBER(SEARCH(CERT_db_search!$C$30,List_Input!AF16)),MAX($AE$2:AE15)+1,0) -> 14 | AF16: ABA | AH16: =IFERROR(VLOOKUP(ROWS($AH$3:AH16),$AE$3:$AF$11451,2,FALSE),"") -> ABA
I17: Intercept_1 | K17: Slope_1 | Q17: =IF(ISNUMBER(SEARCH(CERT_db_search!$C$10,List_Input!R17)),MAX($Q$2:Q16)+1,0) -> 15 | R17: A345 | T17: =IFERROR(VLOOKUP(ROWS($T$3:T17),$Q$3:$R$241,2,FALSE),"") -> A345 | V17: =IF(ISNUMBER(SEARCH(CERT_db_search!$C$15,List_Input!W17)),MAX($V$2:V16)+1,0) -> 15 | W17: A-340-500 | Y17: =IFERROR(VLOOKUP(ROWS($X$3:Y17),$V$3:$W$241,2,FALSE),"") -> A-340-500 | Z17: =IF(ISNUMBER(SEARCH(CERT_db_search!$C$22,List_Input!AA17)),MAX($Z$2:Z16)+1,0) -> 15 | AA17: AGGK | AC17: =IFERROR(VLOOKUP(ROWS($AC$3:AC17),$Z$3:$AA$11451,2,FALSE),"") -> AGGK | AE17: =IF(ISNUMBER(SEARCH(CERT_db_search!$C$30,List_Input!AF17)),MAX($AE$2:AE16)+1,0) -> 15 | AF17: ABADAN | AH17: =IFERROR(VLOOKUP(ROWS($AH$3:AH17),$AE$3:$AF$11451,2,FALSE),"") -> ABADAN
B18: Airplane Category | I18: Intercept | J18: Slope | K18: Intercept | L18: Slope | Q18: =IF(ISNUMBER(SEARCH(CERT_db_search!$C$10,List_Input!R18)),MAX($Q$2:Q17)+1,0) -> 16 | R18: A346 | T18: =IFERROR(VLOOKUP(ROWS($T$3:T18),$Q$3:$R$241,2,FALSE),"") -> A346 | V18: =IF(ISNUMBER(SEARCH(CERT_db_search!$C$15,List_Input!W18)),MAX($V$2:V17)+1,0) -> 16 | W18: A-340-600 | Y18: =IFERROR(VLOOKUP(ROWS($X$3:Y18),$V$3:$W$241,2,FALSE),"") -> A-340-600 | Z18: =IF(ISNUMBER(SEARCH(CERT_db_search!$C$22,List_Input!AA18)),MAX($Z$2:Z17)+1,0) -> 16 | AA18: AGGL | AC18: =IFERROR(VLOOKUP(ROWS($AC$3:AC18),$Z$3:$AA$11451,2,FALSE),"") -> AGGL | AE18: =IF(ISNUMBER(SEARCH(CERT_db_search!$C$30,List_Input!AF18)),MAX($AE$2:AE17)+1,0) -> 16 | AF18: ABAIANG | AH18: =IFERROR(VLOOKUP(ROWS($AH$3:AH18),$AE$3:$AF$11451,2,FALSE),"") -> ABAIANG
C19: Jet (Heavy) with certified MTOM >= 136 000 kg | I19: 381.1155955 | J19: 0.006168481645 | K19: 1.542988157 | L19: 2.315570199e-05 | N19: 136000 | O19: 1000000 | Q19: =IF(ISNUMBER(SEARCH(CERT_db_search!$C$10,List_Input!R19)),MAX($Q$2:Q18)+1,0) -> 17 | R19: A388 | T19: =IFERROR(VLOOKUP(ROWS($T$3:T19),$Q$3:$R$241,2,FALSE),"") -> A388 | V19: =IF(ISNUMBER(SEARCH(CERT_db_search!$C$15,List_Input!W19)),MAX($V$2:V18)+1,0) -> 17 | W19: A-380-800 | Y19: =IFERROR(VLOOKUP(ROWS($X$3:Y19),$V$3:$W$241,2,FALSE),"") -> A-380-800 | Z19: =IF(ISNUMBER(SEARCH(CERT_db_search!$C$22,List_Input!AA19)),MAX($Z$2:Z18)+1,0) -> 17 | AA19: AGGM | AC19: =IFERROR(VLOOKUP(ROWS($AC$3:AC19),$Z$3:$AA$11451,2,FALSE),"") -> AGGM | AE19: =IF(ISNUMBER(SEARCH(CERT_db_search!$C$30,List_Input!AF19)),MAX($AE$2:AE18)+1,0) -> 17 | AF19: ABAKAN | AH19: =IFERROR(VLOOKUP(ROWS($AH$3:AH19),$AE$3:$AF$11451,2,FALSE),"") -> ABAKAN
C20: Jet with certified MTOM >= 60,000kg and < 136,000kg | I20: 233.6879644 | J20: 0.01216656448 | K20: 1.470494926 | L20: 2.530487282e-05 | N20: 60000 | O20: 136000 | Q20: =IF(ISNUMBER(SEARCH(CERT_db_search!$C$10,List_Input!R20)),MAX($Q$2:Q19)+1,0) -> 18 | R20: A748 | T20: =IFERROR(VLOOKUP(ROWS($T$3:T20),$Q$3:$R$241,2,FALSE),"") -> A748 | V20: =IF(ISNUMBER(SEARCH(CERT_db_search!$C$15,List_Input!W20)),MAX($V$2:V19)+1,0) -> 18 | W20: 748 | Y20: =IFERROR(VLOOKUP(ROWS($X$3:Y20),$V$3:$W$241,2,FALSE),"") -> 748 | Z20: =IF(ISNUMBER(SEARCH(CERT_db_search!$C$22,List_Input!AA20)),MAX($Z$2:Z19)+1,0) -> 18 | AA20: AGGN | AC20: =IFERROR(VLOOKUP(ROWS($AC$3:AC20),$Z$3:$AA$11451,2,FALSE),"") -> AGGN | AE20: =IF(ISNUMBER(SEARCH(CERT_db_search!$C$30,List_Input!AF20)),MAX($AE$2:AE19)+1,0) -> 18 | AF20: ABBEVILLE | AH20: =IFERROR(VLOOKUP(ROWS($AH$3:AH20),$AE$3:$AF$11451,2,FALSE),"") -> ABBEVILLE
C21: Jet with certified MTOM < 60,000 kg | I21: 256.6681218 | J21: 0.01145740758 | K21: 0.1179766799 | L21: 5.351912565e-05 | N21: 5700 | O21: 60000 | Q21: =IF(ISNUMBER(SEARCH(CERT_db_search!$C$10,List_Input!R21)),MAX($Q$2:Q20)+1,0) -> 19 | R21: AN12 | T21: =IFERROR(VLOOKUP(ROWS($T$3:T21),$Q$3:$R$241,2,FALSE),"") -> AN12 | V21: =IF(ISNUMBER(SEARCH(CERT_db_search!$C$15,List_Input!W21)),MAX($V$2:V20)+1,0) -> 19 | W21: An-12 | Y21: =IFERROR(VLOOKUP(ROWS($X$3:Y21),$V$3:$W$241,2,FALSE),"") -> An-12 | Z21: =IF(ISNUMBER(SEARCH(CERT_db_search!$C$22,List_Input!AA21)),MAX($Z$2:Z20)+1,0) -> 19 | AA21: AGGO | AC21: =IFERROR(VLOOKUP(ROWS($AC$3:AC21),$Z$3:$AA$11451,2,FALSE),"") -> AGGO | AE21: =IF(ISNUMBER(SEARCH(CERT_db_search!$C$30,List_Input!AF21)),MAX($AE$2:AE20)+1,0) -> 19 | AF21: ABBEYSHRULE | AH21: =IFERROR(VLOOKUP(ROWS($AH$3:AH21),$AE$3:$AF$11451,2,FALSE),"") -> ABBEYSHRULE
C22: Turboprop | I22: 30.63415761 | J22: 0.007941833889 | K22: 0.4075383265 | L22: 4.524475013e-05 | N22: 5700 | O22: 300000 | Q22: =IF(ISNUMBER(SEARCH(CERT_db_search!$C$10,List_Input!R22)),MAX($Q$2:Q21)+1,0) -> 20 | R22: AN24 | T22: =IFERROR(VLOOKUP(ROWS($T$3:T22),$Q$3:$R$241,2,FALSE),"") -> AN24 | V22: =IF(ISNUMBER(SEARCH(CERT_db_search!$C$15,List_Input!W22)),MAX($V$2:V21)+1,0) -> 20 | W22: An-24 | Y22: =IFERROR(VLOOKUP(ROWS($X$3:Y22),$V$3:$W$241,2,FALSE),"") -> An-24 | Z22: =IF(ISNUMBER(SEARCH(CERT_db_search!$C$22,List_Input!AA22)),MAX($Z$2:Z21)+1,0) -> 20 | AA22: AGGP | AC22: =IFERROR(VLOOKUP(ROWS($AC$3:AC22),$Z$3:$AA$11451,2,FALSE),"") -> AGGP | AE22: =IF(ISNUMBER(SEARCH(CERT_db_search!$C$30,List_Input!AF22)),MAX($AE$2:AE21)+1,0) -> 20 | AF22: ABBOTSFORD, BC | AH22: =IFERROR(VLOOKUP(ROWS($AH$3:AH22),$AE$3:$AF$11451,2,FALSE),"") -> ABBOTSFORD, BC
Q23: =IF(ISNUMBER(SEARCH(CERT_db_search!$C$10,List_Input!R23)),MAX($Q$2:Q22)+1,0) -> 21 | R23: AN28 | T23: =IFERROR(VLOOKUP(ROWS($T$3:T23),$Q$3:$R$241,2,FALSE),"") -> AN28 | V23: =IF(ISNUMBER(SEARCH(CERT_db_search!$C$15,List_Input!W23)),MAX($V$2:V22)+1,0) -> 21 | W23: An-28 | Y23: =IFERROR(VLOOKUP(ROWS($X$3:Y23),$V$3:$W$241,2,FALSE),"") -> An-28 | Z23: =IF(ISNUMBER(SEARCH(CERT_db_search!$C$22,List_Input!AA23)),MAX($Z$2:Z22)+1,0) -> 21 | AA23: AGGQ | AC23: =IFERROR(VLOOKUP(ROWS($AC$3:AC23),$Z$3:$AA$11451,2,FALSE),"") -> AGGQ | AE23: =IF(ISNUMBER(SEARCH(CERT_db_search!$C$30,List_Input!AF23)),MAX($AE$2:AE22)+1,0) -> 21 | AF23: ABBS | AH23: =IFERROR(VLOOKUP(ROWS($AH$3:AH23),$AE$3:$AF$11451,2,FALSE),"") -> ABBS
Q24: =IF(ISNUMBER(SEARCH(CERT_db_search!$C$10,List_Input!R24)),MAX($Q$2:Q23)+1,0) -> 22 | R24: AN72 | T24: =IFERROR(VLOOKUP(ROWS($T$3:T24),$Q$3:$R$241,2,FALSE),"") -> AN72 | V24: =IF(ISNUMBER(SEARCH(CERT_db_search!$C$15,List_Input!W24)),MAX($V$2:V23)+1,0) -> 22 | W24: An-72 | Y24: =IFERROR(VLOOKUP(ROWS($X$3:Y24),$V$3:$W$241,2,FALSE),"") -> An-72 | Z24: =IF(ISNUMBER(SEARCH(CERT_db_search!$C$22,List_Input!AA24)),MAX($Z$2:Z23)+1,0) -> 22 | AA24: AGGR | AC24: =IFERROR(VLOOKUP(ROWS($AC$3:AC24),$Z$3:$AA$11451,2,FALSE),"") -> AGGR | AE24: =IF(ISNUMBER(SEARCH(CERT_db_search!$C$30,List_Input!AF24)),MAX($AE$2:AE23)+1,0) -> 22 | AF24: ABDANAN | AH24: =IFERROR(VLOOKUP(ROWS($AH$3:AH24),$AE$3:$AF$11451,2,FALSE),"") -> ABDANAN
Q25: =IF(ISNUMBER(SEARCH(CERT_db_search!$C$10,List_Input!R25)),MAX($Q$2:Q24)+1,0) -> 23 | R25: AT43 | T25: =IFERROR(VLOOKUP(ROWS($T$3:T25),$Q$3:$R$241,2,FALSE),"") -> AT43 | V25: =IF(ISNUMBER(SEARCH(CERT_db_search!$C$15,List_Input!W25)),MAX($V$2:V24)+1,0) -> 23 | W25: ATR-42-300 | Y25: =IFERROR(VLOOKUP(ROWS($X$3:Y25),$V$3:$W$241,2,FALSE),"") -> ATR-42-300 | Z25: =IF(ISNUMBER(SEARCH(CERT_db_search!$C$22,List_Input!AA25)),MAX($Z$2:Z24)+1,0) -> 23 | AA25: AGGS | AC25: =IFERROR(VLOOKUP(ROWS($AC$3:AC25),$Z$3:$AA$11451,2,FALSE),"") -> AGGS | AE25: =IF(ISNUMBER(SEARCH(CERT_db_search!$C$30,List_Input!AF25)),MAX($AE$2:AE24)+1,0) -> 23 | AF25: ABECHE | AH25: =IFERROR(VLOOKUP(ROWS($AH$3:AH25),$AE$3:$AF$11451,2,FALSE),"") -> ABECHE
Q26: =IF(ISNUMBER(SEARCH(CERT_db_search!$C$10,List_Input!R26)),MAX($Q$2:Q25)+1,0) -> 24 | R26: AT45 | T26: =IFERROR(VLOOKUP(ROWS($T$3:T26),$Q$3:$R$241,2,FALSE),"") -> AT45 | V26: =IF(ISNUMBER(SEARCH(CERT_db_search!$C$15,List_Input!W26)),MAX($V$2:V25)+1,0) -> 24 | W26: ATR-42-500 | Y26: =IFERROR(VLOOKUP(ROWS($X$3:Y26),$V$3:$W$241,2,FALSE),"") -> ATR-42-500 | Z26: =IF(ISNUMBER(SEARCH(CERT_db_search!$C$22,List_Input!AA26)),MAX($Z$2:Z25)+1,0) -> 24 | AA26: AGGT | AC26: =IFERROR(VLOOKUP(ROWS($AC$3:AC26),$Z$3:$AA$11451,2,FALSE),"") -> AGGT | AE26: =IF(ISNUMBER(SEARCH(CERT_db_search!$C$30,List_Input!AF26)),MAX($AE$2:AE25)+1,0) -> 24 | AF26: ABEMAMA | AH26: =IFERROR(VLOOKUP(ROWS($AH$3:AH26),$AE$3:$AF$11451,2,FALSE),"") -> ABEMAMA
Q27: =IF(ISNUMBER(SEARCH(CERT_db_search!$C$10,List_Input!R27)),MAX($Q$2:Q26)+1,0) -> 25 | R27: AT46 | T27: =IFERROR(VLOOKUP(ROWS($T$3:T27),$Q$3:$R$241,2,FALSE),"") -> AT46 | V27: =IF(ISNUMBER(SEARCH(CERT_db_search!$C$15,List_Input!W27)),MAX($V$2:V26)+1,0) -> 25 | W27: ATR-42-600 | Y27: =IFERROR(VLOOKUP(ROWS($X$3:Y27),$V$3:$W$241,2,FALSE),"") -> ATR-42-600 | Z27: =IF(ISNUMBER(SEARCH(CERT_db_search!$C$22,List_Input!AA27)),MAX($Z$2:Z26)+1,0) -> 25 | AA27: AGGU | AC27: =IFERROR(VLOOKUP(ROWS($AC$3:AC27),$Z$3:$AA$11451,2,FALSE),"") -> AGGU | AE27: =IF(ISNUMBER(SEARCH(CERT_db_search!$C$30,List_Input!AF27)),MAX($AE$2:AE26)+1,0) -> 25 | AF27: ABENGOUROU | AH27: =IFERROR(VLOOKUP(ROWS($AH$3:AH27),$AE$3:$AF$11451,2,FALSE),"") -> ABENGOUROU
Q28: =IF(ISNUMBER(SEARCH(CERT_db_search!$C$10,List_Input!R28)),MAX($Q$2:Q27)+1,0) -> 26 | R28: AT72 | T28: =IFERROR(VLOOKUP(ROWS($T$3:T28),$Q$3:$R$241,2,FALSE),"") -> AT72 | V28: =IF(ISNUMBER(SEARCH(CERT_db_search!$C$15,List_Input!W28)),MAX($V$2:V27)+1,0) -> 26 | W28: ATR-72-201 | Y28: =IFERROR(VLOOKUP(ROWS($X$3:Y28),$V$3:$W$241,2,FALSE),"") -> ATR-72-201 | Z28: =IF(ISNUMBER(SEARCH(CERT_db_search!$C$22,List_Input!AA28)),MAX($Z$2:Z27)+1,0) -> 26 | AA28: AGGV | AC28: =IFERROR(VLOOKUP(ROWS($AC$3:AC28),$Z$3:$AA$11451,2,FALSE),"") -> AGGV | AE28: =IF(ISNUMBER(SEARCH(CERT_db_search!$C$30,List_Input!AF28)),MAX($AE$2:AE27)+1,0) -> 26 | AF28: ABERDEEN | AH28: =IFERROR(VLOOKUP(ROWS($AH$3:AH28),$AE$3:$AF$11451,2,FALSE),"") -> ABERDEEN
Q29: =IF(ISNUMBER(SEARCH(CERT_db_search!$C$10,List_Input!R29)),MAX($Q$2:Q28)+1,0) -> 27 | R29: AT73 | T29: =IFERROR(VLOOKUP(ROWS($T$3:T29),$Q$3:$R$241,2,FALSE),"") -> AT73 | V29: =IF(ISNUMBER(SEARCH(CERT_db_search!$C$15,List_Input!W29)),MAX($V$2:V28)+1,0) -> 27 | W29: ATR-72-211 | Y29: =IFERROR(VLOOKUP(ROWS($X$3:Y29),$V$3:$W$241,2,FALSE),"") -> ATR-72-211 | Z29: =IF(ISNUMBER(SEARCH(CERT_db_search!$C$22,List_Input!AA29)),MAX($Z$2:Z28)+1,0) -> 27 | AA29: AGGY | AC29: =IFERROR(VLOOKUP(ROWS($AC$3:AC29),$Z$3:$AA$11451,2,FALSE),"") -> AGGY | AE29: =IF(ISNUMBER(SEARCH(CERT_db_search!$C$30,List_Input!AF29)),MAX($AE$2:AE28)+1,0) -> 27 | AF29: ABERDEEN | AH29: =IFERROR(VLOOKUP(ROWS($AH$3:AH29),$AE$3:$AF$11451,2,FALSE),"") -> ABERDEEN
Q30: =IF(ISNUMBER(SEARCH(CERT_db_search!$C$10,List_Input!R30)),MAX($Q$2:Q29)+1,0) -> 28 | R30: AT75 | T30: =IFERROR(VLOOKUP(ROWS($T$3:T30),$Q$3:$R$241,2,FALSE),"") -> AT75 | V30: =IF(ISNUMBER(SEARCH(CERT_db_search!$C$15,List_Input!W30)),MAX($V$2:V29)+1,0) -> 28 | W30: ATR-72-500 | Y30: =IFERROR(VLOOKUP(ROWS($X$3:Y30),$V$3:$W$241,2,FALSE),"") -> ATR-72-500 | Z30: =IF(ISNUMBER(SEARCH(CERT_db_search!$C$22,List_Input!AA30)),MAX($Z$2:Z29)+1,0) -> 28 | AA30: AGIN | AC30: =IFERROR(VLOOKUP(ROWS($AC$3:AC30),$Z$3:$AA$11451,2,FALSE),"") -> AGIN | AE30: =IF(ISNUMBER(SEARCH(CERT_db_search!$C$30,List_Input!AF30)),MAX($AE$2:AE29)+1,0) -> 28 | AF30: ABERDEEN RGNL | AH30: =IFERROR(VLOOKUP(ROWS($AH$3:AH30),$AE$3:$AF$11451,2,FALSE),"") -> ABERDEEN RGNL
Q31: =IF(ISNUMBER(SEARCH(CERT_db_search!$C$10,List_Input!R31)),MAX($Q$2:Q30)+1,0) -> 29 | R31: AT76 | T31: =IFERROR(VLOOKUP(ROWS($T$3:T31),$Q$3:$R$241,2,FALSE),"") -> AT76 | V31: =IF(ISNUMBER(SEARCH(CERT_db_search!$C$15,List_Input!W31)),MAX($V$2:V30)+1,0) -> 29 | W31: ATR-72-600 | Y31: =IFERROR(VLOOKUP(ROWS($X$3:Y31),$V$3:$W$241,2,FALSE),"") -> ATR-72-600 | Z31: =IF(ISNUMBER(SEARCH(CERT_db_search!$C$22,List_Input!AA31)),MAX($Z$2:Z30)+1,0) -> 29 | AA31: AGKG | AC31: =IFERROR(VLOOKUP(ROWS($AC$3:AC31),$Z$3:$AA$11451,2,FALSE),"") -> AGKG | AE31: =IF(ISNUMBER(SEARCH(CERT_db_search!$C$30,List_Input!AF31)),MAX($AE$2:AE30)+1,0) -> 29 | AF31: ABERDEEN/DYCE | AH31: =IFERROR(VLOOKUP(ROWS($AH$3:AH31),$AE$3:$AF$11451,2,FALSE),"") -> ABERDEEN/DYCE
Q32: =IF(ISNUMBER(SEARCH(CERT_db_search!$C$10,List_Input!R32)),MAX($Q$2:Q31)+1,0) -> 30 | R32: ATP | T32: =IFERROR(VLOOKUP(ROWS($T$3:T32),$Q$3:$R$241,2,FALSE),"") -> ATP | V32: =IF(ISNUMBER(SEARCH(CERT_db_search!$C$15,List_Input!W32)),MAX($V$2:V31)+1,0) -> 30 | W32: ATP | Y32: =IFERROR(VLOOKUP(ROWS($X$3:Y32),$V$3:$W$241,2,FALSE),"") -> ATP | Z32: =IF(ISNUMBER(SEARCH(CERT_db_search!$C$22,List_Input!AA32)),MAX($Z$2:Z31)+1,0) -> 30 | AA32: AGKU | AC32: =IFERROR(VLOOKUP(ROWS($AC$3:AC32),$Z$3:$AA$11451,2,FALSE),"") -> AGKU | AE32: =IF(ISNUMBER(SEARCH(CERT_db_search!$C$30,List_Input!AF32)),MAX($AE$2:AE31)+1,0) -> 30 | AF32: ABERPORTH | AH32: =IFERROR(VLOOKUP(ROWS($AH$3:AH32),$AE$3:$AF$11451,2,FALSE),"") -> ABERPORTH
Q33: =IF(ISNUMBER(SEARCH(CERT_db_search!$C$10,List_Input!R33)),MAX($Q$2:Q32)+1,0) -> 31 | R33: B190 | T33: =IFERROR(VLOOKUP(ROWS($T$3:T33),$Q$3:$R$241,2,FALSE),"") -> B190 | V33: =IF(ISNUMBER(SEARCH(CERT_db_search!$C$15,List_Input!W33)),MAX($V$2:V32)+1,0) -> 31 | W33: 1900 | Y33: =IFERROR(VLOOKUP(ROWS($X$3:Y33),$V$3:$W$241,2,FALSE),"") -> 1900 | Z33: =IF(ISNUMBER(SEARCH(CERT_db_search!$C$22,List_Input!AA33)),MAX($Z$2:Z32)+1,0) -> 31 | AA33: AGKW | AC33: =IFERROR(VLOOKUP(ROWS($AC$3:AC33),$Z$3:$AA$11451,2,FALSE),"") -> AGKW | AE33: =IF(ISNUMBER(SEARCH(CERT_db_search!$C$30,List_Input!AF33)),MAX($AE$2:AE32)+1,0) -> 31 | AF33: ABHA | AH33: =IFERROR(VLOOKUP(ROWS($AH$3:AH33),$AE$3:$AF$11451,2,FALSE),"") -> ABHA
Q34: =IF(ISNUMBER(SEARCH(CERT_db_search!$C$10,List_Input!R34)),MAX($Q$2:Q33)+1,0) -> 32 | R34: B461 | T34: =IFERROR(VLOOKUP(ROWS($T$3:T34),$Q$3:$R$241,2,FALSE),"") -> B461 | V34: =IF(ISNUMBER(SEARCH(CERT_db_search!$C$15,List_Input!W34)),MAX($V$2:V33)+1,0) -> 32 | W34: BAe-146-100 | Y34: =IFERROR(VLOOKUP(ROWS($X$3:Y34),$V$3:$W$241,2,FALSE),"") -> BAe-146-100 | Z34: =IF(ISNUMBER(SEARCH(CERT_db_search!$C$22,List_Input!AA34)),MAX($Z$2:Z33)+1,0) -> 32 | AA34: AGMU | AC34: =IFERROR(VLOOKUP(ROWS($AC$3:AC34),$Z$3:$AA$11451,2,FALSE),"") -> AGMU | AE34: =IF(ISNUMBER(SEARCH(CERT_db_search!$C$30,List_Input!AF34)),MAX($AE$2:AE33)+1,0) -> 32 | AF34: ABIDJAN/FELIX HOUPHOUET BOIGNY | AH34: =IFERROR(VLOOKUP(ROWS($AH$3:AH34),$AE$3:$AF$11451,2,FALSE),"") -> ABIDJAN/FELIX HOUPHOUET BOIGNY
Q35: =IF(ISNUMBER(SEARCH(CERT_db_search!$C$10,List_Input!R35)),MAX($Q$2:Q34)+1,0) -> 33 | R35: B462 | T35: =IFERROR(VLOOKUP(ROWS($T$3:T35),$Q$3:$R$241,2,FALSE),"") -> B462 | V35: =IF(ISNUMBER(SEARCH(CERT_db_search!$C$15,List_Input!W35)),MAX($V$2:V34)+1,0) -> 33 | W35: BAe-146-200 | Y35: =IFERROR(VLOOKUP(ROWS($X$3:Y35),$V$3:$W$241,2,FALSE),"") -> BAe-146-200 | Z35: =IF(ISNUMBER(SEARCH(CERT_db_search!$C$22,List_Input!AA35)),MAX($Z$2:Z34)+1,0) -> 33 | AA35: AGOK | AC35: =IFERROR(VLOOKUP(ROWS($AC$3:AC35),$Z$3:$AA$11451,2,FALSE),"") -> AGOK | AE35: =IF(ISNUMBER(SEARCH(CERT_db_search!$C$30,List_Input!AF35)),MAX($AE$2:AE34)+1,0) -> 33 | AF35: ABILENE RGNL | AH35: =IFERROR(VLOOKUP(ROWS($AH$3:AH35),$AE$3:$AF$11451,2,FALSE),"") -> ABILENE RGNL
Q36: =IF(ISNUMBER(SEARCH(CERT_db_search!$C$10,List_Input!R36)),MAX($Q$2:Q35)+1,0) -> 34 | R36: B463 | T36: =IFERROR(VLOOKUP(ROWS($T$3:T36),$Q$3:$R$241,2,FALSE),"") -> B463 | V36: =IF(ISNUMBER(SEARCH(CERT_db_search!$C$15,List_Input!W36)),MAX($V$2:V35)+1,0) -> 34 | W36: BAe-146-300 | Y36: =IFERROR(VLOOKUP(ROWS($X$3:Y36),$V$3:$W$241,2,FALSE),"") -> BAe-146-300 | Z36: =IF(ISNUMBER(SEARCH(CERT_db_search!$C$22,List_Input!AA36)),MAX($Z$2:Z35)+1,0) -> 34 | AA36: AGRC | AC36: =IFERROR(VLOOKUP(ROWS($AC$3:AC36),$Z$3:$AA$11451,2,FALSE),"") -> AGRC | AE36: =IF(ISNUMBER(SEARCH(CERT_db_search!$C$30,List_Input!AF36)),MAX($AE$2:AE35)+1,0) -> 34 | AF36: ABLOW (MOTO LAVA) | AH36: =IFERROR(VLOOKUP(ROWS($AH$3:AH36),$AE$3:$AF$11451,2,FALSE),"") -> ABLOW (MOTO LAVA)
Q37: =IF(ISNUMBER(SEARCH(CERT_db_search!$C$10,List_Input!R37)),MAX($Q$2:Q36)+1,0) -> 35 | R37: B701 | T37: =IFERROR(VLOOKUP(ROWS($T$3:T37),$Q$3:$R$241,2,FALSE),"") -> B701 | V37: =IF(ISNUMBER(SEARCH(CERT_db_search!$C$15,List_Input!W37)),MAX($V$2:V36)+1,0) -> 35 | W37: 707-100 | Y37: =IFERROR(VLOOKUP(ROWS($X$3:Y37),$V$3:$W$241,2,FALSE),"") -> 707-100 | Z37: =IF(ISNUMBER(SEARCH(CERT_db_search!$C$22,List_Input!AA37)),MAX($Z$2:Z36)+1,0) -> 35 | AA37: AGRM | AC37: =IFERROR(VLOOKUP(ROWS($AC$3:AC37),$Z$3:$AA$11451,2,FALSE),"") -> AGRM | AE37: =IF(ISNUMBER(SEARCH(CERT_db_search!$C$30,List_Input!AF37)),MAX($AE$2:AE36)+1,0) -> 35 | AF37: ABOHOY | AH37: =IFERROR(VLOOKUP(ROWS($AH$3:AH37),$AE$3:$AF$11451,2,FALSE),"") -> ABOHOY
Q38: =IF(ISNUMBER(SEARCH(CERT_db_search!$C$10,List_Input!R38)),MAX($Q$2:Q37)+1,0) -> 36 | R38: B712 | T38: =IFERROR(VLOOKUP(ROWS($T$3:T38),$Q$3:$R$241,2,FALSE),"") -> B712 | V38: =IF(ISNUMBER(SEARCH(CERT_db_search!$C$15,List_Input!W38)),MAX($V$2:V37)+1,0) -> 36 | W38: 717-200 | Y38: =IFERROR(VLOOKUP(ROWS($X$3:Y38),$V$3:$W$241,2,FALSE),"") -> 717-200 | Z38: =IF(ISNUMBER(SEARCH(CERT_db_search!$C$22,List_Input!AA38)),MAX($Z$2:Z37)+1,0) -> 36 | AA38: AGTI | AC38: =IFERROR(VLOOKUP(ROWS($AC$3:AC38),$Z$3:$AA$11451,2,FALSE),"") -> AGTI | AE38: =IF(ISNUMBER(SEARCH(CERT_db_search!$C$30,List_Input!AF38)),MAX($AE$2:AE37)+1,0) -> 36 | AF38: ABOISSO | AH38: =IFERROR(VLOOKUP(ROWS($AH$3:AH38),$AE$3:$AF$11451,2,FALSE),"") -> ABOISSO
Q39: =IF(ISNUMBER(SEARCH(CERT_db_search!$C$10,List_Input!R39)),MAX($Q$2:Q38)+1,0) -> 37 | R39: B721 | T39: =IFERROR(VLOOKUP(ROWS($T$3:T39),$Q$3:$R$241,2,FALSE),"") -> B721 | V39: =IF(ISNUMBER(SEARCH(CERT_db_search!$C$15,List_Input!W39)),MAX($V$2:V38)+1,0) -> 37 | W39: 727-100 | Y39: =IFERROR(VLOOKUP(ROWS($X$3:Y39),$V$3:$W$241,2,FALSE),"") -> 727-100 | Z39: =IF(ISNUMBER(SEARCH(CERT_db_search!$C$22,List_Input!AA39)),MAX($Z$2:Z38)+1,0) -> 37 | AA39: AGVH | AC39: =IFERROR(VLOOKUP(ROWS($AC$3:AC39),$Z$3:$AA$11451,2,FALSE),"") -> AGVH | AE39: =IF(ISNUMBER(SEARCH(CERT_db_search!$C$30,List_Input!AF39)),MAX($AE$2:AE38)+1,0) -> 37 | AF39: ABONG-MBANG | AH39: =IFERROR(VLOOKUP(ROWS($AH$3:AH39),$AE$3:$AF$11451,2,FALSE),"") -> ABONG-MBANG
Q40: =IF(ISNUMBER(SEARCH(CERT_db_search!$C$10,List_Input!R40)),MAX($Q$2:Q39)+1,0) -> 38 | R40: B722 | T40: =IFERROR(VLOOKUP(ROWS($T$3:T40),$Q$3:$R$241,2,FALSE),"") -> B722 | V40: =IF(ISNUMBER(SEARCH(CERT_db_search!$C$15,List_Input!W40)),MAX($V$2:V39)+1,0) -> 38 | W40: 727-200 | Y40: =IFERROR(VLOOKUP(ROWS($X$3:Y40),$V$3:$W$241,2,FALSE),"") -> 727-200 | Z40: =IF(ISNUMBER(SEARCH(CERT_db_search!$C$22,List_Input!AA40)),MAX($Z$2:Z39)+1,0) -> 38 | AA40: AYBK | AC40: =IFERROR(VLOOKUP(ROWS($AC$3:AC40),$Z$3:$AA$11451,2,FALSE),"") -> AYBK | AE40: =IF(ISNUMBER(SEARCH(CERT_db_search!$C$30,List_Input!AF40)),MAX($AE$2:AE39)+1,0) -> 38 | AF40: ABQAIQ | AH40: =IFERROR(VLOOKUP(ROWS($AH$3:AH40),$AE$3:$AF$11451,2,FALSE),"") -> ABQAIQ
Q41: =IF(ISNUMBER(SEARCH(CERT_db_search!$C$10,List_Input!R41)),MAX($Q$2:Q40)+1,0) -> 39 | R41: B732 | T41: =IFERROR(VLOOKUP(ROWS($T$3:T41),$Q$3:$R$241,2,FALSE),"") -> B732 | V41: =IF(ISNUMBER(SEARCH(CERT_db_search!$C$15,List_Input!W41)),MAX($V$2:V40)+1,0) -> 39 | W41: 737-200 | Y41: =IFERROR(VLOOKUP(ROWS($X$3:Y41),$V$3:$W$241,2,FALSE),"") -> 737-200 | Z41: =IF(ISNUMBER(SEARCH(CERT_db_search!$C$22,List_Input!AA41)),MAX($Z$2:Z40)+1,0) -> 39 | AA41: AYCH | AC41: =IFERROR(VLOOKUP(ROWS($AC$3:AC41),$Z$3:$AA$11451,2,FALSE),"") -> AYCH | AE41: =IF(ISNUMBER(SEARCH(CERT_db_search!$C$30,List_Input!AF41)),MAX($AE$2:AE40)+1,0) -> 39 | AF41: ABRAHAM LINCOLN CAPITAL | AH41: =IFERROR(VLOOKUP(ROWS($AH$3:AH41),$AE$3:$AF$11451,2,FALSE),"") -> ABRAHAM LINCOLN CAPITAL
Q42: =IF(ISNUMBER(SEARCH(CERT_db_search!$C$10,List_Input!R42)),MAX($Q$2:Q41)+1,0) -> 40 | R42: B733 | T42: =IFERROR(VLOOKUP(ROWS($T$3:T42),$Q$3:$R$241,2,FALSE),"") -> B733 | V42: =IF(ISNUMBER(SEARCH(CERT_db_search!$C$15,List_Input!W42)),MAX($V$2:V41)+1,0) -> 40 | W42: 737-300 | Y42: =IFERROR(VLOOKUP(ROWS($X$3:Y42),$V$3:$W$241,2,FALSE),"") -> 737-300 | Z42: =IF(ISNUMBER(SEARCH(CERT_db_search!$C$22,List_Input!AA42)),MAX($Z$2:Z41)+1,0) -> 40 | AA42: AYDU | AC42: =IFERROR(VLOOKUP(ROWS($AC$3:AC42),$Z$3:$AA$11451,2,FALSE),"") -> AYDU | AE42: =IF(ISNUMBER(SEARCH(CERT_db_search!$C$30,List_Input!AF42)),MAX($AE$2:AE41)+1,0) -> 40 | AF42: ABU ALI | AH42: =IFERROR(VLOOKUP(ROWS($AH$3:AH42),$AE$3:$AF$11451,2,FALSE),"") -> ABU ALI
Q43: =IF(ISNUMBER(SEARCH(CERT_db_search!$C$10,List_Input!R43)),MAX($Q$2:Q42)+1,0) -> 41 | R43: B734 | T43: =IFERROR(VLOOKUP(ROWS($T$3:T43),$Q$3:$R$241,2,FALSE),"") -> B734 | V43: =IF(ISNUMBER(SEARCH(CERT_db_search!$C$15,List_Input!W43)),MAX($V$2:V42)+1,0) -> 41 | W43: 737-400 | Y43: =IFERROR(VLOOKUP(ROWS($X$3:Y43),$V$3:$W$241,2,FALSE),"") -> 737-400 | Z43: =IF(ISNUMBER(SEARCH(CERT_db_search!$C$22,List_Input!AA43)),MAX($Z$2:Z42)+1,0) -> 41 | AA43: AYGA | AC43: =IFERROR(VLOOKUP(ROWS($AC$3:AC43),$Z$3:$AA$11451,2,FALSE),"") -> AYGA | AE43: =IF(ISNUMBER(SEARCH(CERT_db_search!$C$30,List_Input!AF43)),MAX($AE$2:AE42)+1,0) -> 41 | AF43: ABU DHABI INTERNATIONAL | AH43: =IFERROR(VLOOKUP(ROWS($AH$3:AH43),$AE$3:$AF$11451,2,FALSE),"") -> ABU DHABI INTERNATIONAL
Q44: =IF(ISNUMBER(SEARCH(CERT_db_search!$C$10,List_Input!R44)),MAX($Q$2:Q43)+1,0) -> 42 | R44: B735 | T44: =IFERROR(VLOOKUP(ROWS($T$3:T44),$Q$3:$R$241,2,FALSE),"") -> B735 | V44: =IF(ISNUMBER(SEARCH(CERT_db_search!$C$15,List_Input!W44)),MAX($V$2:V43)+1,0) -> 42 | W44: 737-500 | Y44: =IFERROR(VLOOKUP(ROWS($X$3:Y44),$V$3:$W$241,2,FALSE),"") -> 737-500 | Z44: =IF(ISNUMBER(SEARCH(CERT_db_search!$C$22,List_Input!AA44)),MAX($Z$2:Z43)+1,0) -> 42 | AA44: AYGN | AC44: =IFERROR(VLOOKUP(ROWS($AC$3:AC44),$Z$3:$AA$11451,2,FALSE),"") -> AYGN | AE44: =IF(ISNUMBER(SEARCH(CERT_db_search!$C$30,List_Input!AF44)),MAX($AE$2:AE43)+1,0) -> 42 | AF44: ABU DHABI/AL BATEEN EXECUTIVE AIRPORT | AH44: =IFERROR(VLOOKUP(ROWS($AH$3:AH44),$AE$3:$AF$11451,2,FALSE),"") -> ABU DHABI/AL BATEEN EXECUTIVE AIRPORT
Q45: =IF(ISNUMBER(SEARCH(CERT_db_search!$C$10,List_Input!R45)),MAX($Q$2:Q44)+1,0) -> 43 | R45: B736 | T45: =IFERROR(VLOOKUP(ROWS($T$3:T45),$Q$3:$R$241,2,FALSE),"") -> B736 | V45: =IF(ISNUMBER(SEARCH(CERT_db_search!$C$15,List_Input!W45)),MAX($V$2:V44)+1,0) -> 43 | W45: 737-600 | Y45: =IFERROR(VLOOKUP(ROWS($X$3:Y45),$V$3:$W$241,2,FALSE),"") -> 737-600 | Z45: =IF(ISNUMBER(SEARCH(CERT_db_search!$C$22,List_Input!AA45)),MAX($Z$2:Z44)+1,0) -> 43 | AA45: AYGR | AC45: =IFERROR(VLOOKUP(ROWS($AC$3:AC45),$Z$3:$AA$11451,2,FALSE),"") -> AYGR | AE45: =IF(ISNUMBER(SEARCH(CERT_db_search!$C$30,List_Input!AF45)),MAX($AE$2:AE44)+1,0) -> 43 | AF45: ABU SIMBEL | AH45: =IFERROR(VLOOKUP(ROWS($AH$3:AH45),$AE$3:$AF$11451,2,FALSE),"") -> ABU SIMBEL
Q46: =IF(ISNUMBER(SEARCH(CERT_db_search!$C$10,List_Input!R46)),MAX($Q$2:Q45)+1,0) -> 44 | R46: B737 | T46: =IFERROR(VLOOKUP(ROWS($T$3:T46),$Q$3:$R$241,2,FALSE),"") -> B737 | V46: =IF(ISNUMBER(SEARCH(CERT_db_search!$C$15,List_Input!W46)),MAX($V$2:V45)+1,0) -> 44 | W46: 737-700 | Y46: =IFERROR(VLOOKUP(ROWS($X$3:Y46),$V$3:$W$241,2,FALSE),"") -> 737-700 | Z46: =IF(ISNUMBER(SEARCH(CERT_db_search!$C$22,List_Input!AA46)),MAX($Z$2:Z45)+1,0) -> 44 | AA46: AYHK | AC46: =IFERROR(VLOOKUP(ROWS($AC$3:AC46),$Z$3:$AA$11451,2,FALSE),"") -> AYHK | AE46: =IF(ISNUMBER(SEARCH(CERT_db_search!$C$30,List_Input!AF46)),MAX($AE$2:AE45)+1,0) -> 44 | AF46: ABUJA/NNAMDI AZIKIWE | AH46: =IFERROR(VLOOKUP(ROWS($AH$3:AH46),$AE$3:$AF$11451,2,FALSE),"") -> ABUJA/NNAMDI AZIKIWE
Q47: =IF(ISNUMBER(SEARCH(CERT_db_search!$C$10,List_Input!R47)),MAX($Q$2:Q46)+1,0) -> 45 | R47: B738 | T47: =IFERROR(VLOOKUP(ROWS($T$3:T47),$Q$3:$R$241,2,FALSE),"") -> B738 | V47: =IF(ISNUMBER(SEARCH(CERT_db_search!$C$15,List_Input!W47)),MAX($V$2:V46)+1,0) -> 45 | W47: 737-800 | Y47: =IFERROR(VLOOKUP(ROWS($X$3:Y47),$V$3:$W$241,2,FALSE),"") -> 737-800 | Z47: =IF(ISNUMBER(SEARCH(CERT_db_search!$C$22,List_Input!AA47)),MAX($Z$2:Z46)+1,0) -> 45 | AA47: AYKA | AC47: =IFERROR(VLOOKUP(ROWS($AC$3:AC47),$Z$3:$AA$11451,2,FALSE),"") -> AYKA | AE47: =IF(ISNUMBER(SEARCH(CERT_db_search!$C$30,List_Input!AF47)),MAX($AE$2:AE46)+1,0) -> 45 | AF47: ABUMUMBAZI | AH47: =IFERROR(VLOOKUP(ROWS($AH$3:AH47),$AE$3:$AF$11451,2,FALSE),"") -> ABUMUMBAZI
Q48: =IF(ISNUMBER(SEARCH(CERT_db_search!$C$10,List_Input!R48)),MAX($Q$2:Q47)+1,0) -> 46 | R48: B739 | T48: =IFERROR(VLOOKUP(ROWS($T$3:T48),$Q$3:$R$241,2,FALSE),"") -> B739 | V48: =IF(ISNUMBER(SEARCH(CERT_db_search!$C$15,List_Input!W48)),MAX($V$2:V47)+1,0) -> 46 | W48: 737-900 | Y48: =IFERROR(VLOOKUP(ROWS($X$3:Y48),$V$3:$W$241,2,FALSE),"") -> 737-900 | Z48: =IF(ISNUMBER(SEARCH(CERT_db_search!$C$22,List_Input!AA48)),MAX($Z$2:Z47)+1,0) -> 46 | AA48: AYKI | AC48: =IFERROR(VLOOKUP(ROWS($AC$3:AC48),$Z$3:$AA$11451,2,FALSE),"") -> AYKI | AE48: =IF(ISNUMBER(SEARCH(CERT_db_search!$C$30,List_Input!AF48)),MAX($AE$2:AE47)+1,0) -> 46 | AF48: ABUMUSA ISLAND/ABUMUSA | AH48: =IFERROR(VLOOKUP(ROWS($AH$3:AH48),$AE$3:$AF$11451,2,FALSE),"") -> ABUMUSA ISLAND/ABUMUSA
Q49: =IF(ISNUMBER(SEARCH(CERT_db_search!$C$10,List_Input!R49)),MAX($Q$2:Q48)+1,0) -> 47 | R49: B741 | T49: =IFERROR(VLOOKUP(ROWS($T$3:T49),$Q$3:$R$241,2,FALSE),"") -> B741 | V49: =IF(ISNUMBER(SEARCH(CERT_db_search!$C$15,List_Input!W49)),MAX($V$2:V48)+1,0) -> 47 | W49: 747-100 | Y49: =IFERROR(VLOOKUP(ROWS($X$3:Y49),$V$3:$W$241,2,FALSE),"") -> 747-100 | Z49: =IF(ISNUMBER(SEARCH(CERT_db_search!$C$22,List_Input!AA49)),MAX($Z$2:Z48)+1,0) -> 47 | AA49: AYKK | AC49: =IFERROR(VLOOKUP(ROWS($AC$3:AC49),$Z$3:$AA$11451,2,FALSE),"") -> AYKK | AE49: =IF(ISNUMBER(SEARCH(CERT_db_search!$C$30,List_Input!AF49)),MAX($AE$2:AE48)+1,0) -> 47 | AF49: ACANDI/CHOCO | AH49: =IFERROR(VLOOKUP(ROWS($AH$3:AH49),$AE$3:$AF$11451,2,FALSE),"") -> ACANDI/CHOCO
Q50: =IF(ISNUMBER(SEARCH(CERT_db_search!$C$10,List_Input!R50)),MAX($Q$2:Q49)+1,0) -> 48 | R50: B742 | T50: =IFERROR(VLOOKUP(ROWS($T$3:T50),$Q$3:$R$241,2,FALSE),"") -> B742 | V50: =IF(ISNUMBER(SEARCH(CERT_db_search!$C$15,List_Input!W50)),MAX($V$2:V49)+1,0) -> 48 | W50: 747-200 | Y50: =IFERROR(VLOOKUP(ROWS($X$3:Y50),$V$3:$W$241,2,FALSE),"") -> 747-200 | Z50: =IF(ISNUMBER(SEARCH(CERT_db_search!$C$22,List_Input!AA50)),MAX($Z$2:Z49)+1,0) -> 48 | AA50: AYKM | AC50: =IFERROR(VLOOKUP(ROWS($AC$3:AC50),$Z$3:$AA$11451,2,FALSE),"") -> AYKM | AE50: =IF(ISNUMBER(SEARCH(CERT_db_search!$C$30,List_Input!AF50)),MAX($AE$2:AE49)+1,0) -> 48 | AF50: ACAPULCO | AH50: =IFERROR(VLOOKUP(ROWS($AH$3:AH50),$AE$3:$AF$11451,2,FALSE),"") -> ACAPULCO
Q51: =IF(ISNUMBER(SEARCH(CERT_db_search!$C$10,List_Input!R51)),MAX($Q$2:Q50)+1,0) -> 49 | R51: B743 | T51: =IFERROR(VLOOKUP(ROWS($T$3:T51),$Q$3:$R$241,2,FALSE),"") -> B743 | V51: =IF(ISNUMBER(SEARCH(CERT_db_search!$C$15,List_Input!W51)),MAX($V$2:V50)+1,0) -> 49 | W51: 747-300 | Y51: =IFERROR(VLOOKUP(ROWS($X$3:Y51),$V$3:$W$241,2,FALSE),"") -> 747-300 | Z51: =IF(ISNUMBER(SEARCH(CERT_db_search!$C$22,List_Input!AA51)),MAX($Z$2:Z50)+1,0) -> 49 | AA51: AYKV | AC51: =IFERROR(VLOOKUP(ROWS($AC$3:AC51),$Z$3:$AA$11451,2,FALSE),"") -> AYKV | AE51: =IF(ISNUMBER(SEARCH(CERT_db_search!$C$30,List_Input!AF51)),MAX($AE$2:AE50)+1,0) -> 49 | AF51: ACARIGUA, PORTUGUESA | AH51: =IFERROR(VLOOKUP(ROWS($AH$3:AH51),$AE$3:$AF$11451,2,FALSE),"") -> ACARIGUA, PORTUGUESA
Q52: =IF(ISNUMBER(SEARCH(CERT_db_search!$C$10,List_Input!R52)),MAX($Q$2:Q51)+1,0) -> 50 | R52: B744 | T52: =IFERROR(VLOOKUP(ROWS($T$3:T52),$Q$3:$R$241,2,FALSE),"") -> B744 | V52: =IF(ISNUMBER(SEARCH(CERT_db_search!$C$15,List_Input!W52)),MAX($V$2:V51)+1,0) -> 50 | W52: 747-400 (international, winglets) | Y52: =IFERROR(VLOOKUP(ROWS($X$3:Y52),$V$3:$W$241,2,FALSE),"") -> 747-400 (international, winglets) | Z52: =IF(ISNUMBER(SEARCH(CERT_db_search!$C$22,List_Input!AA52)),MAX($Z$2:Z51)+1,0) -> 50 | AA52: AYKY | AC52: =IFERROR(VLOOKUP(ROWS($AC$3:AC52),$Z$3:$AA$11451,2,FALSE),"") -> AYKY | AE52: =IF(ISNUMBER(SEARCH(CERT_db_search!$C$30,List_Input!AF52)),MAX($AE$2:AE51)+1,0) -> 50 | AF52: ACARO | AH52: =IFERROR(VLOOKUP(ROWS($AH$3:AH52),$AE$3:$AF$11451,2,FALSE),"") -> ACARO
Q53: =IF(ISNUMBER(SEARCH(CERT_db_search!$C$10,List_Input!R53)),MAX($Q$2:Q52)+1,0) -> 51 | R53: B748 | T53: =IFERROR(VLOOKUP(ROWS($T$3:T53),$Q$3:$R$241,2,FALSE),"") -> B748 | V53: =IF(ISNUMBER(SEARCH(CERT_db_search!$C$15,List_Input!W53)),MAX($V$2:V52)+1,0) -> 51 | W53: 747-8 | Y53: =IFERROR(VLOOKUP(ROWS($X$3:Y53),$V$3:$W$241,2,FALSE),"") -> 747-8 | Z53: =IF(ISNUMBER(SEARCH(CERT_db_search!$C$22,List_Input!AA53)),MAX($Z$2:Z52)+1,0) -> 51 | AA53: AYMD | AC53: =IFERROR(VLOOKUP(ROWS($AC$3:AC53),$Z$3:$AA$11451,2,FALSE),"") -> AYMD | AE53: =IF(ISNUMBER(SEARCH(CERT_db_search!$C$30,List_Input!AF53)),MAX($AE$2:AE52)+1,0) -> 51 | AF53: ACCOMACK COUNTY | AH53: =IFERROR(VLOOKUP(ROWS($AH$3:AH53),$AE$3:$AF$11451,2,FALSE),"") -> ACCOMACK COUNTY
Q54: =IF(ISNUMBER(SEARCH(CERT_db_search!$C$10,List_Input!R54)),MAX($Q$2:Q53)+1,0) -> 52 | R54: B74D | T54: =IFERROR(VLOOKUP(ROWS($T$3:T54),$Q$3:$R$241,2,FALSE),"") -> B74D | V54: =IF(ISNUMBER(SEARCH(CERT_db_search!$C$15,List_Input!W54)),MAX($V$2:V53)+1,0) -> 52 | W54: 747-400 (domestic, no winglets) | Y54: =IFERROR(VLOOKUP(ROWS($X$3:Y54),$V$3:$W$241,2,FALSE),"") -> 747-400 (domestic, no winglets) | Z54: =IF(ISNUMBER(SEARCH(CERT_db_search!$C$22,List_Input!AA54)),MAX($Z$2:Z53)+1,0) -> 52 | AA54: AYMH | AC54: =IFERROR(VLOOKUP(ROWS($AC$3:AC54),$Z$3:$AA$11451,2,FALSE),"") -> AYMH | AE54: =IF(ISNUMBER(SEARCH(CERT_db_search!$C$30,List_Input!AF54)),MAX($AE$2:AE53)+1,0) -> 52 | AF54: ACCRA/KOTOKA INTERNATIONAL | AH54: =IFERROR(VLOOKUP(ROWS($AH$3:AH54),$AE$3:$AF$11451,2,FALSE),"") -> ACCRA/KOTOKA INTERNATIONAL
Q55: =IF(ISNUMBER(SEARCH(CERT_db_search!$C$10,List_Input!R55)),MAX($Q$2:Q54)+1,0) -> 53 | R55: B74R | T55: =IFERROR(VLOOKUP(ROWS($T$3:T55),$Q$3:$R$241,2,FALSE),"") -> B74R | V55: =IF(ISNUMBER(SEARCH(CERT_db_search!$C$15,List_Input!W55)),MAX($V$2:V54)+1,0) -> 53 | W55: 747SR | Y55: =IFERROR(VLOOKUP(ROWS($X$3:Y55),$V$3:$W$241,2,FALSE),"") -> 747SR | Z55: =IF(ISNUMBER(SEARCH(CERT_db_search!$C$22,List_Input!AA55)),MAX($Z$2:Z54)+1,0) -> 53 | AA55: AYMN | AC55: =IFERROR(VLOOKUP(ROWS($AC$3:AC55),$Z$3:$AA$11451,2,FALSE),"") -> AYMN | AE55: =IF(ISNUMBER(SEARCH(CERT_db_search!$C$30,List_Input!AF55)),MAX($AE$2:AE54)+1,0) -> 53 | AF55: ACHAO/AD TOLQUIEN | AH55: =IFERROR(VLOOKUP(ROWS($AH$3:AH55),$AE$3:$AF$11451,2,FALSE),"") -> ACHAO/AD TOLQUIEN
Q56: =IF(ISNUMBER(SEARCH(CERT_db_search!$C$10,List_Input!R56)),MAX($Q$2:Q55)+1,0) -> 54 | R56: B74S | T56: =IFERROR(VLOOKUP(ROWS($T$3:T56),$Q$3:$R$241,2,FALSE),"") -> B74S | V56: =IF(ISNUMBER(SEARCH(CERT_db_search!$C$15,List_Input!W56)),MAX($V$2:V55)+1,0) -> 54 | W56: 747SP | Y56: =IFERROR(VLOOKUP(ROWS($X$3:Y56),$V$3:$W$241,2,FALSE),"") -> 747SP | Z56: =IF(ISNUMBER(SEARCH(CERT_db_search!$C$22,List_Input!AA56)),MAX($Z$2:Z55)+1,0) -> 54 | AA56: AYMO | AC56: =IFERROR(VLOOKUP(ROWS($AC$3:AC56),$Z$3:$AA$11451,2,FALSE),"") -> AYMO | AE56: =IF(ISNUMBER(SEARCH(CERT_db_search!$C$30,List_Input!AF56)),MAX($AE$2:AE55)+1,0) -> 54 | AF56: ACHMER | AH56: =IFERROR(VLOOKUP(ROWS($AH$3:AH56),$AE$3:$AF$11451,2,FALSE),"") -> ACHMER
Q57: =IF(ISNUMBER(SEARCH(CERT_db_search!$C$10,List_Input!R57)),MAX($Q$2:Q56)+1,0) -> 55 | R57: B752 | T57: =IFERROR(VLOOKUP(ROWS($T$3:T57),$Q$3:$R$241,2,FALSE),"") -> B752 | V57: =IF(ISNUMBER(SEARCH(CERT_db_search!$C$15,List_Input!W57)),MAX($V$2:V56)+1,0) -> 55 | W57: 757-200 | Y57: =IFERROR(VLOOKUP(ROWS($X$3:Y57),$V$3:$W$241,2,FALSE),"") -> 757-200 | Z57: =IF(ISNUMBER(SEARCH(CERT_db_search!$C$22,List_Input!AA57)),MAX($Z$2:Z56)+1,0) -> 55 | AA57: AYMR | AC57: =IFERROR(VLOOKUP(ROWS($AC$3:AC57),$Z$3:$AA$11451,2,FALSE),"") -> AYMR | AE57: =IF(ISNUMBER(SEARCH(CERT_db_search!$C$30,List_Input!AF57)),MAX($AE$2:AE56)+1,0) -> 55 | AF57: ACHUAR | AH57: =IFERROR(VLOOKUP(ROWS($AH$3:AH57),$AE$3:$AF$11451,2,FALSE),"") -> ACHUAR
Q58: =IF(ISNUMBER(SEARCH(CERT_db_search!$C$10,List_Input!R58)),MAX($Q$2:Q57)+1,0) -> 56 | R58: B753 | T58: =IFERROR(VLOOKUP(ROWS($T$3:T58),$Q$3:$R$241,2,FALSE),"") -> B753 | V58: =IF(ISNUMBER(SEARCH(CERT_db_search!$C$15,List_Input!W58)),MAX($V$2:V57)+1,0) -> 56 | W58: 757-300 | Y58: =IFERROR(VLOOKUP(ROWS($X$3:Y58),$V$3:$W$241,2,FALSE),"") -> 757-300 | Z58: =IF(ISNUMBER(SEARCH(CERT_db_search!$C$22,List_Input!AA58)),MAX($Z$2:Z57)+1,0) -> 56 | AA58: AYMS | AC58: =IFERROR(VLOOKUP(ROWS($AC$3:AC58),$Z$3:$AA$11451,2,FALSE),"") -> AYMS | AE58: =IF(ISNUMBER(SEARCH(CERT_db_search!$C$30,List_Input!AF58)),MAX($AE$2:AE57)+1,0) -> 56 | AF58: ACHUENTZA | AH58: =IFERROR(VLOOKUP(ROWS($AH$3:AH58),$AE$3:$AF$11451,2,FALSE),"") -> ACHUENTZA
Q59: =IF(ISNUMBER(SEARCH(CERT_db_search!$C$10,List_Input!R59)),MAX($Q$2:Q58)+1,0) -> 57 | R59: B762 | T59: =IFERROR(VLOOKUP(ROWS($T$3:T59),$Q$3:$R$241,2,FALSE),"") -> B762 | V59: =IF(ISNUMBER(SEARCH(CERT_db_search!$C$15,List_Input!W59)),MAX($V$2:V58)+1,0) -> 57 | W59: 767-200 | Y59: =IFERROR(VLOOKUP(ROWS($X$3:Y59),$V$3:$W$241,2,FALSE),"") -> 767-200 | Z59: =IF(ISNUMBER(SEARCH(CERT_db_search!$C$22,List_Input!AA59)),MAX($Z$2:Z58)+1,0) -> 57 | AA59: AYNZ | AC59: =IFERROR(VLOOKUP(ROWS($AC$3:AC59),$Z$3:$AA$11451,2,FALSE),"") -> AYNZ | AE59: =IF(ISNUMBER(SEARCH(CERT_db_search!$C$30,List_Input!AF59)),MAX($AE$2:AE58)+1,0) -> 57 | AF59: ADA | AH59: =IFERROR(VLOOKUP(ROWS($AH$3:AH59),$AE$3:$AF$11451,2,FALSE),"") -> ADA
Q60: =IF(ISNUMBER(SEARCH(CERT_db_search!$C$10,List_Input!R60)),MAX($Q$2:Q59)+1,0) -> 58 | R60: B763 | T60: =IFERROR(VLOOKUP(ROWS($T$3:T60),$Q$3:$R$241,2,FALSE),"") -> B763 | V60: =IF(ISNUMBER(SEARCH(CERT_db_search!$C$15,List_Input!W60)),MAX($V$2:V59)+1,0) -> 58 | W60: 767-300 | Y60: =IFERROR(VLOOKUP(ROWS($X$3:Y60),$V$3:$W$241,2,FALSE),"") -> 767-300 | Z60: =IF(ISNUMBER(SEARCH(CERT_db_search!$C$22,List_Input!AA60)),MAX($Z$2:Z59)+1,0) -> 58 | AA60: AYPY | AC60: =IFERROR(VLOOKUP(ROWS($AC$3:AC60),$Z$3:$AA$11451,2,FALSE),"") -> AYPY | AE60: =IF(ISNUMBER(SEARCH(CERT_db_search!$C$30,List_Input!AF60)),MAX($AE$2:AE59)+1,0) -> 58 | AF60: ADABA | AH60: =IFERROR(VLOOKUP(ROWS($AH$3:AH60),$AE$3:$AF$11451,2,FALSE),"") -> ADABA
Q61: =IF(ISNUMBER(SEARCH(CERT_db_search!$C$10,List_Input!R61)),MAX($Q$2:Q60)+1,0) -> 59 | R61: B764 | T61: =IFERROR(VLOOKUP(ROWS($T$3:T61),$Q$3:$R$241,2,FALSE),"") -> B764 | V61: =IF(ISNUMBER(SEARCH(CERT_db_search!$C$15,List_Input!W61)),MAX($V$2:V60)+1,0) -> 59 | W61: 767-400 | Y61: =IFERROR(VLOOKUP(ROWS($X$3:Y61),$V$3:$W$241,2,FALSE),"") -> 767-400 | Z61: =IF(ISNUMBER(SEARCH(CERT_db_search!$C$22,List_Input!AA61)),MAX($Z$2:Z60)+1,0) -> 59 | AA61: AYTA | AC61: =IFERROR(VLOOKUP(ROWS($AC$3:AC61),$Z$3:$AA$11451,2,FALSE),"") -> AYTA | AE61: =IF(ISNUMBER(SEARCH(CERT_db_search!$C$30,List_Input!AF61)),MAX($AE$2:AE60)+1,0) -> 59 | AF61: ADAK | AH61: =IFERROR(VLOOKUP(ROWS($AH$3:AH61),$AE$3:$AF$11451,2,FALSE),"") -> ADAK
Q62: =IF(ISNUMBER(SEARCH(CERT_db_search!$C$10,List_Input!R62)),MAX($Q$2:Q61)+1,0) -> 60 | R62: B772 | T62: =IFERROR(VLOOKUP(ROWS($T$3:T62),$Q$3:$R$241,2,FALSE),"") -> B772 | V62: =IF(ISNUMBER(SEARCH(CERT_db_search!$C$15,List_Input!W62)),MAX($V$2:V61)+1,0) -> 60 | W62: 777-200 | Y62: =IFERROR(VLOOKUP(ROWS($X$3:Y62),$V$3:$W$241,2,FALSE),"") -> 777-200 | Z62: =IF(ISNUMBER(SEARCH(CERT_db_search!$C$22,List_Input!AA62)),MAX($Z$2:Z61)+1,0) -> 60 | AA62: AYTK | AC62: =IFERROR(VLOOKUP(ROWS($AC$3:AC62),$Z$3:$AA$11451,2,FALSE),"") -> AYTK | AE62: =IF(ISNUMBER(SEARCH(CERT_db_search!$C$30,List_Input!AF62)),MAX($AE$2:AE61)+1,0) -> 60 | AF62: ADANA | AH62: =IFERROR(VLOOKUP(ROWS($AH$3:AH62),$AE$3:$AF$11451,2,FALSE),"") -> ADANA
Q63: =IF(ISNUMBER(SEARCH(CERT_db_search!$C$10,List_Input!R63)),MAX($Q$2:Q62)+1,0) -> 61 | R63: B773 | T63: =IFERROR(VLOOKUP(ROWS($T$3:T63),$Q$3:$R$241,2,FALSE),"") -> B773 | V63: =IF(ISNUMBER(SEARCH(CERT_db_search!$C$15,List_Input!W63)),MAX($V$2:V62)+1,0) -> 61 | W63: 777-300 | Y63: =IFERROR(VLOOKUP(ROWS($X$3:Y63),$V$3:$W$241,2,FALSE),"") -> 777-300 | Z63: =IF(ISNUMBER(SEARCH(CERT_db_search!$C$22,List_Input!AA63)),MAX($Z$2:Z62)+1,0) -> 61 | AA63: AYVN | AC63: =IFERROR(VLOOKUP(ROWS($AC$3:AC63),$Z$3:$AA$11451,2,FALSE),"") -> AYVN | AE63: =IF(ISNUMBER(SEARCH(CERT_db_search!$C$30,List_Input!AF63)),MAX($AE$2:AE62)+1,0) -> 61 | AF63: ADANA/INCIRLIK (MIL) | AH63: =IFERROR(VLOOKUP(ROWS($AH$3:AH63),$AE$3:$AF$11451,2,FALSE),"") -> ADANA/INCIRLIK (MIL)
Q64: =IF(ISNUMBER(SEARCH(CERT_db_search!$C$10,List_Input!R64)),MAX($Q$2:Q63)+1,0) -> 62 | R64: B77L | T64: =IFERROR(VLOOKUP(ROWS($T$3:T64),$Q$3:$R$241,2,FALSE),"") -> B77L | V64: =IF(ISNUMBER(SEARCH(CERT_db_search!$C$15,List_Input!W64)),MAX($V$2:V63)+1,0) -> 62 | W64: 777-200LR | Y64: =IFERROR(VLOOKUP(ROWS($X$3:Y64),$V$3:$W$241,2,FALSE),"") -> 777-200LR | Z64: =IF(ISNUMBER(SEARCH(CERT_db_search!$C$22,List_Input!AA64)),MAX($Z$2:Z63)+1,0) -> 62 | AA64: AYWD | AC64: =IFERROR(VLOOKUP(ROWS($AC$3:AC64),$Z$3:$AA$11451,2,FALSE),"") -> AYWD | AE64: =IF(ISNUMBER(SEARCH(CERT_db_search!$C$30,List_Input!AF64)),MAX($AE$2:AE63)+1,0) -> 62 | AF64: ADDINGTON FIELD | AH64: =IFERROR(VLOOKUP(ROWS($AH$3:AH64),$AE$3:$AF$11451,2,FALSE),"") -> ADDINGTON FIELD
Q65: =IF(ISNUMBER(SEARCH(CERT_db_search!$C$10,List_Input!R65)),MAX($Q$2:Q64)+1,0) -> 63 | R65: B77W | T65: =IFERROR(VLOOKUP(ROWS($T$3:T65),$Q$3:$R$241,2,FALSE),"") -> B77W | V65: =IF(ISNUMBER(SEARCH(CERT_db_search!$C$15,List_Input!W65)),MAX($V$2:V64)+1,0) -> 63 | W65: 777-300ER | Y65: =IFERROR(VLOOKUP(ROWS($X$3:Y65),$V$3:$W$241,2,FALSE),"") -> 777-300ER | Z65: =IF(ISNUMBER(SEARCH(CERT_db_search!$C$22,List_Input!AA65)),MAX($Z$2:Z64)+1,0) -> 63 | AA65: AYWK | AC65: =IFERROR(VLOOKUP(ROWS($AC$3:AC65),$Z$3:$AA$11451,2,FALSE),"") -> AYWK | AE65: =IF(ISNUMBER(SEARCH(CERT_db_search!$C$30,List_Input!AF65)),MAX($AE$2:AE64)+1,0) -> 63 | AF65: ADDIS ABABA/BOLE COM/MET/NOF | AH65: =IFERROR(VLOOKUP(ROWS($AH$3:AH65),$AE$3:$AF$11451,2,FALSE),"") -> ADDIS ABABA/BOLE COM/MET/NOF
Q66: =IF(ISNUMBER(SEARCH(CERT_db_search!$C$10,List_Input!R66)),MAX($Q$2:Q65)+1,0) -> 64 | R66: B788 | T66: =IFERROR(VLOOKUP(ROWS($T$3:T66),$Q$3:$R$241,2,FALSE),"") -> B788 | V66: =IF(ISNUMBER(SEARCH(CERT_db_search!$C$15,List_Input!W66)),MAX($V$2:V65)+1,0) -> 64 | W66: 787-8 Dreamliner | Y66: =IFERROR(VLOOKUP(ROWS($X$3:Y66),$V$3:$W$241,2,FALSE),"") -> 787-8 Dreamliner | Z66: =IF(ISNUMBER(SEARCH(CERT_db_search!$C$22,List_Input!AA66)),MAX($Z$2:Z65)+1,0) -> 64 | AA66: BGAA | AC66: =IFERROR(VLOOKUP(ROWS($AC$3:AC66),$Z$3:$AA$11451,2,FALSE),"") -> BGAA | AE66: =IF(ISNUMBER(SEARCH(CERT_db_search!$C$30,List_Input!AF66)),MAX($AE$2:AE65)+1,0) -> 64 | AF66: ADDISON | AH66: =IFERROR(VLOOKUP(ROWS($AH$3:AH66),$AE$3:$AF$11451,2,FALSE),"") -> ADDISON
Q67: =IF(ISNUMBER(SEARCH(CERT_db_search!$C$10,List_Input!R67)),MAX($Q$2:Q66)+1,0) -> 65 | R67: B789 | T67: =IFERROR(VLOOKUP(ROWS($T$3:T67),$Q$3:$R$241,2,FALSE),"") -> B789 | V67: =IF(ISNUMBER(SEARCH(CERT_db_search!$C$15,List_Input!W67)),MAX($V$2:V66)+1,0) -> 65 | W67: 787-9 Dreamliner | Y67: =IFERROR(VLOOKUP(ROWS($X$3:Y67),$V$3:$W$241,2,FALSE),"") -> 787-9 Dreamliner | Z67: =IF(ISNUMBER(SEARCH(CERT_db_search!$C$22,List_Input!AA67)),MAX($Z$2:Z66)+1,0) -> 65 | AA67: BGAK | AC67: =IFERROR(VLOOKUP(ROWS($AC$3:AC67),$Z$3:$AA$11451,2,FALSE),"") -> BGAK | AE67: =IF(ISNUMBER(SEARCH(CERT_db_search!$C$30,List_Input!AF67)),MAX($AE$2:AE66)+1,0) -> 65 | AF67: ADELAIDE | AH67: =IFERROR(VLOOKUP(ROWS($AH$3:AH67),$AE$3:$AF$11451,2,FALSE),"") -> ADELAIDE
Q68: =IF(ISNUMBER(SEARCH(CERT_db_search!$C$10,List_Input!R68)),MAX($Q$2:Q67)+1,0) -> 66 | R68: B78X | T68: =IFERROR(VLOOKUP(ROWS($T$3:T68),$Q$3:$R$241,2,FALSE),"") -> B78X | V68: =IF(ISNUMBER(SEARCH(CERT_db_search!$C$15,List_Input!W68)),MAX($V$2:V67)+1,0) -> 66 | W68: 787-10 Dreamliner | Y68: =IFERROR(VLOOKUP(ROWS($X$3:Y68),$V$3:$W$241,2,FALSE),"") -> 787-10 Dreamliner | Z68: =IF(ISNUMBER(SEARCH(CERT_db_search!$C$22,List_Input!AA68)),MAX($Z$2:Z67)+1,0) -> 66 | AA68: BGAM | AC68: =IFERROR(VLOOKUP(ROWS($AC$3:AC68),$Z$3:$AA$11451,2,FALSE),"") -> BGAM | AE68: =IF(ISNUMBER(SEARCH(CERT_db_search!$C$30,List_Input!AF68)),MAX($AE$2:AE67)+1,0) -> 66 | AF68: ADELAIDE/ADELAIDE INTL | AH68: =IFERROR(VLOOKUP(ROWS($AH$3:AH68),$AE$3:$AF$11451,2,FALSE),"") -> ADELAIDE/ADELAIDE INTL
Q69: =IF(ISNUMBER(SEARCH(CERT_db_search!$C$10,List_Input!R69)),MAX($Q$2:Q68)+1,0) -> 67 | R69: BA11 | T69: =IFERROR(VLOOKUP(ROWS($T$3:T69),$Q$3:$R$241,2,FALSE),"") -> BA11 | V69: =IF(ISNUMBER(SEARCH(CERT_db_search!$C$15,List_Input!W69)),MAX($V$2:V68)+1,0) -> 67 | W69: BAC-111 One-Eleven | Y69: =IFERROR(VLOOKUP(ROWS($X$3:Y69),$V$3:$W$241,2,FALSE),"") -> BAC-111 One-Eleven | Z69: =IF(ISNUMBER(SEARCH(CERT_db_search!$C$22,List_Input!AA69)),MAX($Z$2:Z68)+1,0) -> 67 | AA69: BGAP | AC69: =IFERROR(VLOOKUP(ROWS($AC$3:AC69),$Z$3:$AA$11451,2,FALSE),"") -> BGAP | AE69: =IF(ISNUMBER(SEARCH(CERT_db_search!$C$30,List_Input!AF69)),MAX($AE$2:AE68)+1,0) -> 67 | AF69: ADELAIDE/PARAFIELD | AH69: =IFERROR(VLOOKUP(ROWS($AH$3:AH69),$AE$3:$AF$11451,2,FALSE),"") -> ADELAIDE/PARAFIELD
Q70: =IF(ISNUMBER(SEARCH(CERT_db_search!$C$10,List_Input!R70)),MAX($Q$2:Q69)+1,0) -> 68 | R70: BE20 | T70: =IFERROR(VLOOKUP(ROWS($T$3:T70),$Q$3:$R$241,2,FALSE),"") -> BE20 | V70: =IF(ISNUMBER(SEARCH(CERT_db_search!$C$15,List_Input!W70)),MAX($V$2:V69)+1,0) -> 68 | W70: Super King Air (200) | Y70: =IFERROR(VLOOKUP(ROWS($X$3:Y70),$V$3:$W$241,2,FALSE),"") -> Super King Air (200) | Z70: =IF(ISNUMBER(SEARCH(CERT_db_search!$C$22,List_Input!AA70)),MAX($Z$2:Z69)+1,0) -> 68 | AA70: BGAQ | AC70: =IFERROR(VLOOKUP(ROWS($AC$3:AC70),$Z$3:$AA$11451,2,FALSE),"") -> BGAQ | AE70: =IF(ISNUMBER(SEARCH(CERT_db_search!$C$30,List_Input!AF70)),MAX($AE$2:AE69)+1,0) -> 68 | AF70: ADEN/INTL | AH70: =IFERROR(VLOOKUP(ROWS($AH$3:AH70),$AE$3:$AF$11451,2,FALSE),"") -> ADEN/INTL
Q71: =IF(ISNUMBER(SEARCH(CERT_db_search!$C$10,List_Input!R71)),MAX($Q$2:Q70)+1,0) -> 69 | R71: BELF | T71: =IFERROR(VLOOKUP(ROWS($T$3:T71),$Q$3:$R$241,2,FALSE),"") -> BELF | V71: =IF(ISNUMBER(SEARCH(CERT_db_search!$C$15,List_Input!W71)),MAX($V$2:V70)+1,0) -> 69 | W71: SC-5 Belfast | Y71: =IFERROR(VLOOKUP(ROWS($X$3:Y71),$V$3:$W$241,2,FALSE),"") -> SC-5 Belfast | Z71: =IF(ISNUMBER(SEARCH(CERT_db_search!$C$22,List_Input!AA71)),MAX($Z$2:Z70)+1,0) -> 69 | AA71: BGAR | AC71: =IFERROR(VLOOKUP(ROWS($AC$3:AC71),$Z$3:$AA$11451,2,FALSE),"") -> BGAR | AE71: =IF(ISNUMBER(SEARCH(CERT_db_search!$C$30,List_Input!AF71)),MAX($AE$2:AE70)+1,0) -> 69 | AF71: ADI KEYH | AH71: =IFERROR(VLOOKUP(ROWS($AH$3:AH71),$AE$3:$AF$11451,2,FALSE),"") -> ADI KEYH
Q72: =IF(ISNUMBER(SEARCH(CERT_db_search!$C$10,List_Input!R72)),MAX($Q$2:Q71)+1,0) -> 70 | R72: C130 | T72: =IFERROR(VLOOKUP(ROWS($T$3:T72),$Q$3:$R$241,2,FALSE),"") -> C130 | V72: =IF(ISNUMBER(SEARCH(CERT_db_search!$C$15,List_Input!W72)),MAX($V$2:V71)+1,0) -> 70 | W72: L-100 Hercules | Y72: =IFERROR(VLOOKUP(ROWS($X$3:Y72),$V$3:$W$241,2,FALSE),"") -> L-100 Hercules | Z72: =IF(ISNUMBER(SEARCH(CERT_db_search!$C$22,List_Input!AA72)),MAX($Z$2:Z71)+1,0) -> 70 | AA72: BGAS | AC72: =IFERROR(VLOOKUP(ROWS($AC$3:AC72),$Z$3:$AA$11451,2,FALSE),"") -> BGAS | AE72: =IF(ISNUMBER(SEARCH(CERT_db_search!$C$30,List_Input!AF72)),MAX($AE$2:AE71)+1,0) -> 70 | AF72: ADIRONDACK RGNL | AH72: =IFERROR(VLOOKUP(ROWS($AH$3:AH72),$AE$3:$AF$11451,2,FALSE),"") -> ADIRONDACK RGNL
Q73: =IF(ISNUMBER(SEARCH(CERT_db_search!$C$10,List_Input!R73)),MAX($Q$2:Q72)+1,0) -> 71 | R73: C212 | T73: =IFERROR(VLOOKUP(ROWS($T$3:T73),$Q$3:$R$241,2,FALSE),"") -> C212 | V73: =IF(ISNUMBER(SEARCH(CERT_db_search!$C$15,List_Input!W73)),MAX($V$2:V72)+1,0) -> 71 | W73: C-212 Aviocar | Y73: =IFERROR(VLOOKUP(ROWS($X$3:Y73),$V$3:$W$241,2,FALSE),"") -> C-212 Aviocar | Z73: =IF(ISNUMBER(SEARCH(CERT_db_search!$C$22,List_Input!AA73)),MAX($Z$2:Z72)+1,0) -> 71 | AA73: BGAT | AC73: =IFERROR(VLOOKUP(ROWS($AC$3:AC73),$Z$3:$AA$11451,2,FALSE),"") -> BGAT | AE73: =IF(ISNUMBER(SEARCH(CERT_db_search!$C$30,List_Input!AF73)),MAX($AE$2:AE72)+1,0) -> 71 | AF73: ADIYAMAN | AH73: =IFERROR(VLOOKUP(ROWS($AH$3:AH73),$AE$3:$AF$11451,2,FALSE),"") -> ADIYAMAN
Q74: =IF(ISNUMBER(SEARCH(CERT_db_search!$C$10,List_Input!R74)),MAX($Q$2:Q73)+1,0) -> 72 | R74: C25C | T74: =IFERROR(VLOOKUP(ROWS($T$3:T74),$Q$3:$R$241,2,FALSE),"") -> C25C | V74: =IF(ISNUMBER(SEARCH(CERT_db_search!$C$15,List_Input!W74)),MAX($V$2:V73)+1,0) -> 72 | W74: 525C Citation CJ4 | Y74: =IFERROR(VLOOKUP(ROWS($X$3:Y74),$V$3:$W$241,2,FALSE),"") -> 525C Citation CJ4 | Z74: =IF(ISNUMBER(SEARCH(CERT_db_search!$C$22,List_Input!AA74)),MAX($Z$2:Z73)+1,0) -> 72 | AA74: BGBW | AC74: =IFERROR(VLOOKUP(ROWS($AC$3:AC74),$Z$3:$AA$11451,2,FALSE),"") -> BGBW | AE74: =IF(ISNUMBER(SEARCH(CERT_db_search!$C$30,List_Input!AF74)),MAX($AE$2:AE73)+1,0) -> 72 | AF74: ADJUMAN | AH74: =IFERROR(VLOOKUP(ROWS($AH$3:AH74),$AE$3:$AF$11451,2,FALSE),"") -> ADJUMAN
Q75: =IF(ISNUMBER(SEARCH(CERT_db_search!$C$10,List_Input!R75)),MAX($Q$2:Q74)+1,0) -> 73 | R75: C525 | T75: =IFERROR(VLOOKUP(ROWS($T$3:T75),$Q$3:$R$241,2,FALSE),"") -> C525 | V75: =IF(ISNUMBER(SEARCH(CERT_db_search!$C$15,List_Input!W75)),MAX($V$2:V74)+1,0) -> 73 | W75: 525 Citation CJ1 | Y75: =IFERROR(VLOOKUP(ROWS($X$3:Y75),$V$3:$W$241,2,FALSE),"") -> 525 Citation CJ1 | Z75: =IF(ISNUMBER(SEARCH(CERT_db_search!$C$22,List_Input!AA75)),MAX($Z$2:Z74)+1,0) -> 73 | AA75: BGCH | AC75: =IFERROR(VLOOKUP(ROWS($AC$3:AC75),$Z$3:$AA$11451,2,FALSE),"") -> BGCH | AE75: =IF(ISNUMBER(SEARCH(CERT_db_search!$C$30,List_Input!AF75)),MAX($AE$2:AE74)+1,0) -> 73 | AF75: ADRAR/TOUAT-CHEIKH SIDI MOHAMED BELKEBIR | AH75: =IFERROR(VLOOKUP(ROWS($AH$3:AH75),$AE$3:$AF$11451,2,FALSE),"") -> ADRAR/TOUAT-CHEIKH SIDI MOHAMED BELKEBIR
Q76: =IF(ISNUMBER(SEARCH(CERT_db_search!$C$10,List_Input!R76)),MAX($Q$2:Q75)+1,0) -> 74 | R76: C550 | T76: =IFERROR(VLOOKUP(ROWS($T$3:T76),$Q$3:$R$241,2,FALSE),"") -> C550 | V76: =IF(ISNUMBER(SEARCH(CERT_db_search!$C$15,List_Input!W76)),MAX($V$2:V75)+1,0) -> 74 | W76: 550 Citation 2 | Y76: =IFERROR(VLOOKUP(ROWS($X$3:Y76),$V$3:$W$241,2,FALSE),"") -> 550 Citation 2 | Z76: =IF(ISNUMBER(SEARCH(CERT_db_search!$C$22,List_Input!AA76)),MAX($Z$2:Z75)+1,0) -> 74 | AA76: BGCO | AC76: =IFERROR(VLOOKUP(ROWS($AC$3:AC76),$Z$3:$AA$11451,2,FALSE),"") -> BGCO | AE76: =IF(ISNUMBER(SEARCH(CERT_db_search!$C$30,List_Input!AF76)),MAX($AE$2:AE75)+1,0) -> 74 | AF76: AERO | AH76: =IFERROR(VLOOKUP(ROWS($AH$3:AH76),$AE$3:$AF$11451,2,FALSE),"") -> AERO
Q77: =IF(ISNUMBER(SEARCH(CERT_db_search!$C$10,List_Input!R77)),MAX($Q$2:Q76)+1,0) -> 75 | R77: C55B | T77: =IFERROR(VLOOKUP(ROWS($T$3:T77),$Q$3:$R$241,2,FALSE),"") -> C55B | V77: =IF(ISNUMBER(SEARCH(CERT_db_search!$C$15,List_Input!W77)),MAX($V$2:V76)+1,0) -> 75 | W77: 550B Citation Bravo | Y77: =IFERROR(VLOOKUP(ROWS($X$3:Y77),$V$3:$W$241,2,FALSE),"") -> 550B Citation Bravo | Z77: =IF(ISNUMBER(SEARCH(CERT_db_search!$C$22,List_Input!AA77)),MAX($Z$2:Z76)+1,0) -> 75 | AA77: BGET | AC77: =IFERROR(VLOOKUP(ROWS($AC$3:AC77),$Z$3:$AA$11451,2,FALSE),"") -> BGET | AE77: =IF(ISNUMBER(SEARCH(CERT_db_search!$C$30,List_Input!AF77)),MAX($AE$2:AE76)+1,0) -> 75 | AF77: AERODAMAS | AH77: =IFERROR(VLOOKUP(ROWS($AH$3:AH77),$AE$3:$AF$11451,2,FALSE),"") -> AERODAMAS
Q78: =IF(ISNUMBER(SEARCH(CERT_db_search!$C$10,List_Input!R78)),MAX($Q$2:Q77)+1,0) -> 76 | R78: C560 | T78: =IFERROR(VLOOKUP(ROWS($T$3:T78),$Q$3:$R$241,2,FALSE),"") -> C560 | V78: =IF(ISNUMBER(SEARCH(CERT_db_search!$C$15,List_Input!W78)),MAX($V$2:V77)+1,0) -> 76 | W78: 560 Citation 5 | Y78: =IFERROR(VLOOKUP(ROWS($X$3:Y78),$V$3:$W$241,2,FALSE),"") -> 560 Citation 5 | Z78: =IF(ISNUMBER(SEARCH(CERT_db_search!$C$22,List_Input!AA78)),MAX($Z$2:Z77)+1,0) -> 76 | AA78: BGFD | AC78: =IFERROR(VLOOKUP(ROWS($AC$3:AC78),$Z$3:$AA$11451,2,FALSE),"") -> BGFD | AE78: =IF(ISNUMBER(SEARCH(CERT_db_search!$C$30,List_Input!AF78)),MAX($AE$2:AE77)+1,0) -> 76 | AF78: AEROPARQUE J. NEWBERY (CABA) | AH78: =IFERROR(VLOOKUP(ROWS($AH$3:AH78),$AE$3:$AF$11451,2,FALSE),"") -> AEROPARQUE J. NEWBERY (CABA)
Q79: =IF(ISNUMBER(SEARCH(CERT_db_search!$C$10,List_Input!R79)),MAX($Q$2:Q78)+1,0) -> 77 | R79: C56X | T79: =IFERROR(VLOOKUP(ROWS($T$3:T79),$Q$3:$R$241,2,FALSE),"") -> C56X | V79: =IF(ISNUMBER(SEARCH(CERT_db_search!$C$15,List_Input!W79)),MAX($V$2:V78)+1,0) -> 77 | W79: 560XL Citation Excel | Y79: =IFERROR(VLOOKUP(ROWS($X$3:Y79),$V$3:$W$241,2,FALSE),"") -> 560XL Citation Excel | Z79: =IF(ISNUMBER(SEARCH(CERT_db_search!$C$22,List_Input!AA79)),MAX($Z$2:Z78)+1,0) -> 77 | AA79: BGGH | AC79: =IFERROR(VLOOKUP(ROWS($AC$3:AC79),$Z$3:$AA$11451,2,FALSE),"") -> BGGH | AE79: =IF(ISNUMBER(SEARCH(CERT_db_search!$C$30,List_Input!AF79)),MAX($AE$2:AE78)+1,0) -> 77 | AF79: AEROPELICAN | AH79: =IFERROR(VLOOKUP(ROWS($AH$3:AH79),$AE$3:$AF$11451,2,FALSE),"") -> AEROPELICAN
Q80: =IF(ISNUMBER(SEARCH(CERT_db_search!$C$10,List_Input!R80)),MAX($Q$2:Q79)+1,0) -> 78 | R80: C68A | T80: =IFERROR(VLOOKUP(ROWS($T$3:T80),$Q$3:$R$241,2,FALSE),"") -> C68A | V80: =IF(ISNUMBER(SEARCH(CERT_db_search!$C$15,List_Input!W80)),MAX($V$2:V79)+1,0) -> 78 | W80: 680A Citation Latitude | Y80: =IFERROR(VLOOKUP(ROWS($X$3:Y80),$V$3:$W$241,2,FALSE),"") -> 680A Citation Latitude | Z80: =IF(ISNUMBER(SEARCH(CERT_db_search!$C$22,List_Input!AA80)),MAX($Z$2:Z79)+1,0) -> 78 | AA80: BGGN | AC80: =IFERROR(VLOOKUP(ROWS($AC$3:AC80),$Z$3:$AA$11451,2,FALSE),"") -> BGGN | AE80: =IF(ISNUMBER(SEARCH(CERT_db_search!$C$30,List_Input!AF80)),MAX($AE$2:AE79)+1,0) -> 78 | AF80: AEROPOLICIAL MANABI HELIPUERTO | AH80: =IFERROR(VLOOKUP(ROWS($AH$3:AH80),$AE$3:$AF$11451,2,FALSE),"") -> AEROPOLICIAL MANABI HELIPUERTO
Q81: =IF(ISNUMBER(SEARCH(CERT_db_search!$C$10,List_Input!R81)),MAX($Q$2:Q80)+1,0) -> 79 | R81: CL30 | T81: =IFERROR(VLOOKUP(ROWS($T$3:T81),$Q$3:$R$241,2,FALSE),"") -> CL30 | V81: =IF(ISNUMBER(SEARCH(CERT_db_search!$C$15,List_Input!W81)),MAX($V$2:V80)+1,0) -> 79 | W81: BD-100 Challenger 300 | Y81: =IFERROR(VLOOKUP(ROWS($X$3:Y81),$V$3:$W$241,2,FALSE),"") -> BD-100 Challenger 300 | Z81: =IF(ISNUMBER(SEARCH(CERT_db_search!$C$22,List_Input!AA81)),MAX($Z$2:Z80)+1,0) -> 79 | AA81: BGIA | AC81: =IFERROR(VLOOKUP(ROWS($AC$3:AC81),$Z$3:$AA$11451,2,FALSE),"") -> BGIA | AE81: =IF(ISNUMBER(SEARCH(CERT_db_search!$C$30,List_Input!AF81)),MAX($AE$2:AE80)+1,0) -> 79 | AF81: AEROPUERTO DEL NORTE | AH81: =IFERROR(VLOOKUP(ROWS($AH$3:AH81),$AE$3:$AF$11451,2,FALSE),"") -> AEROPUERTO DEL NORTE
Q82: =IF(ISNUMBER(SEARCH(CERT_db_search!$C$10,List_Input!R82)),MAX($Q$2:Q81)+1,0) -> 80 | R82: CL35 | T82: =IFERROR(VLOOKUP(ROWS($T$3:T82),$Q$3:$R$241,2,FALSE),"") -> CL35 | V82: =IF(ISNUMBER(SEARCH(CERT_db_search!$C$15,List_Input!W82)),MAX($V$2:V81)+1,0) -> 80 | W82: BD-100 Challenger 350 | Y82: =IFERROR(VLOOKUP(ROWS($X$3:Y82),$V$3:$W$241,2,FALSE),"") -> BD-100 Challenger 350 | Z82: =IF(ISNUMBER(SEARCH(CERT_db_search!$C$22,List_Input!AA82)),MAX($Z$2:Z81)+1,0) -> 80 | AA82: BGIG | AC82: =IFERROR(VLOOKUP(ROWS($AC$3:AC82),$Z$3:$AA$11451,2,FALSE),"") -> BGIG | AE82: =IF(ISNUMBER(SEARCH(CERT_db_search!$C$30,List_Input!AF82)),MAX($AE$2:AE81)+1,0) -> 80 | AF82: AEROPUERTO INTERNACIONAL DE EL SAVADOR MONSENOR OSCAR ARNULFO ROMERO Y GALDAMEZ | AH82: =IFERROR(VLOOKUP(ROWS($AH$3:AH82),$AE$3:$AF$11451,2,FALSE),"") -> AEROPUERTO INTERNACIONAL DE EL SAVADOR MONSENOR OSCAR ARNULFO ROMERO Y GALDAMEZ
Q83: =IF(ISNUMBER(SEARCH(CERT_db_search!$C$10,List_Input!R83)),MAX($Q$2:Q82)+1,0) -> 81 | R83: CL60 | T83: =IFERROR(VLOOKUP(ROWS($T$3:T83),$Q$3:$R$241,2,FALSE),"") -> CL60 | V83: =IF(ISNUMBER(SEARCH(CERT_db_search!$C$15,List_Input!W83)),MAX($V$2:V82)+1,0) -> 81 | W83: CL-600 Challenger 650 | Y83: =IFERROR(VLOOKUP(ROWS($X$3:Y83),$V$3:$W$241,2,FALSE),"") -> CL-600 Challenger 650 | Z83: =IF(ISNUMBER(SEARCH(CERT_db_search!$C$22,List_Input!AA83)),MAX($Z$2:Z82)+1,0) -> 81 | AA83: BGIK | AC83: =IFERROR(VLOOKUP(ROWS($AC$3:AC83),$Z$3:$AA$11451,2,FALSE),"") -> BGIK | AE83: =IF(ISNUMBER(SEARCH(CERT_db_search!$C$30,List_Input!AF83)),MAX($AE$2:AE82)+1,0) -> 81 | AF83: AEROPUERTO INTERNACIONAL DE LLAPANGO | AH83: =IFERROR(VLOOKUP(ROWS($AH$3:AH83),$AE$3:$AF$11451,2,FALSE),"") -> AEROPUERTO INTERNACIONAL DE LLAPANGO
Q84: =IF(ISNUMBER(SEARCH(CERT_db_search!$C$10,List_Input!R84)),MAX($Q$2:Q83)+1,0) -> 82 | R84: CN35 | T84: =IFERROR(VLOOKUP(ROWS($T$3:T84),$Q$3:$R$241,2,FALSE),"") -> CN35 | V84: =IF(ISNUMBER(SEARCH(CERT_db_search!$C$15,List_Input!W84)),MAX($V$2:V83)+1,0) -> 82 | W84: CN-235 | Y84: =IFERROR(VLOOKUP(ROWS($X$3:Y84),$V$3:$W$241,2,FALSE),"") -> CN-235 | Z84: =IF(ISNUMBER(SEARCH(CERT_db_search!$C$22,List_Input!AA84)),MAX($Z$2:Z83)+1,0) -> 82 | AA84: BGIL | AC84: =IFERROR(VLOOKUP(ROWS($AC$3:AC84),$Z$3:$AA$11451,2,FALSE),"") -> BGIL | AE84: =IF(ISNUMBER(SEARCH(CERT_db_search!$C$30,List_Input!AF84)),MAX($AE$2:AE83)+1,0) -> 82 | AF84: AEROTORTUGUERO | AH84: =IFERROR(VLOOKUP(ROWS($AH$3:AH84),$AE$3:$AF$11451,2,FALSE),"") -> AEROTORTUGUERO
Q85: =IF(ISNUMBER(SEARCH(CERT_db_search!$C$10,List_Input!R85)),MAX($Q$2:Q84)+1,0) -> 83 | R85: CRJ1 | T85: =IFERROR(VLOOKUP(ROWS($T$3:T85),$Q$3:$R$241,2,FALSE),"") -> CRJ1 | V85: =IF(ISNUMBER(SEARCH(CERT_db_search!$C$15,List_Input!W85)),MAX($V$2:V84)+1,0) -> 83 | W85: Regional Jet CRJ-100 | Y85: =IFERROR(VLOOKUP(ROWS($X$3:Y85),$V$3:$W$241,2,FALSE),"") -> Regional Jet CRJ-100 | Z85: =IF(ISNUMBER(SEARCH(CERT_db_search!$C$22,List_Input!AA85)),MAX($Z$2:Z84)+1,0) -> 83 | AA85: BGIN | AC85: =IFERROR(VLOOKUP(ROWS($AC$3:AC85),$Z$3:$AA$11451,2,FALSE),"") -> BGIN | AE85: =IF(ISNUMBER(SEARCH(CERT_db_search!$C$30,List_Input!AF85)),MAX($AE$2:AE84)+1,0) -> 83 | AF85: AFABET | AH85: =IFERROR(VLOOKUP(ROWS($AH$3:AH85),$AE$3:$AF$11451,2,FALSE),"") -> AFABET
Q86: =IF(ISNUMBER(SEARCH(CERT_db_search!$C$10,List_Input!R86)),MAX($Q$2:Q85)+1,0) -> 84 | R86: CRJ2 | T86: =IFERROR(VLOOKUP(ROWS($T$3:T86),$Q$3:$R$241,2,FALSE),"") -> CRJ2 | V86: =IF(ISNUMBER(SEARCH(CERT_db_search!$C$15,List_Input!W86)),MAX($V$2:V85)+1,0) -> 84 | W86: Challenger 800 | Y86: =IFERROR(VLOOKUP(ROWS($X$3:Y86),$V$3:$W$241,2,FALSE),"") -> Challenger 800 | Z86: =IF(ISNUMBER(SEARCH(CERT_db_search!$C$22,List_Input!AA86)),MAX($Z$2:Z85)+1,0) -> 84 | AA86: BGIS | AC86: =IFERROR(VLOOKUP(ROWS($AC$3:AC86),$Z$3:$AA$11451,2,FALSE),"") -> BGIS | AE86: =IF(ISNUMBER(SEARCH(CERT_db_search!$C$30,List_Input!AF86)),MAX($AE$2:AE85)+1,0) -> 84 | AF86: AFTON MUNI | AH86: =IFERROR(VLOOKUP(ROWS($AH$3:AH86),$AE$3:$AF$11451,2,FALSE),"") -> AFTON MUNI
Q87: =IF(ISNUMBER(SEARCH(CERT_db_search!$C$10,List_Input!R87)),MAX($Q$2:Q86)+1,0) -> 85 | R87: CRJ7 | T87: =IFERROR(VLOOKUP(ROWS($T$3:T87),$Q$3:$R$241,2,FALSE),"") -> CRJ7 | V87: =IF(ISNUMBER(SEARCH(CERT_db_search!$C$15,List_Input!W87)),MAX($V$2:V86)+1,0) -> 85 | W87: Challenger 870 | Y87: =IFERROR(VLOOKUP(ROWS($X$3:Y87),$V$3:$W$241,2,FALSE),"") -> Challenger 870 | Z87: =IF(ISNUMBER(SEARCH(CERT_db_search!$C$22,List_Input!AA87)),MAX($Z$2:Z86)+1,0) -> 85 | AA87: BGIT | AC87: =IFERROR(VLOOKUP(ROWS($AC$3:AC87),$Z$3:$AA$11451,2,FALSE),"") -> BGIT | AE87: =IF(ISNUMBER(SEARCH(CERT_db_search!$C$30,List_Input!AF87)),MAX($AE$2:AE86)+1,0) -> 85 | AF87: AFUTARA | AH87: =IFERROR(VLOOKUP(ROWS($AH$3:AH87),$AE$3:$AF$11451,2,FALSE),"") -> AFUTARA
Q88: =IF(ISNUMBER(SEARCH(CERT_db_search!$C$10,List_Input!R88)),MAX($Q$2:Q87)+1,0) -> 86 | R88: CRJ9 | T88: =IFERROR(VLOOKUP(ROWS($T$3:T88),$Q$3:$R$241,2,FALSE),"") -> CRJ9 | V88: =IF(ISNUMBER(SEARCH(CERT_db_search!$C$15,List_Input!W88)),MAX($V$2:V87)+1,0) -> 86 | W88: Challenger 890 | Y88: =IFERROR(VLOOKUP(ROWS($X$3:Y88),$V$3:$W$241,2,FALSE),"") -> Challenger 890 | Z88: =IF(ISNUMBER(SEARCH(CERT_db_search!$C$22,List_Input!AA88)),MAX($Z$2:Z87)+1,0) -> 86 | AA88: BGJH | AC88: =IFERROR(VLOOKUP(ROWS($AC$3:AC88),$Z$3:$AA$11451,2,FALSE),"") -> BGJH | AE88: =IF(ISNUMBER(SEARCH(CERT_db_search!$C$30,List_Input!AF88)),MAX($AE$2:AE87)+1,0) -> 86 | AF88: AFYON (MIL-CIV) | AH88: =IFERROR(VLOOKUP(ROWS($AH$3:AH88),$AE$3:$AF$11451,2,FALSE),"") -> AFYON (MIL-CIV)
Q89: =IF(ISNUMBER(SEARCH(CERT_db_search!$C$10,List_Input!R89)),MAX($Q$2:Q88)+1,0) -> 87 | R89: CRJX | T89: =IFERROR(VLOOKUP(ROWS($T$3:T89),$Q$3:$R$241,2,FALSE),"") -> CRJX | V89: =IF(ISNUMBER(SEARCH(CERT_db_search!$C$15,List_Input!W89)),MAX($V$2:V88)+1,0) -> 87 | W89: Regional Jet CRJ-1000 | Y89: =IFERROR(VLOOKUP(ROWS($X$3:Y89),$V$3:$W$241,2,FALSE),"") -> Regional Jet CRJ-1000 | Z89: =IF(ISNUMBER(SEARCH(CERT_db_search!$C$22,List_Input!AA89)),MAX($Z$2:Z88)+1,0) -> 87 | AA89: BGJN | AC89: =IFERROR(VLOOKUP(ROWS($AC$3:AC89),$Z$3:$AA$11451,2,FALSE),"") -> BGJN | AE89: =IF(ISNUMBER(SEARCH(CERT_db_search!$C$30,List_Input!AF89)),MAX($AE$2:AE88)+1,0) -> 87 | AF89: AGADES SUD | AH89: =IFERROR(VLOOKUP(ROWS($AH$3:AH89),$AE$3:$AF$11451,2,FALSE),"") -> AGADES SUD
Q90: =IF(ISNUMBER(SEARCH(CERT_db_search!$C$10,List_Input!R90)),MAX($Q$2:Q89)+1,0) -> 88 | R90: CVLP | T90: =IFERROR(VLOOKUP(ROWS($T$3:T90),$Q$3:$R$241,2,FALSE),"") -> CVLP | V90: =IF(ISNUMBER(SEARCH(CERT_db_search!$C$15,List_Input!W90)),MAX($V$2:V89)+1,0) -> 88 | W90: Convairliner | Y90: =IFERROR(VLOOKUP(ROWS($X$3:Y90),$V$3:$W$241,2,FALSE),"") -> Convairliner | Z90: =IF(ISNUMBER(SEARCH(CERT_db_search!$C$22,List_Input!AA90)),MAX($Z$2:Z89)+1,0) -> 88 | AA90: BGKA | AC90: =IFERROR(VLOOKUP(ROWS($AC$3:AC90),$Z$3:$AA$11451,2,FALSE),"") -> BGKA | AE90: =IF(ISNUMBER(SEARCH(CERT_db_search!$C$30,List_Input!AF90)),MAX($AE$2:AE89)+1,0) -> 88 | AF90: AGADIR/AL MASSIRA | AH90: =IFERROR(VLOOKUP(ROWS($AH$3:AH90),$AE$3:$AF$11451,2,FALSE),"") -> AGADIR/AL MASSIRA
Q91: =IF(ISNUMBER(SEARCH(CERT_db_search!$C$10,List_Input!R91)),MAX($Q$2:Q90)+1,0) -> 89 | R91: CVLT | T91: =IFERROR(VLOOKUP(ROWS($T$3:T91),$Q$3:$R$241,2,FALSE),"") -> CVLT | V91: =IF(ISNUMBER(SEARCH(CERT_db_search!$C$15,List_Input!W91)),MAX($V$2:V90)+1,0) -> 89 | W91: Cosmopolitan | Y91: =IFERROR(VLOOKUP(ROWS($X$3:Y91),$V$3:$W$241,2,FALSE),"") -> Cosmopolitan | Z91: =IF(ISNUMBER(SEARCH(CERT_db_search!$C$22,List_Input!AA91)),MAX($Z$2:Z90)+1,0) -> 89 | AA91: BGKK | AC91: =IFERROR(VLOOKUP(ROWS($AC$3:AC91),$Z$3:$AA$11451,2,FALSE),"") -> BGKK | AE91: =IF(ISNUMBER(SEARCH(CERT_db_search!$C$30,List_Input!AF91)),MAX($AE$2:AE90)+1,0) -> 89 | AF91: AGARTALA | AH91: =IFERROR(VLOOKUP(ROWS($AH$3:AH91),$AE$3:$AF$11451,2,FALSE),"") -> AGARTALA
Q92: =IF(ISNUMBER(SEARCH(CERT_db_search!$C$10,List_Input!R92)),MAX($Q$2:Q91)+1,0) -> 90 | R92: D228 | T92: =IFERROR(VLOOKUP(ROWS($T$3:T92),$Q$3:$R$241,2,FALSE),"") -> D228 | V92: =IF(ISNUMBER(SEARCH(CERT_db_search!$C$15,List_Input!W92)),MAX($V$2:V91)+1,0) -> 90 | W92: Dornier 228 | Y92: =IFERROR(VLOOKUP(ROWS($X$3:Y92),$V$3:$W$241,2,FALSE),"") -> Dornier 228 | Z92: =IF(ISNUMBER(SEARCH(CERT_db_search!$C$22,List_Input!AA92)),MAX($Z$2:Z91)+1,0) -> 90 | AA92: BGKL | AC92: =IFERROR(VLOOKUP(ROWS($AC$3:AC92),$Z$3:$AA$11451,2,FALSE),"") -> BGKL | AE92: =IF(ISNUMBER(SEARCH(CERT_db_search!$C$30,List_Input!AF92)),MAX($AE$2:AE91)+1,0) -> 90 | AF92: AGATTI | AH92: =IFERROR(VLOOKUP(ROWS($AH$3:AH92),$AE$3:$AF$11451,2,FALSE),"") -> AGATTI
Q93: =IF(ISNUMBER(SEARCH(CERT_db_search!$C$10,List_Input!R93)),MAX($Q$2:Q92)+1,0) -> 91 | R93: D328 | T93: =IFERROR(VLOOKUP(ROWS($T$3:T93),$Q$3:$R$241,2,FALSE),"") -> D328 | V93: =IF(ISNUMBER(SEARCH(CERT_db_search!$C$15,List_Input!W93)),MAX($V$2:V92)+1,0) -> 91 | W93: 328 | Y93: =IFERROR(VLOOKUP(ROWS($X$3:Y93),$V$3:$W$241,2,FALSE),"") -> 328 | Z93: =IF(ISNUMBER(SEARCH(CERT_db_search!$C$22,List_Input!AA93)),MAX($Z$2:Z92)+1,0) -> 91 | AA93: BGKM | AC93: =IFERROR(VLOOKUP(ROWS($AC$3:AC93),$Z$3:$AA$11451,2,FALSE),"") -> BGKM | AE93: =IF(ISNUMBER(SEARCH(CERT_db_search!$C$30,List_Input!AF93)),MAX($AE$2:AE92)+1,0) -> 91 | AF93: AGEDABIA | AH93: =IFERROR(VLOOKUP(ROWS($AH$3:AH93),$AE$3:$AF$11451,2,FALSE),"") -> AGEDABIA
Q94: =IF(ISNUMBER(SEARCH(CERT_db_search!$C$10,List_Input!R94)),MAX($Q$2:Q93)+1,0) -> 92 | R94: DC10 | T94: =IFERROR(VLOOKUP(ROWS($T$3:T94),$Q$3:$R$241,2,FALSE),"") -> DC10 | V94: =IF(ISNUMBER(SEARCH(CERT_db_search!$C$15,List_Input!W94)),MAX($V$2:V93)+1,0) -> 92 | W94: DC-10 | Y94: =IFERROR(VLOOKUP(ROWS($X$3:Y94),$V$3:$W$241,2,FALSE),"") -> DC-10 | Z94: =IF(ISNUMBER(SEARCH(CERT_db_search!$C$22,List_Input!AA94)),MAX($Z$2:Z93)+1,0) -> 92 | AA94: BGKQ | AC94: =IFERROR(VLOOKUP(ROWS($AC$3:AC94),$Z$3:$AA$11451,2,FALSE),"") -> BGKQ | AE94: =IF(ISNUMBER(SEARCH(CERT_db_search!$C$30,List_Input!AF94)),MAX($AE$2:AE93)+1,0) -> 92 | AF94: AGEN-LA GARENNE | AH94: =IFERROR(VLOOKUP(ROWS($AH$3:AH94),$AE$3:$AF$11451,2,FALSE),"") -> AGEN-LA GARENNE
Q95: =IF(ISNUMBER(SEARCH(CERT_db_search!$C$10,List_Input!R95)),MAX($Q$2:Q94)+1,0) -> 93 | R95: DC3 | T95: =IFERROR(VLOOKUP(ROWS($T$3:T95),$Q$3:$R$241,2,FALSE),"") -> DC3 | V95: =IF(ISNUMBER(SEARCH(CERT_db_search!$C$15,List_Input!W95)),MAX($V$2:V94)+1,0) -> 93 | W95: DC-3 | Y95: =IFERROR(VLOOKUP(ROWS($X$3:Y95),$V$3:$W$241,2,FALSE),"") -> DC-3 | Z95: =IF(ISNUMBER(SEARCH(CERT_db_search!$C$22,List_Input!AA95)),MAX($Z$2:Z94)+1,0) -> 93 | AA95: BGKS | AC95: =IFERROR(VLOOKUP(ROWS($AC$3:AC95),$Z$3:$AA$11451,2,FALSE),"") -> BGKS | AE95: =IF(ISNUMBER(SEARCH(CERT_db_search!$C$30,List_Input!AF95)),MAX($AE$2:AE94)+1,0) -> 93 | AF95: AGGENEYS | AH95: =IFERROR(VLOOKUP(ROWS($AH$3:AH95),$AE$3:$AF$11451,2,FALSE),"") -> AGGENEYS
Q96: =IF(ISNUMBER(SEARCH(CERT_db_search!$C$10,List_Input!R96)),MAX($Q$2:Q95)+1,0) -> 94 | R96: DC6 | T96: =IFERROR(VLOOKUP(ROWS($T$3:T96),$Q$3:$R$241,2,FALSE),"") -> DC6 | V96: =IF(ISNUMBER(SEARCH(CERT_db_search!$C$15,List_Input!W96)),MAX($V$2:V95)+1,0) -> 94 | W96: DC-6 | Y96: =IFERROR(VLOOKUP(ROWS($X$3:Y96),$V$3:$W$241,2,FALSE),"") -> DC-6 | Z96: =IF(ISNUMBER(SEARCH(CERT_db_search!$C$22,List_Input!AA96)),MAX($Z$2:Z95)+1,0) -> 94 | AA96: BGKT | AC96: =IFERROR(VLOOKUP(ROWS($AC$3:AC96),$Z$3:$AA$11451,2,FALSE),"") -> BGKT | AE96: =IF(ISNUMBER(SEARCH(CERT_db_search!$C$30,List_Input!AF96)),MAX($AE$2:AE95)+1,0) -> 94 | AF96: AGHAJARI | AH96: =IFERROR(VLOOKUP(ROWS($AH$3:AH96),$AE$3:$AF$11451,2,FALSE),"") -> AGHAJARI
Q97: =IF(ISNUMBER(SEARCH(CERT_db_search!$C$10,List_Input!R97)),MAX($Q$2:Q96)+1,0) -> 95 | R97: DC85 | T97: =IFERROR(VLOOKUP(ROWS($T$3:T97),$Q$3:$R$241,2,FALSE),"") -> DC85 | V97: =IF(ISNUMBER(SEARCH(CERT_db_search!$C$15,List_Input!W97)),MAX($V$2:V96)+1,0) -> 95 | W97: DC-8-50 | Y97: =IFERROR(VLOOKUP(ROWS($X$3:Y97),$V$3:$W$241,2,FALSE),"") -> DC-8-50 | Z97: =IF(ISNUMBER(SEARCH(CERT_db_search!$C$22,List_Input!AA97)),MAX($Z$2:Z96)+1,0) -> 95 | AA97: BGLL | AC97: =IFERROR(VLOOKUP(ROWS($AC$3:AC97),$Z$3:$AA$11451,2,FALSE),"") -> BGLL | AE97: =IF(ISNUMBER(SEARCH(CERT_db_search!$C$30,List_Input!AF97)),MAX($AE$2:AE96)+1,0) -> 95 | AF97: AGORDAT | AH97: =IFERROR(VLOOKUP(ROWS($AH$3:AH97),$AE$3:$AF$11451,2,FALSE),"") -> AGORDAT
Q98: =IF(ISNUMBER(SEARCH(CERT_db_search!$C$10,List_Input!R98)),MAX($Q$2:Q97)+1,0) -> 96 | R98: DC87 | T98: =IFERROR(VLOOKUP(ROWS($T$3:T98),$Q$3:$R$241,2,FALSE),"") -> DC87 | V98: =IF(ISNUMBER(SEARCH(CERT_db_search!$C$15,List_Input!W98)),MAX($V$2:V97)+1,0) -> 96 | W98: DC-8-70 | Y98: =IFERROR(VLOOKUP(ROWS($X$3:Y98),$V$3:$W$241,2,FALSE),"") -> DC-8-70 | Z98: =IF(ISNUMBER(SEARCH(CERT_db_search!$C$22,List_Input!AA98)),MAX($Z$2:Z97)+1,0) -> 96 | AA98: BGMO | AC98: =IFERROR(VLOOKUP(ROWS($AC$3:AC98),$Z$3:$AA$11451,2,FALSE),"") -> BGMO | AE98: =IF(ISNUMBER(SEARCH(CERT_db_search!$C$30,List_Input!AF98)),MAX($AE$2:AE97)+1,0) -> 96 | AF98: AGOSTINHO NETO/SANTA ANTAO ISLAND | AH98: =IFERROR(VLOOKUP(ROWS($AH$3:AH98),$AE$3:$AF$11451,2,FALSE),"") -> AGOSTINHO NETO/SANTA ANTAO ISLAND
Q99: =IF(ISNUMBER(SEARCH(CERT_db_search!$C$10,List_Input!R99)),MAX($Q$2:Q98)+1,0) -> 97 | R99: DC91 | T99: =IFERROR(VLOOKUP(ROWS($T$3:T99),$Q$3:$R$241,2,FALSE),"") -> DC91 | V99: =IF(ISNUMBER(SEARCH(CERT_db_search!$C$15,List_Input!W99)),MAX($V$2:V98)+1,0) -> 97 | W99: DC-9-10 | Y99: =IFERROR(VLOOKUP(ROWS($X$3:Y99),$V$3:$W$241,2,FALSE),"") -> DC-9-10 | Z99: =IF(ISNUMBER(SEARCH(CERT_db_search!$C$22,List_Input!AA99)),MAX($Z$2:Z98)+1,0) -> 97 | AA99: BGMQ | AC99: =IFERROR(VLOOKUP(ROWS($AC$3:AC99),$Z$3:$AA$11451,2,FALSE),"") -> BGMQ | AE99: =IF(ISNUMBER(SEARCH(CERT_db_search!$C$30,List_Input!AF99)),MAX($AE$2:AE98)+1,0) -> 97 | AF99: AGRA (IAF) | AH99: =IFERROR(VLOOKUP(ROWS($AH$3:AH99),$AE$3:$AF$11451,2,FALSE),"") -> AGRA (IAF)
Q100: =IF(ISNUMBER(SEARCH(CERT_db_search!$C$10,List_Input!R100)),MAX($Q$2:Q99)+1,0) -> 98 | R100: DC92 | T100: =IFERROR(VLOOKUP(ROWS($T$3:T100),$Q$3:$R$241,2,FALSE),"") -> DC92 | V100: =IF(ISNUMBER(SEARCH(CERT_db_search!$C$15,List_Input!W100)),MAX($V$2:V99)+1,0) -> 98 | W100: DC-9-20 | Y100: =IFERROR(VLOOKUP(ROWS($X$3:Y100),$V$3:$W$241,2,FALSE),"") -> DC-9-20 | Z100: =IF(ISNUMBER(SEARCH(CERT_db_search!$C$22,List_Input!AA100)),MAX($Z$2:Z99)+1,0) -> 98 | AA100: BGMV | AC100: =IFERROR(VLOOKUP(ROWS($AC$3:AC100),$Z$3:$AA$11451,2,FALSE),"") -> BGMV | AE100: =IF(ISNUMBER(SEARCH(CERT_db_search!$C$30,List_Input!AF100)),MAX($AE$2:AE99)+1,0) -> 98 | AF100: AGRI/AHMED-I HANI | AH100: =IFERROR(VLOOKUP(ROWS($AH$3:AH100),$AE$3:$AF$11451,2,FALSE),"") -> AGRI/AHMED-I HANI
Q101: =IF(ISNUMBER(SEARCH(CERT_db_search!$C$10,List_Input!R101)),MAX($Q$2:Q100)+1,0) -> 99 | R101: DC93 | T101: =IFERROR(VLOOKUP(ROWS($T$3:T101),$Q$3:$R$241,2,FALSE),"") -> DC93 | V101: =IF(ISNUMBER(SEARCH(CERT_db_search!$C$15,List_Input!W101)),MAX($V$2:V100)+1,0) -> 99 | W101: DC-9-30 | Y101: =IFERROR(VLOOKUP(ROWS($X$3:Y101),$V$3:$W$241,2,FALSE),"") -> DC-9-30 | Z101: =IF(ISNUMBER(SEARCH(CERT_db_search!$C$22,List_Input!AA101)),MAX($Z$2:Z100)+1,0) -> 99 | AA101: BGNK | AC101: =IFERROR(VLOOKUP(ROWS($AC$3:AC101),$Z$3:$AA$11451,2,FALSE),"") -> BGNK | AE101: =IF(ISNUMBER(SEARCH(CERT_db_search!$C$30,List_Input!AF101)),MAX($AE$2:AE100)+1,0) -> 99 | AF101: AGRINION | AH101: =IFERROR(VLOOKUP(ROWS($AH$3:AH101),$AE$3:$AF$11451,2,FALSE),"") -> AGRINION
Q102: =IF(ISNUMBER(SEARCH(CERT_db_search!$C$10,List_Input!R102)),MAX($Q$2:Q101)+1,0) -> 100 | R102: DC94 | T102: =IFERROR(VLOOKUP(ROWS($T$3:T102),$Q$3:$R$241,2,FALSE),"") -> DC94 | V102: =IF(ISNUMBER(SEARCH(CERT_db_search!$C$15,List_Input!W102)),MAX($V$2:V101)+1,0) -> 100 | W102: DC-9-40 | Y102: =IFERROR(VLOOKUP(ROWS($X$3:Y102),$V$3:$W$241,2,FALSE),"") -> DC-9-40 | Z102: =IF(ISNUMBER(SEARCH(CERT_db_search!$C$22,List_Input!AA102)),MAX($Z$2:Z101)+1,0) -> 100 | AA102: BGNL | AC102: =IFERROR(VLOOKUP(ROWS($AC$3:AC102),$Z$3:$AA$11451,2,FALSE),"") -> BGNL | AE102: =IF(ISNUMBER(SEARCH(CERT_db_search!$C$30,List_Input!AF102)),MAX($AE$2:AE101)+1,0) -> 100 | AF102: AGROKOR (HEL) | AH102: =IFERROR(VLOOKUP(ROWS($AH$3:AH102),$AE$3:$AF$11451,2,FALSE),"") -> AGROKOR (HEL)
Q103: =IF(ISNUMBER(SEARCH(CERT_db_search!$C$10,List_Input!R103)),MAX($Q$2:Q102)+1,0) -> 101 | R103: DC95 | T103: =IFERROR(VLOOKUP(ROWS($T$3:T103),$Q$3:$R$241,2,FALSE),"") -> DC95 | V103: =IF(ISNUMBER(SEARCH(CERT_db_search!$C$15,List_Input!W103)),MAX($V$2:V102)+1,0) -> 101 | W103: DC-9-50 | Y103: =IFERROR(VLOOKUP(ROWS($X$3:Y103),$V$3:$W$241,2,FALSE),"") -> DC-9-50 | Z103: =IF(ISNUMBER(SEARCH(CERT_db_search!$C$22,List_Input!AA103)),MAX($Z$2:Z102)+1,0) -> 101 | AA103: BGNN | AC103: =IFERROR(VLOOKUP(ROWS($AC$3:AC103),$Z$3:$AA$11451,2,FALSE),"") -> BGNN | AE103: =IF(ISNUMBER(SEARCH(CERT_db_search!$C$30,List_Input!AF103)),MAX($AE$2:AE102)+1,0) -> 101 | AF103: AGROMARINA | AH103: =IFERROR(VLOOKUP(ROWS($AH$3:AH103),$AE$3:$AF$11451,2,FALSE),"") -> AGROMARINA
Q104: =IF(ISNUMBER(SEARCH(CERT_db_search!$C$10,List_Input!R104)),MAX($Q$2:Q103)+1,0) -> 102 | R104: DH8A | T104: =IFERROR(VLOOKUP(ROWS($T$3:T104),$Q$3:$R$241,2,FALSE),"") -> DH8A | V104: =IF(ISNUMBER(SEARCH(CERT_db_search!$C$15,List_Input!W104)),MAX($V$2:V103)+1,0) -> 102 | W104: Dash 8 (100) | Y104: =IFERROR(VLOOKUP(ROWS($X$3:Y104),$V$3:$W$241,2,FALSE),"") -> Dash 8 (100) | Z104: =IF(ISNUMBER(SEARCH(CERT_db_search!$C$22,List_Input!AA104)),MAX($Z$2:Z103)+1,0) -> 102 | AA104: BGNQ | AC104: =IFERROR(VLOOKUP(ROWS($AC$3:AC104),$Z$3:$AA$11451,2,FALSE),"") -> BGNQ | AE104: =IF(ISNUMBER(SEARCH(CERT_db_search!$C$30,List_Input!AF104)),MAX($AE$2:AE103)+1,0) -> 102 | AF104: AGROPECUARIA PLAYA CALETAS | AH104: =IFERROR(VLOOKUP(ROWS($AH$3:AH104),$AE$3:$AF$11451,2,FALSE),"") -> AGROPECUARIA PLAYA CALETAS
Q105: =IF(ISNUMBER(SEARCH(CERT_db_search!$C$10,List_Input!R105)),MAX($Q$2:Q104)+1,0) -> 103 | R105: DH8B | T105: =IFERROR(VLOOKUP(ROWS($T$3:T105),$Q$3:$R$241,2,FALSE),"") -> DH8B | V105: =IF(ISNUMBER(SEARCH(CERT_db_search!$C$15,List_Input!W105)),MAX($V$2:V104)+1,0) -> 103 | W105: Dash 8 (200) | Y105: =IFERROR(VLOOKUP(ROWS($X$3:Y105),$V$3:$W$241,2,FALSE),"") -> Dash 8 (200) | Z105: =IF(ISNUMBER(SEARCH(CERT_db_search!$C$22,List_Input!AA105)),MAX($Z$2:Z104)+1,0) -> 103 | AA105: BGNS | AC105: =IFERROR(VLOOKUP(ROWS($AC$3:AC105),$Z$3:$AA$11451,2,FALSE),"") -> BGNS | AE105: =IF(ISNUMBER(SEARCH(CERT_db_search!$C$30,List_Input!AF105)),MAX($AE$2:AE104)+1,0) -> 103 | AF105: AGUACHICA HACARITAMA/CESAR | AH105: =IFERROR(VLOOKUP(ROWS($AH$3:AH105),$AE$3:$AF$11451,2,FALSE),"") -> AGUACHICA HACARITAMA/CESAR
Q106: =IF(ISNUMBER(SEARCH(CERT_db_search!$C$10,List_Input!R106)),MAX($Q$2:Q105)+1,0) -> 104 | R106: DH8C | T106: =IFERROR(VLOOKUP(ROWS($T$3:T106),$Q$3:$R$241,2,FALSE),"") -> DH8C | V106: =IF(ISNUMBER(SEARCH(CERT_db_search!$C$15,List_Input!W106)),MAX($V$2:V105)+1,0) -> 104 | W106: Dash 8 (300) | Y106: =IFERROR(VLOOKUP(ROWS($X$3:Y106),$V$3:$W$241,2,FALSE),"") -> Dash 8 (300) | Z106: =IF(ISNUMBER(SEARCH(CERT_db_search!$C$22,List_Input!AA106)),MAX($Z$2:Z105)+1,0) -> 104 | AA106: BGNT | AC106: =IFERROR(VLOOKUP(ROWS($AC$3:AC106),$Z$3:$AA$11451,2,FALSE),"") -> BGNT | AE106: =IF(ISNUMBER(SEARCH(CERT_db_search!$C$30,List_Input!AF106)),MAX($AE$2:AE105)+1,0) -> 104 | AF106: AGUAS CLARAS/NORTE DE SANTANDER | AH106: =IFERROR(VLOOKUP(ROWS($AH$3:AH106),$AE$3:$AF$11451,2,FALSE),"") -> AGUAS CLARAS/NORTE DE SANTANDER
Q107: =IF(ISNUMBER(SEARCH(CERT_db_search!$C$10,List_Input!R107)),MAX($Q$2:Q106)+1,0) -> 105 | R107: DH8D | T107: =IFERROR(VLOOKUP(ROWS($T$3:T107),$Q$3:$R$241,2,FALSE),"") -> DH8D | V107: =IF(ISNUMBER(SEARCH(CERT_db_search!$C$15,List_Input!W107)),MAX($V$2:V106)+1,0) -> 105 | W107: Dash 8 (400) | Y107: =IFERROR(VLOOKUP(ROWS($X$3:Y107),$V$3:$W$241,2,FALSE),"") -> Dash 8 (400) | Z107: =IF(ISNUMBER(SEARCH(CERT_db_search!$C$22,List_Input!AA107)),MAX($Z$2:Z106)+1,0) -> 105 | AA107: BGNU | AC107: =IFERROR(VLOOKUP(ROWS($AC$3:AC107),$Z$3:$AA$11451,2,FALSE),"") -> BGNU | AE107: =IF(ISNUMBER(SEARCH(CERT_db_search!$C$30,List_Input!AF107)),MAX($AE$2:AE106)+1,0) -> 105 | AF107: AGUASCALIENTES | AH107: =IFERROR(VLOOKUP(ROWS($AH$3:AH107),$AE$3:$AF$11451,2,FALSE),"") -> AGUASCALIENTES
Q108: =IF(ISNUMBER(SEARCH(CERT_db_search!$C$10,List_Input!R108)),MAX($Q$2:Q107)+1,0) -> 106 | R108: DHC6 | T108: =IFERROR(VLOOKUP(ROWS($T$3:T108),$Q$3:$R$241,2,FALSE),"") -> DHC6 | V108: =IF(ISNUMBER(SEARCH(CERT_db_search!$C$15,List_Input!W108)),MAX($V$2:V107)+1,0) -> 106 | W108: DHC-6 Twin Otter | Y108: =IFERROR(VLOOKUP(ROWS($X$3:Y108),$V$3:$W$241,2,FALSE),"") -> DHC-6 Twin Otter | Z108: =IF(ISNUMBER(SEARCH(CERT_db_search!$C$22,List_Input!AA108)),MAX($Z$2:Z107)+1,0) -> 106 | AA108: BGPT | AC108: =IFERROR(VLOOKUP(ROWS($AC$3:AC108),$Z$3:$AA$11451,2,FALSE),"") -> BGPT | AE108: =IF(ISNUMBER(SEARCH(CERT_db_search!$C$30,List_Input!AF108)),MAX($AE$2:AE107)+1,0) -> 106 | AF108: AGUAYO | AH108: =IFERROR(VLOOKUP(ROWS($AH$3:AH108),$AE$3:$AF$11451,2,FALSE),"") -> AGUAYO
Q109: =IF(ISNUMBER(SEARCH(CERT_db_search!$C$10,List_Input!R109)),MAX($Q$2:Q108)+1,0) -> 107 | R109: DHC7 | T109: =IFERROR(VLOOKUP(ROWS($T$3:T109),$Q$3:$R$241,2,FALSE),"") -> DHC7 | V109: =IF(ISNUMBER(SEARCH(CERT_db_search!$C$15,List_Input!W109)),MAX($V$2:V108)+1,0) -> 107 | W109: DHC-7 Dash 7 | Y109: =IFERROR(VLOOKUP(ROWS($X$3:Y109),$V$3:$W$241,2,FALSE),"") -> DHC-7 Dash 7 | Z109: =IF(ISNUMBER(SEARCH(CERT_db_search!$C$22,List_Input!AA109)),MAX($Z$2:Z108)+1,0) -> 107 | AA109: BGQE | AC109: =IFERROR(VLOOKUP(ROWS($AC$3:AC109),$Z$3:$AA$11451,2,FALSE),"") -> BGQE | AE109: =IF(ISNUMBER(SEARCH(CERT_db_search!$C$30,List_Input!AF109)),MAX($AE$2:AE108)+1,0) -> 107 | AF109: AGUNI | AH109: =IFERROR(VLOOKUP(ROWS($AH$3:AH109),$AE$3:$AF$11451,2,FALSE),"") -> AGUNI
Q110: =IF(ISNUMBER(SEARCH(CERT_db_search!$C$10,List_Input!R110)),MAX($Q$2:Q109)+1,0) -> 108 | R110: E110 | T110: =IFERROR(VLOOKUP(ROWS($T$3:T110),$Q$3:$R$241,2,FALSE),"") -> E110 | V110: =IF(ISNUMBER(SEARCH(CERT_db_search!$C$15,List_Input!W110)),MAX($V$2:V109)+1,0) -> 108 | W110: EMB-110 Bandeirante | Y110: =IFERROR(VLOOKUP(ROWS($X$3:Y110),$V$3:$W$241,2,FALSE),"") -> EMB-110 Bandeirante | Z110: =IF(ISNUMBER(SEARCH(CERT_db_search!$C$22,List_Input!AA110)),MAX($Z$2:Z109)+1,0) -> 108 | AA110: BGQQ | AC110: =IFERROR(VLOOKUP(ROWS($AC$3:AC110),$Z$3:$AA$11451,2,FALSE),"") -> BGQQ | AE110: =IF(ISNUMBER(SEARCH(CERT_db_search!$C$30,List_Input!AF110)),MAX($AE$2:AE109)+1,0) -> 108 | AF110: AHE | AH110: =IFERROR(VLOOKUP(ROWS($AH$3:AH110),$AE$3:$AF$11451,2,FALSE),"") -> AHE
Q111: =IF(ISNUMBER(SEARCH(CERT_db_search!$C$10,List_Input!R111)),MAX($Q$2:Q110)+1,0) -> 109 | R111: E120 | T111: =IFERROR(VLOOKUP(ROWS($T$3:T111),$Q$3:$R$241,2,FALSE),"") -> E120 | V111: =IF(ISNUMBER(SEARCH(CERT_db_search!$C$15,List_Input!W111)),MAX($V$2:V110)+1,0) -> 109 | W111: EMB-120 Brasilia | Y111: =IFERROR(VLOOKUP(ROWS($X$3:Y111),$V$3:$W$241,2,FALSE),"") -> EMB-120 Brasilia | Z111: =IF(ISNUMBER(SEARCH(CERT_db_search!$C$22,List_Input!AA111)),MAX($Z$2:Z110)+1,0) -> 109 | AA111: BGQT | AC111: =IFERROR(VLOOKUP(ROWS($AC$3:AC111),$Z$3:$AA$11451,2,FALSE),"") -> BGQT | AE111: =IF(ISNUMBER(SEARCH(CERT_db_search!$C$30,List_Input!AF111)),MAX($AE$2:AE110)+1,0) -> 109 | AF111: AHMED AL JABER AIR BASE | AH111: =IFERROR(VLOOKUP(ROWS($AH$3:AH111),$AE$3:$AF$11451,2,FALSE),"") -> AHMED AL JABER AIR BASE
Q112: =IF(ISNUMBER(SEARCH(CERT_db_search!$C$10,List_Input!R112)),MAX($Q$2:Q111)+1,0) -> 110 | R112: E135 | T112: =IFERROR(VLOOKUP(ROWS($T$3:T112),$Q$3:$R$241,2,FALSE),"") -> E135 | V112: =IF(ISNUMBER(SEARCH(CERT_db_search!$C$15,List_Input!W112)),MAX($V$2:V111)+1,0) -> 110 | W112: ERJ-135 | Y112: =IFERROR(VLOOKUP(ROWS($X$3:Y112),$V$3:$W$241,2,FALSE),"") -> ERJ-135 | Z112: =IF(ISNUMBER(SEARCH(CERT_db_search!$C$22,List_Input!AA112)),MAX($Z$2:Z111)+1,0) -> 110 | AA112: BGSC | AC112: =IFERROR(VLOOKUP(ROWS($AC$3:AC112),$Z$3:$AA$11451,2,FALSE),"") -> BGSC | AE112: =IF(ISNUMBER(SEARCH(CERT_db_search!$C$30,List_Input!AF112)),MAX($AE$2:AE111)+1,0) -> 110 | AF112: AHMEDABAD | AH112: =IFERROR(VLOOKUP(ROWS($AH$3:AH112),$AE$3:$AF$11451,2,FALSE),"") -> AHMEDABAD
Q113: =IF(ISNUMBER(SEARCH(CERT_db_search!$C$10,List_Input!R113)),MAX($Q$2:Q112)+1,0) -> 111 | R113: E145 | T113: =IFERROR(VLOOKUP(ROWS($T$3:T113),$Q$3:$R$241,2,FALSE),"") -> E145 | V113: =IF(ISNUMBER(SEARCH(CERT_db_search!$C$15,List_Input!W113)),MAX($V$2:V112)+1,0) -> 111 | W113: ERJ-145EP | Y113: =IFERROR(VLOOKUP(ROWS($X$3:Y113),$V$3:$W$241,2,FALSE),"") -> ERJ-145EP | Z113: =IF(ISNUMBER(SEARCH(CERT_db_search!$C$22,List_Input!AA113)),MAX($Z$2:Z112)+1,0) -> 111 | AA113: BGSF | AC113: =IFERROR(VLOOKUP(ROWS($AC$3:AC113),$Z$3:$AA$11451,2,FALSE),"") -> BGSF | AE113: =IF(ISNUMBER(SEARCH(CERT_db_search!$C$30,List_Input!AF113)),MAX($AE$2:AE112)+1,0) -> 111 | AF113: AHMOSUO | AH113: =IFERROR(VLOOKUP(ROWS($AH$3:AH113),$AE$3:$AF$11451,2,FALSE),"") -> AHMOSUO
Q114: =IF(ISNUMBER(SEARCH(CERT_db_search!$C$10,List_Input!R114)),MAX($Q$2:Q113)+1,0) -> 112 | R114: E170 | T114: =IFERROR(VLOOKUP(ROWS($T$3:T114),$Q$3:$R$241,2,FALSE),"") -> E170 | V114: =IF(ISNUMBER(SEARCH(CERT_db_search!$C$15,List_Input!W114)),MAX($V$2:V113)+1,0) -> 112 | W114: ERJ-170-100 | Y114: =IFERROR(VLOOKUP(ROWS($X$3:Y114),$V$3:$W$241,2,FALSE),"") -> ERJ-170-100 | Z114: =IF(ISNUMBER(SEARCH(CERT_db_search!$C$22,List_Input!AA114)),MAX($Z$2:Z113)+1,0) -> 112 | AA114: BGSG | AC114: =IFERROR(VLOOKUP(ROWS($AC$3:AC114),$Z$3:$AA$11451,2,FALSE),"") -> BGSG | AE114: =IF(ISNUMBER(SEARCH(CERT_db_search!$C$30,List_Input!AF114)),MAX($AE$2:AE113)+1,0) -> 112 | AF114: AHRENLOHE | AH114: =IFERROR(VLOOKUP(ROWS($AH$3:AH114),$AE$3:$AF$11451,2,FALSE),"") -> AHRENLOHE
Q115: =IF(ISNUMBER(SEARCH(CERT_db_search!$C$10,List_Input!R115)),MAX($Q$2:Q114)+1,0) -> 113 | R115: E190 | T115: =IFERROR(VLOOKUP(ROWS($T$3:T115),$Q$3:$R$241,2,FALSE),"") -> E190 | V115: =IF(ISNUMBER(SEARCH(CERT_db_search!$C$15,List_Input!W115)),MAX($V$2:V114)+1,0) -> 113 | W115: ERJ-190 Lineage 1000 | Y115: =IFERROR(VLOOKUP(ROWS($X$3:Y115),$V$3:$W$241,2,FALSE),"") -> ERJ-190 Lineage 1000 | Z115: =IF(ISNUMBER(SEARCH(CERT_db_search!$C$22,List_Input!AA115)),MAX($Z$2:Z114)+1,0) -> 113 | AA115: BGSI | AC115: =IFERROR(VLOOKUP(ROWS($AC$3:AC115),$Z$3:$AA$11451,2,FALSE),"") -> BGSI | AE115: =IF(ISNUMBER(SEARCH(CERT_db_search!$C$30,List_Input!AF115)),MAX($AE$2:AE114)+1,0) -> 113 | AF115: AHRENSFELDE BP HEL | AH115: =IFERROR(VLOOKUP(ROWS($AH$3:AH115),$AE$3:$AF$11451,2,FALSE),"") -> AHRENSFELDE BP HEL
Q116: =IF(ISNUMBER(SEARCH(CERT_db_search!$C$10,List_Input!R116)),MAX($Q$2:Q115)+1,0) -> 114 | R116: E195 | T116: =IFERROR(VLOOKUP(ROWS($T$3:T116),$Q$3:$R$241,2,FALSE),"") -> E195 | V116: =IF(ISNUMBER(SEARCH(CERT_db_search!$C$15,List_Input!W116)),MAX($V$2:V115)+1,0) -> 114 | W116: ERJ-190-200 | Y116: =IFERROR(VLOOKUP(ROWS($X$3:Y116),$V$3:$W$241,2,FALSE),"") -> ERJ-190-200 | Z116: =IF(ISNUMBER(SEARCH(CERT_db_search!$C$22,List_Input!AA116)),MAX($Z$2:Z115)+1,0) -> 114 | AA116: BGSQ | AC116: =IFERROR(VLOOKUP(ROWS($AC$3:AC116),$Z$3:$AA$11451,2,FALSE),"") -> BGSQ | AE116: =IF(ISNUMBER(SEARCH(CERT_db_search!$C$30,List_Input!AF116)),MAX($AE$2:AE115)+1,0) -> 114 | AF116: AHWAZ | AH116: =IFERROR(VLOOKUP(ROWS($AH$3:AH116),$AE$3:$AF$11451,2,FALSE),"") -> AHWAZ
Q117: =IF(ISNUMBER(SEARCH(CERT_db_search!$C$10,List_Input!R117)),MAX($Q$2:Q116)+1,0) -> 115 | R117: E35L | T117: =IFERROR(VLOOKUP(ROWS($T$3:T117),$Q$3:$R$241,2,FALSE),"") -> E35L | V117: =IF(ISNUMBER(SEARCH(CERT_db_search!$C$15,List_Input!W117)),MAX($V$2:V116)+1,0) -> 115 | W117: EMB-135BJ Legacy | Y117: =IFERROR(VLOOKUP(ROWS($X$3:Y117),$V$3:$W$241,2,FALSE),"") -> EMB-135BJ Legacy | Z117: =IF(ISNUMBER(SEARCH(CERT_db_search!$C$22,List_Input!AA117)),MAX($Z$2:Z116)+1,0) -> 115 | AA117: BGSS | AC117: =IFERROR(VLOOKUP(ROWS($AC$3:AC117),$Z$3:$AA$11451,2,FALSE),"") -> BGSS | AE117: =IF(ISNUMBER(SEARCH(CERT_db_search!$C$30,List_Input!AF117)),MAX($AE$2:AE116)+1,0) -> 115 | AF117: AI-AIS | AH117: =IFERROR(VLOOKUP(ROWS($AH$3:AH117),$AE$3:$AF$11451,2,FALSE),"") -> AI-AIS
Q118: =IF(ISNUMBER(SEARCH(CERT_db_search!$C$10,List_Input!R118)),MAX($Q$2:Q117)+1,0) -> 116 | R118: E55P | T118: =IFERROR(VLOOKUP(ROWS($T$3:T118),$Q$3:$R$241,2,FALSE),"") -> E55P | V118: =IF(ISNUMBER(SEARCH(CERT_db_search!$C$15,List_Input!W118)),MAX($V$2:V117)+1,0) -> 116 | W118: EMB-505 Phenom 300 | Y118: =IFERROR(VLOOKUP(ROWS($X$3:Y118),$V$3:$W$241,2,FALSE),"") -> EMB-505 Phenom 300 | Z118: =IF(ISNUMBER(SEARCH(CERT_db_search!$C$22,List_Input!AA118)),MAX($Z$2:Z117)+1,0) -> 116 | AA118: BGST | AC118: =IFERROR(VLOOKUP(ROWS($AC$3:AC118),$Z$3:$AA$11451,2,FALSE),"") -> BGST | AE118: =IF(ISNUMBER(SEARCH(CERT_db_search!$C$30,List_Input!AF118)),MAX($AE$2:AE117)+1,0) -> 116 | AF118: AIGEN MIL | AH118: =IFERROR(VLOOKUP(ROWS($AH$3:AH118),$AE$3:$AF$11451,2,FALSE),"") -> AIGEN MIL
Q119: =IF(ISNUMBER(SEARCH(CERT_db_search!$C$10,List_Input!R119)),MAX($Q$2:Q118)+1,0) -> 117 | R119: E75L | T119: =IFERROR(VLOOKUP(ROWS($T$3:T119),$Q$3:$R$241,2,FALSE),"") -> E75L | V119: =IF(ISNUMBER(SEARCH(CERT_db_search!$C$15,List_Input!W119)),MAX($V$2:V118)+1,0) -> 117 | W119: ERJ-170-200 (long wing) | Y119: =IFERROR(VLOOKUP(ROWS($X$3:Y119),$V$3:$W$241,2,FALSE),"") -> ERJ-170-200 (long wing) | Z119: =IF(ISNUMBER(SEARCH(CERT_db_search!$C$22,List_Input!AA119)),MAX($Z$2:Z118)+1,0) -> 117 | AA119: BGSV | AC119: =IFERROR(VLOOKUP(ROWS($AC$3:AC119),$Z$3:$AA$11451,2,FALSE),"") -> BGSV | AE119: =IF(ISNUMBER(SEARCH(CERT_db_search!$C$30,List_Input!AF119)),MAX($AE$2:AE118)+1,0) -> 117 | AF119: AIKEN MUNI | AH119: =IFERROR(VLOOKUP(ROWS($AH$3:AH119),$AE$3:$AF$11451,2,FALSE),"") -> AIKEN MUNI
Q120: =IF(ISNUMBER(SEARCH(CERT_db_search!$C$10,List_Input!R120)),MAX($Q$2:Q119)+1,0) -> 118 | R120: E75S | T120: =IFERROR(VLOOKUP(ROWS($T$3:T120),$Q$3:$R$241,2,FALSE),"") -> E75S | V120: =IF(ISNUMBER(SEARCH(CERT_db_search!$C$15,List_Input!W120)),MAX($V$2:V119)+1,0) -> 118 | W120: ERJ-170-200 (short wing) | Y120: =IFERROR(VLOOKUP(ROWS($X$3:Y120),$V$3:$W$241,2,FALSE),"") -> ERJ-170-200 (short wing) | Z120: =IF(ISNUMBER(SEARCH(CERT_db_search!$C$22,List_Input!AA120)),MAX($Z$2:Z119)+1,0) -> 118 | AA120: BGTA | AC120: =IFERROR(VLOOKUP(ROWS($AC$3:AC120),$Z$3:$AA$11451,2,FALSE),"") -> BGTA | AE120: =IF(ISNUMBER(SEARCH(CERT_db_search!$C$30,List_Input!AF120)),MAX($AE$2:AE119)+1,0) -> 118 | AF120: AILERTCHEN | AH120: =IFERROR(VLOOKUP(ROWS($AH$3:AH120),$AE$3:$AF$11451,2,FALSE),"") -> AILERTCHEN
Q121: =IF(ISNUMBER(SEARCH(CERT_db_search!$C$10,List_Input!R121)),MAX($Q$2:Q120)+1,0) -> 119 | R121: F100 | T121: =IFERROR(VLOOKUP(ROWS($T$3:T121),$Q$3:$R$241,2,FALSE),"") -> F100 | V121: =IF(ISNUMBER(SEARCH(CERT_db_search!$C$15,List_Input!W121)),MAX($V$2:V120)+1,0) -> 119 | W121: 100 | Y121: =IFERROR(VLOOKUP(ROWS($X$3:Y121),$V$3:$W$241,2,FALSE),"") -> 100 | Z121: =IF(ISNUMBER(SEARCH(CERT_db_search!$C$22,List_Input!AA121)),MAX($Z$2:Z120)+1,0) -> 119 | AA121: BGTL | AC121: =IFERROR(VLOOKUP(ROWS($AC$3:AC121),$Z$3:$AA$11451,2,FALSE),"") -> BGTL | AE121: =IF(ISNUMBER(SEARCH(CERT_db_search!$C$30,List_Input!AF121)),MAX($AE$2:AE120)+1,0) -> 119 | AF121: AIME CESAIRE, MARTINIQUE | AH121: =IFERROR(VLOOKUP(ROWS($AH$3:AH121),$AE$3:$AF$11451,2,FALSE),"") -> AIME CESAIRE, MARTINIQUE
Q122: =IF(ISNUMBER(SEARCH(CERT_db_search!$C$10,List_Input!R122)),MAX($Q$2:Q121)+1,0) -> 120 | R122: F27 | T122: =IFERROR(VLOOKUP(ROWS($T$3:T122),$Q$3:$R$241,2,FALSE),"") -> F27 | V122: =IF(ISNUMBER(SEARCH(CERT_db_search!$C$15,List_Input!W122)),MAX($V$2:V121)+1,0) -> 120 | W122: F-27 | Y122: =IFERROR(VLOOKUP(ROWS($X$3:Y122),$V$3:$W$241,2,FALSE),"") -> F-27 | Z122: =IF(ISNUMBER(SEARCH(CERT_db_search!$C$22,List_Input!AA122)),MAX($Z$2:Z121)+1,0) -> 120 | AA122: BGTN | AC122: =IFERROR(VLOOKUP(ROWS($AC$3:AC122),$Z$3:$AA$11451,2,FALSE),"") -> BGTN | AE122: =IF(ISNUMBER(SEARCH(CERT_db_search!$C$30,List_Input!AF122)),MAX($AE$2:AE121)+1,0) -> 120 | AF122: AIN OUSSERA | AH122: =IFERROR(VLOOKUP(ROWS($AH$3:AH122),$AE$3:$AF$11451,2,FALSE),"") -> AIN OUSSERA
Q123: =IF(ISNUMBER(SEARCH(CERT_db_search!$C$10,List_Input!R123)),MAX($Q$2:Q122)+1,0) -> 121 | R123: F28 | T123: =IFERROR(VLOOKUP(ROWS($T$3:T123),$Q$3:$R$241,2,FALSE),"") -> F28 | V123: =IF(ISNUMBER(SEARCH(CERT_db_search!$C$15,List_Input!W123)),MAX($V$2:V122)+1,0) -> 121 | W123: F-28 Fellowship | Y123: =IFERROR(VLOOKUP(ROWS($X$3:Y123),$V$3:$W$241,2,FALSE),"") -> F-28 Fellowship | Z123: =IF(ISNUMBER(SEARCH(CERT_db_search!$C$22,List_Input!AA123)),MAX($Z$2:Z122)+1,0) -> 121 | AA123: BGTQ | AC123: =IFERROR(VLOOKUP(ROWS($AC$3:AC123),$Z$3:$AA$11451,2,FALSE),"") -> BGTQ | AE123: =IF(ISNUMBER(SEARCH(CERT_db_search!$C$30,List_Input!AF123)),MAX($AE$2:AE122)+1,0) -> 121 | AF123: AINSWORTH RGNL | AH123: =IFERROR(VLOOKUP(ROWS($AH$3:AH123),$AE$3:$AF$11451,2,FALSE),"") -> AINSWORTH RGNL
Q124: =IF(ISNUMBER(SEARCH(CERT_db_search!$C$10,List_Input!R124)),MAX($Q$2:Q123)+1,0) -> 122 | R124: F2TH | T124: =IFERROR(VLOOKUP(ROWS($T$3:T124),$Q$3:$R$241,2,FALSE),"") -> F2TH | V124: =IF(ISNUMBER(SEARCH(CERT_db_search!$C$15,List_Input!W124)),MAX($V$2:V123)+1,0) -> 122 | W124: Falcon 2000 | Y124: =IFERROR(VLOOKUP(ROWS($X$3:Y124),$V$3:$W$241,2,FALSE),"") -> Falcon 2000 | Z124: =IF(ISNUMBER(SEARCH(CERT_db_search!$C$22,List_Input!AA124)),MAX($Z$2:Z123)+1,0) -> 122 | AA124: BGUK | AC124: =IFERROR(VLOOKUP(ROWS($AC$3:AC124),$Z$3:$AA$11451,2,FALSE),"") -> BGUK | AE124: =IF(ISNUMBER(SEARCH(CERT_db_search!$C$30,List_Input!AF124)),MAX($AE$2:AE123)+1,0) -> 122 | AF124: AIOUN EL ATROUSS | AH124: =IFERROR(VLOOKUP(ROWS($AH$3:AH124),$AE$3:$AF$11451,2,FALSE),"") -> AIOUN EL ATROUSS
Q125: =IF(ISNUMBER(SEARCH(CERT_db_search!$C$10,List_Input!R125)),MAX($Q$2:Q124)+1,0) -> 123 | R125: F50 | T125: =IFERROR(VLOOKUP(ROWS($T$3:T125),$Q$3:$R$241,2,FALSE),"") -> F50 | V125: =IF(ISNUMBER(SEARCH(CERT_db_search!$C$15,List_Input!W125)),MAX($V$2:V124)+1,0) -> 123 | W125: 50 Maritime Enforcer | Y125: =IFERROR(VLOOKUP(ROWS($X$3:Y125),$V$3:$W$241,2,FALSE),"") -> 50 Maritime Enforcer | Z125: =IF(ISNUMBER(SEARCH(CERT_db_search!$C$22,List_Input!AA125)),MAX($Z$2:Z124)+1,0) -> 123 | AA125: BGUM | AC125: =IFERROR(VLOOKUP(ROWS($AC$3:AC125),$Z$3:$AA$11451,2,FALSE),"") -> BGUM | AE125: =IF(ISNUMBER(SEARCH(CERT_db_search!$C$30,List_Input!AF125)),MAX($AE$2:AE124)+1,0) -> 123 | AF125: AIRE-SUR-L'ADOUR | AH125: =IFERROR(VLOOKUP(ROWS($AH$3:AH125),$AE$3:$AF$11451,2,FALSE),"") -> AIRE-SUR-L'ADOUR
Q126: =IF(ISNUMBER(SEARCH(CERT_db_search!$C$10,List_Input!R126)),MAX($Q$2:Q125)+1,0) -> 124 | R126: F70 | T126: =IFERROR(VLOOKUP(ROWS($T$3:T126),$Q$3:$R$241,2,FALSE),"") -> F70 | V126: =IF(ISNUMBER(SEARCH(CERT_db_search!$C$15,List_Input!W126)),MAX($V$2:V125)+1,0) -> 124 | W126: 70 | Y126: =IFERROR(VLOOKUP(ROWS($X$3:Y126),$V$3:$W$241,2,FALSE),"") -> 70 | Z126: =IF(ISNUMBER(SEARCH(CERT_db_search!$C$22,List_Input!AA126)),MAX($Z$2:Z125)+1,0) -> 124 | AA126: BGUQ | AC126: =IFERROR(VLOOKUP(ROWS($AC$3:AC126),$Z$3:$AA$11451,2,FALSE),"") -> BGUQ | AE126: =IF(ISNUMBER(SEARCH(CERT_db_search!$C$30,List_Input!AF126)),MAX($AE$2:AE125)+1,0) -> 124 | AF126: AISHALTON | AH126: =IFERROR(VLOOKUP(ROWS($AH$3:AH126),$AE$3:$AF$11451,2,FALSE),"") -> AISHALTON
Q127: =IF(ISNUMBER(SEARCH(CERT_db_search!$C$10,List_Input!R127)),MAX($Q$2:Q126)+1,0) -> 125 | R127: F900 | T127: =IFERROR(VLOOKUP(ROWS($T$3:T127),$Q$3:$R$241,2,FALSE),"") -> F900 | V127: =IF(ISNUMBER(SEARCH(CERT_db_search!$C$15,List_Input!W127)),MAX($V$2:V126)+1,0) -> 125 | W127: Falcon 900 | Y127: =IFERROR(VLOOKUP(ROWS($X$3:Y127),$V$3:$W$241,2,FALSE),"") -> Falcon 900 | Z127: =IF(ISNUMBER(SEARCH(CERT_db_search!$C$22,List_Input!AA127)),MAX($Z$2:Z126)+1,0) -> 125 | AA127: BGUT | AC127: =IFERROR(VLOOKUP(ROWS($AC$3:AC127),$Z$3:$AA$11451,2,FALSE),"") -> BGUT | AE127: =IF(ISNUMBER(SEARCH(CERT_db_search!$C$30,List_Input!AF127)),MAX($AE$2:AE126)+1,0) -> 125 | AF127: AITUTAKI | AH127: =IFERROR(VLOOKUP(ROWS($AH$3:AH127),$AE$3:$AF$11451,2,FALSE),"") -> AITUTAKI
Q128: =IF(ISNUMBER(SEARCH(CERT_db_search!$C$10,List_Input!R128)),MAX($Q$2:Q127)+1,0) -> 126 | R128: FA10 | T128: =IFERROR(VLOOKUP(ROWS($T$3:T128),$Q$3:$R$241,2,FALSE),"") -> FA10 | V128: =IF(ISNUMBER(SEARCH(CERT_db_search!$C$15,List_Input!W128)),MAX($V$2:V127)+1,0) -> 126 | W128: Falcon 10 | Y128: =IFERROR(VLOOKUP(ROWS($X$3:Y128),$V$3:$W$241,2,FALSE),"") -> Falcon 10 | Z128: =IF(ISNUMBER(SEARCH(CERT_db_search!$C$22,List_Input!AA128)),MAX($Z$2:Z127)+1,0) -> 126 | AA128: BIAR | AC128: =IFERROR(VLOOKUP(ROWS($AC$3:AC128),$Z$3:$AA$11451,2,FALSE),"") -> BIAR | AE128: =IF(ISNUMBER(SEARCH(CERT_db_search!$C$30,List_Input!AF128)),MAX($AE$2:AE127)+1,0) -> 126 | AF128: AIWAH | AH128: =IFERROR(VLOOKUP(ROWS($AH$3:AH128),$AE$3:$AF$11451,2,FALSE),"") -> AIWAH
Q129: =IF(ISNUMBER(SEARCH(CERT_db_search!$C$10,List_Input!R129)),MAX($Q$2:Q128)+1,0) -> 127 | R129: FA50 | T129: =IFERROR(VLOOKUP(ROWS($T$3:T129),$Q$3:$R$241,2,FALSE),"") -> FA50 | V129: =IF(ISNUMBER(SEARCH(CERT_db_search!$C$15,List_Input!W129)),MAX($V$2:V128)+1,0) -> 127 | W129: Falcon 50 | Y129: =IFERROR(VLOOKUP(ROWS($X$3:Y129),$V$3:$W$241,2,FALSE),"") -> Falcon 50 | Z129: =IF(ISNUMBER(SEARCH(CERT_db_search!$C$22,List_Input!AA129)),MAX($Z$2:Z128)+1,0) -> 127 | AA129: BIBA | AC129: =IFERROR(VLOOKUP(ROWS($AC$3:AC129),$Z$3:$AA$11451,2,FALSE),"") -> BIBA | AE129: =IF(ISNUMBER(SEARCH(CERT_db_search!$C$30,List_Input!AF129)),MAX($AE$2:AE128)+1,0) -> 127 | AF129: AIX LES MILLES | AH129: =IFERROR(VLOOKUP(ROWS($AH$3:AH129),$AE$3:$AF$11451,2,FALSE),"") -> AIX LES MILLES
Q130: =IF(ISNUMBER(SEARCH(CERT_db_search!$C$10,List_Input!R130)),MAX($Q$2:Q129)+1,0) -> 128 | R130: FA7X | T130: =IFERROR(VLOOKUP(ROWS($T$3:T130),$Q$3:$R$241,2,FALSE),"") -> FA7X | V130: =IF(ISNUMBER(SEARCH(CERT_db_search!$C$15,List_Input!W130)),MAX($V$2:V129)+1,0) -> 128 | W130: Falcon 7X | Y130: =IFERROR(VLOOKUP(ROWS($X$3:Y130),$V$3:$W$241,2,FALSE),"") -> Falcon 7X | Z130: =IF(ISNUMBER(SEARCH(CERT_db_search!$C$22,List_Input!AA130)),MAX($Z$2:Z129)+1,0) -> 128 | AA130: BIBF | AC130: =IFERROR(VLOOKUP(ROWS($AC$3:AC130),$Z$3:$AA$11451,2,FALSE),"") -> BIBF | AE130: =IF(ISNUMBER(SEARCH(CERT_db_search!$C$30,List_Input!AF130)),MAX($AE$2:AE129)+1,0) -> 128 | AF130: AIZWAL | AH130: =IFERROR(VLOOKUP(ROWS($AH$3:AH130),$AE$3:$AF$11451,2,FALSE),"") -> AIZWAL
Q131: =IF(ISNUMBER(SEARCH(CERT_db_search!$C$10,List_Input!R131)),MAX($Q$2:Q130)+1,0) -> 129 | R131: FA8X | T131: =IFERROR(VLOOKUP(ROWS($T$3:T131),$Q$3:$R$241,2,FALSE),"") -> FA8X | V131: =IF(ISNUMBER(SEARCH(CERT_db_search!$C$15,List_Input!W131)),MAX($V$2:V130)+1,0) -> 129 | W131: Falcon 8X | Y131: =IFERROR(VLOOKUP(ROWS($X$3:Y131),$V$3:$W$241,2,FALSE),"") -> Falcon 8X | Z131: =IF(ISNUMBER(SEARCH(CERT_db_search!$C$22,List_Input!AA131)),MAX($Z$2:Z130)+1,0) -> 129 | AA131: BIBL | AC131: =IFERROR(VLOOKUP(ROWS($AC$3:AC131),$Z$3:$AA$11451,2,FALSE),"") -> BIBL | AE131: =IF(ISNUMBER(SEARCH(CERT_db_search!$C$30,List_Input!AF131)),MAX($AE$2:AE130)+1,0) -> 129 | AF131: AJACCIO-NAPOLEON-BONAPARTE | AH131: =IFERROR(VLOOKUP(ROWS($AH$3:AH131),$AE$3:$AF$11451,2,FALSE),"") -> AJACCIO-NAPOLEON-BONAPARTE
Q132: =IF(ISNUMBER(SEARCH(CERT_db_search!$C$10,List_Input!R132)),MAX($Q$2:Q131)+1,0) -> 130 | R132: G159 | T132: =IFERROR(VLOOKUP(ROWS($T$3:T132),$Q$3:$R$241,2,FALSE),"") -> G159 | V132: =IF(ISNUMBER(SEARCH(CERT_db_search!$C$15,List_Input!W132)),MAX($V$2:V131)+1,0) -> 130 | W132: G-159 Gulfstream 1 | Y132: =IFERROR(VLOOKUP(ROWS($X$3:Y132),$V$3:$W$241,2,FALSE),"") -> G-159 Gulfstream 1 | Z132: =IF(ISNUMBER(SEARCH(CERT_db_search!$C$22,List_Input!AA132)),MAX($Z$2:Z131)+1,0) -> 130 | AA132: BIBR | AC132: =IFERROR(VLOOKUP(ROWS($AC$3:AC132),$Z$3:$AA$11451,2,FALSE),"") -> BIBR | AE132: =IF(ISNUMBER(SEARCH(CERT_db_search!$C$30,List_Input!AF132)),MAX($AE$2:AE131)+1,0) -> 130 | AF132: AJDOVSCINA | AH132: =IFERROR(VLOOKUP(ROWS($AH$3:AH132),$AE$3:$AF$11451,2,FALSE),"") -> AJDOVSCINA
Q133: =IF(ISNUMBER(SEARCH(CERT_db_search!$C$10,List_Input!R133)),MAX($Q$2:Q132)+1,0) -> 131 | R133: G280 | T133: =IFERROR(VLOOKUP(ROWS($T$3:T133),$Q$3:$R$241,2,FALSE),"") -> G280 | V133: =IF(ISNUMBER(SEARCH(CERT_db_search!$C$15,List_Input!W133)),MAX($V$2:V132)+1,0) -> 131 | W133: Gulfstream G280 | Y133: =IFERROR(VLOOKUP(ROWS($X$3:Y133),$V$3:$W$241,2,FALSE),"") -> Gulfstream G280 | Z133: =IF(ISNUMBER(SEARCH(CERT_db_search!$C$22,List_Input!AA133)),MAX($Z$2:Z132)+1,0) -> 131 | AA133: BIBV | AC133: =IFERROR(VLOOKUP(ROWS($AC$3:AC133),$Z$3:$AA$11451,2,FALSE),"") -> BIBV | AE133: =IF(ISNUMBER(SEARCH(CERT_db_search!$C$30,List_Input!AF133)),MAX($AE$2:AE132)+1,0) -> 131 | AF133: AKENO | AH133: =IFERROR(VLOOKUP(ROWS($AH$3:AH133),$AE$3:$AF$11451,2,FALSE),"") -> AKENO
Q134: =IF(ISNUMBER(SEARCH(CERT_db_search!$C$10,List_Input!R134)),MAX($Q$2:Q133)+1,0) -> 132 | R134: GL5T | T134: =IFERROR(VLOOKUP(ROWS($T$3:T134),$Q$3:$R$241,2,FALSE),"") -> GL5T | V134: =IF(ISNUMBER(SEARCH(CERT_db_search!$C$15,List_Input!W134)),MAX($V$2:V133)+1,0) -> 132 | W134: Global 5000 | Y134: =IFERROR(VLOOKUP(ROWS($X$3:Y134),$V$3:$W$241,2,FALSE),"") -> Global 5000 | Z134: =IF(ISNUMBER(SEARCH(CERT_db_search!$C$22,List_Input!AA134)),MAX($Z$2:Z133)+1,0) -> 132 | AA134: BIDV | AC134: =IFERROR(VLOOKUP(ROWS($AC$3:AC134),$Z$3:$AA$11451,2,FALSE),"") -> BIDV | AE134: =IF(ISNUMBER(SEARCH(CERT_db_search!$C$30,List_Input!AF134)),MAX($AE$2:AE133)+1,0) -> 132 | AF134: AKERSBERGA | AH134: =IFERROR(VLOOKUP(ROWS($AH$3:AH134),$AE$3:$AF$11451,2,FALSE),"") -> AKERSBERGA
Q135: =IF(ISNUMBER(SEARCH(CERT_db_search!$C$10,List_Input!R135)),MAX($Q$2:Q134)+1,0) -> 133 | R135: GLEX | T135: =IFERROR(VLOOKUP(ROWS($T$3:T135),$Q$3:$R$241,2,FALSE),"") -> GLEX | V135: =IF(ISNUMBER(SEARCH(CERT_db_search!$C$15,List_Input!W135)),MAX($V$2:V134)+1,0) -> 133 | W135: Global Express | Y135: =IFERROR(VLOOKUP(ROWS($X$3:Y135),$V$3:$W$241,2,FALSE),"") -> Global Express | Z135: =IF(ISNUMBER(SEARCH(CERT_db_search!$C$22,List_Input!AA135)),MAX($Z$2:Z134)+1,0) -> 133 | AA135: BIEG | AC135: =IFERROR(VLOOKUP(ROWS($AC$3:AC135),$Z$3:$AA$11451,2,FALSE),"") -> BIEG | AE135: =IF(ISNUMBER(SEARCH(CERT_db_search!$C$30,List_Input!AF135)),MAX($AE$2:AE134)+1,0) -> 133 | AF135: AKETI | AH135: =IFERROR(VLOOKUP(ROWS($AH$3:AH135),$AE$3:$AF$11451,2,FALSE),"") -> AKETI
Q136: =IF(ISNUMBER(SEARCH(CERT_db_search!$C$10,List_Input!R136)),MAX($Q$2:Q135)+1,0) -> 134 | R136: GLF4 | T136: =IFERROR(VLOOKUP(ROWS($T$3:T136),$Q$3:$R$241,2,FALSE),"") -> GLF4 | V136: =IF(ISNUMBER(SEARCH(CERT_db_search!$C$15,List_Input!W136)),MAX($V$2:V135)+1,0) -> 134 | W136: Gulfstream 4 | Y136: =IFERROR(VLOOKUP(ROWS($X$3:Y136),$V$3:$W$241,2,FALSE),"") -> Gulfstream 4 | Z136: =IF(ISNUMBER(SEARCH(CERT_db_search!$C$22,List_Input!AA136)),MAX($Z$2:Z135)+1,0) -> 134 | AA136: BIFL | AC136: =IFERROR(VLOOKUP(ROWS($AC$3:AC136),$Z$3:$AA$11451,2,FALSE),"") -> BIFL | AE136: =IF(ISNUMBER(SEARCH(CERT_db_search!$C$30,List_Input!AF136)),MAX($AE$2:AE135)+1,0) -> 134 | AF136: AKHIOK | AH136: =IFERROR(VLOOKUP(ROWS($AH$3:AH136),$AE$3:$AF$11451,2,FALSE),"") -> AKHIOK
Q137: =IF(ISNUMBER(SEARCH(CERT_db_search!$C$10,List_Input!R137)),MAX($Q$2:Q136)+1,0) -> 135 | R137: GLF5 | T137: =IFERROR(VLOOKUP(ROWS($T$3:T137),$Q$3:$R$241,2,FALSE),"") -> GLF5 | V137: =IF(ISNUMBER(SEARCH(CERT_db_search!$C$15,List_Input!W137)),MAX($V$2:V136)+1,0) -> 135 | W137: Gulfstream 5 | Y137: =IFERROR(VLOOKUP(ROWS($X$3:Y137),$V$3:$W$241,2,FALSE),"") -> Gulfstream 5 | Z137: =IF(ISNUMBER(SEARCH(CERT_db_search!$C$22,List_Input!AA137)),MAX($Z$2:Z136)+1,0) -> 135 | AA137: BIFM | AC137: =IFERROR(VLOOKUP(ROWS($AC$3:AC137),$Z$3:$AA$11451,2,FALSE),"") -> BIFM | AE137: =IF(ISNUMBER(SEARCH(CERT_db_search!$C$30,List_Input!AF137)),MAX($AE$2:AE136)+1,0) -> 135 | AF137: AKIAK | AH137: =IFERROR(VLOOKUP(ROWS($AH$3:AH137),$AE$3:$AF$11451,2,FALSE),"") -> AKIAK
Q138: =IF(ISNUMBER(SEARCH(CERT_db_search!$C$10,List_Input!R138)),MAX($Q$2:Q137)+1,0) -> 136 | R138: GLF6 | T138: =IFERROR(VLOOKUP(ROWS($T$3:T138),$Q$3:$R$241,2,FALSE),"") -> GLF6 | V138: =IF(ISNUMBER(SEARCH(CERT_db_search!$C$15,List_Input!W138)),MAX($V$2:V137)+1,0) -> 136 | W138: Gulfstream G650 | Y138: =IFERROR(VLOOKUP(ROWS($X$3:Y138),$V$3:$W$241,2,FALSE),"") -> Gulfstream G650 | Z138: =IF(ISNUMBER(SEARCH(CERT_db_search!$C$22,List_Input!AA138)),MAX($Z$2:Z137)+1,0) -> 136 | AA138: BIGJ | AC138: =IFERROR(VLOOKUP(ROWS($AC$3:AC138),$Z$3:$AA$11451,2,FALSE),"") -> BIGJ | AE138: =IF(ISNUMBER(SEARCH(CERT_db_search!$C$30,List_Input!AF138)),MAX($AE$2:AE137)+1,0) -> 136 | AF138: AKIM-ODA | AH138: =IFERROR(VLOOKUP(ROWS($AH$3:AH138),$AE$3:$AF$11451,2,FALSE),"") -> AKIM-ODA
Q139: =IF(ISNUMBER(SEARCH(CERT_db_search!$C$10,List_Input!R139)),MAX($Q$2:Q138)+1,0) -> 137 | R139: H25A | T139: =IFERROR(VLOOKUP(ROWS($T$3:T139),$Q$3:$R$241,2,FALSE),"") -> H25A | V139: =IF(ISNUMBER(SEARCH(CERT_db_search!$C$15,List_Input!W139)),MAX($V$2:V138)+1,0) -> 137 | W139: HS-125-1 | Y139: =IFERROR(VLOOKUP(ROWS($X$3:Y139),$V$3:$W$241,2,FALSE),"") -> HS-125-1 | Z139: =IF(ISNUMBER(SEARCH(CERT_db_search!$C$22,List_Input!AA139)),MAX($Z$2:Z138)+1,0) -> 137 | AA139: BIGR | AC139: =IFERROR(VLOOKUP(ROWS($AC$3:AC139),$Z$3:$AA$11451,2,FALSE),"") -> BIGR | AE139: =IF(ISNUMBER(SEARCH(CERT_db_search!$C$30,List_Input!AF139)),MAX($AE$2:AE138)+1,0) -> 137 | AF139: AKIMUGA | AH139: =IFERROR(VLOOKUP(ROWS($AH$3:AH139),$AE$3:$AF$11451,2,FALSE),"") -> AKIMUGA
Q140: =IF(ISNUMBER(SEARCH(CERT_db_search!$C$10,List_Input!R140)),MAX($Q$2:Q139)+1,0) -> 138 | R140: H25B | T140: =IFERROR(VLOOKUP(ROWS($T$3:T140),$Q$3:$R$241,2,FALSE),"") -> H25B | V140: =IF(ISNUMBER(SEARCH(CERT_db_search!$C$15,List_Input!W140)),MAX($V$2:V139)+1,0) -> 138 | W140: Hawker 800 | Y140: =IFERROR(VLOOKUP(ROWS($X$3:Y140),$V$3:$W$241,2,FALSE),"") -> Hawker 800 | Z140: =IF(ISNUMBER(SEARCH(CERT_db_search!$C$22,List_Input!AA140)),MAX($Z$2:Z139)+1,0) -> 138 | AA140: BIGS | AC140: =IFERROR(VLOOKUP(ROWS($AC$3:AC140),$Z$3:$AA$11451,2,FALSE),"") -> BIGS | AE140: =IF(ISNUMBER(SEARCH(CERT_db_search!$C$30,List_Input!AF140)),MAX($AE$2:AE139)+1,0) -> 138 | AF140: AKITA | AH140: =IFERROR(VLOOKUP(ROWS($AH$3:AH140),$AE$3:$AF$11451,2,FALSE),"") -> AKITA
Q141: =IF(ISNUMBER(SEARCH(CERT_db_search!$C$10,List_Input!R141)),MAX($Q$2:Q140)+1,0) -> 139 | R141: H25C | T141: =IFERROR(VLOOKUP(ROWS($T$3:T141),$Q$3:$R$241,2,FALSE),"") -> H25C | V141: =IF(ISNUMBER(SEARCH(CERT_db_search!$C$15,List_Input!W141)),MAX($V$2:V140)+1,0) -> 139 | W141: Hawker 1000 | Y141: =IFERROR(VLOOKUP(ROWS($X$3:Y141),$V$3:$W$241,2,FALSE),"") -> Hawker 1000 | Z141: =IF(ISNUMBER(SEARCH(CERT_db_search!$C$22,List_Input!AA141)),MAX($Z$2:Z140)+1,0) -> 139 | AA141: BIHE | AC141: =IFERROR(VLOOKUP(ROWS($AC$3:AC141),$Z$3:$AA$11451,2,FALSE),"") -> BIHE | AE141: =IF(ISNUMBER(SEARCH(CERT_db_search!$C$30,List_Input!AF141)),MAX($AE$2:AE140)+1,0) -> 139 | AF141: AKLAVIK/FREDDIE CARMICHAEL, NT | AH141: =IFERROR(VLOOKUP(ROWS($AH$3:AH141),$AE$3:$AF$11451,2,FALSE),"") -> AKLAVIK/FREDDIE CARMICHAEL, NT
Q142: =IF(ISNUMBER(SEARCH(CERT_db_search!$C$10,List_Input!R142)),MAX($Q$2:Q141)+1,0) -> 140 | R142: I114 | T142: =IFERROR(VLOOKUP(ROWS($T$3:T142),$Q$3:$R$241,2,FALSE),"") -> I114 | V142: =IF(ISNUMBER(SEARCH(CERT_db_search!$C$15,List_Input!W142)),MAX($V$2:V141)+1,0) -> 140 | W142: Il-114 | Y142: =IFERROR(VLOOKUP(ROWS($X$3:Y142),$V$3:$W$241,2,FALSE),"") -> Il-114 | Z142: =IF(ISNUMBER(SEARCH(CERT_db_search!$C$22,List_Input!AA142)),MAX($Z$2:Z141)+1,0) -> 140 | AA142: BIHI | AC142: =IFERROR(VLOOKUP(ROWS($AC$3:AC142),$Z$3:$AA$11451,2,FALSE),"") -> BIHI | AE142: =IF(ISNUMBER(SEARCH(CERT_db_search!$C$30,List_Input!AF142)),MAX($AE$2:AE141)+1,0) -> 140 | AF142: AKMENE | AH142: =IFERROR(VLOOKUP(ROWS($AH$3:AH142),$AE$3:$AF$11451,2,FALSE),"") -> AKMENE
Q143: =IF(ISNUMBER(SEARCH(CERT_db_search!$C$10,List_Input!R143)),MAX($Q$2:Q142)+1,0) -> 141 | R143: IL18 | T143: =IFERROR(VLOOKUP(ROWS($T$3:T143),$Q$3:$R$241,2,FALSE),"") -> IL18 | V143: =IF(ISNUMBER(SEARCH(CERT_db_search!$C$15,List_Input!W143)),MAX($V$2:V142)+1,0) -> 141 | W143: Il-18 | Y143: =IFERROR(VLOOKUP(ROWS($X$3:Y143),$V$3:$W$241,2,FALSE),"") -> Il-18 | Z143: =IF(ISNUMBER(SEARCH(CERT_db_search!$C$22,List_Input!AA143)),MAX($Z$2:Z142)+1,0) -> 141 | AA143: BIHK | AC143: =IFERROR(VLOOKUP(ROWS($AC$3:AC143),$Z$3:$AA$11451,2,FALSE),"") -> BIHK | AE143: =IF(ISNUMBER(SEARCH(CERT_db_search!$C$30,List_Input!AF143)),MAX($AE$2:AE142)+1,0) -> 141 | AF143: AKOLA | AH143: =IFERROR(VLOOKUP(ROWS($AH$3:AH143),$AE$3:$AF$11451,2,FALSE),"") -> AKOLA
Q144: =IF(ISNUMBER(SEARCH(CERT_db_search!$C$10,List_Input!R144)),MAX($Q$2:Q143)+1,0) -> 142 | R144: IL62 | T144: =IFERROR(VLOOKUP(ROWS($T$3:T144),$Q$3:$R$241,2,FALSE),"") -> IL62 | V144: =IF(ISNUMBER(SEARCH(CERT_db_search!$C$15,List_Input!W144)),MAX($V$2:V143)+1,0) -> 142 | W144: Il-62 | Y144: =IFERROR(VLOOKUP(ROWS($X$3:Y144),$V$3:$W$241,2,FALSE),"") -> Il-62 | Z144: =IF(ISNUMBER(SEARCH(CERT_db_search!$C$22,List_Input!AA144)),MAX($Z$2:Z143)+1,0) -> 142 | AA144: BIHL | AC144: =IFERROR(VLOOKUP(ROWS($AC$3:AC144),$Z$3:$AA$11451,2,FALSE),"") -> BIHL | AE144: =IF(ISNUMBER(SEARCH(CERT_db_search!$C$30,List_Input!AF144)),MAX($AE$2:AE143)+1,0) -> 142 | AF144: AKRON, OH. | AH144: =IFERROR(VLOOKUP(ROWS($AH$3:AH144),$AE$3:$AF$11451,2,FALSE),"") -> AKRON, OH.
Q145: =IF(ISNUMBER(SEARCH(CERT_db_search!$C$10,List_Input!R145)),MAX($Q$2:Q144)+1,0) -> 143 | R145: IL76 | T145: =IFERROR(VLOOKUP(ROWS($T$3:T145),$Q$3:$R$241,2,FALSE),"") -> IL76 | V145: =IF(ISNUMBER(SEARCH(CERT_db_search!$C$15,List_Input!W145)),MAX($V$2:V144)+1,0) -> 143 | W145: Il-76 | Y145: =IFERROR(VLOOKUP(ROWS($X$3:Y145),$V$3:$W$241,2,FALSE),"") -> Il-76 | Z145: =IF(ISNUMBER(SEARCH(CERT_db_search!$C$22,List_Input!AA145)),MAX($Z$2:Z144)+1,0) -> 143 | AA145: BIHN | AC145: =IFERROR(VLOOKUP(ROWS($AC$3:AC145),$Z$3:$AA$11451,2,FALSE),"") -> BIHN | AE145: =IF(ISNUMBER(SEARCH(CERT_db_search!$C$30,List_Input!AF145)),MAX($AE$2:AE144)+1,0) -> 143 | AF145: AKRON-CANTON REGIONAL | AH145: =IFERROR(VLOOKUP(ROWS($AH$3:AH145),$AE$3:$AF$11451,2,FALSE),"") -> AKRON-CANTON REGIONAL
Q146: =IF(ISNUMBER(SEARCH(CERT_db_search!$C$10,List_Input!R146)),MAX($Q$2:Q145)+1,0) -> 144 | R146: IL86 | T146: =IFERROR(VLOOKUP(ROWS($T$3:T146),$Q$3:$R$241,2,FALSE),"") -> IL86 | V146: =IF(ISNUMBER(SEARCH(CERT_db_search!$C$15,List_Input!W146)),MAX($V$2:V145)+1,0) -> 144 | W146: Il-86 | Y146: =IFERROR(VLOOKUP(ROWS($X$3:Y146),$V$3:$W$241,2,FALSE),"") -> Il-86 | Z146: =IF(ISNUMBER(SEARCH(CERT_db_search!$C$22,List_Input!AA146)),MAX($Z$2:Z145)+1,0) -> 144 | AA146: BIHU | AC146: =IFERROR(VLOOKUP(ROWS($AC$3:AC146),$Z$3:$AA$11451,2,FALSE),"") -> BIHU | AE146: =IF(ISNUMBER(SEARCH(CERT_db_search!$C$30,List_Input!AF146)),MAX($AE$2:AE145)+1,0) -> 144 | AF146: AKROTIRI MIL | AH146: =IFERROR(VLOOKUP(ROWS($AH$3:AH146),$AE$3:$AF$11451,2,FALSE),"") -> AKROTIRI MIL
Q147: =IF(ISNUMBER(SEARCH(CERT_db_search!$C$10,List_Input!R147)),MAX($Q$2:Q146)+1,0) -> 145 | R147: IL96 | T147: =IFERROR(VLOOKUP(ROWS($T$3:T147),$Q$3:$R$241,2,FALSE),"") -> IL96 | V147: =IF(ISNUMBER(SEARCH(CERT_db_search!$C$15,List_Input!W147)),MAX($V$2:V146)+1,0) -> 145 | W147: Il-96 | Y147: =IFERROR(VLOOKUP(ROWS($X$3:Y147),$V$3:$W$241,2,FALSE),"") -> Il-96 | Z147: =IF(ISNUMBER(SEARCH(CERT_db_search!$C$22,List_Input!AA147)),MAX($Z$2:Z146)+1,0) -> 145 | AA147: BIIS | AC147: =IFERROR(VLOOKUP(ROWS($AC$3:AC147),$Z$3:$AA$11451,2,FALSE),"") -> BIIS | AE147: =IF(ISNUMBER(SEARCH(CERT_db_search!$C$30,List_Input!AF147)),MAX($AE$2:AE146)+1,0) -> 145 | AF147: AKSU/WENSU | AH147: =IFERROR(VLOOKUP(ROWS($AH$3:AH147),$AE$3:$AF$11451,2,FALSE),"") -> AKSU/WENSU
Q148: =IF(ISNUMBER(SEARCH(CERT_db_search!$C$10,List_Input!R148)),MAX($Q$2:Q147)+1,0) -> 146 | R148: J328 | T148: =IFERROR(VLOOKUP(ROWS($T$3:T148),$Q$3:$R$241,2,FALSE),"") -> J328 | V148: =IF(ISNUMBER(SEARCH(CERT_db_search!$C$15,List_Input!W148)),MAX($V$2:V147)+1,0) -> 146 | W148: Dornier 328JET | Y148: =IFERROR(VLOOKUP(ROWS($X$3:Y148),$V$3:$W$241,2,FALSE),"") -> Dornier 328JET | Z148: =IF(ISNUMBER(SEARCH(CERT_db_search!$C$22,List_Input!AA148)),MAX($Z$2:Z147)+1,0) -> 146 | AA148: BIKA | AC148: =IFERROR(VLOOKUP(ROWS($AC$3:AC148),$Z$3:$AA$11451,2,FALSE),"") -> BIKA | AE148: =IF(ISNUMBER(SEARCH(CERT_db_search!$C$30,List_Input!AF148)),MAX($AE$2:AE147)+1,0) -> 146 | AF148: AKTAU | AH148: =IFERROR(VLOOKUP(ROWS($AH$3:AH148),$AE$3:$AF$11451,2,FALSE),"") -> AKTAU
Q149: =IF(ISNUMBER(SEARCH(CERT_db_search!$C$10,List_Input!R149)),MAX($Q$2:Q148)+1,0) -> 147 | R149: JS31 | T149: =IFERROR(VLOOKUP(ROWS($T$3:T149),$Q$3:$R$241,2,FALSE),"") -> JS31 | V149: =IF(ISNUMBER(SEARCH(CERT_db_search!$C$15,List_Input!W149)),MAX($V$2:V148)+1,0) -> 147 | W149: BAe-3100 Jetstream 31 | Y149: =IFERROR(VLOOKUP(ROWS($X$3:Y149),$V$3:$W$241,2,FALSE),"") -> BAe-3100 Jetstream 31 | Z149: =IF(ISNUMBER(SEARCH(CERT_db_search!$C$22,List_Input!AA149)),MAX($Z$2:Z148)+1,0) -> 147 | AA149: BIKE | AC149: =IFERROR(VLOOKUP(ROWS($AC$3:AC149),$Z$3:$AA$11451,2,FALSE),"") -> BIKE | AE149: =IF(ISNUMBER(SEARCH(CERT_db_search!$C$30,List_Input!AF149)),MAX($AE$2:AE148)+1,0) -> 147 | AF149: AKTOBE | AH149: =IFERROR(VLOOKUP(ROWS($AH$3:AH149),$AE$3:$AF$11451,2,FALSE),"") -> AKTOBE
Q150: =IF(ISNUMBER(SEARCH(CERT_db_search!$C$10,List_Input!R150)),MAX($Q$2:Q149)+1,0) -> 148 | R150: JS32 | T150: =IFERROR(VLOOKUP(ROWS($T$3:T150),$Q$3:$R$241,2,FALSE),"") -> JS32 | V150: =IF(ISNUMBER(SEARCH(CERT_db_search!$C$15,List_Input!W150)),MAX($V$2:V149)+1,0) -> 148 | W150: BAe-3200 Jetstream Super 31 | Y150: =IFERROR(VLOOKUP(ROWS($X$3:Y150),$V$3:$W$241,2,FALSE),"") -> BAe-3200 Jetstream Super 31 | Z150: =IF(ISNUMBER(SEARCH(CERT_db_search!$C$22,List_Input!AA150)),MAX($Z$2:Z149)+1,0) -> 148 | AA150: BIKF | AC150: =IFERROR(VLOOKUP(ROWS($AC$3:AC150),$Z$3:$AA$11451,2,FALSE),"") -> BIKF | AE150: =IF(ISNUMBER(SEARCH(CERT_db_search!$C$30,List_Input!AF150)),MAX($AE$2:AE149)+1,0) -> 148 | AF150: AKULIVIK, QC | AH150: =IFERROR(VLOOKUP(ROWS($AH$3:AH150),$AE$3:$AF$11451,2,FALSE),"") -> AKULIVIK, QC
Q151: =IF(ISNUMBER(SEARCH(CERT_db_search!$C$10,List_Input!R151)),MAX($Q$2:Q150)+1,0) -> 149 | R151: JS41 | T151: =IFERROR(VLOOKUP(ROWS($T$3:T151),$Q$3:$R$241,2,FALSE),"") -> JS41 | V151: =IF(ISNUMBER(SEARCH(CERT_db_search!$C$15,List_Input!W151)),MAX($V$2:V150)+1,0) -> 149 | W151: BAe-4100 Jetstream 41 | Y151: =IFERROR(VLOOKUP(ROWS($X$3:Y151),$V$3:$W$241,2,FALSE),"") -> BAe-4100 Jetstream 41 | Z151: =IF(ISNUMBER(SEARCH(CERT_db_search!$C$22,List_Input!AA151)),MAX($Z$2:Z150)+1,0) -> 149 | AA151: BIKL | AC151: =IFERROR(VLOOKUP(ROWS($AC$3:AC151),$Z$3:$AA$11451,2,FALSE),"") -> BIKL | AE151: =IF(ISNUMBER(SEARCH(CERT_db_search!$C$30,List_Input!AF151)),MAX($AE$2:AE150)+1,0) -> 149 | AF151: AKUNAQ | AH151: =IFERROR(VLOOKUP(ROWS($AH$3:AH151),$AE$3:$AF$11451,2,FALSE),"") -> AKUNAQ
Q152: =IF(ISNUMBER(SEARCH(CERT_db_search!$C$10,List_Input!R152)),MAX($Q$2:Q151)+1,0) -> 150 | R152: L101 | T152: =IFERROR(VLOOKUP(ROWS($T$3:T152),$Q$3:$R$241,2,FALSE),"") -> L101 | V152: =IF(ISNUMBER(SEARCH(CERT_db_search!$C$15,List_Input!W152)),MAX($V$2:V151)+1,0) -> 150 | W152: L-1011 TriStar | Y152: =IFERROR(VLOOKUP(ROWS($X$3:Y152),$V$3:$W$241,2,FALSE),"") -> L-1011 TriStar | Z152: =IF(ISNUMBER(SEARCH(CERT_db_search!$C$22,List_Input!AA152)),MAX($Z$2:Z151)+1,0) -> 150 | AA152: BIKP | AC152: =IFERROR(VLOOKUP(ROWS($AC$3:AC152),$Z$3:$AA$11451,2,FALSE),"") -> BIKP | AE152: =IF(ISNUMBER(SEARCH(CERT_db_search!$C$30,List_Input!AF152)),MAX($AE$2:AE151)+1,0) -> 150 | AF152: AKURE | AH152: =IFERROR(VLOOKUP(ROWS($AH$3:AH152),$AE$3:$AF$11451,2,FALSE),"") -> AKURE
Q153: =IF(ISNUMBER(SEARCH(CERT_db_search!$C$10,List_Input!R153)),MAX($Q$2:Q152)+1,0) -> 151 | R153: L188 | T153: =IFERROR(VLOOKUP(ROWS($T$3:T153),$Q$3:$R$241,2,FALSE),"") -> L188 | V153: =IF(ISNUMBER(SEARCH(CERT_db_search!$C$15,List_Input!W153)),MAX($V$2:V152)+1,0) -> 151 | W153: Electra (L-188) | Y153: =IFERROR(VLOOKUP(ROWS($X$3:Y153),$V$3:$W$241,2,FALSE),"") -> Electra (L-188) | Z153: =IF(ISNUMBER(SEARCH(CERT_db_search!$C$22,List_Input!AA153)),MAX($Z$2:Z152)+1,0) -> 151 | AA153: BIKR | AC153: =IFERROR(VLOOKUP(ROWS($AC$3:AC153),$Z$3:$AA$11451,2,FALSE),"") -> BIKR | AE153: =IF(ISNUMBER(SEARCH(CERT_db_search!$C$30,List_Input!AF153)),MAX($AE$2:AE152)+1,0) -> 151 | AF153: AKUREYRI | AH153: =IFERROR(VLOOKUP(ROWS($AH$3:AH153),$AE$3:$AF$11451,2,FALSE),"") -> AKUREYRI
Q154: =IF(ISNUMBER(SEARCH(CERT_db_search!$C$10,List_Input!R154)),MAX($Q$2:Q153)+1,0) -> 152 | R154: L410 | T154: =IFERROR(VLOOKUP(ROWS($T$3:T154),$Q$3:$R$241,2,FALSE),"") -> L410 | V154: =IF(ISNUMBER(SEARCH(CERT_db_search!$C$15,List_Input!W154)),MAX($V$2:V153)+1,0) -> 152 | W154: L-410 Turbolet | Y154: =IFERROR(VLOOKUP(ROWS($X$3:Y154),$V$3:$W$241,2,FALSE),"") -> L-410 Turbolet | Z154: =IF(ISNUMBER(SEARCH(CERT_db_search!$C$22,List_Input!AA154)),MAX($Z$2:Z153)+1,0) -> 152 | AA154: BIMK | AC154: =IFERROR(VLOOKUP(ROWS($AC$3:AC154),$Z$3:$AA$11451,2,FALSE),"") -> BIMK | AE154: =IF(ISNUMBER(SEARCH(CERT_db_search!$C$30,List_Input!AF154)),MAX($AE$2:AE153)+1,0) -> 152 | AF154: AKUSE | AH154: =IFERROR(VLOOKUP(ROWS($AH$3:AH154),$AE$3:$AF$11451,2,FALSE),"") -> AKUSE
Q155: =IF(ISNUMBER(SEARCH(CERT_db_search!$C$10,List_Input!R155)),MAX($Q$2:Q154)+1,0) -> 153 | R155: LJ25 | T155: =IFERROR(VLOOKUP(ROWS($T$3:T155),$Q$3:$R$241,2,FALSE),"") -> LJ25 | V155: =IF(ISNUMBER(SEARCH(CERT_db_search!$C$15,List_Input!W155)),MAX($V$2:V154)+1,0) -> 153 | W155: 25 | Y155: =IFERROR(VLOOKUP(ROWS($X$3:Y155),$V$3:$W$241,2,FALSE),"") -> 25 | Z155: =IF(ISNUMBER(SEARCH(CERT_db_search!$C$22,List_Input!AA155)),MAX($Z$2:Z154)+1,0) -> 153 | AA155: BIMM | AC155: =IFERROR(VLOOKUP(ROWS($AC$3:AC155),$Z$3:$AA$11451,2,FALSE),"") -> BIMM | AE155: =IF(ISNUMBER(SEARCH(CERT_db_search!$C$30,List_Input!AF155)),MAX($AE$2:AE154)+1,0) -> 153 | AF155: AL AHSA | AH155: =IFERROR(VLOOKUP(ROWS($AH$3:AH155),$AE$3:$AF$11451,2,FALSE),"") -> AL AHSA
Q156: =IF(ISNUMBER(SEARCH(CERT_db_search!$C$10,List_Input!R156)),MAX($Q$2:Q155)+1,0) -> 154 | R156: LJ31 | T156: =IFERROR(VLOOKUP(ROWS($T$3:T156),$Q$3:$R$241,2,FALSE),"") -> LJ31 | V156: =IF(ISNUMBER(SEARCH(CERT_db_search!$C$15,List_Input!W156)),MAX($V$2:V155)+1,0) -> 154 | W156: 31 | Y156: =IFERROR(VLOOKUP(ROWS($X$3:Y156),$V$3:$W$241,2,FALSE),"") -> 31 | Z156: =IF(ISNUMBER(SEARCH(CERT_db_search!$C$22,List_Input!AA156)),MAX($Z$2:Z155)+1,0) -> 154 | AA156: BIMS | AC156: =IFERROR(VLOOKUP(ROWS($AC$3:AC156),$Z$3:$AA$11451,2,FALSE),"") -> BIMS | AE156: =IF(ISNUMBER(SEARCH(CERT_db_search!$C$30,List_Input!AF156)),MAX($AE$2:AE155)+1,0) -> 154 | AF156: AL AIN INTERNATIONAL | AH156: =IFERROR(VLOOKUP(ROWS($AH$3:AH156),$AE$3:$AF$11451,2,FALSE),"") -> AL AIN INTERNATIONAL
Q157: =IF(ISNUMBER(SEARCH(CERT_db_search!$C$10,List_Input!R157)),MAX($Q$2:Q156)+1,0) -> 155 | R157: LJ35 | T157: =IFERROR(VLOOKUP(ROWS($T$3:T157),$Q$3:$R$241,2,FALSE),"") -> LJ35 | V157: =IF(ISNUMBER(SEARCH(CERT_db_search!$C$15,List_Input!W157)),MAX($V$2:V156)+1,0) -> 155 | W157: 35 | Y157: =IFERROR(VLOOKUP(ROWS($X$3:Y157),$V$3:$W$241,2,FALSE),"") -> 35 | Z157: =IF(ISNUMBER(SEARCH(CERT_db_search!$C$22,List_Input!AA157)),MAX($Z$2:Z156)+1,0) -> 155 | AA157: BIND | AC157: =IFERROR(VLOOKUP(ROWS($AC$3:AC157),$Z$3:$AA$11451,2,FALSE),"") -> BIND | AE157: =IF(ISNUMBER(SEARCH(CERT_db_search!$C$30,List_Input!AF157)),MAX($AE$2:AE156)+1,0) -> 155 | AF157: AL ALAMAIN/INTL | AH157: =IFERROR(VLOOKUP(ROWS($AH$3:AH157),$AE$3:$AF$11451,2,FALSE),"") -> AL ALAMAIN/INTL
Q158: =IF(ISNUMBER(SEARCH(CERT_db_search!$C$10,List_Input!R158)),MAX($Q$2:Q157)+1,0) -> 156 | R158: LJ40 | T158: =IFERROR(VLOOKUP(ROWS($T$3:T158),$Q$3:$R$241,2,FALSE),"") -> LJ40 | V158: =IF(ISNUMBER(SEARCH(CERT_db_search!$C$15,List_Input!W158)),MAX($V$2:V157)+1,0) -> 156 | W158: 40 | Y158: =IFERROR(VLOOKUP(ROWS($X$3:Y158),$V$3:$W$241,2,FALSE),"") -> 40 | Z158: =IF(ISNUMBER(SEARCH(CERT_db_search!$C$22,List_Input!AA158)),MAX($Z$2:Z157)+1,0) -> 156 | AA158: BINF | AC158: =IFERROR(VLOOKUP(ROWS($AC$3:AC158),$Z$3:$AA$11451,2,FALSE),"") -> BINF | AE158: =IF(ISNUMBER(SEARCH(CERT_db_search!$C$30,List_Input!AF158)),MAX($AE$2:AE157)+1,0) -> 156 | AF158: AL ASAD | AH158: =IFERROR(VLOOKUP(ROWS($AH$3:AH158),$AE$3:$AF$11451,2,FALSE),"") -> AL ASAD
Q159: =IF(ISNUMBER(SEARCH(CERT_db_search!$C$10,List_Input!R159)),MAX($Q$2:Q158)+1,0) -> 157 | R159: LJ45 | T159: =IFERROR(VLOOKUP(ROWS($T$3:T159),$Q$3:$R$241,2,FALSE),"") -> LJ45 | V159: =IF(ISNUMBER(SEARCH(CERT_db_search!$C$15,List_Input!W159)),MAX($V$2:V158)+1,0) -> 157 | W159: 45 | Y159: =IFERROR(VLOOKUP(ROWS($X$3:Y159),$V$3:$W$241,2,FALSE),"") -> 45 | Z159: =IF(ISNUMBER(SEARCH(CERT_db_search!$C$22,List_Input!AA159)),MAX($Z$2:Z158)+1,0) -> 157 | AA159: BIRE | AC159: =IFERROR(VLOOKUP(ROWS($AC$3:AC159),$Z$3:$AA$11451,2,FALSE),"") -> BIRE | AE159: =IF(ISNUMBER(SEARCH(CERT_db_search!$C$30,List_Input!AF159)),MAX($AE$2:AE158)+1,0) -> 157 | AF159: AL BAHA/KING SAUD BIN ABDULAZIZ AIRPORT | AH159: =IFERROR(VLOOKUP(ROWS($AH$3:AH159),$AE$3:$AF$11451,2,FALSE),"") -> AL BAHA/KING SAUD BIN ABDULAZIZ AIRPORT
Q160: =IF(ISNUMBER(SEARCH(CERT_db_search!$C$10,List_Input!R160)),MAX($Q$2:Q159)+1,0) -> 158 | R160: LJ55 | T160: =IFERROR(VLOOKUP(ROWS($T$3:T160),$Q$3:$R$241,2,FALSE),"") -> LJ55 | V160: =IF(ISNUMBER(SEARCH(CERT_db_search!$C$15,List_Input!W160)),MAX($V$2:V159)+1,0) -> 158 | W160: 55 | Y160: =IFERROR(VLOOKUP(ROWS($X$3:Y160),$V$3:$W$241,2,FALSE),"") -> 55 | Z160: =IF(ISNUMBER(SEARCH(CERT_db_search!$C$22,List_Input!AA160)),MAX($Z$2:Z159)+1,0) -> 158 | AA160: BIRF | AC160: =IFERROR(VLOOKUP(ROWS($AC$3:AC160),$Z$3:$AA$11451,2,FALSE),"") -> BIRF | AE160: =IF(ISNUMBER(SEARCH(CERT_db_search!$C$30,List_Input!AF160)),MAX($AE$2:AE159)+1,0) -> 158 | AF160: AL DAWADMI | AH160: =IFERROR(VLOOKUP(ROWS($AH$3:AH160),$AE$3:$AF$11451,2,FALSE),"") -> AL DAWADMI
Q161: =IF(ISNUMBER(SEARCH(CERT_db_search!$C$10,List_Input!R161)),MAX($Q$2:Q160)+1,0) -> 159 | R161: LJ60 | T161: =IFERROR(VLOOKUP(ROWS($T$3:T161),$Q$3:$R$241,2,FALSE),"") -> LJ60 | V161: =IF(ISNUMBER(SEARCH(CERT_db_search!$C$15,List_Input!W161)),MAX($V$2:V160)+1,0) -> 159 | W161: 60 | Y161: =IFERROR(VLOOKUP(ROWS($X$3:Y161),$V$3:$W$241,2,FALSE),"") -> 60 | Z161: =IF(ISNUMBER(SEARCH(CERT_db_search!$C$22,List_Input!AA161)),MAX($Z$2:Z160)+1,0) -> 159 | AA161: BIRG | AC161: =IFERROR(VLOOKUP(ROWS($AC$3:AC161),$Z$3:$AA$11451,2,FALSE),"") -> BIRG | AE161: =IF(ISNUMBER(SEARCH(CERT_db_search!$C$30,List_Input!AF161)),MAX($AE$2:AE160)+1,0) -> 159 | AF161: AL DHAFRA (MIL) | AH161: =IFERROR(VLOOKUP(ROWS($AH$3:AH161),$AE$3:$AF$11451,2,FALSE),"") -> AL DHAFRA (MIL)
Q162: =IF(ISNUMBER(SEARCH(CERT_db_search!$C$10,List_Input!R162)),MAX($Q$2:Q161)+1,0) -> 160 | R162: LJ70 | T162: =IFERROR(VLOOKUP(ROWS($T$3:T162),$Q$3:$R$241,2,FALSE),"") -> LJ70 | V162: =IF(ISNUMBER(SEARCH(CERT_db_search!$C$15,List_Input!W162)),MAX($V$2:V161)+1,0) -> 160 | W162: 70 | Y162: =IFERROR(VLOOKUP(ROWS($X$3:Y162),$V$3:$W$241,2,FALSE),"") -> 70 | Z162: =IF(ISNUMBER(SEARCH(CERT_db_search!$C$22,List_Input!AA162)),MAX($Z$2:Z161)+1,0) -> 160 | AA162: BIRK | AC162: =IFERROR(VLOOKUP(ROWS($AC$3:AC162),$Z$3:$AA$11451,2,FALSE),"") -> BIRK | AE162: =IF(ISNUMBER(SEARCH(CERT_db_search!$C$30,List_Input!AF162)),MAX($AE$2:AE161)+1,0) -> 160 | AF162: AL HAMRA (MIL) | AH162: =IFERROR(VLOOKUP(ROWS($AH$3:AH162),$AE$3:$AF$11451,2,FALSE),"") -> AL HAMRA (MIL)
Q163: =IF(ISNUMBER(SEARCH(CERT_db_search!$C$10,List_Input!R163)),MAX($Q$2:Q162)+1,0) -> 161 | R163: LJ75 | T163: =IFERROR(VLOOKUP(ROWS($T$3:T163),$Q$3:$R$241,2,FALSE),"") -> LJ75 | V163: =IF(ISNUMBER(SEARCH(CERT_db_search!$C$15,List_Input!W163)),MAX($V$2:V162)+1,0) -> 161 | W163: 75 | Y163: =IFERROR(VLOOKUP(ROWS($X$3:Y163),$V$3:$W$241,2,FALSE),"") -> 75 | Z163: =IF(ISNUMBER(SEARCH(CERT_db_search!$C$22,List_Input!AA163)),MAX($Z$2:Z162)+1,0) -> 161 | AA163: BIRL | AC163: =IFERROR(VLOOKUP(ROWS($AC$3:AC163),$Z$3:$AA$11451,2,FALSE),"") -> BIRL | AE163: =IF(ISNUMBER(SEARCH(CERT_db_search!$C$30,List_Input!AF163)),MAX($AE$2:AE162)+1,0) -> 161 | AF163: AL HAWTAH | AH163: =IFERROR(VLOOKUP(ROWS($AH$3:AH163),$AE$3:$AF$11451,2,FALSE),"") -> AL HAWTAH
Q164: =IF(ISNUMBER(SEARCH(CERT_db_search!$C$10,List_Input!R164)),MAX($Q$2:Q163)+1,0) -> 162 | R164: MD11 | T164: =IFERROR(VLOOKUP(ROWS($T$3:T164),$Q$3:$R$241,2,FALSE),"") -> MD11 | V164: =IF(ISNUMBER(SEARCH(CERT_db_search!$C$15,List_Input!W164)),MAX($V$2:V163)+1,0) -> 162 | W164: MD-11 | Y164: =IFERROR(VLOOKUP(ROWS($X$3:Y164),$V$3:$W$241,2,FALSE),"") -> MD-11 | Z164: =IF(ISNUMBER(SEARCH(CERT_db_search!$C$22,List_Input!AA164)),MAX($Z$2:Z163)+1,0) -> 162 | AA164: BIRS | AC164: =IFERROR(VLOOKUP(ROWS($AC$3:AC164),$Z$3:$AA$11451,2,FALSE),"") -> BIRS | AE164: =IF(ISNUMBER(SEARCH(CERT_db_search!$C$30,List_Input!AF164)),MAX($AE$2:AE163)+1,0) -> 162 | AF164: AL HOCEIMA/CHERIF EL IDRISSI | AH164: =IFERROR(VLOOKUP(ROWS($AH$3:AH164),$AE$3:$AF$11451,2,FALSE),"") -> AL HOCEIMA/CHERIF EL IDRISSI
Q165: =IF(ISNUMBER(SEARCH(CERT_db_search!$C$10,List_Input!R165)),MAX($Q$2:Q164)+1,0) -> 163 | R165: MD81 | T165: =IFERROR(VLOOKUP(ROWS($T$3:T165),$Q$3:$R$241,2,FALSE),"") -> MD81 | V165: =IF(ISNUMBER(SEARCH(CERT_db_search!$C$15,List_Input!W165)),MAX($V$2:V164)+1,0) -> 163 | W165: MD-81 | Y165: =IFERROR(VLOOKUP(ROWS($X$3:Y165),$V$3:$W$241,2,FALSE),"") -> MD-81 | Z165: =IF(ISNUMBER(SEARCH(CERT_db_search!$C$22,List_Input!AA165)),MAX($Z$2:Z164)+1,0) -> 163 | AA165: BISF | AC165: =IFERROR(VLOOKUP(ROWS($AC$3:AC165),$Z$3:$AA$11451,2,FALSE),"") -> BISF | AE165: =IF(ISNUMBER(SEARCH(CERT_db_search!$C$30,List_Input!AF165)),MAX($AE$2:AE164)+1,0) -> 163 | AF165: AL JOUF | AH165: =IFERROR(VLOOKUP(ROWS($AH$3:AH165),$AE$3:$AF$11451,2,FALSE),"") -> AL JOUF
Q166: =IF(ISNUMBER(SEARCH(CERT_db_search!$C$10,List_Input!R166)),MAX($Q$2:Q165)+1,0) -> 164 | R166: MD82 | T166: =IFERROR(VLOOKUP(ROWS($T$3:T166),$Q$3:$R$241,2,FALSE),"") -> MD82 | V166: =IF(ISNUMBER(SEARCH(CERT_db_search!$C$15,List_Input!W166)),MAX($V$2:V165)+1,0) -> 164 | W166: MD-82 | Y166: =IFERROR(VLOOKUP(ROWS($X$3:Y166),$V$3:$W$241,2,FALSE),"") -> MD-82 | Z166: =IF(ISNUMBER(SEARCH(CERT_db_search!$C$22,List_Input!AA166)),MAX($Z$2:Z165)+1,0) -> 164 | AA166: BISK | AC166: =IFERROR(VLOOKUP(ROWS($AC$3:AC166),$Z$3:$AA$11451,2,FALSE),"") -> BISK | AE166: =IF(ISNUMBER(SEARCH(CERT_db_search!$C$30,List_Input!AF166)),MAX($AE$2:AE165)+1,0) -> 164 | AF166: AL KHARJ | AH166: =IFERROR(VLOOKUP(ROWS($AH$3:AH166),$AE$3:$AF$11451,2,FALSE),"") -> AL KHARJ
Q167: =IF(ISNUMBER(SEARCH(CERT_db_search!$C$10,List_Input!R167)),MAX($Q$2:Q166)+1,0) -> 165 | R167: MD83 | T167: =IFERROR(VLOOKUP(ROWS($T$3:T167),$Q$3:$R$241,2,FALSE),"") -> MD83 | V167: =IF(ISNUMBER(SEARCH(CERT_db_search!$C$15,List_Input!W167)),MAX($V$2:V166)+1,0) -> 165 | W167: MD-83 | Y167: =IFERROR(VLOOKUP(ROWS($X$3:Y167),$V$3:$W$241,2,FALSE),"") -> MD-83 | Z167: =IF(ISNUMBER(SEARCH(CERT_db_search!$C$22,List_Input!AA167)),MAX($Z$2:Z166)+1,0) -> 165 | AA167: BISR | AC167: =IFERROR(VLOOKUP(ROWS($AC$3:AC167),$Z$3:$AA$11451,2,FALSE),"") -> BISR | AE167: =IF(ISNUMBER(SEARCH(CERT_db_search!$C$30,List_Input!AF167)),MAX($AE$2:AE166)+1,0) -> 165 | AF167: AL KHOR | AH167: =IFERROR(VLOOKUP(ROWS($AH$3:AH167),$AE$3:$AF$11451,2,FALSE),"") -> AL KHOR
Q168: =IF(ISNUMBER(SEARCH(CERT_db_search!$C$10,List_Input!R168)),MAX($Q$2:Q167)+1,0) -> 166 | R168: MD87 | T168: =IFERROR(VLOOKUP(ROWS($T$3:T168),$Q$3:$R$241,2,FALSE),"") -> MD87 | V168: =IF(ISNUMBER(SEARCH(CERT_db_search!$C$15,List_Input!W168)),MAX($V$2:V167)+1,0) -> 166 | W168: MD-87 | Y168: =IFERROR(VLOOKUP(ROWS($X$3:Y168),$V$3:$W$241,2,FALSE),"") -> MD-87 | Z168: =IF(ISNUMBER(SEARCH(CERT_db_search!$C$22,List_Input!AA168)),MAX($Z$2:Z167)+1,0) -> 166 | AA168: BISS | AC168: =IFERROR(VLOOKUP(ROWS($AC$3:AC168),$Z$3:$AA$11451,2,FALSE),"") -> BISS | AE168: =IF(ISNUMBER(SEARCH(CERT_db_search!$C$30,List_Input!AF168)),MAX($AE$2:AE167)+1,0) -> 166 | AF168: AL QAIM | AH168: =IFERROR(VLOOKUP(ROWS($AH$3:AH168),$AE$3:$AF$11451,2,FALSE),"") -> AL QAIM
Q169: =IF(ISNUMBER(SEARCH(CERT_db_search!$C$10,List_Input!R169)),MAX($Q$2:Q168)+1,0) -> 167 | R169: MD88 | T169: =IFERROR(VLOOKUP(ROWS($T$3:T169),$Q$3:$R$241,2,FALSE),"") -> MD88 | V169: =IF(ISNUMBER(SEARCH(CERT_db_search!$C$15,List_Input!W169)),MAX($V$2:V168)+1,0) -> 167 | W169: MD-88 | Y169: =IFERROR(VLOOKUP(ROWS($X$3:Y169),$V$3:$W$241,2,FALSE),"") -> MD-88 | Z169: =IF(ISNUMBER(SEARCH(CERT_db_search!$C$22,List_Input!AA169)),MAX($Z$2:Z168)+1,0) -> 167 | AA169: BIST | AC169: =IFERROR(VLOOKUP(ROWS($AC$3:AC169),$Z$3:$AA$11451,2,FALSE),"") -> BIST | AE169: =IF(ISNUMBER(SEARCH(CERT_db_search!$C$30,List_Input!AF169)),MAX($AE$2:AE168)+1,0) -> 167 | AF169: AL QAISUMAH/HAFR AL BATIN | AH169: =IFERROR(VLOOKUP(ROWS($AH$3:AH169),$AE$3:$AF$11451,2,FALSE),"") -> AL QAISUMAH/HAFR AL BATIN
Q170: =IF(ISNUMBER(SEARCH(CERT_db_search!$C$10,List_Input!R170)),MAX($Q$2:Q169)+1,0) -> 168 | R170: MD90 | T170: =IFERROR(VLOOKUP(ROWS($T$3:T170),$Q$3:$R$241,2,FALSE),"") -> MD90 | V170: =IF(ISNUMBER(SEARCH(CERT_db_search!$C$15,List_Input!W170)),MAX($V$2:V169)+1,0) -> 168 | W170: MD-90 | Y170: =IFERROR(VLOOKUP(ROWS($X$3:Y170),$V$3:$W$241,2,FALSE),"") -> MD-90 | Z170: =IF(ISNUMBER(SEARCH(CERT_db_search!$C$22,List_Input!AA170)),MAX($Z$2:Z169)+1,0) -> 168 | AA170: BISV | AC170: =IFERROR(VLOOKUP(ROWS($AC$3:AC170),$Z$3:$AA$11451,2,FALSE),"") -> BISV | AE170: =IF(ISNUMBER(SEARCH(CERT_db_search!$C$30,List_Input!AF170)),MAX($AE$2:AE169)+1,0) -> 168 | AF170: AL TAJI | AH170: =IFERROR(VLOOKUP(ROWS($AH$3:AH170),$AE$3:$AF$11451,2,FALSE),"") -> AL TAJI
Q171: =IF(ISNUMBER(SEARCH(CERT_db_search!$C$10,List_Input!R171)),MAX($Q$2:Q170)+1,0) -> 169 | R171: N262 | T171: =IFERROR(VLOOKUP(ROWS($T$3:T171),$Q$3:$R$241,2,FALSE),"") -> N262 | V171: =IF(ISNUMBER(SEARCH(CERT_db_search!$C$15,List_Input!W171)),MAX($V$2:V170)+1,0) -> 169 | W171: N-262 Frégate | Y171: =IFERROR(VLOOKUP(ROWS($X$3:Y171),$V$3:$W$241,2,FALSE),"") -> N-262 Frégate | Z171: =IF(ISNUMBER(SEARCH(CERT_db_search!$C$22,List_Input!AA171)),MAX($Z$2:Z170)+1,0) -> 169 | AA171: BITE | AC171: =IFERROR(VLOOKUP(ROWS($AC$3:AC171),$Z$3:$AA$11451,2,FALSE),"") -> BITE | AE171: =IF(ISNUMBER(SEARCH(CERT_db_search!$C$30,List_Input!AF171)),MAX($AE$2:AE170)+1,0) -> 169 | AF171: AL UDAID AIRBASE | AH171: =IFERROR(VLOOKUP(ROWS($AH$3:AH171),$AE$3:$AF$11451,2,FALSE),"") -> AL UDAID AIRBASE
Q172: =IF(ISNUMBER(SEARCH(CERT_db_search!$C$10,List_Input!R172)),MAX($Q$2:Q171)+1,0) -> 170 | R172: RJ1H | T172: =IFERROR(VLOOKUP(ROWS($T$3:T172),$Q$3:$R$241,2,FALSE),"") -> RJ1H | V172: =IF(ISNUMBER(SEARCH(CERT_db_search!$C$15,List_Input!W172)),MAX($V$2:V171)+1,0) -> 170 | W172: RJ-100 Avroliner | Y172: =IFERROR(VLOOKUP(ROWS($X$3:Y172),$V$3:$W$241,2,FALSE),"") -> RJ-100 Avroliner | Z172: =IF(ISNUMBER(SEARCH(CERT_db_search!$C$22,List_Input!AA172)),MAX($Z$2:Z171)+1,0) -> 170 | AA172: BITM | AC172: =IFERROR(VLOOKUP(ROWS($AC$3:AC172),$Z$3:$AA$11451,2,FALSE),"") -> BITM | AE172: =IF(ISNUMBER(SEARCH(CERT_db_search!$C$30,List_Input!AF172)),MAX($AE$2:AE171)+1,0) -> 170 | AF172: ALABAT, QUEZON | AH172: =IFERROR(VLOOKUP(ROWS($AH$3:AH172),$AE$3:$AF$11451,2,FALSE),"") -> ALABAT, QUEZON
Q173: =IF(ISNUMBER(SEARCH(CERT_db_search!$C$10,List_Input!R173)),MAX($Q$2:Q172)+1,0) -> 171 | R173: RJ70 | T173: =IFERROR(VLOOKUP(ROWS($T$3:T173),$Q$3:$R$241,2,FALSE),"") -> RJ70 | V173: =IF(ISNUMBER(SEARCH(CERT_db_search!$C$15,List_Input!W173)),MAX($V$2:V172)+1,0) -> 171 | W173: RJ-70 Avroliner | Y173: =IFERROR(VLOOKUP(ROWS($X$3:Y173),$V$3:$W$241,2,FALSE),"") -> RJ-70 Avroliner | Z173: =IF(ISNUMBER(SEARCH(CERT_db_search!$C$22,List_Input!AA173)),MAX($Z$2:Z172)+1,0) -> 171 | AA173: BITN | AC173: =IFERROR(VLOOKUP(ROWS($AC$3:AC173),$Z$3:$AA$11451,2,FALSE),"") -> BITN | AE173: =IF(ISNUMBER(SEARCH(CERT_db_search!$C$30,List_Input!AF173)),MAX($AE$2:AE172)+1,0) -> 171 | AF173: AL-ABR | AH173: =IFERROR(VLOOKUP(ROWS($AH$3:AH173),$AE$3:$AF$11451,2,FALSE),"") -> AL-ABR
Q174: =IF(ISNUMBER(SEARCH(CERT_db_search!$C$10,List_Input!R174)),MAX($Q$2:Q173)+1,0) -> 172 | R174: RJ85 | T174: =IFERROR(VLOOKUP(ROWS($T$3:T174),$Q$3:$R$241,2,FALSE),"") -> RJ85 | V174: =IF(ISNUMBER(SEARCH(CERT_db_search!$C$15,List_Input!W174)),MAX($V$2:V173)+1,0) -> 172 | W174: RJ-85 Avroliner | Y174: =IFERROR(VLOOKUP(ROWS($X$3:Y174),$V$3:$W$241,2,FALSE),"") -> RJ-85 Avroliner | Z174: =IF(ISNUMBER(SEARCH(CERT_db_search!$C$22,List_Input!AA174)),MAX($Z$2:Z173)+1,0) -> 172 | AA174: BIVI | AC174: =IFERROR(VLOOKUP(ROWS($AC$3:AC174),$Z$3:$AA$11451,2,FALSE),"") -> BIVI | AE174: =IF(ISNUMBER(SEARCH(CERT_db_search!$C$30,List_Input!AF174)),MAX($AE$2:AE173)+1,0) -> 172 | AF174: ALAJUELA | AH174: =IFERROR(VLOOKUP(ROWS($AH$3:AH174),$AE$3:$AF$11451,2,FALSE),"") -> ALAJUELA
Q175: =IF(ISNUMBER(SEARCH(CERT_db_search!$C$10,List_Input!R175)),MAX($Q$2:Q174)+1,0) -> 173 | R175: S601 | T175: =IFERROR(VLOOKUP(ROWS($T$3:T175),$Q$3:$R$241,2,FALSE),"") -> S601 | V175: =IF(ISNUMBER(SEARCH(CERT_db_search!$C$15,List_Input!W175)),MAX($V$2:V174)+1,0) -> 173 | W175: SN-601 Corvette | Y175: =IFERROR(VLOOKUP(ROWS($X$3:Y175),$V$3:$W$241,2,FALSE),"") -> SN-601 Corvette | Z175: =IF(ISNUMBER(SEARCH(CERT_db_search!$C$22,List_Input!AA175)),MAX($Z$2:Z174)+1,0) -> 173 | AA175: BIVM | AC175: =IFERROR(VLOOKUP(ROWS($AC$3:AC175),$Z$3:$AA$11451,2,FALSE),"") -> BIVM | AE175: =IF(ISNUMBER(SEARCH(CERT_db_search!$C$30,List_Input!AF175)),MAX($AE$2:AE174)+1,0) -> 173 | AF175: ALAJUELA/JUAN SANTAMARIA INTL. | AH175: =IFERROR(VLOOKUP(ROWS($AH$3:AH175),$AE$3:$AF$11451,2,FALSE),"") -> ALAJUELA/JUAN SANTAMARIA INTL.
Q176: =IF(ISNUMBER(SEARCH(CERT_db_search!$C$10,List_Input!R176)),MAX($Q$2:Q175)+1,0) -> 174 | R176: SB20 | T176: =IFERROR(VLOOKUP(ROWS($T$3:T176),$Q$3:$R$241,2,FALSE),"") -> SB20 | V176: =IF(ISNUMBER(SEARCH(CERT_db_search!$C$15,List_Input!W176)),MAX($V$2:V175)+1,0) -> 174 | W176: 2000 | Y176: =IFERROR(VLOOKUP(ROWS($X$3:Y176),$V$3:$W$241,2,FALSE),"") -> 2000 | Z176: =IF(ISNUMBER(SEARCH(CERT_db_search!$C$22,List_Input!AA176)),MAX($Z$2:Z175)+1,0) -> 174 | AA176: BIVO | AC176: =IFERROR(VLOOKUP(ROWS($AC$3:AC176),$Z$3:$AA$11451,2,FALSE),"") -> BIVO | AE176: =IF(ISNUMBER(SEARCH(CERT_db_search!$C$30,List_Input!AF176)),MAX($AE$2:AE175)+1,0) -> 174 | AF176: ALAKANUK | AH176: =IFERROR(VLOOKUP(ROWS($AH$3:AH176),$AE$3:$AF$11451,2,FALSE),"") -> ALAKANUK
Q177: =IF(ISNUMBER(SEARCH(CERT_db_search!$C$10,List_Input!R177)),MAX($Q$2:Q176)+1,0) -> 175 | R177: SC7 | T177: =IFERROR(VLOOKUP(ROWS($T$3:T177),$Q$3:$R$241,2,FALSE),"") -> SC7 | V177: =IF(ISNUMBER(SEARCH(CERT_db_search!$C$15,List_Input!W177)),MAX($V$2:V176)+1,0) -> 175 | W177: SC-7 Skyliner | Y177: =IFERROR(VLOOKUP(ROWS($X$3:Y177),$V$3:$W$241,2,FALSE),"") -> SC-7 Skyliner | Z177: =IF(ISNUMBER(SEARCH(CERT_db_search!$C$22,List_Input!AA177)),MAX($Z$2:Z176)+1,0) -> 175 | AA177: CYAC | AC177: =IFERROR(VLOOKUP(ROWS($AC$3:AC177),$Z$3:$AA$11451,2,FALSE),"") -> CYAC | AE177: =IF(ISNUMBER(SEARCH(CERT_db_search!$C$30,List_Input!AF177)),MAX($AE$2:AE176)+1,0) -> 175 | AF177: ALAMOGORDO-WHITE SANDS RGNL | AH177: =IFERROR(VLOOKUP(ROWS($AH$3:AH177),$AE$3:$AF$11451,2,FALSE),"") -> ALAMOGORDO-WHITE SANDS RGNL
Q178: =IF(ISNUMBER(SEARCH(CERT_db_search!$C$10,List_Input!R178)),MAX($Q$2:Q177)+1,0) -> 176 | R178: SF34 | T178: =IFERROR(VLOOKUP(ROWS($T$3:T178),$Q$3:$R$241,2,FALSE),"") -> SF34 | V178: =IF(ISNUMBER(SEARCH(CERT_db_search!$C$15,List_Input!W178)),MAX($V$2:V177)+1,0) -> 176 | W178: SF-340 | Y178: =IFERROR(VLOOKUP(ROWS($X$3:Y178),$V$3:$W$241,2,FALSE),"") -> SF-340 | Z178: =IF(ISNUMBER(SEARCH(CERT_db_search!$C$22,List_Input!AA178)),MAX($Z$2:Z177)+1,0) -> 176 | AA178: CYAD | AC178: =IFERROR(VLOOKUP(ROWS($AC$3:AC178),$Z$3:$AA$11451,2,FALSE),"") -> CYAD | AE178: =IF(ISNUMBER(SEARCH(CERT_db_search!$C$30,List_Input!AF178)),MAX($AE$2:AE177)+1,0) -> 176 | AF178: ALAVUS | AH178: =IFERROR(VLOOKUP(ROWS($AH$3:AH178),$AE$3:$AF$11451,2,FALSE),"") -> ALAVUS
Q179: =IF(ISNUMBER(SEARCH(CERT_db_search!$C$10,List_Input!R179)),MAX($Q$2:Q178)+1,0) -> 177 | R179: SH33 | T179: =IFERROR(VLOOKUP(ROWS($T$3:T179),$Q$3:$R$241,2,FALSE),"") -> SH33 | V179: =IF(ISNUMBER(SEARCH(CERT_db_search!$C$15,List_Input!W179)),MAX($V$2:V178)+1,0) -> 177 | W179: SD3-30 | Y179: =IFERROR(VLOOKUP(ROWS($X$3:Y179),$V$3:$W$241,2,FALSE),"") -> SD3-30 | Z179: =IF(ISNUMBER(SEARCH(CERT_db_search!$C$22,List_Input!AA179)),MAX($Z$2:Z178)+1,0) -> 177 | AA179: CYAG | AC179: =IFERROR(VLOOKUP(ROWS($AC$3:AC179),$Z$3:$AA$11451,2,FALSE),"") -> CYAG | AE179: =IF(ISNUMBER(SEARCH(CERT_db_search!$C$30,List_Input!AF179)),MAX($AE$2:AE178)+1,0) -> 177 | AF179: ALBACETE | AH179: =IFERROR(VLOOKUP(ROWS($AH$3:AH179),$AE$3:$AF$11451,2,FALSE),"") -> ALBACETE
Q180: =IF(ISNUMBER(SEARCH(CERT_db_search!$C$10,List_Input!R180)),MAX($Q$2:Q179)+1,0) -> 178 | R180: SH36 | T180: =IFERROR(VLOOKUP(ROWS($T$3:T180),$Q$3:$R$241,2,FALSE),"") -> SH36 | V180: =IF(ISNUMBER(SEARCH(CERT_db_search!$C$15,List_Input!W180)),MAX($V$2:V179)+1,0) -> 178 | W180: 360 | Y180: =IFERROR(VLOOKUP(ROWS($X$3:Y180),$V$3:$W$241,2,FALSE),"") -> 360 | Z180: =IF(ISNUMBER(SEARCH(CERT_db_search!$C$22,List_Input!AA180)),MAX($Z$2:Z179)+1,0) -> 178 | AA180: CYAH | AC180: =IFERROR(VLOOKUP(ROWS($AC$3:AC180),$Z$3:$AA$11451,2,FALSE),"") -> CYAH | AE180: =IF(ISNUMBER(SEARCH(CERT_db_search!$C$30,List_Input!AF180)),MAX($AE$2:AE179)+1,0) -> 178 | AF180: AL-BADIE | AH180: =IFERROR(VLOOKUP(ROWS($AH$3:AH180),$AE$3:$AF$11451,2,FALSE),"") -> AL-BADIE
Q181: =IF(ISNUMBER(SEARCH(CERT_db_search!$C$10,List_Input!R181)),MAX($Q$2:Q180)+1,0) -> 179 | R181: SW2 | T181: =IFERROR(VLOOKUP(ROWS($T$3:T181),$Q$3:$R$241,2,FALSE),"") -> SW2 | V181: =IF(ISNUMBER(SEARCH(CERT_db_search!$C$15,List_Input!W181)),MAX($V$2:V180)+1,0) -> 179 | W181: SA-26 Merlin 2 | Y181: =IFERROR(VLOOKUP(ROWS($X$3:Y181),$V$3:$W$241,2,FALSE),"") -> SA-26 Merlin 2 | Z181: =IF(ISNUMBER(SEARCH(CERT_db_search!$C$22,List_Input!AA181)),MAX($Z$2:Z180)+1,0) -> 179 | AA181: CYAL | AC181: =IFERROR(VLOOKUP(ROWS($AC$3:AC181),$Z$3:$AA$11451,2,FALSE),"") -> CYAL | AE181: =IF(ISNUMBER(SEARCH(CERT_db_search!$C$30,List_Input!AF181)),MAX($AE$2:AE180)+1,0) -> 179 | AF181: ALBANY | AH181: =IFERROR(VLOOKUP(ROWS($AH$3:AH181),$AE$3:$AF$11451,2,FALSE),"") -> ALBANY
Q182: =IF(ISNUMBER(SEARCH(CERT_db_search!$C$10,List_Input!R182)),MAX($Q$2:Q181)+1,0) -> 180 | R182: T134 | T182: =IFERROR(VLOOKUP(ROWS($T$3:T182),$Q$3:$R$241,2,FALSE),"") -> T134 | V182: =IF(ISNUMBER(SEARCH(CERT_db_search!$C$15,List_Input!W182)),MAX($V$2:V181)+1,0) -> 180 | W182: Tu-134 | Y182: =IFERROR(VLOOKUP(ROWS($X$3:Y182),$V$3:$W$241,2,FALSE),"") -> Tu-134 | Z182: =IF(ISNUMBER(SEARCH(CERT_db_search!$C$22,List_Input!AA182)),MAX($Z$2:Z181)+1,0) -> 180 | AA182: CYAM | AC182: =IFERROR(VLOOKUP(ROWS($AC$3:AC182),$Z$3:$AA$11451,2,FALSE),"") -> CYAM | AE182: =IF(ISNUMBER(SEARCH(CERT_db_search!$C$30,List_Input!AF182)),MAX($AE$2:AE181)+1,0) -> 180 | AF182: ALBANY INTL | AH182: =IFERROR(VLOOKUP(ROWS($AH$3:AH182),$AE$3:$AF$11451,2,FALSE),"") -> ALBANY INTL
Q183: =IF(ISNUMBER(SEARCH(CERT_db_search!$C$10,List_Input!R183)),MAX($Q$2:Q182)+1,0) -> 181 | R183: T154 | T183: =IFERROR(VLOOKUP(ROWS($T$3:T183),$Q$3:$R$241,2,FALSE),"") -> T154 | V183: =IF(ISNUMBER(SEARCH(CERT_db_search!$C$15,List_Input!W183)),MAX($V$2:V182)+1,0) -> 181 | W183: Tu-154 | Y183: =IFERROR(VLOOKUP(ROWS($X$3:Y183),$V$3:$W$241,2,FALSE),"") -> Tu-154 | Z183: =IF(ISNUMBER(SEARCH(CERT_db_search!$C$22,List_Input!AA183)),MAX($Z$2:Z182)+1,0) -> 181 | AA183: CYAQ | AC183: =IFERROR(VLOOKUP(ROWS($AC$3:AC183),$Z$3:$AA$11451,2,FALSE),"") -> CYAQ | AE183: =IF(ISNUMBER(SEARCH(CERT_db_search!$C$30,List_Input!AF183)),MAX($AE$2:AE182)+1,0) -> 181 | AF183: AL-BAYDA | AH183: =IFERROR(VLOOKUP(ROWS($AH$3:AH183),$AE$3:$AF$11451,2,FALSE),"") -> AL-BAYDA
Q184: =IF(ISNUMBER(SEARCH(CERT_db_search!$C$10,List_Input!R184)),MAX($Q$2:Q183)+1,0) -> 182 | R184: T204 | T184: =IFERROR(VLOOKUP(ROWS($T$3:T184),$Q$3:$R$241,2,FALSE),"") -> T204 | V184: =IF(ISNUMBER(SEARCH(CERT_db_search!$C$15,List_Input!W184)),MAX($V$2:V183)+1,0) -> 182 | W184: Tu-204 | Y184: =IFERROR(VLOOKUP(ROWS($X$3:Y184),$V$3:$W$241,2,FALSE),"") -> Tu-204 | Z184: =IF(ISNUMBER(SEARCH(CERT_db_search!$C$22,List_Input!AA184)),MAX($Z$2:Z183)+1,0) -> 182 | AA184: CYAS | AC184: =IFERROR(VLOOKUP(ROWS($AC$3:AC184),$Z$3:$AA$11451,2,FALSE),"") -> CYAS | AE184: =IF(ISNUMBER(SEARCH(CERT_db_search!$C$30,List_Input!AF184)),MAX($AE$2:AE183)+1,0) -> 182 | AF184: ALBENGA | AH184: =IFERROR(VLOOKUP(ROWS($AH$3:AH184),$AE$3:$AF$11451,2,FALSE),"") -> ALBENGA
Q185: =IF(ISNUMBER(SEARCH(CERT_db_search!$C$10,List_Input!R185)),MAX($Q$2:Q184)+1,0) -> 183 | R185: WW24 | T185: =IFERROR(VLOOKUP(ROWS($T$3:T185),$Q$3:$R$241,2,FALSE),"") -> WW24 | V185: =IF(ISNUMBER(SEARCH(CERT_db_search!$C$15,List_Input!W185)),MAX($V$2:V184)+1,0) -> 183 | W185: 1124 Westwind | Y185: =IFERROR(VLOOKUP(ROWS($X$3:Y185),$V$3:$W$241,2,FALSE),"") -> 1124 Westwind | Z185: =IF(ISNUMBER(SEARCH(CERT_db_search!$C$22,List_Input!AA185)),MAX($Z$2:Z184)+1,0) -> 183 | AA185: CYAT | AC185: =IFERROR(VLOOKUP(ROWS($AC$3:AC185),$Z$3:$AA$11451,2,FALSE),"") -> CYAT | AE185: =IF(ISNUMBER(SEARCH(CERT_db_search!$C$30,List_Input!AF185)),MAX($AE$2:AE184)+1,0) -> 183 | AF185: ALBERT J ELLIS | AH185: =IFERROR(VLOOKUP(ROWS($AH$3:AH185),$AE$3:$AF$11451,2,FALSE),"") -> ALBERT J ELLIS
Q186: =IF(ISNUMBER(SEARCH(CERT_db_search!$C$10,List_Input!R186)),MAX($Q$2:Q185)+1,0) -> 184 | R186: YK40 | T186: =IFERROR(VLOOKUP(ROWS($T$3:T186),$Q$3:$R$241,2,FALSE),"") -> YK40 | V186: =IF(ISNUMBER(SEARCH(CERT_db_search!$C$15,List_Input!W186)),MAX($V$2:V185)+1,0) -> 184 | W186: Yak-40 | Y186: =IFERROR(VLOOKUP(ROWS($X$3:Y186),$V$3:$W$241,2,FALSE),"") -> Yak-40 | Z186: =IF(ISNUMBER(SEARCH(CERT_db_search!$C$22,List_Input!AA186)),MAX($Z$2:Z185)+1,0) -> 184 | AA186: CYAU | AC186: =IFERROR(VLOOKUP(ROWS($AC$3:AC186),$Z$3:$AA$11451,2,FALSE),"") -> CYAU | AE186: =IF(ISNUMBER(SEARCH(CERT_db_search!$C$30,List_Input!AF186)),MAX($AE$2:AE185)+1,0) -> 184 | AF186: ALBERT LEA MUNI | AH186: =IFERROR(VLOOKUP(ROWS($AH$3:AH186),$AE$3:$AF$11451,2,FALSE),"") -> ALBERT LEA MUNI
Q187: =IF(ISNUMBER(SEARCH(CERT_db_search!$C$10,List_Input!R187)),MAX($Q$2:Q186)+1,0) -> 185 | R187: YK42 | T187: =IFERROR(VLOOKUP(ROWS($T$3:T187),$Q$3:$R$241,2,FALSE),"") -> YK42 | V187: =IF(ISNUMBER(SEARCH(CERT_db_search!$C$15,List_Input!W187)),MAX($V$2:V186)+1,0) -> 185 | W187: Yak-42 | Y187: =IFERROR(VLOOKUP(ROWS($X$3:Y187),$V$3:$W$241,2,FALSE),"") -> Yak-42 | Z187: =IF(ISNUMBER(SEARCH(CERT_db_search!$C$22,List_Input!AA187)),MAX($Z$2:Z186)+1,0) -> 185 | AA187: CYAV | AC187: =IFERROR(VLOOKUP(ROWS($AC$3:AC187),$Z$3:$AA$11451,2,FALSE),"") -> CYAV | AE187: =IF(ISNUMBER(SEARCH(CERT_db_search!$C$30,List_Input!AF187)),MAX($AE$2:AE186)+1,0) -> 185 | AF187: ALBERT WHITTED | AH187: =IFERROR(VLOOKUP(ROWS($AH$3:AH187),$AE$3:$AF$11451,2,FALSE),"") -> ALBERT WHITTED
Q188: =IF(ISNUMBER(SEARCH(CERT_db_search!$C$10,List_Input!R188)),MAX($Q$2:Q187)+1,0) -> 186 | R188: YS11 | T188: =IFERROR(VLOOKUP(ROWS($T$3:T188),$Q$3:$R$241,2,FALSE),"") -> YS11 | V188: =IF(ISNUMBER(SEARCH(CERT_db_search!$C$15,List_Input!W188)),MAX($V$2:V187)+1,0) -> 186 | W188: YS-11 | Y188: =IFERROR(VLOOKUP(ROWS($X$3:Y188),$V$3:$W$241,2,FALSE),"") -> YS-11 | Z188: =IF(ISNUMBER(SEARCH(CERT_db_search!$C$22,List_Input!AA188)),MAX($Z$2:Z187)+1,0) -> 186 | AA188: CYAW | AC188: =IFERROR(VLOOKUP(ROWS($AC$3:AC188),$Z$3:$AA$11451,2,FALSE),"") -> CYAW | AE188: =IF(ISNUMBER(SEARCH(CERT_db_search!$C$30,List_Input!AF188)),MAX($AE$2:AE187)+1,0) -> 186 | AF188: ALBERT-BRAY | AH188: =IFERROR(VLOOKUP(ROWS($AH$3:AH188),$AE$3:$AF$11451,2,FALSE),"") -> ALBERT-BRAY
Z189: =IF(ISNUMBER(SEARCH(CERT_db_search!$C$22,List_Input!AA189)),MAX($Z$2:Z188)+1,0) -> 187 | AA189: CYAX | AC189: =IFERROR(VLOOKUP(ROWS($AC$3:AC189),$Z$3:$AA$11451,2,FALSE),"") -> CYAX | AE189: =IF(ISNUMBER(SEARCH(CERT_db_search!$C$30,List_Input!AF189)),MAX($AE$2:AE188)+1,0) -> 187 | AF189: ALBERTO LLERAS CAMARGO/BOYACA | AH189: =IFERROR(VLOOKUP(ROWS($AH$3:AH189),$AE$3:$AF$11451,2,FALSE),"") -> ALBERTO LLERAS CAMARGO/BOYACA
Z190: =IF(ISNUMBER(SEARCH(CERT_db_search!$C$22,List_Input!AA190)),MAX($Z$2:Z189)+1,0) -> 188 | AA190: CYAY | AC190: =IFERROR(VLOOKUP(ROWS($AC$3:AC190),$Z$3:$AA$11451,2,FALSE),"") -> CYAY | AE190: =IF(ISNUMBER(SEARCH(CERT_db_search!$C$30,List_Input!AF190)),MAX($AE$2:AE189)+1,0) -> 188 | AF190: ALBERTUS | AH190: =IFERROR(VLOOKUP(ROWS($AH$3:AH190),$AE$3:$AF$11451,2,FALSE),"") -> ALBERTUS
Z191: =IF(ISNUMBER(SEARCH(CERT_db_search!$C$22,List_Input!AA191)),MAX($Z$2:Z190)+1,0) -> 189 | AA191: CYAZ | AC191: =IFERROR(VLOOKUP(ROWS($AC$3:AC191),$Z$3:$AA$11451,2,FALSE),"") -> CYAZ | AE191: =IF(ISNUMBER(SEARCH(CERT_db_search!$C$30,List_Input!AF191)),MAX($AE$2:AE190)+1,0) -> 189 | AF191: ALBERTVILLE | AH191: =IFERROR(VLOOKUP(ROWS($AH$3:AH191),$AE$3:$AF$11451,2,FALSE),"") -> ALBERTVILLE
Z192: =IF(ISNUMBER(SEARCH(CERT_db_search!$C$22,List_Input!AA192)),MAX($Z$2:Z191)+1,0) -> 190 | AA192: CYBB | AC192: =IFERROR(VLOOKUP(ROWS($AC$3:AC192),$Z$3:$AA$11451,2,FALSE),"") -> CYBB | AE192: =IF(ISNUMBER(SEARCH(CERT_db_search!$C$30,List_Input!AF192)),MAX($AE$2:AE191)+1,0) -> 190 | AF192: ALBI-LE SEQUESTRE | AH192: =IFERROR(VLOOKUP(ROWS($AH$3:AH192),$AE$3:$AF$11451,2,FALSE),"") -> ALBI-LE SEQUESTRE
Z193: =IF(ISNUMBER(SEARCH(CERT_db_search!$C$22,List_Input!AA193)),MAX($Z$2:Z192)+1,0) -> 191 | AA193: CYBC | AC193: =IFERROR(VLOOKUP(ROWS($AC$3:AC193),$Z$3:$AA$11451,2,FALSE),"") -> CYBC | AE193: =IF(ISNUMBER(SEARCH(CERT_db_search!$C$30,List_Input!AF193)),MAX($AE$2:AE192)+1,0) -> 191 | AF193: ALBION | AH193: =IFERROR(VLOOKUP(ROWS($AH$3:AH193),$AE$3:$AF$11451,2,FALSE),"") -> ALBION
Z194: =IF(ISNUMBER(SEARCH(CERT_db_search!$C$22,List_Input!AA194)),MAX($Z$2:Z193)+1,0) -> 192 | AA194: CYBD | AC194: =IFERROR(VLOOKUP(ROWS($AC$3:AC194),$Z$3:$AA$11451,2,FALSE),"") -> CYBD | AE194: =IF(ISNUMBER(SEARCH(CERT_db_search!$C$30,List_Input!AF194)),MAX($AE$2:AE193)+1,0) -> 192 | AF194: AL-BOUGH | AH194: =IFERROR(VLOOKUP(ROWS($AH$3:AH194),$AE$3:$AF$11451,2,FALSE),"") -> AL-BOUGH
Z195: =IF(ISNUMBER(SEARCH(CERT_db_search!$C$22,List_Input!AA195)),MAX($Z$2:Z194)+1,0) -> 193 | AA195: CYBE | AC195: =IFERROR(VLOOKUP(ROWS($AC$3:AC195),$Z$3:$AA$11451,2,FALSE),"") -> CYBE | AE195: =IF(ISNUMBER(SEARCH(CERT_db_search!$C$30,List_Input!AF195)),MAX($AE$2:AE194)+1,0) -> 193 | AF195: ALBROOK | AH195: =IFERROR(VLOOKUP(ROWS($AH$3:AH195),$AE$3:$AF$11451,2,FALSE),"") -> ALBROOK
Z196: =IF(ISNUMBER(SEARCH(CERT_db_search!$C$22,List_Input!AA196)),MAX($Z$2:Z195)+1,0) -> 194 | AA196: CYBF | AC196: =IFERROR(VLOOKUP(ROWS($AC$3:AC196),$Z$3:$AA$11451,2,FALSE),"") -> CYBF | AE196: =IF(ISNUMBER(SEARCH(CERT_db_search!$C$30,List_Input!AF196)),MAX($AE$2:AE195)+1,0) -> 194 | AF196: ALBSTADT-DEGERFELD | AH196: =IFERROR(VLOOKUP(ROWS($AH$3:AH196),$AE$3:$AF$11451,2,FALSE),"") -> ALBSTADT-DEGERFELD
Z197: =IF(ISNUMBER(SEARCH(CERT_db_search!$C$22,List_Input!AA197)),MAX($Z$2:Z196)+1,0) -> 195 | AA197: CYBG | AC197: =IFERROR(VLOOKUP(ROWS($AC$3:AC197),$Z$3:$AA$11451,2,FALSE),"") -> CYBG | AE197: =IF(ISNUMBER(SEARCH(CERT_db_search!$C$30,List_Input!AF197)),MAX($AE$2:AE196)+1,0) -> 195 | AF197: ALBUQUERQUE (ARTCC),NM. | AH197: =IFERROR(VLOOKUP(ROWS($AH$3:AH197),$AE$3:$AF$11451,2,FALSE),"") -> ALBUQUERQUE (ARTCC),NM.
Z198: =IF(ISNUMBER(SEARCH(CERT_db_search!$C$22,List_Input!AA198)),MAX($Z$2:Z197)+1,0) -> 196 | AA198: CYBK | AC198: =IFERROR(VLOOKUP(ROWS($AC$3:AC198),$Z$3:$AA$11451,2,FALSE),"") -> CYBK | AE198: =IF(ISNUMBER(SEARCH(CERT_db_search!$C$30,List_Input!AF198)),MAX($AE$2:AE197)+1,0) -> 196 | AF198: ALBUQUERQUE INTL. SUNPORT | AH198: =IFERROR(VLOOKUP(ROWS($AH$3:AH198),$AE$3:$AF$11451,2,FALSE),"") -> ALBUQUERQUE INTL. SUNPORT
Z199: =IF(ISNUMBER(SEARCH(CERT_db_search!$C$22,List_Input!AA199)),MAX($Z$2:Z198)+1,0) -> 197 | AA199: CYBL | AC199: =IFERROR(VLOOKUP(ROWS($AC$3:AC199),$Z$3:$AA$11451,2,FALSE),"") -> CYBL | AE199: =IF(ISNUMBER(SEARCH(CERT_db_search!$C$30,List_Input!AF199)),MAX($AE$2:AE198)+1,0) -> 197 | AF199: ALBURY | AH199: =IFERROR(VLOOKUP(ROWS($AH$3:AH199),$AE$3:$AF$11451,2,FALSE),"") -> ALBURY
Z200: =IF(ISNUMBER(SEARCH(CERT_db_search!$C$22,List_Input!AA200)),MAX($Z$2:Z199)+1,0) -> 198 | AA200: CYBN | AC200: =IFERROR(VLOOKUP(ROWS($AC$3:AC200),$Z$3:$AA$11451,2,FALSE),"") -> CYBN | AE200: =IF(ISNUMBER(SEARCH(CERT_db_search!$C$30,List_Input!AF200)),MAX($AE$2:AE199)+1,0) -> 198 | AF200: ALDAN | AH200: =IFERROR(VLOOKUP(ROWS($AH$3:AH200),$AE$3:$AF$11451,2,FALSE),"") -> ALDAN
Z201: =IF(ISNUMBER(SEARCH(CERT_db_search!$C$22,List_Input!AA201)),MAX($Z$2:Z200)+1,0) -> 199 | AA201: CYBP | AC201: =IFERROR(VLOOKUP(ROWS($AC$3:AC201),$Z$3:$AA$11451,2,FALSE),"") -> CYBP | AE201: =IF(ISNUMBER(SEARCH(CERT_db_search!$C$30,List_Input!AF201)),MAX($AE$2:AE200)+1,0) -> 199 | AF201: ALDERNEY | AH201: =IFERROR(VLOOKUP(ROWS($AH$3:AH201),$AE$3:$AF$11451,2,FALSE),"") -> ALDERNEY
... 2049 more rows

Sheet ICAO_Member_States (hidden)
A1: ICAO Member State
A2: Afghanistan
A3: Albania
A4: Algeria
A5: Andorra
A6: Angola
A7: Antigua and Barbuda
A8: Argentina
A9: Armenia
A10: Australia
A11: Austria
A12: Azerbaijan
A13: Bahamas
A14: Bahrain
A15: Bangladesh
A16: Barbados
A17: Belarus
A18: Belgium
A19: Belize
A20: Benin
A21: Bhutan
A22: Bolivia (Plurinational State of)
A23: Bosnia and Herzegovina
A24: Botswana
A25: Brazil
A26: Brunei Darussalam
A27: Bulgaria
A28: Burkina Faso
A29: Burundi
A30: Cabo Verde
A31: Cambodia
A32: Cameroon
A33: Canada
A34: Central African Republic
A35: Chad
A36: Chile
A37: China
A38: Colombia
A39: Comoros
A40: Congo
A41: Cook Islands
A42: Costa Rica
A43: Côte d'Ivoire
A44: Croatia
A45: Cuba
A46: Cyprus
A47: Czechia
A48: Democratic People's Republic of Korea
A49: Democratic Republic of the Congo
A50: Denmark
A51: Djibouti
A52: Dominican Republic
A53: Ecuador
A54: Egypt
A55: El Salvador
A56: Equatorial Guinea
A57: Eritrea
A58: Estonia
A59: Ethiopia
A60: Fiji
A61: Finland
A62: France
A63: Gabon
A64: Gambia
A65: Georgia
A66: Germany
A67: Ghana
A68: Greece
A69: Grenada
A70: Guatemala
A71: Guinea
A72: Guinea-Bissau
A73: Guyana
A74: Haiti
A75: Honduras
A76: Hungary
A77: Iceland
A78: India
A79: Indonesia
A80: Iran (Islamic Republic of)
A81: Iraq
A82: Ireland
A83: Israel
A84: Italy
A85: Jamaica
A86: Japan
A87: Jordan
A88: Kazakhstan
A89: Kenya
A90: Kiribati
A91: Kuwait
A92: Kyrgyzstan
A93: Lao People's Democratic Republic
A94: Latvia
A95: Lebanon
A96: Lesotho
A97: Liberia
A98: Libya
A99: Lithuania
A100: Luxembourg
A101: Madagascar
A102: Malawi
A103: Malaysia
A104: Maldives
A105: Mali
A106: Malta
A107: Marshall Islands
A108: Mauritania
A109: Mauritius
A110: Mexico
A111: Micronesia (Federated States of)
A112: Monaco
A113: Mongolia
A114: Montenegro
A115: Morocco
A116: Mozambique
A117: Myanmar
A118: Namibia
A119: Nauru
A120: Nepal
A121: Netherlands
A122: New Zealand
A123: Nicaragua
A124: Niger
A125: Nigeria
A126: Norway
A127: Oman
A128: Pakistan
A129: Palau
A130: Panama
A131: Papua New Guinea
A132: Paraguay
A133: Peru
A134: Philippines
A135: Poland
A136: Portugal
A137: Qatar
A138: Republic of Korea
A139: Republic of Moldova
A140: Romania
A141: Russian Federation
A142: Rwanda
A143: Saint Kitts and Nevis
A144: Saint Lucia
A145: Saint Vincent and the Grenadines
A146: Samoa
A147: San Marino
A148: Sao Tome and Principe
A149: Saudi Arabia
A150: Senegal
A151: Serbia
A152: Seychelles
A153: Sierra Leone
A154: Singapore
A155: Slovakia
A156: Slovenia
A157: Solomon Islands
A158: Somalia
A159: South Africa
A160: South Sudan
A161: Spain
A162: Sri Lanka
A163: Sudan
A164: Suriname
A165: Swaziland
A166: Sweden
A167: Switzerland
A168: Syrian Arab Republic
A169: Tajikistan
A170: Thailand
A171: The former Yugoslav Republic of Macedonia
A172: Timor-Leste
A173: Togo
A174: Tonga
A175: Trinidad and Tobago
A176: Tunisia
A177: Turkey
A178: Turkmenistan
A179: Tuvalu
A180: Uganda
A181: Ukraine
A182: United Arab Emirates
A183: United Kingdom
A184: United Republic of Tanzania
A185: United States
A186: Uruguay
A187: Uzbekistan
A188: Vanuatu
A189: Venezuela (Bolivarian Republic of)
A190: Viet Nam
A191: Yemen
A192: Zambia
A193: Zimbabwe

Sheet Terr_Code (hidden)
A1: Terr_code | B1: ICAO Member State
A2: OA | B2: Afghanistan
A3: LA | B3: Albania
A4: DA | B4: Algeria
A5: FN | B5: Angola
A6: TA | B6: Antigua and Barbuda
A7: SA | B7: Argentina
A8: UD | B8: Armenia
A9: YA | B9: Australia
A10: YB | B10: Australia
A11: YC | B11: Australia
A12: YD | B12: Australia
A13: YE | B13: Australia
A14: YF | B14: Australia
A15: YG | B15: Australia
A16: YH | B16: Australia
A17: YI | B17: Australia
A18: YJ | B18: Australia
A19: YK | B19: Australia
A20: YL | B20: Australia
A21: YM | B21: Australia
A22: YN | B22: Australia
A23: YO | B23: Australia
A24: YP | B24: Australia
A25: YQ | B25: Australia
A26: YR | B26: Australia
A27: YS | B27: Australia
A28: YT | B28: Australia
A29: YU | B29: Australia
A30: YV | B30: Australia
A31: YW | B31: Australia
A32: YY | B32: Australia
A33: LO | B33: Austria
A34: UB | B34: Azerbaijan
A35: MY | B35: Bahamas
A36: OB | B36: Bahrain
A37: VG | B37: Bangladesh
A38: TB | B38: Barbados
A39: EB | B39: Belgium
A40: MZ | B40: Belize
A41: DB | B41: Benin
A42: VQ | B42: Bhutan
A43: LQ | B43: Bosnia and Herzegovina
A44: FB | B44: Botswana
A45: SB | B45: Brazil
A46: SS | B46: Brazil
A47: LB | B47: Bulgaria
A48: DF | B48: Burkina Faso
A49: HB | B49: Burundi
A50: VD | B50: Cambodia
A51: FK | B51: Cameroon
A52: CU | B52: Canada
A53: CW | B53: Canada
A54: CY | B54: Canada
A55: CZ | B55: Canada
A56: FE | B56: Central African Republic
A57: FT | B57: Chad
A58: SC | B58: Chile
A59: SH | B59: Chile
A60: RC | B60: China
A61: VH | B61: China
A62: VM | B62: China
A63: ZB | B63: China
A64: ZG | B64: China
A65: ZH | B65: China
A66: ZJ | B66: China
A67: ZL | B67: China
A68: ZP | B68: China
A69: ZS | B69: China
A70: ZU | B70: China
A71: ZW | B71: China
A72: ZY | B72: China
A73: SK | B73: Colombia
A74: FC | B74: Congo
A75: NC | B75: Cook Islands
A76: MR | B76: Costa Rica
A77: LD | B77: Croatia
A78: MU | B78: Cuba
A79: LC | B79: Cyprus
A80: ZK | B80: Democratic People's Republic of Korea
A81: FZ | B81: Democratic Republic of the Congo
A82: BG | B82: Denmark
A83: EK | B83: Denmark
A84: HD | B84: Djibouti
A85: MD | B85: Dominican Republic
A86: SE | B86: Ecuador
A87: HE | B87: Egypt
A88: MS | B88: El Salvador
A89: FG | B89: Equatorial Guinea
A90: HH | B90: Eritrea
A91: EE | B91: Estonia
A92: HA | B92: Ethiopia
A93: EF | B93: Finland
A94: LF | B94: France
A95: NL | B95: France
A96: NT | B96: France
A97: NW | B97: France
A98: SO | B98: France
A99: TF | B99: France
A100: FO | B100: Gabon
A101: GB | B101: Gambia
A102: UG | B102: Georgia
A103: ED | B103: Germany
A104: ET | B104: Germany
A105: DG | B105: Ghana
A106: LG | B106: Greece
A107: TG | B107: Grenada
A108: MG | B108: Guatemala
A109: GU | B109: Guinea
A110: GG | B110: Guinea-Bissau
A111: SY | B111: Guyana
A112: MT | B112: Haiti
A113: MH | B113: Honduras
A114: LH | B114: Hungary
A115: BI | B115: Iceland
A116: VA | B116: India
A117: VE | B117: India
A118: VI | B118: India
A119: VO | B119: India
A120: WA | B120: Indonesia
A121: WI | B121: Indonesia
A122: WR | B122: Indonesia
A123: OR | B123: Iraq
A124: EI | B124: Ireland
A125: LL | B125: Israel
A126: LI | B126: Italy
A127: MK | B127: Jamaica
A128: RJ | B128: Japan
A129: RO | B129: Japan
A130: OJ | B130: Jordan
A131: UA | B131: Kazakhstan
A132: HK | B132: Kenya
A133: OK | B133: Kuwait
A134: UC | B134: Kyrgyzstan
A135: VL | B135: Lao People's Democratic Republic
A136: EV | B136: Latvia
A137: OL | B137: Lebanon
A138: FX | B138: Lesotho
A139: GL | B139: Liberia
A140: HL | B140: Libya
A141: EY | B141: Lithuania
A142: EL | B142: Luxembourg
A143: FW | B143: Malawi
A144: WM | B144: Malaysia
A145: VR | B145: Maldives
A146: GA | B146: Mali
A147: LM | B147: Malta
A148: PK | B148: Marshall Islands
A149: GQ | B149: Mauritania
A150: FI | B150: Mauritius
A151: MM | B151: Mexico
A152: LN | B152: Monaco
A153: ZM | B153: Mongolia
A154: GM | B154: Morocco
A155: FQ | B155: Mozambique
A156: VY | B156: Myanmar
A157: FY | B157: Namibia
A158: AN | B158: Nauru
A159: VN | B159: Nepal
A160: EH | B160: Netherlands
A161: TN | B161: Netherlands
A162: NI | B162: New Zealand
A163: NZ | B163: New Zealand
A164: MN | B164: Nicaragua
A165: DR | B165: Niger
A166: DN | B166: Nigeria
A167: EN | B167: Norway
A168: OO | B168: Oman
A169: OP | B169: Pakistan
A170: MP | B170: Panama
A171: AY | B171: Papua New Guinea
A172: SG | B172: Paraguay
A173: SP | B173: Peru
A174: RP | B174: Philippines
A175: EP | B175: Poland
A176: LP | B176: Portugal
A177: OT | B177: Qatar
A178: RK | B178: Republic of Korea
A179: LU | B179: Republic of Moldova
A180: LR | B180: Romania
A181: UE | B181: Russian Federation
A182: UH | B182: Russian Federation
A183: UI | B183: Russian Federation
A184: UL | B184: Russian Federation
A185: UN | B185: Russian Federation
A186: UO | B186: Russian Federation
A187: UR | B187: Russian Federation
A188: US | B188: Russian Federation
A189: UU | B189: Russian Federation
A190: UW | B190: Russian Federation
A191: HR | B191: Rwanda
A192: TK | B192: Saint Kitts and Nevis
A193: TL | B193: Saint Lucia
A194: TV | B194: Saint Vincent and the Grenadines
A195: FP | B195: Sao Tome and Principe
A196: OE | B196: Saudi Arabia
A197: GO | B197: Senegal
A198: FS | B198: Seychelles
A199: GF | B199: Sierra Leone
A200: WS | B200: Singapore
... 95 more rows

Sheet CERT_Doc7910 (hidden)
A1: ICAO_Code | B1: Location_Name | C1: Latitude | D1: Longitude | E1: Terr_code | F1: ICAO Member State | G1: ICAO_Code | I1: ICAO_Code
A2: KATL | B2: HARTSFIELD - JACKSON ATLANTA INTL | C2: 33.63669433 | D2: -84.42786067 | E2: KA | F2: United States | G2: KATL | I2: AGAF
A3: KORD | B3: CHICAGO-O'HARE INTL | C3: 41.97933367 | D3: -87.907389 | E3: KO | F3: United States | G3: KORD | I3: AGAR
A4: KDFW | B4: DALLAS/FORT WORTH INTL | C4: 32.89722233 | D4: -97.03769433 | E4: KD | F4: United States | G4: KDFW | I4: AGAT
A5: KLAX | B5: LOS ANGELES INTL | C5: 33.94250033 | D5: -118.408056 | E5: KL | F5: United States | G5: KLAX | I5: AGBA
A6: ZBAA | B6: BEIJING/CAPITAL | C6: 40.08 | D6: 116.5844444 | E6: ZB | F6: China | G6: ZBAA | I6: AGBT
A7: KDEN | B7: DENVER INTL | C7: 39.861667 | D7: -104.6731667 | E7: KD | F7: United States | G7: KDEN | I7: AGEV
A8: KCLT | B8: CHARLOTTE/DOUGLAS INTL | C8: 35.213722 | D8: -80.94905533 | E8: KC | F8: United States | G8: KCLT | I8: AGGA
A9: KIAH | B9: GEORGE BUSH INTERCONTINENTAL/HOUSTON | C9: 29.98444433 | D9: -95.34144433 | E9: KI | F9: United States | G9: KIAH | I9: AGGB
A10: LFPG | B10: PARIS-CHARLES DE GAULLE | C10: 49.0097222 | D10: 2.5477778 | E10: LF | F10: France | G10: LFPG | I10: AGGC
A11: EGLL | B11: LONDON HEATHROW | C11: 51.4775 | D11: -0.4613889 | E11: EG | F11: United Kingdom | G11: EGLL | I11: AGGE
A12: EDDF | B12: FRANKFURT/MAIN | C12: 50.0333333 | D12: 8.5705556 | E12: ED | F12: Germany | G12: EDDF | I12: AGGF
A13: LTBA | B13: ISTANBUL/ATATURK | C13: 40.9769444 | D13: 28.8147222 | E13: LT | F13: Turkey | G13: LTBA | I13: AGGH
A14: ZSPD | B14: SHANGHAI/PUDONG | C14: 31.1433333 | D14: 121.8052778 | E14: ZS | F14: China | G14: ZSPD | I14: AGGI
A15: EHAM | B15: AMSTERDAM/SCHIPHOL | C15: 52.3080556 | D15: 4.7641667 | E15: EH | F15: Netherlands | G15: EHAM | I15: AGGJ
A16: CYYZ | B16: TORONTO/LESTER B. PEARSON INTL, ON | C16: 43.6772222 | D16: -79.6305556 | E16: CY | F16: Canada | G16: CYYZ | I16: AGGK
A17: KJFK | B17: JOHN F KENNEDY INTL | C17: 40.63975033 | D17: -73.77891667 | E17: KJ | F17: United States | G17: KJFK | I17: AGGL
A18: RJTT | B18: TOKYO INTL | C18: 35.5522222 | D18: 139.7797222 | E18: RJ | F18: Japan | G18: RJTT | I18: AGGM
A19: KSFO | B19: SAN FRANCISCO INTL | C19: 37.61880567 | D19: -122.3754167 | E19: KS | F19: United States | G19: KSFO | I19: AGGN
A20: WIII | B20: JAKARTA INTL/SOEKARNO-HATTA | C20: -6.1255556 | D20: 106.6558333 | E20: WI | F20: Indonesia | G20: WIII | I20: AGGO
A21: KPHX | B21: PHOENIX SKY HARBOR INTL | C21: 33.43427733 | D21: -112.011583 | E21: KP | F21: United States | G21: KPHX | I21: AGGP
A22: KEWR | B22: NEWARK LIBERTY INTL | C22: 40.69247233 | D22: -74.16866667 | E22: KE | F22: United States | G22: KEWR | I22: AGGQ
A23: KPHL | B23: PHILADELPHIA INTL | C23: 39.87224967 | D23: -75.24086133 | E23: KP | F23: United States | G23: KPHL | I23: AGGR
A24: ZGGG | B24: GUANGZHOU/BAIYUN | C24: 23.3925 | D24: 113.2988889 | E24: ZG | F24: China | G24: ZGGG | I24: AGGS
A25: KMIA | B25: MIAMI INTL | C25: 25.79536133 | D25: -80.29011133 | E25: KM | F25: United States | G25: KMIA | I25: AGGT
A26: KLAS | B26: MC CARRAN INTL | C26: 36.08005567 | D26: -115.15225 | E26: KL | F26: United States | G26: KLAS | I26: AGGU
A27: VHHH | B27: HONG KONG/INTERNATIONAL | C27: 22.3088889 | D27: 113.9147222 | E27: VH | F27: China | G27: VHHH | I27: AGGV
A28: KMSP | B28: MINNEAPOLIS-ST PAUL INTL/WOLD-CHAMBERLAIN | C28: 44.88197267 | D28: -93.22177767 | E28: KM | F28: United States | G28: KMSP | I28: AGGY
A29: OMDB | B29: DUBAI INTERNATIONAL | C29: 25.2527778 | D29: 55.3644444 | E29: OM | F29: United Arab Emirates | G29: OMDB | I29: AGIN
A30: MMMX | B30: MEXICO | C30: 19.4363889 | D30: -99.0722222 | E30: MM | F30: Mexico | G30: MMMX | I30: AGKG
A31: KDTW | B31: DETROIT METROPOLITAN WAYNE COUNTY | C31: 42.212417 | D31: -83.353389 | E31: KD | F31: United States | G31: KDTW | I31: AGKU
A32: KSEA | B32: SEATTLE-TACOMA INTL | C32: 47.44988933 | D32: -122.311778 | E32: KS | F32: United States | G32: KSEA | I32: AGKW
A33: EDDM | B33: MUENCHEN | C33: 48.3538889 | D33: 11.7861111 | E33: ED | F33: Germany | G33: EDDM | I33: AGMU
A34: LEMD | B34: MADRID/ADOLFO SUAREZ MADRID-BARAJAS | C34: 40.4936111 | D34: -3.5666667 | E34: LE | F34: Spain | G34: LEMD | I34: AGOK
A35: KLGA | B35: LA GUARDIA | C35: 40.77724967 | D35: -73.87261067 | E35: KL | F35: United States | G35: KLGA | I35: AGRC
A36: WMKK | B36: SEPANG/KL INTERNATIONAL AIRPORT | C36: 2.7455556 | D36: 101.7147222 | E36: WM | F36: Malaysia | G36: WMKK | I36: AGRM
A37: WSSS | B37: SINGAPORE/CHANGI | C37: 1.3591667 | D37: 103.9894444 | E37: WS | F37: Singapore | G37: WSSS | I37: AGTI
A38: KBOS | B38: GENERAL EDWARD LAWRENCE LOGAN INTL | C38: 42.362944 | D38: -71.006417 | E38: KB | F38: United States | G38: KBOS | I38: AGVH
A39: VIDP | B39: DELHI (IGI) | C39: 28.5663889 | D39: 77.1030556 | E39: VI | F39: India | G39: VIDP | I39: AYBK
A40: LIRF | B40: ROMA/FIUMICINO | C40: 41.8002778 | D40: 12.2388889 | E40: LI | F40: Italy | G40: LIRF | I40: AYCH
A41: VTBS | B41: BANGKOK/SUVARNABHUMI INTL AIRPORT | C41: 13.6858333 | D41: 100.7488889 | E41: VT | F41: Thailand | G41: VTBS | I41: AYDU
A42: KMCO | B42: ORLANDO INTL | C42: 28.42938867 | D42: -81.309 | E42: KM | F42: United States | G42: KMCO | I42: AYGA
A43: YSSY | B43: SYDNEY/SYDNEY (KINGSFORD SMITH) INTL | C43: -33.9461111 | D43: 151.1772222 | E43: YS | F43: Australia | G43: YSSY | I43: AYGN
A44: ZGSZ | B44: SHENZHEN/BAOAN | C44: 22.6391667 | D44: 113.8105556 | E44: ZG | F44: China | G44: ZGSZ | I44: AYGR
A45: ZPPP | B45: KUNMING/CHANGSHUI | C45: 24.9922222 | D45: 102.7436111 | E45: ZP | F45: China | G45: ZPPP | I45: AYHK
A46: RKSI | B46: INCHEON INTL | C46: 37.4691667 | D46: 126.4505556 | E46: RK | F46: Republic of Korea | G46: RKSI | I46: AYKA
A47: VABB | B47: MUMBAI | C47: 19.0886111 | D47: 72.8680556 | E47: VA | F47: India | G47: VABB | I47: AYKI
A48: KDCA | B48: RONALD REAGAN WASHINGTON NATIONAL | C48: 38.851917 | D48: -77.03769433 | E48: KD | F48: United States | G48: KDCA | I48: AYKK
A49: LEBL | B49: BARCELONA/EL PRAT | C49: 41.2969444 | D49: 2.0783333 | E49: LE | F49: Spain | G49: LEBL | I49: AYKM
A50: ZUUU | B50: CHENGDU/SHUANGLIU | C50: 30.5786111 | D50: 103.9472222 | E50: ZU | F50: China | G50: ZUUU | I50: AYKV
A51: KIAD | B51: WASHINGTON DULLES INTL | C51: 38.94744433 | D51: -77.459944 | E51: KI | F51: United States | G51: KIAD | I51: AYKY
A52: SKBO | B52: EL DORADO/DISTRITO CAPITAL | C52: 4.7016667 | D52: -74.1469444 | E52: SK | F52: Colombia | G52: SKBO | I52: AYMD
A53: SBGR | B53: SAO PAULO/GUARULHOS, GOVERNADOR ANDRE FRANCO MONTORO, SP | C53: -23.4319444 | D53: -46.4694444 | E53: SB | F53: Brazil | G53: SBGR | I53: AYMH
A54: KSLC | B54: SALT LAKE CITY INTL | C54: 40.78838933 | D54: -111.9777497 | E54: KS | F54: United States | G54: KSLC | I54: AYMN
A55: ZLXY | B55: XI'AN/XIANYANG | C55: 34.4472222 | D55: 108.7516667 | E55: ZL | F55: China | G55: ZLXY | I55: AYMO
A56: EGKK | B56: LONDON GATWICK | C56: 51.1480556 | D56: -0.1902778 | E56: EG | F56: United Kingdom | G56: EGKK | I56: AYMR
A57: ZSSS | B57: SHANGHAI/HONGQIAO | C57: 31.1977778 | D57: 121.3363889 | E57: ZS | F57: China | G57: ZSSS | I57: AYMS
A58: KFLL | B58: FORT LAUDERDALE HOLLYWOOD INTL | C58: 26.07166667 | D58: -80.14969433 | E58: KF | F58: United States | G58: KFLL | I58: AYNZ
A59: RPLL | B59: NINOY AQUINO INTERNATIONAL AIRPORT, MANILA | C59: 14.5086111 | D59: 121.0194444 | E59: RP | F59: Philippines | G59: RPLL | I59: AYPY
A60: UUEE | B60: MOSCOW/SHEREMETYEVO | C60: 55.9727778 | D60: 37.4147222 | E60: UU | F60: Russian Federation | G60: UUEE | I60: AYTA
A61: LSZH | B61: ZURICH | C61: 47.4647222 | D61: 8.5491667 | E61: LS | F61: Switzerland | G61: LSZH | I61: AYTK
A62: EKCH | B62: KOBENHAVN/KASTRUP | C62: 55.6180556 | D62: 12.6561111 | E62: EK | F62: Denmark | G62: EKCH | I62: AYVN
A63: CYVR | B63: VANCOUVER INTL, BC | C63: 49.1938889 | D63: -123.1844444 | E63: CY | F63: Canada | G63: CYVR | I63: AYWD
A64: LOWW | B64: WIEN-SCHWECHAT | C64: 48.1102778 | D64: 16.5780556 | E64: LO | F64: Austria | G64: LOWW | I64: AYWK
A65: ENGM | B65: OSLO/GARDERMOEN | C65: 60.1938889 | D65: 11.1002778 | E65: EN | F65: Norway | G65: ENGM | I65: BGAA
A66: KMDW | B66: CHICAGO MIDWAY INTL | C66: 41.78597233 | D66: -87.752417 | E66: KM | F66: United States | G66: KMDW | I66: BGAK
A67: KBWI | B67: BALTIMORE/WASHINGTON INTL THURGOOD MARSHALL | C67: 39.17533367 | D67: -76.66830567 | E67: KB | F67: United States | G67: KBWI | I67: BGAM
A68: LFPO | B68: PARIS-ORLY | C68: 48.7233333 | D68: 2.3794444 | E68: LF | F68: France | G68: LFPO | I68: BGAP
A69: EBBR | B69: BRUSSELS/BRUSSELS-NATIONAL | C69: 50.9013889 | D69: 4.4844444 | E69: EB | F69: Belgium | G69: EBBR | I69: BGAQ
A70: ZUCK | B70: CHONGQING/JIANGBEI | C70: 29.7194444 | D70: 106.6419444 | E70: ZU | F70: China | G70: ZUCK | I70: BGAR
A71: YMML | B71: MELBOURNE/MELBOURNE INTL | C71: -37.6733333 | D71: 144.8433333 | E71: YM | F71: Australia | G71: YMML | I71: BGAS
A72: UUDD | B72: MOSCOW/DOMODEDOVO | C72: 55.4088889 | D72: 37.9063889 | E72: UU | F72: Russian Federation | G72: UUDD | I72: BGAT
A73: ZSHC | B73: HANGZHOU/XIAOSHAN | C73: 30.2294444 | D73: 120.4344444 | E73: ZS | F73: China | G73: ZSHC | I73: BGBW
A74: CYYC | B74: CALGARY INTL, AB | C74: 51.1138889 | D74: -114.0202778 | E74: CY | F74: Canada | G74: CYYC | I74: BGCH
A75: ESSA | B75: STOCKHOLM/ARLANDA | C75: 59.6519444 | D75: 17.9186111 | E75: ES | F75: Sweden | G75: ESSA | I75: BGCO
A76: RJAA | B76: NARITA INTL | C76: 35.7647222 | D76: 140.3863889 | E76: RJ | F76: Japan | G76: RJAA | I76: BGET
A77: LTFJ | B77: ISTANBUL/SABIHA GOKCEN | C77: 40.8986111 | D77: 29.3091667 | E77: LT | F77: Turkey | G77: LTFJ | I77: BGFD
A78: VTBD | B78: BANGKOK/DON MUEANG INTL AIRPORT | C78: 13.9144444 | D78: 100.6055556 | E78: VT | F78: Thailand | G78: VTBD | I78: BGGH
A79: RCTP | B79: TAIBEI CITY/TAIBEI INTL AP | C79: 25.0777778 | D79: 121.2327778 | E79: RC | F79: China | G79: RCTP | I79: BGGN
A80: KMEM | B80: MEMPHIS INTL | C80: 35.04241633 | D80: -89.97666667 | E80: KM | F80: United States | G80: KMEM | I80: BGIA
A81: CYUL | B81: MONTREAL/PIERRE ELLIOT TRUDEAU INTL, QC | C81: 45.4705556 | D81: -73.7408333 | E81: CY | F81: Canada | G81: CYUL | I81: BGIG
A82: EDDL | B82: DUESSELDORF | C82: 51.2808333 | D82: 6.7572222 | E82: ED | F82: Germany | G82: EDDL | I82: BGIK
A83: OEJN | B83: JEDDAH/KING ABDULAZIZ INTERNATIONAL | C83: 21.6794444 | D83: 39.1566667 | E83: OE | F83: Saudi Arabia | G83: OEJN | I83: BGIL
A84: KDAL | B84: DALLAS LOVE FIELD | C84: 32.84711133 | D84: -96.851778 | E84: KD | F84: United States | G84: KDAL | I84: BGIN
A85: EIDW | B85: DUBLIN | C85: 53.4213889 | D85: -6.27 | E85: EI | F85: Ireland | G85: EIDW | I85: BGIS
A86: KPDX | B86: PORTLAND INTL | C86: 45.58869433 | D86: -122.5968613 | E86: KP | F86: United States | G86: KPDX | I86: BGIT
A87: PHNL | B87: HONOLULU INTL | C87: 21.31780567 | D87: -157.9202497 | E87: PH | F87: United States | G87: PHNL | I87: BGJH
A88: SBSP | B88: SAO PAULO/CONGONHAS, SP | C88: -23.6266667 | D88: -46.6552778 | E88: SB | F88: Brazil | G88: SBSP | I88: BGJN
A89: YBBN | B89: BRISBANE/BRISBANE INTL | C89: -27.3841667 | D89: 153.1175 | E89: YB | F89: Australia | G89: YBBN | I89: BGKA
A90: KSAN | B90: SAN DIEGO INTL | C90: 32.73355533 | D90: -117.1896663 | E90: KS | F90: United States | G90: KSAN | I90: BGKK
A91: ZSAM | B91: XIAMEN/GAOQI | C91: 24.5441667 | D91: 118.1277778 | E91: ZS | F91: China | G91: ZSAM | I91: BGKL
A92: EDDT | B92: BERLIN-TEGEL | C92: 52.5597222 | D92: 13.2877778 | E92: ED | F92: Germany | G92: EDDT | I92: BGKM
A93: KHOU | B93: WILLIAM P HOBBY | C93: 29.64541633 | D93: -95.27888867 | E93: KH | F93: United States | G93: KHOU | I93: BGKQ
A94: LSGG | B94: GENEVA | C94: 46.2380556 | D94: 6.1088889 | E94: LS | F94: Switzerland | G94: LSGG | I94: BGKS
A95: LEPA | B95: PALMA DE MALLORCA | C95: 39.5566667 | D95: 2.7305556 | E95: LE | F95: Spain | G95: LEPA | I95: BGKT
A96: KTPA | B96: TAMPA INTL | C96: 27.97547267 | D96: -82.53324967 | E96: KT | F96: United States | G96: KTPA | I96: BGLL
A97: VVTS | B97: HO CHI MINH/TAN SON NHAT INTERNATIONAL | C97: 10.8188889 | D97: 106.6519444 | E97: VV | F97: Viet Nam | G97: VVTS | I97: BGMO
A98: PANC | B98: TED STEVENS ANCHORAGE INTL | C98: 61.17413867 | D98: -149.9981663 | E98: PA | F98: United States | G98: PANC | I98: BGMQ
A99: EGCC | B99: MANCHESTER | C99: 53.3536111 | D99: -2.275 | E99: EG | F99: United Kingdom | G99: EGCC | I99: BGMV
A100: LTAI | B100: ANTALYA (MIL-CIV) | C100: 36.8986111 | D100: 30.8005556 | E100: LT | F100: Turkey | G100: LTAI | I100: BGNK
A101: SBBR | B101: BRASILIA/PRES. JUSCELINO KUBITSCHEK, DF | C101: -15.8711111 | D101: -47.9186111 | E101: SB | F101: Brazil | G101: SBBR | I101: BGNL
A102: LGAV | B102: ATHINAI/ELEFTHERIOS VENIZELOS | C102: 37.9363889 | D102: 23.9444444 | E102: LG | F102: Greece | G102: LGAV | I102: BGNN
A103: EGSS | B103: LONDON STANSTED | C103: 51.885 | D103: 0.235 | E103: EG | F103: United Kingdom | G103: EGSS | I103: BGNQ
A104: EFHK | B104: HELSINKI-VANTAA | C104: 60.3172222 | D104: 24.9633333 | E104: EF | F104: Finland | G104: EFHK | I104: BGNS
A105: KBNA | B105: NASHVILLE INTL | C105: 36.12447267 | D105: -86.67819467 | E105: KB | F105: United States | G105: KBNA | I105: BGNT
A106: LPPT | B106: LISBOA | C106: 38.7741667 | D106: -9.1341667 | E106: LP | F106: Portugal | G106: LPPT | I106: BGNU
A107: ZHHH | B107: WUHAN/TIANHE | C107: 30.7838889 | D107: 114.2080556 | E107: ZH | F107: China | G107: ZHHH | I107: BGPT
A108: KSTL | B108: LAMBERT-ST LOUIS INTL | C108: 38.74869433 | D108: -90.37002767 | E108: KS | F108: United States | G108: KSTL | I108: BGQE
A109: RJFF | B109: FUKUOKA | C109: 33.5858333 | D109: 130.4505556 | E109: RJ | F109: Japan | G109: RJFF | I109: BGQQ
A110: LIMC | B110: MILANO/MALPENSA | C110: 45.63 | D110: 8.7230556 | E110: LI | F110: Italy | G110: LIMC | I110: BGQT
A111: OERK | B111: RIYADH/KING KHALED INTERNATIONAL | C111: 24.9577778 | D111: 46.6988889 | E111: OE | F111: Saudi Arabia | G111: OERK | I111: BGSC
A112: ZSNJ | B112: NANJING/LUKOU | C112: 31.7419444 | D112: 118.8619444 | E112: ZS | F112: China | G112: ZSNJ | I112: BGSF
A113: RJBB | B113: KANSAI INTL | C113: 34.4272222 | D113: 135.2441667 | E113: RJ | F113: Japan | G113: RJBB | I113: BGSG
A114: ZWWW | B114: URUMQI/DIWOPU | C114: 43.9072222 | D114: 87.4741667 | E114: ZW | F114: China | G114: ZWWW | I114: BGSI
A115: ZHCC | B115: ZHENGZHOU/XINZHENG | C115: 34.5194444 | D115: 113.8411111 | E115: ZH | F115: China | G115: ZHCC | I115: BGSQ
A116: OMAA | B116: ABU DHABI INTERNATIONAL | C116: 24.4330556 | D116: 54.6511111 | E116: OM | F116: United Arab Emirates | G116: OMAA | I116: BGSS
A117: KOAK | B117: METROPOLITAN OAKLAND INTL | C117: 37.72124967 | D117: -122.2211387 | E117: KO | F117: United States | G117: KOAK | I117: BGST
A118: ZSQD | B118: QINGDAO/LIUTING | C118: 36.2661111 | D118: 120.3744444 | E118: ZS | F118: China | G118: ZSQD | I118: BGSV
A119: ZGCS | B119: CHANGSHA CITY | C119: 28.05 | D119: 112.9666667 | E119: ZG | F119: China | G119: ZGCS | I119: BGTA
A120: KRDU | B120: RALEIGH-DURHAM INTL | C120: 35.87763867 | D120: -78.78747233 | E120: KR | F120: United States | G120: KRDU | I120: BGTL
A121: KIND | B121: INDIANAPOLIS INTL | C121: 39.71727767 | D121: -86.29463933 | E121: KI | F121: United States | G121: KIND | I121: BGTN
A122: KTEB | B122: TETERBORO | C122: 40.850111 | D122: -74.060833 | E122: KT | F122: United States | G122: KTEB | I122: BGTQ
A123: EDDH | B123: HAMBURG | C123: 53.6302778 | D123: 9.9883333 | E123: ED | F123: Germany | G123: EDDH | I123: BGUK
A124: KAUS | B124: AUSTIN-BERGSTROM INTL | C124: 30.19452733 | D124: -97.66988867 | E124: KA | F124: United States | G124: KAUS | I124: BGUM
A125: VOBL | B125: BANGALORE INTL. AIRPORT | C125: 13.1977778 | D125: 77.7063889 | E125: VO | F125: India | G125: VOBL | I125: BGUQ
A126: WARR | B126: SURABAYA/JUANDA | C126: -7.3797222 | D126: 112.7869444 | E126: WA | F126: Indonesia | G126: WARR | I126: BGUT
A127: UUWW | B127: MOSCOW/VNUKOVO | C127: 55.5916667 | D127: 37.2613889 | E127: UU | F127: Russian Federation | G127: UUWW | I127: BIAR
A128: KSDF | B128: LOUISVILLE INTL-STANDIFORD FIELD | C128: 38.17408367 | D128: -85.73650033 | E128: KS | F128: United States | G128: KSDF | I128: BIBA
A129: RJCC | B129: SAPPORO/NEW CHITOSE | C129: 42.7752778 | D129: 141.6922222 | E129: RJ | F129: Japan | G129: RJCC | I129: BIBF
A130: MMUN | B130: CANCUN | C130: 21.0366667 | D130: -86.8772222 | E130: MM | F130: Mexico | G130: MMUN | I130: BIBL
A131: EPWA | B131: CHOPINA W WARSZAWIE | C131: 52.1658333 | D131: 20.9672222 | E131: EP | F131: Poland | G131: EPWA | I131: BIBR
A132: KSAT | B132: SAN ANTONIO INTL | C132: 29.53394433 | D132: -98.46905567 | E132: KS | F132: United States | G132: KSAT | I132: BIBV
A133: NZAA | B133: AUCKLAND INTL | C133: -37.0097222 | D133: 174.7916667 | E133: NZ | F133: New Zealand | G133: NZAA | I133: BIDV
A134: HECA | B134: CAIRO/INTL | C134: 30.1219444 | D134: 31.4055556 | E134: HE | F134: Egypt | G134: HECA | I134: BIEG
A135: RKPC | B135: JEJU INTL | C135: 33.5113889 | D135: 126.4930556 | E135: RK | F135: Republic of Korea | G135: RKPC | I135: BIFL
A136: CYEG | B136: EDMONTON INTL, AB | C136: 53.3097222 | D136: -113.5797222 | E136: CY | F136: Canada | G136: CYEG | I136: BIFM
A137: LFMN | B137: NICE-COTE D'AZUR | C137: 43.6652778 | D137: 7.215 | E137: LF | F137: France | G137: LFMN | I137: BIGJ
A138: MPTO | B138: TOCUMEN | C138: 9.0713889 | D138: -79.3833333 | E138: MP | F138: Panama | G138: MPTO | I138: BIGR
A139: KSJC | B139: NORMAN Y. MINETA SAN JOSE INTL | C139: 37.362667 | D139: -121.9291107 | E139: KS | F139: United States | G139: KSJC | I139: BIGS
A140: KCVG | B140: CINCINNATI/NORTHERN KENTUCKY INTL | C140: 39.04883333 | D140: -84.66780567 | E140: KC | F140: United States | G140: KCVG | I140: BIHE
A141: RJOO | B141: OSAKA INTL | C141: 34.7855556 | D141: 135.4383333 | E141: RJ | F141: Japan | G141: RJOO | I141: BIHI
A142: RKSS | B142: GIMPO | C142: 37.5583333 | D142: 126.7905556 | E142: RK | F142: Republic of Korea | G142: RKSS | I142: BIHK
A143: SBGL | B143: RIO DE JANEIRO/GALEAO-ANTONIO CARLOS JOBIM, RJ | C143: -22.8088889 | D143: -43.2436111 | E143: SB | F143: Brazil | G143: SBGL | I143: BIHL
A144: KPIT | B144: PITTSBURGH INTL | C144: 40.49141633 | D144: -80.23269467 | E144: KP | F144: United States | G144: KPIT | I144: BIHN
A145: ROAH | B145: NAHA | C145: 26.1958333 | D145: 127.6458333 | E145: RO | F145: Japan | G145: ROAH | I145: BIHU
A146: VOMM | B146: CHENNAI | C146: 12.9944444 | D146: 80.1805556 | E146: VO | F146: India | G146: VOMM | I146: BIIS
A147: WADD | B147: BALI INTL/NGURAH RAI | C147: -8.7480556 | D147: 115.1672222 | E147: WA | F147: Indonesia | G147: WADD | I147: BIKA
A148: EDDK | B148: KOELN/BONN | C148: 50.8658333 | D148: 7.1427778 | E148: ED | F148: Germany | G148: EDDK | I148: BIKE
A149: SCEL | B149: SANTIAGO/AP ARTURO MERINO BENITEZ | C149: -33.3930556 | D149: -70.7858333 | E149: SC | F149: Chile | G149: SCEL | I149: BIKF
A150: KSNA | B150: JOHN WAYNE AIRPORT-ORANGE COUNTY | C150: 33.67566667 | D150: -117.8682227 | E150: KS | F150: United States | G150: KSNA | I150: BIKL
A151: ULLI | B151: SANKT-PETERBURG/PULKOVO | C151: 59.8002778 | D151: 30.2625 | E151: UL | F151: Russian Federation | G151: ULLI | I151: BIKP
A152: LKPR | B152: PRAHA/RUZYNE | C152: 50.1008333 | D152: 14.26 | E152: LK | F152: Czechia | G152: LKPR | I152: BIKR
A153: ZBTJ | B153: TIANJIN/BINHAI | C153: 39.1244444 | D153: 117.3461111 | E153: ZB | F153: China | G153: ZBTJ | I153: BIMK
A154: KMSY | B154: LOUIS ARMSTRONG NEW ORLEANS INTL | C154: 29.99327733 | D154: -90.259028 | E154: KM | F154: United States | G154: KMSY | I154: BIMM
A155: KMCI | B155: KANSAS CITY INTL | C155: 39.29758333 | D155: -94.713889 | E155: KM | F155: United States | G155: KMCI | I155: BIMS
A156: KCMH | B156: PORT COLUMBUS INTL | C156: 39.99694433 | D156: -82.89216633 | E156: KC | F156: United States | G156: KCMH | I156: BIND
A157: VVNB | B157: HA NOI/NOI BAI INTERNATIONAL | C157: 21.2211111 | D157: 105.8072222 | E157: VV | F157: Viet Nam | G157: VVNB | I157: BINF
A158: KCLE | B158: CLEVELAND-HOPKINS INTL | C158: 41.409417 | D158: -81.854694 | E158: KC | F158: United States | G158: KCLE | I158: BIRE
A159: LIML | B159: MILANO/LINATE | C159: 45.4494444 | D159: 9.2783333 | E159: LI | F159: Italy | G159: LIML | I159: BIRF
A160: ZJHK | B160: HAIKOU/MEILAN | C160: 19.9347222 | D160: 110.4588889 | E160: ZJ | F160: China | G160: ZJHK | I160: BIRG
A161: EGGW | B161: LONDON LUTON | C161: 51.8747222 | D161: -0.3683333 | E161: EG | F161: United Kingdom | G161: EGGW | I161: BIRK
A162: ZUGY | B162: GUIYANG/LONGDONGBAO | C162: 26.5386111 | D162: 106.8008333 | E162: ZU | F162: China | G162: ZUGY | I162: BIRL
A163: ZYTL | B163: DALIAN/ZHOUSHUIZI | C163: 38.9655556 | D163: 121.5386111 | E163: ZY | F163: China | G163: ZYTL | I163: BIRS
A164: EDDS | B164: STUTTGART | C164: 48.69 | D164: 9.2219444 | E164: ED | F164: Germany | G164: EDDS | I164: BISF
A165: KPBI | B165: PALM BEACH INTL | C165: 26.68316667 | D165: -80.09558333 | E165: KP | F165: United States | G165: KPBI | I165: BISK
A166: LLBG | B166: TEL-AVIV/BEN GURION AIRPORT | C166: 32.0113889 | D166: 34.8866667 | E166: LL | F166: Israel | G166: LLBG | I166: BISR
A167: EGPH | B167: EDINBURGH | C167: 55.95 | D167: -3.3725 | E167: EG | F167: United Kingdom | G167: EGPH | I167: BISS
A168: SABE | B168: AEROPARQUE J. NEWBERY (CABA) | C168: -34.5588889 | D168: -58.4163889 | E168: SA | F168: Argentina | G168: SABE | I168: BIST
A169: LFLL | B169: LYON SAINT-EXUPERY | C169: 45.7255556 | D169: 5.0811111 | E169: LF | F169: France | G169: LFLL | I169: BISV
A170: SBRJ | B170: RIO DE JANEIRO/SANTOS DUMONT RJ | C170: -22.9105556 | D170: -43.1630556 | E170: SB | F170: Brazil | G170: SBRJ | I170: BITE
A171: LEMG | B171: MALAGA/COSTA DEL SOL | C171: 36.675 | D171: -4.4991667 | E171: LE | F171: Spain | G171: LEMG | I171: BITM
A172: WAAA | B172: MAKASSAR/SULTAN HASANUDDIN | C172: -5.0616667 | D172: 119.5538889 | E172: WA | F172: Indonesia | G172: WAAA | I172: BITN
A173: ZYHB | B173: HARBIN/TAIPING | C173: 45.6233333 | D173: 126.2502778 | E173: ZY | F173: China | G173: ZYHB | I173: BIVI
A174: KMKE | B174: GENERAL MITCHELL INTL | C174: 42.94694433 | D174: -87.89705533 | E174: KM | F174: United States | G174: KMKE | I174: BIVM
A175: MMMY | B175: MONTERREY | C175: 25.7786111 | D175: -100.1069444 | E175: MM | F175: Mexico | G175: MMMY | I175: BIVO
A176: VOHS | B176: HYDERABAD INTL. AIRPORT | C176: 17.2405556 | D176: 78.4288889 | E176: VO | F176: India | G176: VOHS | I176: CYAC
A177: TJSJ | B177: LUIS MUNOZ MARIN INTL | C177: 18.43938933 | D177: -66.002111 | E177: TJ | F177: United States | G177: TJSJ | I177: CYAD
A178: KSMF | B178: SACRAMENTO INTL | C178: 38.69544433 | D178: -121.5907773 | E178: KS | F178: United States | G178: KSMF | I178: CYAG
A179: VECC | B179: KOLKATA | C179: 22.6547222 | D179: 88.4466667 | E179: VE | F179: India | G179: VECC | I179: CYAH
A180: YPPH | B180: PERTH/PERTH INTL | C180: -31.9402778 | D180: 115.9669444 | E180: YP | F180: Australia | G180: YPPH | I180: CYAL
A181: ZYTX | B181: SHENYANG/TAOXIAN | C181: 41.6397222 | D181: 123.4833333 | E181: ZY | F181: China | G181: ZYTX | I181: CYAM
A182: EGBB | B182: BIRMINGHAM | C182: 52.4538889 | D182: -1.7480556 | E182: EG | F182: United Kingdom | G182: EGBB | I182: CYAQ
A183: MMGL | B183: GUADALAJARA | C183: 20.5216667 | D183: -103.3111111 | E183: MM | F183: Mexico | G183: MMGL | I183: CYAS
A184: LTAC | B184: ANKARA/ESENBOGA | C184: 40.1280556 | D184: 32.995 | E184: LT | F184: Turkey | G184: LTAC | I184: CYAT
A185: GCLP | B185: GRAN CANARIA | C185: 27.9319444 | D185: -15.3866667 | E185: GC | F185: Spain | G185: GCLP | I185: CYAU
A186: OKBK | B186: KUWAIT/INTL AIRPORT | C186: 29.2266667 | D186: 47.9688889 | E186: OK | F186: Kuwait | G186: OKBK | I186: CYAV
A187: SBKP | B187: CAMPINAS/VIRACOPOS,SP | C187: -23.0080556 | D187: -47.1347222 | E187: SB | F187: Brazil | G187: SBKP | I187: CYAW
A188: LFML | B188: MARSEILLE-PROVENCE | C188: 43.4366667 | D188: 5.215 | E188: LF | F188: France | G188: LFML | I188: CYAX
A189: KHPN | B189: WESTCHESTER COUNTY | C189: 41.06694467 | D189: -73.707556 | E189: KH | F189: United States | G189: KHPN | I189: CYAY
A190: LROP | B190: BUCURESTI/HENRI COANDA | C190: 44.5722222 | D190: 26.1022222 | E190: LR | F190: Romania | G190: LROP | I190: CYAZ
A191: SBCF | B191: BELO HORIZONTE/TANCREDO NEVES,MG | C191: -19.6338889 | D191: -43.9688889 | E191: SB | F191: Brazil | G191: SBCF | I191: CYBB
A192: HKJK | B192: JOMO KENYATTA INTL (TWR/APP/NOF/MET) | C192: -1.3191667 | D192: 36.9277778 | E192: HK | F192: Kenya | G192: HKJK | I192: CYBC
A193: RJGG | B193: CHUBU CENTRAIR INTL | C193: 34.8583333 | D193: 136.8052778 | E193: RJ | F193: Japan | G193: RJGG | I193: CYBD
A194: OOMS | B194: MUSCAT/MUSCAT INTL | C194: 23.5927778 | D194: 58.2816667 | E194: OO | F194: Oman | G194: OOMS | I194: CYBE
A195: ZSFZ | B195: FUZHOU/CHANGLE | C195: 25.935 | D195: 119.6633333 | E195: ZS | F195: China | G195: ZSFZ | I195: CYBF
A196: LHBP | B196: BUDAPEST LISZT FERENC INTERNATIONAL AIRPORT | C196: 47.4369444 | D196: 19.2555556 | E196: LH | F196: Hungary | G196: LHBP | I196: CYBG
A197: CYWG | B197: WINNIPEG/JAMES ARMSTRONG RICHARDSON INTL, MB | C197: 49.91 | D197: -97.24 | E197: CY | F197: Canada | G197: CYWG | I197: CYBK
A198: EGPF | B198: GLASGOW | C198: 55.8719444 | D198: -4.4330556 | E198: EG | F198: United Kingdom | G198: EGPF | I198: CYBL
A199: OBBI | B199: BAHRAIN INTERNATIONAL | C199: 26.2708333 | D199: 50.6336111 | E199: OB | F199: Bahrain | G199: OBBI | I199: CYBN
A200: LFBO | B200: TOULOUSE-BLAGNAC ; TOULOUSE/CCER | C200: 43.635 | D200: 1.3677778 | E200: LF | F200: France | G200: LFBO | I200: CYBP
... 4300 more rows

Sheet CERT_Doc8585 (hidden)
A1: LETTER | B1: Aircraft Operator (SERVICE) | C1: NOTIFYING STATE | E1: NOTIFYING STATE
A2: Do Not Have an ICAO Designator | B2: N/A | C2: N/A | E2: Afghanistan
A3: AAA | B3: AVICON AVIATION CONSULTANTS & AGENTS | C3: Pakistan | E3: Albania
A4: AAB | B4: ABELAG AVIATION | C4: Belgium | E4: Algeria
A5: AAC | B5: ARMY AIR CORPS | C5: United Kingdom | E5: Andorra
A6: AAD | B6: MANN AIR LTD (T/A AMBASSADOR) | C6: United Kingdom | E6: Angola
A7: AAE | B7: EXPRESS AIR, INC. (PHOENIX, AZ) | C7: United States | E7: Antigua and Barbuda
A8: AAF | B8: AIGLE AZUR | C8: France | E8: Argentina
A9: AAG | B9: AIR ATLANTIQUE | C9: United Kingdom | E9: Armenia
A10: AAH | B10: AEKO KULA, INC. D/B/A ALOHA AIR CARGO (HONOLULU, HI) | C10: United States | E10: Australia
A11: AAI | B11: AIR AURORA, INC. (SUGAR GROVE, IL) | C11: United States | E11: Austria
A12: AAJ | B12: ALFA AIRLINES CO., LTD | C12: Sudan | E12: Azerbaijan
A13: AAK | B13: ALASKA ISLAND AIR, INC. (ANCHORAGE, AK) | C13: United States | E13: Bahamas
A14: AAL | B14: AMERICAN AIRLINES INC. | C14: United States | E14: Bahrain
A15: AAM | B15: AVIATION MANAGEMENT CORPORATION (LANSING, IL) | C15: United States | E15: Bangladesh
A16: AAN | B16: AMSTERDAM AIRLINES B.V. | C16: Netherlands | E16: Barbados
A17: AAO | B17: ATLANTIS AIRLINES (MYRTLE BEACH, SC) | C17: United States | E17: Belarus
A18: AAP | B18: ARABASCO AIR SERVICES | C18: Saudi Arabia | E18: Belgium
A19: AAR | B19: ASIANA AIRLINES | C19: Republic of Korea | E19: Belize
A20: AAS | B20: ASKARI AVIATION (PVT) LTD | C20: Pakistan | E20: Benin
A21: AAT | B21: AIR CENTRAL ASIA | C21: Kyrgyzstan | E21: Bhutan
A22: AAU | B22: AEROPA S.R.L. | C22: Italy | E22: Bolivia (Plurinational State of)
A23: AAV | B23: ASTRO AIR INTERNATIONAL, INC. | C23: Philippines | E23: Bosnia and Herzegovina
A24: AAW | B24: AFRICAN AIRLINES CORPORATION | C24: Libya | E24: Botswana
A25: AAX | B25: ADVANCE AVIATION CO., LTD | C25: Thailand | E25: Brazil
A26: AAY | B26: ALLEGIANT AIR, INC. (FRESNO, CA) | C26: United States | E26: Brunei Darussalam
A27: ABA | B27: AERO-BETA GMBH & CO., STUTTGART | C27: Germany | E27: Bulgaria
A28: ABB | B28: AFRICAN BUSINESS AND TRANSPORTATIONS | C28: Democratic Republic of the Congo | E28: Burkina Faso
A29: ABD | B29: AIR ATLANTA ICELANDIC | C29: Iceland | E29: Burundi
A30: ABE | B30: ABAN AIR | C30: Iran (Islamic Republic of) | E30: Cabo Verde
A31: ABF | B31: SCANWINGS OY, FINLAND | C31: Finland | E31: Cambodia
A32: ABG | B32: ABAKAN-AVIA | C32: Russian Federation | E32: Cameroon
A33: ABH | B33: HOKURIKU-KOUKUU CO., LTD | C33: Japan | E33: Canada
A34: ABI | B34: ALBA-AIR AVIACION, S.L. | C34: Spain | E34: Central African Republic
A35: ABJ | B35: ALA ABAETE LINHAS AEREAS S/A | C35: Brazil | E35: Chad
A36: ABK | B36: ALBERTA CITYLINK | C36: Canada | E36: Chile
A37: ABL | B37: AIR BUSAN | C37: Republic of Korea | E37: China
A38: ABM | B38: AERO ALBATROS | C38: Spain | E38: Colombia
A39: ABN | B39: AIR FRET SENEGAL | C39: Senegal | E39: Comoros
A40: ABO | B40: AEROEXPRESO BOGOTA | C40: Colombia | E40: Congo
A41: ABP | B41: ABS JETS | C41: Czechia | E41: Cook Islands
A42: ABQ | B42: AIRBLUE LIMITED, M/S. | C42: Pakistan | E42: Costa Rica
A43: ABR | B43: AIR CONTRACTORS (IRELAND) LTD | C43: Ireland | E43: Côte d'Ivoire
A44: ABS | B44: AFRIJET BUSINESS SERVICES (ABS) | C44: Gabon | E44: Croatia
A45: ABT | B45: AMBEO PLC | C45: United Kingdom | E45: Cuba
A46: ABU | B46: EAGLE AVIATION SERVICES, INC. (FT. WORTH, TX) | C46: United States | E46: Cyprus
A47: ABV | B47: ANTRAK AIR GHANA | C47: Ghana | E47: Czechia
A48: ABW | B48: AIRBRIDGE CARGO AIRLINES LTD | C48: Russian Federation | E48: Democratic People's Republic of Korea
A49: ABX | B49: ABX AIR, INC. (WILMINGTON, OH) | C49: United States | E49: Democratic Republic of the Congo
A50: ABY | B50: AIR ARABIA | C50: United Arab Emirates | E50: Denmark
A51: ACA | B51: AIR CANADA | C51: Canada | E51: Djibouti
A52: ACB | B52: AIR CONTINENTAL AFRICA | C52: Gabon | E52: Dominican Republic
A53: ACC | B53: AVCARD SERVICES LTD | C53: United Kingdom | E53: Ecuador
A54: ACD | B54: ACADEMY AIRLINES (GRIFFIN, GA) | C54: United States | E54: Egypt
A55: ACE | B55: AIR CHARTER EXPRESS LIMITED | C55: Ghana | E55: El Salvador
A56: ACF | B56: CENTRO DE FORMACION AERONAUTICA DE CANARIAS | C56: Spain | E56: Equatorial Guinea
A57: ACG | B57: AIR PARTNER PLC | C57: United Kingdom | E57: Eritrea
A58: ACH | B58: AFRICA'S CONNECTION STP | C58: Sao Tome and Principe | E58: Estonia
A59: ACI | B59: AIR CALEDONIE INTERNATIONAL | C59: France | E59: Ethiopia
A60: ACK | B60: NANTUCKET AIRLINES (NANTUCKET, MA) | C60: United States | E60: Fiji
A61: ACL | B61: ITALI AIRLINES S.P.A. | C61: Italy | E61: Finland
A62: ACM | B62: AVIAC S.A. DE C.V. (AEREO VIAS CENTROAMERICANAS SOCIEDAD ANONIMA DE CAPITAL VARIABLE) | C62: Honduras | E62: France
A63: ACN | B63: AEROLINEAS CENTROAMERICANAS, S.A. (CENTRAL AMERICAN AIRLINES) | C63: Nicaragua | E63: Gabon
A64: ACO | B64: AERO COMONDU, S.A. DE C.V. | C64: Mexico | E64: Gambia
A65: ACP | B65: ASTRAL AVIATION LIMITED | C65: Kenya | E65: Georgia
A66: ACQ | B66: ARYAN CARGO EXPRESS | C66: India | E66: Germany
A67: ACR | B67: AEROCENTER, ESCUELA DE FORMACION DE PILOTOS PRIVADOS DE AVION | C67: Spain | E67: Ghana
A68: ACS | B68: AIRCRAFT SALES AND SERVICES (PVT) LTD | C68: Pakistan | E68: Greece
A69: ACT | B69: FLIGHT LINE, INC. (DENVER, CO) | C69: United States | E69: Grenada
A70: ACU | B70: AIR CARGO TRANSPORTATION SYSTEM LIMITED | C70: Kenya | E70: Guatemala
A71: ACV | B71: AIR CHARTER SERVICE | C71: United Kingdom | E71: Guinea
A72: ACW | B72: SERVICIOS AEREOS ACROSS, S.A. DE C.V. | C72: Mexico | E72: Guinea-Bissau
A73: ACX | B73: ACG AIR CARGO GERMANY GMBH, FLUGHAFEN HAHN | C73: Germany | E73: Guyana
A74: ACY | B74: ATLAS CARGO LINES | C74: Morocco | E74: Haiti
A75: ADA | B75: AIRSERVICES AUSTRALIA, FLIGHT INSPECTION UNIT | C75: Australia | E75: Honduras
A76: ADB | B76: ANTONOV COMPANY | C76: Ukraine | E76: Hungary
A77: ADC | B77: AD ASTRA EXECUTIVE CHARTER SP.Z.O.O. | C77: Poland | E77: Iceland
A78: ADD | B78: ADVANCED AIR CO., LTD | C78: Japan | E78: India
A79: ADE | B79: ADA AIR | C79: Albania | E79: Indonesia
A80: ADF | B80: ADEFA, S.A. | C80: Spain | E80: Iran (Islamic Republic of)
A81: ADG | B81: AEREA FLYING TRAINING ORGANIZATION, S.A. | C81: Spain | E81: Iraq
A82: ADH | B82: AIR ONE | C82: Italy | E82: Ireland
A83: ADI | B83: AUDELI AIR EXPRESS | C83: Spain | E83: Israel
A84: ADK | B84: AVIATION DEVELOPMENT COMPANY NIGERIA LIMITED | C84: Nigeria | E84: Italy
A85: ADL | B85: AERO DYNAMICS | C85: United Kingdom | E85: Jamaica
A86: ADM | B86: ANDAMAN AVIATION SERVICES LIMITED | C86: Thailand | E86: Japan
A87: ADN | B87: AERODIENST GMBH, NURNBERG | C87: Germany | E87: Jordan
A88: ADO | B88: HOKKAIDO INTERNATIONAL AIRLINES CO., LTD | C88: Japan | E88: Kazakhstan
A89: ADP | B89: AERODIPLOMATIC, S.A. DE C.V. | C89: Mexico | E89: Kenya
A90: ADR | B90: ADRIA AIRWAYS | C90: Slovenia | E90: Kiribati
A91: ADS | B91: AVIONES DE SONORA, S.A. | C91: Mexico | E91: Kuwait
A92: ADT | B92: ARRENDAMIENTOS Y TRANSPORTES TURISTICOS, S.A. DE C.V. | C92: Mexico | E92: Kyrgyzstan
A93: ADV | B93: ADVANCED FLIGHT TRAINING LTD | C93: United Kingdom | E93: Lao People's Democratic Republic
A94: ADX | B94: ANDERSON AVIATION, INC. (ANDERSON, IN) | C94: United States | E94: Latvia
A95: ADY | B95: AERODYNE (MILWAUKEE, WI) | C95: United States | E95: Lebanon
A96: ADZ | B96: AVIODELTA | C96: Bulgaria | E96: Lesotho
A97: AEA | B97: AIR EUROPA | C97: Spain | E97: Liberia
A98: AEB | B98: AERO BENIN SA | C98: Benin | E98: Libya
A99: AEC | B99: AEROSERVICIOS DE ALMERIA 2000, S.L. | C99: Spain | E99: Lithuania
A100: AED | B100: EADS CASA | C100: Spain | E100: Luxembourg
A101: AEE | B101: AEGEAN AIRLINES | C101: Greece | E101: Madagascar
A102: AEF | B102: AEREA | C102: Spain | E102: Malawi
A103: AEI | B103: AIR ITALY POLSKA SP. Z.O.O. | C103: Poland | E103: Malaysia
A104: AEJ | B104: AIR EXPRESS LIMITED | C104: United Republic of Tanzania | E104: Maldives
A105: AEK | B105: AEROCON LTDA. | C105: Bolivia (Plurinational State of) | E105: Mali
A106: AEL | B106: AERO CALY, S.A. DE C.V. | C106: Mexico | E106: Malta
A107: AEM | B107: AERO MADRID | C107: Spain | E107: Marshall Islands
A108: AEN | B108: AEROLAND S.A. | C108: Greece | E108: Mauritania
A109: AEO | B109: AEROSERVICIOS EJECUTIVOS DEL OCCIDENTE, S.A. DE C.V. | C109: Mexico | E109: Mauritius
A110: AEP | B110: AEROTEC | C110: Spain | E110: Mexico
A111: AER | B111: ALASKA CENTRAL EXPRESS, INC. (FAIRBANKS, AK) | C111: United States | E111: Micronesia (Federated States of)
A112: AES | B112: AERO SUR PARAGUAY S.A. | C112: Paraguay | E112: Monaco
A113: AET | B113: AERONAUTICAL RADIO OF THAILAND LTD | C113: Thailand | E113: Mongolia
A114: AEU | B114: ASTRAEUS LTD | C114: United Kingdom | E114: Montenegro
A115: AEV | B115: AEROVENTAS, S.A. | C115: Mexico | E115: Morocco
A116: AEW | B116: AEROSVIT AIRLINES | C116: Ukraine | E116: Mozambique
A117: AEX | B117: AIRWAY EXPRESS, INC. (MESA, AZ) | C117: United States | E117: Myanmar
A118: AEY | B118: AIR ITALY S.P.A. | C118: Italy | E118: Namibia
A119: AEZ | B119: AERIAL TRANSIT COMPANY (MIAMI, FL) | C119: United States | E119: Nauru
A120: AFA | B120: ALFA AIR | C120: Czechia | E120: Nepal
A121: AFB | B121: BULGARIAN AIR FORCE | C121: Bulgaria | E121: Netherlands
A122: AFC | B122: AFRICAN WEST AIR (AWA) | C122: Senegal | E122: New Zealand
A123: AFE | B123: AIRFAST INDONESIA, PT. | C123: Indonesia | E123: Nicaragua
A124: AFF | B124: AFRICA AIRWAYS | C124: Benin | E124: Niger
A125: AFG | B125: ARIANA AFGHAN AIRLINES | C125: Afghanistan | E125: Nigeria
A126: AFH | B126: AIR AFGHANISTAN INTERNATIONAL | C126: Afghanistan | E126: Norway
A127: AFI | B127: AFRICAONE | C127: Uganda | E127: Oman
A128: AFJ | B128: ALLIANCE | C128: Uganda | E128: Pakistan
A129: AFL | B129: AEROFLOT - RUSSIAN AIRLINES | C129: Russian Federation | E129: Palau
A130: AFM | B130: AIR FOUR S.P.A. | C130: Italy | E130: Panama
A131: AFO | B131: AERO EMPRESA MEXICANA, S.A. | C131: Mexico | E131: Papua New Guinea
A132: AFP | B132: PORTUGUESE AIR FORCE | C132: Portugal | E132: Paraguay
A133: AFQ | B133: ALBA SERVIZI AEROTRASPORTI SPA | C133: Italy | E133: Peru
A134: AFR | B134: AIR FRANCE | C134: France | E134: Philippines
A135: AFS | B135: AIR DATA LTD | C135: United Kingdom | E135: Poland
A136: AFU | B136: AVIOFUN, D.O.O. | C136: Slovenia | E136: Portugal
A137: AFW | B137: AFRICA WORLD AIRLINES LIMITED | C137: Ghana | E137: Qatar
A138: AFX | B138: AIRFREIGHT EXPRESS LIMITED | C138: United Kingdom | E138: Republic of Korea
A139: AFY | B139: AFRICA CHARTERED SERVICES | C139: Nigeria | E139: Republic of Moldova
A140: AFZ | B140: AFRICA FREIGHT SERVICES (Z) LIMITED | C140: Zambia | E140: Romania
A141: AGB | B141: AIR-SERVICE-GABON | C141: Gabon | E141: Russian Federation
A142: AGC | B142: STRATEGIC AIRLINES PTY LTD | C142: Australia | E142: Rwanda
A143: AGD | B143: AGRICOLAIR, S.L. | C143: Spain | E143: Saint Kitts and Nevis
A144: AGE | B144: AIRGO AIRLINES BULGARIA | C144: Bulgaria | E144: Saint Lucia
A145: AGF | B145: ATLANTIC GULF AIRLINES, INC. (CLEARWATER, FL) | C145: United States | E145: Saint Vincent and the Grenadines
A146: AGG | B146: AIR GRISCHA HELIKOPTER AG | C146: Switzerland | E146: Samoa
A147: AGH | B147: ALTAGNA | C147: France | E147: San Marino
A148: AGI | B148: AEREO TRANSPORTES LOS ANGELES DE AMERICA, S.A. DE C.V. | C148: Mexico | E148: Sao Tome and Principe
A149: AGL | B149: AIR GALAXY LIMITED | C149: Bangladesh | E149: Saudi Arabia
A150: AGM | B150: AIR GUAM (TAMUNING, GU) | C150: United States | E150: Senegal
A151: AGN | B151: COMPAGNIE NATIONALE AIR GABON | C151: Gabon | E151: Serbia
A152: AGO | B152: AAC-ANGOLA AIR CHARTER LIMITED | C152: Angola | E152: Seychelles
A153: AGP | B153: AERFI GROUP PLC | C153: Ireland | E153: Sierra Leone
A154: AGR | B154: DEPT. OF AGRICULTURE (HYATTSVILLE, MD) | C154: United States | E154: Singapore
A155: AGT | B155: AMADEUS GLOBAL TRAVEL DISTRIBUTION S.A. | C155: Spain | E155: Slovakia
A156: AGU | B156: ANGARA AIRLINES JSC | C156: Russian Federation | E156: Slovenia
A157: AGV | B157: AIR GLACIERS SA | C157: Switzerland | E157: Solomon Islands
A158: AGX | B158: AVIOGENEX | C158: Serbia | E158: Somalia
A159: AGY | B159: AERO FLIGHT SERVICE, INC (FT. LAUDERDALE, FL) | C159: United States | E159: South Africa
A160: AGZ | B160: AGROLET-MCI LTD | C160: Slovakia | E160: South Sudan
A161: AHA | B161: AIR ALPHA A/S | C161: Denmark | E161: Spain
A162: AHC | B162: CARGO AIRLINE OF THE NATIONAL AIRLINE AZERBAIJAN HAVA YOLLARI | C162: Azerbaijan | E162: Sri Lanka
A163: AHD | B163: CZECH AIR HANDLING | C163: Czechia | E163: Sudan
A164: AHE | B164: AIRPORT HELICOPTER BASEL, HANS-RUDOLF MULLER | C164: Switzerland | E164: Suriname
A165: AHF | B165: ASPEN HELICOPTERS, INC. (OXNARD, CA) | C165: United States | E165: Swaziland
A166: AHH | B166: AIRPLANES HOLDINGS LTD | C166: Ireland | E166: Sweden
A167: AHI | B167: SERVICIOS AEREOS DE CHIHUAHUA AEROCHISA, S.A. DE C.V. | C167: Mexico | E167: Switzerland
A168: AHJ | B168: AVIONES Y HELICOPTEROS EJECUTIVOS, S.A. DE C.V. | C168: Mexico | E168: Syrian Arab Republic
A169: AHK | B169: AHK AIR HONG KONG LIMITED | C169: China | E169: Tajikistan
A170: AHL | B170: AEROLINEAS HIDALGO, S.A. DE C.V. | C170: Mexico | E170: Thailand
A171: AHM | B171: ATLANTIS HELICOPTERS DE MEXICO, S.A. DE C.V. | C171: Mexico | E171: The former Yugoslav Republic of Macedonia
A172: AHN | B172: AVIA GROUP HANDLING LLC | C172: Russian Federation | E172: Timor-Leste
A173: AHO | B173: AIR HAMBURG | C173: Germany | E173: Togo
A174: AHR | B174: AIR ADRIATIC | C174: Croatia | E174: Tonga
A175: AHS | B175: AHS AIR INTERNATIONAL (PVT) LTD | C175: Pakistan | E175: Trinidad and Tobago
A176: AHT | B176: HTA HELICOPTEROS, LDA | C176: Portugal | E176: Tunisia
A177: AHU | B177: ABC AIR HUNGARY LTD | C177: Hungary | E177: Turkey
A178: AHX | B178: AMAKUSA AIRLINES CO., LTD | C178: Japan | E178: Turkmenistan
A179: AHY | B179: AZERBAIJAN HAVA YOLLARI, NATIONAL AIRLINE | C179: Azerbaijan | E179: Tuvalu
A180: AIA | B180: AVIES | C180: Estonia | E180: Uganda
A181: AIB | B181: AIRBUS INDUSTRIE | C181: France | E181: Ukraine
A182: AIC | B182: AIR INDIA LIMITED | C182: India | E182: United Arab Emirates
A183: AID | B183: CHRISTIAN KONIG - CENTURY AIRBIRDS | C183: Austria | E183: United Kingdom
A184: AIE | B184: AIR INUIT LTD | C184: Canada | E184: United Republic of Tanzania
A185: AIF | B185: AIM AVIATION | C185: Israel | E185: United States
A186: AIG | B186: AIR INTER GABON | C186: Gabon | E186: Uruguay
A187: AIJ | B187: ABC AEROLINEAS, S.A. DE C.V. | C187: Mexico | E187: Uzbekistan
A188: AIK | B188: AFRICAN AIRLINES INTERNATIONAL LIMITED | C188: Kenya | E188: Vanuatu
A189: AIL | B189: AIR ILLINOIS, INC. (CARBONDALE, IL) | C189: United States | E189: Venezuela (Bolivarian Republic of)
A190: AIM | B190: TRABAJOS AEREOS MURCIANOS S.L. | C190: Spain | E190: Viet Nam
A191: AIN | B191: AFRICAN INTERNATIONAL AIRWAYS (PTY) LTD | C191: South Africa | E191: Yemen
A192: AIO | B192: CHIEF OF STAFF, UNITED STATES AIR FORCE (ANDREWS AFB, MD) | C192: United States | E192: Zambia
A193: AIP | B193: ALPINE AVIATION, INC. (PROVO, UT) | C193: United States | E193: Zimbabwe
A194: AIQ | B194: THAI AIR ASIA CO., LTD | C194: Thailand
A195: AIR | B195: AIRLIFT INTERNATIONAL INC. | C195: United States
A196: AIS | B196: AIR SURESTE | C196: Spain
A197: AIT | B197: AIR TAURUS LLC | C197: Ukraine
A198: AIU | B198: AIR SEGURA S.L. | C198: Spain
A199: AIV | B199: AVEX INTERNATIONAL | C199: Pakistan
A200: AIX | B200: AIRCRUISING AUSTRALIA | C200: Australia
... 5522 more rows

Sheet CEM_GCD (hidden)
A1: Type Designator | B1: Intercept_1 | C1: Slope_1 | D1: Distance at First Breakpoint | E1: Intercept_2 | F1: Slope_2 | G1: Distance at Second Breakpoint | H1: Intercept_3 | I1: Slope_3 | J1: Nb_Segments | K1: Example of ​Model* | L1: ​​Manufacturer | M1: ​Engine Type | N1: Type Designator
A2: A124 | B2: 5.057303405 | C2: 52.5933761 | D2: 344.3553978 | E2: 10263.33953 | F2: 22.80356509 | G2: 1613.977264 | H2: 18205.2453 | I2: 17.88286022 | J2: 3 | K2: An-124 Ruslan | L2: ANTONOV | M2: Jet | N2: A124
A3: A140 | B3: 0.09860041637 | C3: 2.368461466 | D3: 385.2797721 | E3: 389.4143425 | F3: 1.357986039 | G3: 1268.213657 | H3: 702.6201569 | I3: 1.111019913 | J3: 3 | K3: IRAN-140 Faraz | L3: ANTONOV | M3: Turboprop/Turboshaft | N3: A140
A4: A148 | B4: 0.8415790645 | C4: 5.255629263 | D4: 372.747943 | E4: 1126.525942 | F4: 2.235667963 | G4: 1447.663964 | H4: 1694.784389 | I4: 1.843133189 | J4: 3 | K4: An-148 | L4: ANTONOV | M4: Jet | N4: A148
A5: A306 | B5: 2720.601 | C5: 5.744 | D5: 0 | E5: 0 | F5: 0 | G5: 0 | H5: 0 | I5: 0 | J5: 1 | K5: A-300B4-600 | L5: AIRBUS | M5: Jet | N5: A306
A6: A30B | B6: 2637.858324 | C6: 5.569305537 | D6: 0 | E6: 0 | F6: 0 | G6: 0 | H6: 0 | I6: 0 | J6: 1 | K6: A-300B2 | L6: AIRBUS | M6: Jet | N6: A30B
A7: A310 | B7: 1578.997 | C7: 5.71 | D7: 0 | E7: 0 | F7: 0 | G7: 0 | H7: 0 | I7: 0 | J7: 1 | K7: A-310 | L7: AIRBUS | M7: Jet | N7: A310
A8: A318 | B8: 695.221 | C8: 3.516 | D8: 600 | E8: 1248.325 | F8: 2.594 | G8: 0 | H8: 0 | I8: 0 | J8: 2 | K8: A-318 | L8: AIRBUS | M8: Jet | N8: A318
A9: A319 | B9: 803.609 | C9: 3.819 | D9: 500 | E9: 1319.32 | F9: 2.787 | G9: 1700 | H9: 1176.83 | I9: 2.871 | J9: 3 | K9: A-319 | L9: AIRBUS | M9: Jet | N9: A319
A10: A320 | B10: 777.554 | C10: 3.95 | D10: 500 | E10: 1198.749 | F10: 3.107 | G10: 2500 | H10: 608.492 | I10: 3.343 | J10: 3 | K10: A-320 | L10: AIRBUS | M10: Jet | N10: A320
A11: A321 | B11: 1155.769 | C11: 3.654 | D11: 0 | E11: 0 | F11: 0 | G11: 0 | H11: 0 | I11: 0 | J11: 1 | K11: A-321 | L11: AIRBUS | M11: Jet | N11: A321
A12: A332 | B12: 2387.933 | C12: 5.558 | D12: 2000 | E12: -24.513 | F12: 6.764 | G12: 0 | H12: 0 | I12: 0 | J12: 2 | K12: A-330-200 | L12: AIRBUS | M12: Jet | N12: A332
A13: A333 | B13: 2403.98166 | C13: 6.68574683 | D13: 0 | E13: 0 | F13: 0 | G13: 0 | H13: 0 | I13: 0 | J13: 1 | K13: A-330-300 | L13: AIRBUS | M13: Jet | N13: A333
A14: A342 | B14: 2429.968761 | C14: 7.941998816 | D14: 1000 | E14: 3403.871241 | F14: 6.967538386 | G14: 5000 | H14: -3868.263576 | I14: 8.421913262 | J14: 3 | K14: A-340-200 | L14: AIRBUS | M14: Jet | N14: A342
A15: A343 | B15: 2491.162 | C15: 8.142 | D15: 1000 | E15: 3489.59 | F15: 7.143 | G15: 5000 | H15: -3965.677 | I15: 8.634 | J15: 3 | K15: A-340-300 | L15: AIRBUS | M15: Jet | N15: A343
A16: A345 | B16: 3965.45806 | C16: 8.293207331 | D16: 3000 | E16: -2945.336253 | F16: 10.59648506 | G16: 0 | H16: 0 | I16: 0 | J16: 2 | K16: A-340-500 | L16: AIRBUS | M16: Jet | N16: A345
A17: A346 | B17: 3944.32 | C17: 8.249 | D17: 3000 | E17: -2929.636 | F17: 10.54 | G17: 0 | H17: 0 | I17: 0 | J17: 2 | K17: A-340-600 | L17: AIRBUS | M17: Jet | N17: A346
A18: A388 | B18: 7718.432 | C18: 12.823 | D18: 5000 | E18: -9700.73 | F18: 16.307 | G18: 0 | H18: 0 | I18: 0 | J18: 2 | K18: A-380-800 | L18: AIRBUS | M18: Jet | N18: A388
A19: A748 | B19: 5.684341886e-14 | C19: 2.417061611 | D19: 386.3010716 | E19: 404.940046 | F19: 1.368811747 | G19: 1314.847752 | H19: 691.1029677 | I19: 1.15117216 | J19: 3 | K19: 748 | L19: AIL | M19: Turboprop/Turboshaft | N19: A748
A20: AN12 | B20: 39.97621858 | C20: 8.815733589 | D20: 352.1676901 | E20: 1694.138379 | F20: 4.118646927 | G20: 1661.784662 | H20: 2913.297713 | I20: 3.385002333 | J20: 3 | K20: An-12 | L20: ANTONOV | M20: Turboprop/Turboshaft | N20: AN12
A21: AN24 | B21: 0.2623648283 | C21: 3.220745083 | D21: 201.754063 | E21: 133.9910557 | F21: 2.557914859 | G21: 386.188125 | H21: 583.6341099 | I21: 1.393603931 | J21: 3 | K21: An-24 | L21: ANTONOV | M21: Turboprop/Turboshaft | N21: AN24
A22: AN28 | B22: 0.04930020819 | C22: 1.184230733 | D22: 381.4017869 | E22: 188.6209339 | F22: 0.6898134539 | G22: 1077.914318 | H22: 310.1326536 | I22: 0.5770849025 | J22: 3 | K22: An-28 | L22: ANTONOV | M22: Turboprop/Turboshaft | N22: AN28
A23: AN72 | B23: 0.8415790645 | C23: 5.255629263 | D23: 373.6091676 | E23: 1132.907873 | F23: 2.225547584 | G23: 1564.143748 | H23: 1800.130444 | I23: 1.798973893 | J23: 3 | K23: An-72 | L23: ANTONOV | M23: Jet | N23: AN72
A24: AT43 | B24: 140.7761617 | C24: 1.266588627 | D24: 0 | E24: 0 | F24: 0 | G24: 0 | H24: 0 | I24: 0 | J24: 1 | K24: ATR-42-300 | L24: ATR | M24: Turboprop/Turboshaft | N24: AT43
A25: AT45 | B25: 155.382 | C25: 1.398 | D25: 0 | E25: 0 | F25: 0 | G25: 0 | H25: 0 | I25: 0 | J25: 1 | K25: ATR-42-500 | L25: ATR | M25: Turboprop/Turboshaft | N25: AT45
A26: AT46 | B26: 202.796 | C26: 1.32 | D26: 0 | E26: 0 | F26: 0 | G26: 0 | H26: 0 | I26: 0 | J26: 1 | K26: ATR-42-600 | L26: ATR | M26: Turboprop/Turboshaft | N26: AT46
A27: AT72 | B27: 184.847 | C27: 1.356 | D27: 0 | E27: 0 | F27: 0 | G27: 0 | H27: 0 | I27: 0 | J27: 1 | K27: ATR-72-201 | L27: ATR | M27: Turboprop/Turboshaft | N27: AT72
A28: AT73 | B28: 190.2392625 | C28: 1.395556541 | D28: 0 | E28: 0 | F28: 0 | G28: 0 | H28: 0 | I28: 0 | J28: 1 | K28: ATR-72-211 | L28: ATR | M28: Turboprop/Turboshaft | N28: AT73
A29: AT75 | B29: 167.2630892 | C29: 1.477006142 | D29: 0 | E29: 0 | F29: 0 | G29: 0 | H29: 0 | I29: 0 | J29: 1 | K29: ATR-72-500 | L29: ATR | M29: Turboprop/Turboshaft | N29: AT75
A30: AT76 | B30: 170.32 | C30: 1.504 | D30: 0 | E30: 0 | F30: 0 | G30: 0 | H30: 0 | I30: 0 | J30: 1 | K30: ATR-72-600 | L30: ATR | M30: Turboprop/Turboshaft | N30: AT76
A31: ATP | B31: 0.0885212627 | C31: 2.126352071 | D31: 383.9111124 | E31: 345.8720331 | F31: 1.225665687 | G31: 1201.054775 | H31: 604.7433544 | I31: 1.010129038 | J31: 3 | K31: ATP | L31: BRITISH AEROSPACE | M31: Turboprop/Turboshaft | N31: ATP
A32: B190 | B32: 97.032 | C32: 0.697 | D32: 0 | E32: 0 | F32: 0 | G32: 0 | H32: 0 | I32: 0 | J32: 1 | K32: 1900 | L32: BEECH | M32: Turboprop/Turboshaft | N32: B190
A33: B461 | B33: 674.3901807 | C33: 2.988754124 | D33: 0 | E33: 0 | F33: 0 | G33: 0 | H33: 0 | I33: 0 | J33: 1 | K33: BAe-146-100 | L33: BRITISH AEROSPACE | M33: Jet | N33: B461
A34: B462 | B34: 746.2 | C34: 3.307 | D34: 0 | E34: 0 | F34: 0 | G34: 0 | H34: 0 | I34: 0 | J34: 1 | K34: BAe-146-200 | L34: BRITISH AEROSPACE | M34: Jet | N34: B462
A35: B463 | B35: 667.103 | C35: 3.753 | D35: 0 | E35: 0 | F35: 0 | G35: 0 | H35: 0 | I35: 0 | J35: 1 | K35: BAe-146-300 | L35: BRITISH AEROSPACE | M35: Jet | N35: B463
A36: B701 | B36: 0.5584204634 | C36: 18.25705867 | D36: 393.4774837 | E36: 4570.575709 | F36: 6.642627152 | G36: 4948.372453 | H36: 11202.96954 | I36: 5.302308918 | J36: 3 | K36: 707-100 | L36: BOEING | M36: Jet | N36: B701
A37: B712 | B37: 1330.409287 | C37: 3.08903921 | D37: 0 | E37: 0 | F37: 0 | G37: 0 | H37: 0 | I37: 0 | J37: 1 | K37: 717-200 | L37: BOEING | M37: Jet | N37: B712
A38: B721 | B38: 2.098671344 | C38: 10.84855522 | D38: 324.0770874 | E38: 1944.071345 | F38: 4.856238112 | G38: 1484.40448 | H38: 3523.040187 | I38: 3.79253286 | J38: 3 | K38: 727-100 | L38: BOEING | M38: Jet | N38: B721
A39: B722 | B39: 2.273736754e-13 | C39: 12.23992891 | D39: 326.7564268 | E39: 1976.549017 | F39: 6.190930773 | G39: 1766.376065 | H39: 3635.532418 | I39: 5.251729074 | J39: 3 | K39: 727-200 | L39: BOEING | M39: Jet | N39: B722
A40: B732 | B40: 854.8125128 | C40: 2.754207545 | D40: 0 | E40: 0 | F40: 0 | G40: 0 | H40: 0 | I40: 0 | J40: 1 | K40: 737-200 | L40: BOEING | M40: Jet | N40: B732
A41: B733 | B41: 970.825 | C41: 3.128 | D41: 0 | E41: 0 | F41: 0 | G41: 0 | H41: 0 | I41: 0 | J41: 1 | K41: 737-300 | L41: BOEING | M41: Jet | N41: B733
A42: B734 | B42: 1156.564 | C42: 3.349 | D42: 0 | E42: 0 | F42: 0 | G42: 0 | H42: 0 | I42: 0 | J42: 1 | K42: 737-400 | L42: BOEING | M42: Jet | N42: B734
A43: B735 | B43: 989.539 | C43: 3.116 | D43: 0 | E43: 0 | F43: 0 | G43: 0 | H43: 0 | I43: 0 | J43: 1 | K43: 737-500 | L43: BOEING | M43: Jet | N43: B735
A44: B736 | B44: 951.274 | C44: 2.57 | D44: 0 | E44: 0 | F44: 0 | G44: 0 | H44: 0 | I44: 0 | J44: 1 | K44: 737-600 | L44: BOEING | M44: Jet | N44: B736
A45: B737 | B45: 888.273 | C45: 3.02 | D45: 0 | E45: 0 | F45: 0 | G45: 0 | H45: 0 | I45: 0 | J45: 1 | K45: 737-700 | L45: BOEING | M45: Jet | N45: B737
A46: B738 | B46: 583.254 | C46: 4.709 | D46: 300 | E46: 1039.765 | F46: 3.187 | G46: 4000 | H46: -297.813 | I46: 3.522 | J46: 3 | K46: 737-800 | L46: BOEING | M46: Jet | N46: B738
A47: B739 | B47: 1169.333 | C47: 3.349 | D47: 0 | E47: 0 | F47: 0 | G47: 0 | H47: 0 | I47: 0 | J47: 1 | K47: 737-900 | L47: BOEING | M47: Jet | N47: B739
A48: B741 | B48: 4410.02285 | C48: 8.194402267 | D48: 1500 | E48: 1660.652694 | F48: 10.02805423 | G48: 6500 | H48: -12731.79653 | I48: 12.24191679 | J48: 3 | K48: 747-100 | L48: BOEING | M48: Jet | N48: B741
A49: B742 | B49: 4818.227873 | C49: 8.952900867 | D49: 1500 | E49: 1814.367719 | F49: 10.95628119 | G49: 6500 | H49: -13910.29003 | I49: 13.37506555 | J49: 3 | K49: 747-200 | L49: BOEING | M49: Jet | N49: B742
A50: B743 | B50: 4827.505014 | C50: 8.970139015 | D50: 1500 | E50: 1817.861149 | F50: 10.9773767 | G50: 6500 | H50: -13937.07327 | I50: 13.40081825 | J50: 3 | K50: 747-300 | L50: BOEING | M50: Jet | N50: B743
A51: B744 | B51: 5103.514 | C51: 9.483 | D51: 1500 | E51: 1921.796 | F51: 11.605 | G51: 6500 | H51: -14733.915 | I51: 14.167 | J51: 3 | K51: 747-400 (international, winglets) | L51: BOEING | M51: Jet | N51: B744
A52: B748 | B52: 6008.288 | C52: 10.591 | D52: 6000 | E52: -7166.761 | F52: 12.786 | G52: 0 | H52: 0 | I52: 0 | J52: 2 | K52: 747-8 | L52: BOEING | M52: Jet | N52: B748
A53: B74D | B53: 4907.634025 | C53: 9.119029253 | D53: 1500 | E53: 1848.034793 | F53: 11.15958394 | G53: 6500 | H53: -14168.40682 | I53: 13.62325081 | J53: 3 | K53: 747-400 (domestic, no winglets) | L53: BOEING | M53: Jet | N53: B74D
A54: B74R | B54: 4206.555815 | C54: 7.816333764 | D54: 1500 | E54: 1584.034479 | F54: 9.565385778 | G54: 6500 | H54: -12144.3844 | I54: 11.67710645 | J54: 3 | K54: 747SR | L54: BOEING | M54: Jet | N54: B74R
A55: B74S | B55: 4108.32502 | C55: 7.633808033 | D55: 1500 | E55: 1547.044368 | F55: 9.342016474 | G55: 6500 | H55: -11860.79075 | I55: 11.40442459 | J55: 3 | K55: 747SP | L55: BOEING | M55: Jet | N55: B74S
A56: B752 | B56: 1838.947 | C56: 3.959 | D56: 0 | E56: 0 | F56: 0 | G56: 0 | H56: 0 | I56: 0 | J56: 1 | K56: 757-200 | L56: BOEING | M56: Jet | N56: B752
A57: B753 | B57: 2699.884 | C57: 2.908 | D57: 700 | E57: 1292.915 | F57: 4.918 | G57: 0 | H57: 0 | I57: 0 | J57: 2 | K57: 757-300 | L57: BOEING | M57: Jet | N57: B753
A58: B762 | B58: 2885.567 | C58: 3.941 | D58: 1000 | E58: 1067.482 | F58: 5.759 | G58: 0 | H58: 0 | I58: 0 | J58: 2 | K58: 767-200 | L58: BOEING | M58: Jet | N58: B762
A59: B763 | B59: 2840.082 | C59: 4.848 | D59: 3000 | E59: -1993.076 | F59: 6.46 | G59: 0 | H59: 0 | I59: 0 | J59: 2 | K59: 767-300 | L59: BOEING | M59: Jet | N59: B763
A60: B764 | B60: 1851.436 | C60: 6.027 | D60: 0 | E60: 0 | F60: 0 | G60: 0 | H60: 0 | I60: 0 | J60: 1 | K60: 767-400 | L60: BOEING | M60: Jet | N60: B764
A61: B772 | B61: 2801.302 | C61: 7.394 | D61: 3000 | E61: 1413.792 | F61: 7.856 | G61: 8000 | H61: -15489.746 | I61: 9.969 | J61: 3 | K61: 777-200 | L61: BOEING | M61: Jet | N61: B772
A62: B773 | B62: 2702.364976 | C62: 7.132857019 | D62: 3000 | E62: 1363.859371 | F62: 7.578539998 | G62: 8000 | H62: -14942.67561 | I62: 9.616912581 | J62: 3 | K62: 777-300 | L62: BOEING | M62: Jet | N62: B773
A63: B77L | B63: 3309.422 | C63: 7.931 | D63: 4000 | E63: -8017.645 | F63: 10.763 | G63: 8000 | H63: 14232.646 | I63: 7.982 | J63: 3 | K63: 777-200LR | L63: BOEING | M63: Jet | N63: B77L
A64: B77W | B64: 4528.739 | C64: 7.834 | D64: 3500 | E64: -5235.588 | F64: 10.623 | G64: 0 | H64: 0 | I64: 0 | J64: 2 | K64: 777-300ER | L64: BOEING | M64: Jet | N64: B77W
A65: B788 | B65: 2621.717 | C65: 5.364 | D65: 5000 | E65: -468.659 | F65: 5.982 | G65: 0 | H65: 0 | I65: 0 | J65: 2 | K65: 787-8 Dreamliner | L65: BOEING | M65: Jet | N65: B788
A66: B789 | B66: 2508.128 | C66: 5.181 | D66: 2000 | E66: -25.454 | F66: 6.448 | G66: 0 | H66: 0 | I66: 0 | J66: 2 | K66: 787-9 Dreamliner | L66: BOEING | M66: Jet | N66: B789
A67: B78X | B67: 2412.517809 | C67: 4.983499554 | D67: 2000 | E67: -24.48368995 | F67: 6.202201337 | G67: 0 | H67: 0 | I67: 0 | J67: 2 | K67: 787-10 Dreamliner | L67: BOEING | M67: Jet | N67: B78X
A68: BA11 | B68: 1.399840771 | C68: 7.616781064 | D68: 315.6878131 | E68: 1236.820873 | F68: 3.703354632 | G68: 889.6757989 | H68: 1641.368803 | I68: 3.248640757 | J68: 3 | K68: BAC-111 One-Eleven | L68: BAC | M68: Jet | N68: BA11
A69: BE20 | B69: 0.04673850048 | C69: 0.3483961359 | D69: 501.5429162 | E69: 73.69623057 | F69: 0.2015502935 | G69: 1270.963959 | H69: 110.13634 | I69: 0.172879056 | J69: 3 | K69: Super King Air (200) | L69: BEECH | M69: Turboprop/Turboshaft | N69: BE20
A70: BELF | B70: 0.3944016655 | C70: 9.473845863 | D70: 393.32026 | E70: 1647.42275 | F70: 5.286346475 | G70: 1848.316959 | H70: 4001.15838 | I70: 4.012898423 | J70: 3 | K70: SC-5 Belfast | L70: SHORT | M70: Turboprop/Turboshaft | N70: BELF
A71: C130 | B71: 0.2727944853 | C71: 6.552743388 | D71: 391.5476544 | E71: 1126.424545 | F71: 3.676588373 | G71: 1659.267888 | H71: 2470.066557 | I71: 2.866808335 | J71: 3 | K71: L-100 Hercules | L71: LOCKHEED | M71: Turboprop/Turboshaft | N71: C130
A72: C212 | B72: 0.04327462719 | C72: 1.039491421 | D72: 381.4017869 | E72: 165.5672642 | F72: 0.6055029206 | G72: 1077.914318 | H72: 272.2275515 | I72: 0.5065523033 | J72: 3 | K72: C-212 Aviocar | L72: AIRBUS | M72: Turboprop/Turboshaft | N72: C212
A73: C25C | B73: 193.9977379 | C73: 0.8882699201 | D73: 500 | E73: 301.431973 | F73: 0.6736820648 | G73: 0 | H73: 0 | I73: 0 | J73: 2 | K73: 525C Citation CJ4 | L73: CESSNA | M73: Jet | N73: C25C
A74: C525 | B74: 153.9323795 | C74: 0.7048200869 | D74: 500 | E74: 239.1787728 | F74: 0.5345499614 | G74: 0 | H74: 0 | I74: 0 | J74: 2 | K74: 525 Citation CJ1 | L74: CESSNA | M74: Jet | N74: C525
A75: C550 | B75: 188.042 | C75: 0.861 | D75: 500 | E75: 292.178 | F75: 0.653 | G75: 0 | H75: 0 | I75: 0 | J75: 2 | K75: 550 Citation 2 | L75: CESSNA | M75: Jet | N75: C550
A76: C55B | B76: 201.4496532 | C76: 0.9223904841 | D76: 500 | E76: 313.0106932 | F76: 0.699559798 | G76: 0 | H76: 0 | I76: 0 | J76: 2 | K76: 550B Citation Bravo | L76: CESSNA | M76: Jet | N76: C55B
A77: C560 | B77: 227.8777941 | C77: 1.043398713 | D77: 500 | E77: 354.0745054 | F77: 0.7913349123 | G77: 0 | H77: 0 | I77: 0 | J77: 2 | K77: 560 Citation 5 | L77: CESSNA | M77: Jet | N77: C560
A78: C56X | B78: 232.725 | C78: 1.073 | D78: 500 | E78: 431.207 | F78: 0.676 | G78: 0 | H78: 0 | I78: 0 | J78: 2 | K78: 560XL Citation Excel | L78: CESSNA | M78: Jet | N78: C56X
A79: C68A | B79: 374.055 | C79: 1.218 | D79: 500 | E79: 542.436 | F79: 0.881 | G79: 0 | H79: 0 | I79: 0 | J79: 2 | K79: 680A Citation Latitude | L79: CESSNA | M79: Jet | N79: C68A
A80: CL30 | B80: 320.785 | C80: 1.344 | D80: 750 | E80: 616.139 | F80: 0.95 | G80: 0 | H80: 0 | I80: 0 | J80: 2 | K80: BD-100 Challenger 300 | L80: BOMBARDIER | M80: Jet | N80: CL30
A81: CL35 | B81: 308.068 | C81: 1.444 | D81: 500 | E81: 578.034 | F81: 0.904 | G81: 2000 | H81: 327.769 | I81: 1.029 | J81: 3 | K81: BD-100 Challenger 350 | L81: BOMBARDIER | M81: Jet | N81: CL35
A82: CL60 | B82: 252.108 | C82: 2.206 | D82: 250 | E82: 503.658 | F82: 1.2 | G82: 0 | H82: 0 | I82: 0 | J82: 2 | K82: CL-600 Challenger 650 | L82: BOMBARDIER | M82: Jet | N82: CL60
A83: CN35 | B83: 0.06573361091 | C83: 1.57897431 | D83: 385.2797721 | E83: 259.6095616 | F83: 0.9053240261 | G83: 1268.213657 | H83: 468.4134379 | I83: 0.7406799418 | J83: 3 | K83: CN-235 | L83: AIRBUS | M83: Turboprop/Turboshaft | N83: CN35
A84: CRJ1 | B84: 467.574 | C84: 1.516 | D84: 0 | E84: 0 | F84: 0 | G84: 0 | H84: 0 | I84: 0 | J84: 1 | K84: Regional Jet CRJ-100 | L84: CANADAIR | M84: Jet | N84: CRJ1
A85: CRJ2 | B85: 479.3919017 | C85: 1.554316799 | D85: 0 | E85: 0 | F85: 0 | G85: 0 | H85: 0 | I85: 0 | J85: 1 | K85: Challenger 800 | L85: CANADAIR | M85: Jet | N85: CRJ2
A86: CRJ7 | B86: 509.065 | C86: 2.265 | D86: 500 | E86: 746.28 | F86: 1.791 | G86: 0 | H86: 0 | I86: 0 | J86: 2 | K86: Challenger 870 | L86: CANADAIR | M86: Jet | N86: CRJ7
A87: CRJ9 | B87: 526.232 | C87: 2.471 | D87: 500 | E87: 823.107 | F87: 1.877 | G87: 0 | H87: 0 | I87: 0 | J87: 2 | K87: Challenger 890 | L87: CANADAIR | M87: Jet | N87: CRJ9
A88: CRJX | B88: 508.813 | C88: 2.694 | D88: 500 | E88: 805.833 | F88: 2.1 | G88: 0 | H88: 0 | I88: 0 | J88: 2 | K88: Regional Jet CRJ-1000 | L88: BOMBARDIER | M88: Jet | N88: CRJX
A89: CVLP | B89: 0.1358494626 | C89: 3.263213575 | D89: 383.9111124 | E89: 530.7937142 | F89: 1.880972093 | G89: 1187.689483 | H89: 914.4862515 | I89: 1.557914137 | J89: 3 | K89: Convairliner | L89: CONVAIR | M89: Piston | N89: CVLP
A90: CVLT | B90: 0.1358494626 | C90: 3.263213575 | D90: 383.9111124 | E90: 530.7937142 | F90: 1.880972093 | G90: 1187.689483 | H90: 914.4862515 | I90: 1.557914137 | J90: 3 | K90: Cosmopolitan | L90: CANADAIR | M90: Turboprop/Turboshaft | N90: CVLT
A91: D228 | B91: 0.03609870799 | C91: 0.8671200588 | D91: 375.5977208 | E91: 130.1711571 | F91: 0.5206454898 | G91: 759.9821236 | H91: 173.6044426 | I91: 0.4634950857 | J91: 3 | K91: Dornier 228 | L91: DORNIER | M91: Turboprop/Turboshaft | N91: D228
A92: D328 | B92: 140.837 | C92: 1.067 | D92: 0 | E92: 0 | F92: 0 | G92: 0 | H92: 0 | I92: 0 | J92: 1 | K92: 328 | L92: DORNIER | M92: Turboprop/Turboshaft | N92: D328
A93: DC10 | B93: 4.547473509e-13 | C93: 20.3580832 | D93: 328.1189326 | E93: 3019.782566 | F93: 11.15476615 | G93: 1918.170805 | H93: 5764.995548 | I93: 9.723604248 | J93: 3 | K93: DC-10 | L93: BOEING | M93: Jet | N93: DC10
A94: DC3 | B94: 0.134042492 | C94: 0.9991738238 | D94: 501.5429162 | E94: 211.3552273 | F94: 0.5780310303 | G94: 1270.963959 | H94: 315.8627109 | I94: 0.4958040852 | J94: 3 | K94: DC-3 | L94: DOUGLAS | M94: Piston | N94: DC3
A95: DC6 | B95: 0.47726182 | C95: 3.557584694 | D95: 513.5300217 | E95: 808.7472235 | F95: 1.983635893 | G95: 1990.058226 | H95: 1639.087738 | I95: 1.566391562 | J95: 3 | K95: DC-6 | L95: DOUGLAS | M95: Piston | N95: DC6
A96: DC85 | B96: 3.279840764 | C96: 16.95431433 | D96: 327.3346314 | E96: 3107.401667 | F96: 7.471291362 | G96: 1847.275599 | H96: 6611.163003 | I96: 5.574573115 | J96: 3 | K96: DC-8-50 | L96: DOUGLAS | M96: Jet | N96: DC85
A97: DC87 | B97: 3.279840764 | C97: 16.95431433 | D97: 326.1866833 | E97: 3083.53918 | F97: 7.511073702 | G97: 1793.57367 | H97: 6535.404591 | I97: 5.586499613 | J97: 3 | K97: DC-8-70 | L97: DOUGLAS | M97: Jet | N97: DC87
A98: DC91 | B98: 0.8663203015 | C98: 6.976292432 | D98: 322.3148663 | E98: 1076.418259 | F98: 3.639332053 | G98: 1288.639641 | H98: 1784.700426 | I98: 3.089696495 | J98: 3 | K98: DC-9-10 | L98: DOUGLAS | M98: Jet | N98: DC91
A99: DC92 | B99: 0.919088997 | C99: 7.062725143 | D99: 322.1773394 | E99: 1089.552274 | F99: 3.683737696 | G99: 1288.639641 | H99: 1806.476612 | I99: 3.12739571 | J99: 3 | K99: DC-9-20 | L99: DOUGLAS | M99: Jet | N99: DC92
A100: DC93 | B100: 0.9238179627 | C100: 7.549513057 | D100: 322.3567642 | E100: 1164.930105 | F100: 3.938587474 | G100: 1288.639641 | H100: 1931.452981 | I100: 3.343756419 | J100: 3 | K100: DC-9-30 | L100: DOUGLAS | M100: Jet | N100: DC93
A101: DC94 | B101: 1.040215243 | C101: 8.106129963 | D101: 322.219107 | E101: 1250.58673 | F101: 4.228189494 | G101: 1288.639641 | H101: 2073.471583 | I101: 3.589620862 | J101: 3 | K101: DC-9-40 | L101: DOUGLAS | M101: Jet | N101: DC94
